Workbook

Sheet Capital Costs (hidden)
B1: Workpaper Title
B2: =ReportAssumptions!C3 -> Power Your Drive Extension Program
B3: Witness
B4: Woo-Jin Shim
B6: Summary Total
B8: Project Costs ($ Millions) | D8: 2021 | E8: 2022 | F8: 2023 | G8: 2024 | H8: 2025 | I8: Total
B9: CPUC Direct Costs | I9: =SUM(D9:H9) -> 0
B10: FERC Costs | I10: =SUM(D10:H10) -> 0
B11: Total Direct Capital | D11: =D9+D10 -> 0 | E11: =E9+E10 -> 0 | F11: 0 | G11: 0 | H11: 0 | I11: =SUM(D11:H11) -> 0
B13: Escalation Rates
B14: Escalation Impact | D14: =D11*D13 -> 0 | E14: =E11*E13 -> 0 | F14: 0 | G14: 0 | H14: 0 | I14: =SUM(D14:H14) -> 0
B16: Total Escalated Direct Costs | D16: =D14+D11 -> 0 | E16: =E14+E11 -> 0 | F16: 0 | G16: 0 | H16: 0 | I16: =SUM(D16:H16) -> 0
B18: CPUC Loaders | I18: =SUM(D18:H18) -> 0
B19: FERC Loaders | I19: =SUM(D19:H19) -> 0
B20: Total Loaders Impact | D20: =SUM(D18:D19) -> 0 | E20: =SUM(E18:E19) -> 0 | F20: =SUM(F18:F19) -> 0 | G20: =SUM(G18:G19) -> 0 | H20: =SUM(H18:H19) -> 0 | I20: =SUM(D20:H20) -> 0
B22: Total Capital (Loaded & Escalated) | D22: =D20+D16 -> 0 | E22: =E20+E16 -> 0 | F22: =F20+F16 -> 0 | G22: =G20+G16 -> 0 | H22: =H20+H16 -> 0 | I22: =SUM(D22:H22) -> 0
B25: Figures may not sum due to rounding

Sheet Rev Req
B1: =ReportAssumptions!C2 -> San Diego Gas & Electric
B2: =ReportAssumptions!C3 -> Power Your Drive Extension Program
B3: ="Revenue Requirement Summary ($ in "&ReportAssumptions!C9& ")" -> Revenue Requirement Summary ($ in Dollars)
B6: Total | C6: Total | D6: =DataFromEngine!J12 -> 2018 | E6: =DataFromEngine!K12 -> 2019 | F6: =DataFromEngine!L12 -> 2020 | G6: =DataFromEngine!M12 -> 2021 | H6: =DataFromEngine!N12 -> 2022 | I6: =DataFromEngine!O12 -> 2023 | J6: =DataFromEngine!P12 -> 2024 | K6: =DataFromEngine!Q12 -> 2025 | L6: =DataFromEngine!R12 -> 2026 | M6: =DataFromEngine!S12 -> 2027 | N6: =DataFromEngine!T12 -> 2028 | O6: =DataFromEngine!U12 -> 2029 | P6: =DataFromEngine!V12 -> 2030 | Q6: =DataFromEngine!W12 -> 2031 | R6: =DataFromEngine!X12 -> 2032 | S6: =DataFromEngine!Y12 -> 2033 | T6: =DataFromEngine!Z12 -> 2034 | U6: =DataFromEngine!AA12 -> 2035 | V6: =DataFromEngine!AB12 -> 2036 | W6: =DataFromEngine!AC12 -> 2037 | X6: =DataFromEngine!AD12 -> 2038 | Y6: =DataFromEngine!AE12 -> 2039 | Z6: =DataFromEngine!AF12 -> 2040 | AA6: =DataFromEngine!AG12 -> 2041 | AB6: =DataFromEngine!AH12 -> 2042 | AC6: =DataFromEngine!AI12 -> 2043 | AD6: =DataFromEngine!AJ12 -> 2044 | AE6: =DataFromEngine!AK12 -> 2045 | AF6: =DataFromEngine!AL12 -> 2046 | AG6: =DataFromEngine!AM12 -> 2047 | AH6: =DataFromEngine!AN12 -> 2048 | AI6: =DataFromEngine!AO12 -> 2049 | AJ6: =DataFromEngine!AP12 -> 2050 | AK6: =DataFromEngine!AQ12 -> 2051 | AL6: =DataFromEngine!AR12 -> 2052 | AM6: =DataFromEngine!AS12 -> 2053 | AN6: =DataFromEngine!AT12 -> 2054 | AO6: =DataFromEngine!AU12 -> 2055 | AP6: =DataFromEngine!AV12 -> 2056 | AQ6: =DataFromEngine!AW12 -> 2057 | AR6: =DataFromEngine!AX12 -> 2058 | AS6: =DataFromEngine!AY12 -> 2059 | AT6: =DataFromEngine!AZ12 -> 2060 | AU6: =DataFromEngine!BA12 -> 2061 | AV6: =DataFromEngine!BB12 -> 2062 | AW6: =DataFromEngine!BC12 -> 2063 | AX6: =DataFromEngine!BD12 -> 2064 | AY6: =DataFromEngine!BE12 -> 2065 | AZ6: =DataFromEngine!BF12 -> 2066 | BA6: =DataFromEngine!BG12 -> 2067 | BB6: =DataFromEngine!BH12 -> 2068 | BC6: =DataFromEngine!BI12 -> 2069 | BD6: =DataFromEngine!BJ12 -> 2070 | BE6: =DataFromEngine!BK12 -> 2071 | BF6: =DataFromEngine!BL12 -> 2072 | BG6: =DataFromEngine!BM12 -> 2073 | BH6: =DataFromEngine!BN12 -> 2074 | BI6: =DataFromEngine!BO12 -> 2075 | BJ6: =DataFromEngine!BP12 -> 2076 | BK6: =DataFromEngine!BQ12 -> 2077 | BL6: =DataFromEngine!BR12 -> 2078 | BM6: =DataFromEngine!BS12 -> 2079 | BN6: =DataFromEngine!BT12 -> 2080 | BO6: =DataFromEngine!BU12 -> 2081 | BP6: =DataFromEngine!BV12 -> 2082 | BQ6: =DataFromEngine!BW12 -> 2083 | BR6: =DataFromEngine!BX12 -> 2084 | BS6: =DataFromEngine!BY12 -> 2085 | BT6: =DataFromEngine!BZ12 -> 2086 | BU6: =DataFromEngine!CA12 -> 2087 | BV6: =DataFromEngine!CB12 -> 2088 | BW6: =DataFromEngine!CC12 -> 2089 | BX6: =DataFromEngine!CD12 -> 2090 | BY6: =DataFromEngine!CE12 -> 2091 | BZ6: =DataFromEngine!CF12 -> 2092 | CA6: =DataFromEngine!CG12 -> 2093 | CB6: =DataFromEngine!CH12 -> 2094 | CC6: =DataFromEngine!CI12 -> 2095 | CD6: =DataFromEngine!CJ12 -> 2096 | CE6: =DataFromEngine!CK12 -> 2097
B7: Revenue Requirement | C7: =SUM(D7:CE7) -> 125629986.3 | D7: =SUM(D8:D17) -> 0 | E7: =SUM(E8:E17) -> 0 | F7: =SUM(F8:F17) -> 0 | G7: =SUM(G8:G17) -> 1007927.896 | H7: 7723518.557 | I7: 11220048.17 | J7: 8760659.476 | K7: 6676797.388 | L7: 6437902.474 | M7: 6202446.793 | N7: 5970666.893 | O7: 5742220.471 | P7: 5515963.845 | Q7: 5279630.019 | R7: 4521858.566 | S7: 4098770.877 | T7: 3854124.813 | U7: 3698818.83 | V7: 3541205.677 | W7: 3382928.801 | X7: 3221168.76 | Y7: 3055328.485 | Z7: 2888861.478 | AA7: 2723139.251 | AB7: 2564777.652 | AC7: 2424853.769 | AD7: 2301649.688 | AE7: 2184279.999 | AF7: 2067449.118 | AG7: 1950620.164 | AH7: 1833791.158 | AI7: 1716962.154 | AJ7: 1600133.149 | AK7: 1485601.13 | AL7: 1413186.884 | AM7: 1353234.044 | AN7: 1245558.294 | AO7: 1123272.463 | AP7: 1006587.844 | AQ7: 889755.019 | AR7: 772926.1157 | AS7: 656097.1087 | AT7: 539268.1044 | AU7: 422439.1 | AV7: 305610.0957 | AW7: 188781.0913 | AX7: 71952.08696 | AY7: -44876.91739 | AZ7: -563064.9774 | BA7: -4842254.988 | BB7: -2065343.827 | BC7: =SUM(BC8:BC17) -> 277274.2943 | BD7: 72062.20012 | BE7: 50166.53782 | BF7: 22492.23674 | BG7: -5029.164314 | BH7: -32554.61103 | BI7: -60079.95071 | BJ7: -87605.29321 | BK7: -115130.6356 | BL7: =SUM(BL8:BL17) -> -274986.5564 | BM7: -1668123.566 | BN7: -730579.6703 | BO7: 56605.92105 | BP7: -1805.057404 | BQ7: 47.76095448 | BR7: -1.263731966 | BS7: 0.03343776 | BT7: -0.000884729 | BU7: 2.3427e-05 | BV7: -6.03e-07 | BW7: 3.3e-08 | BX7: 1.7e-08 | BY7: 1.7e-08 | BZ7: 1.7e-08 | CA7: 1.7e-08 | CB7: 1.7e-08 | CC7: 1.7e-08 | CD7: 1.7e-08 | CE7: 1.7e-08
B8: FF&U: | C8: =SUM(D8:CE8) -> 4541275.969 | D8: =(ROUND(DataFromEngine!J100,8))/Scale -> 0 | E8: =(ROUND(DataFromEngine!K100,9))/Scale -> 0 | F8: =(ROUND(DataFromEngine!L100,9))/Scale -> 0 | G8: =(ROUND(DataFromEngine!M100,9))/Scale -> 36434.60347 | H8: =(ROUND(DataFromEngine!N100,9))/Scale -> 279189.9471 | I8: =(ROUND(DataFromEngine!O100,9))/Scale -> 405582.5893 | J8: =(ROUND(DataFromEngine!P100,9))/Scale -> 316680.5437 | K8: =(ROUND(DataFromEngine!Q100,9))/Scale -> 241353.0435 | L8: =(ROUND(DataFromEngine!R100,9))/Scale -> 232717.464 | M8: =(ROUND(DataFromEngine!S100,9))/Scale -> 224206.206 | N8: =(ROUND(DataFromEngine!T100,9))/Scale -> 215827.8202 | O8: =(ROUND(DataFromEngine!U100,9))/Scale -> 207569.933 | P8: =(ROUND(DataFromEngine!V100,9))/Scale -> 199391.2027 | Q8: =(ROUND(DataFromEngine!W100,9))/Scale -> 190848.2015 | R8: =(ROUND(DataFromEngine!X100,9))/Scale -> 163456.2596 | S8: =(ROUND(DataFromEngine!Y100,9))/Scale -> 148162.4749 | T8: =(ROUND(DataFromEngine!Z100,9))/Scale -> 139319.0027 | U8: =(ROUND(DataFromEngine!AA100,9))/Scale -> 133704.9981 | V8: =(ROUND(DataFromEngine!AB100,9))/Scale -> 128007.5938 | W8: =(ROUND(DataFromEngine!AC100,9))/Scale -> 122286.1972 | X8: =(ROUND(DataFromEngine!AD100,9))/Scale -> 116438.8911 | Y8: =(ROUND(DataFromEngine!AE100,9))/Scale -> 110444.0925 | Z8: =(ROUND(DataFromEngine!AF100,9))/Scale -> 104426.6389 | AA8: =(ROUND(DataFromEngine!AG100,9))/Scale -> 98436.10757 | AB8: =(ROUND(DataFromEngine!AH100,9))/Scale -> 92711.64842 | AC8: =(ROUND(DataFromEngine!AI100,9))/Scale -> 87653.6763 | AD8: =(ROUND(DataFromEngine!AJ100,9))/Scale -> 83200.09201 | AE8: =(ROUND(DataFromEngine!AK100,9))/Scale -> 78957.40951 | AF8: =(ROUND(DataFromEngine!AL100,9))/Scale -> 74734.20382 | AG8: =(ROUND(DataFromEngine!AM100,9))/Scale -> 70511.06777 | AH8: =(ROUND(DataFromEngine!AN100,9))/Scale -> 66287.92987 | AI8: =(ROUND(DataFromEngine!AO100,9))/Scale -> 62064.79202 | AJ8: =(ROUND(DataFromEngine!AP100,9))/Scale -> 57841.65417 | AK8: =(ROUND(DataFromEngine!AQ100,9))/Scale -> 53701.54778 | AL8: =(ROUND(DataFromEngine!AR100,9))/Scale -> 51083.91576 | AM8: =(ROUND(DataFromEngine!AS100,9))/Scale -> 48916.73896 | AN8: =(ROUND(DataFromEngine!AT100,9))/Scale -> 45024.4732 | AO8: =(ROUND(DataFromEngine!AU100,9))/Scale -> 40604.08184 | AP8: =(ROUND(DataFromEngine!AV100,9))/Scale -> 36386.16322 | AQ8: =(ROUND(DataFromEngine!AW100,9))/Scale -> 32162.88727 | AR8: =(ROUND(DataFromEngine!AX100,9))/Scale -> 27939.75308 | AS8: =(ROUND(DataFromEngine!AY100,9))/Scale -> 23716.61513 | AT8: =(ROUND(DataFromEngine!AZ100,9))/Scale -> 19493.47729 | AU8: =(ROUND(DataFromEngine!BA100,9))/Scale -> 15270.33944 | AV8: =(ROUND(DataFromEngine!BB100,9))/Scale -> 11047.20159 | AW8: =(ROUND(DataFromEngine!BC100,9))/Scale -> 6824.063737 | AX8: =(ROUND(DataFromEngine!BD100,9))/Scale -> 2600.925887 | AY8: =(ROUND(DataFromEngine!BE100,9))/Scale -> -1622.211962 | AZ8: =(ROUND(DataFromEngine!BF100,9))/Scale -> -20353.68726 | BA8: =(ROUND(DataFromEngine!BG100,9))/Scale -> -175037.9577 | BB8: =(ROUND(DataFromEngine!BH100,9))/Scale -> -74658.1017 | BC8: =(ROUND(DataFromEngine!BI100,9))/Scale -> 10022.91831 | BD8: =(ROUND(DataFromEngine!BJ100,9))/Scale -> 2604.906261 | BE8: =(ROUND(DataFromEngine!BK100,9))/Scale -> 1813.421297 | BF8: =(ROUND(DataFromEngine!BL100,9))/Scale -> 813.0499514 | BG8: =(ROUND(DataFromEngine!BM100,9))/Scale -> -181.7943608 | BH8: =(ROUND(DataFromEngine!BN100,9))/Scale -> -1176.784916 | BI8: =(ROUND(DataFromEngine!BO100,9))/Scale -> -2171.771601 | BJ8: =(ROUND(DataFromEngine!BP100,9))/Scale -> -3166.758389 | BK8: =(ROUND(DataFromEngine!BQ100,9))/Scale -> -4161.745174 | BL8: =(ROUND(DataFromEngine!BR100,9))/Scale -> -9940.221101 | BM8: =(ROUND(DataFromEngine!BS100,9))/Scale -> -60299.37348 | BN8: =(ROUND(DataFromEngine!BT100,9))/Scale -> -26409.01268 | BO8: =(ROUND(DataFromEngine!BU100,9))/Scale -> 2046.192288 | BP8: =(ROUND(DataFromEngine!BV100,9))/Scale -> -65.2492614 | BQ8: =(ROUND(DataFromEngine!BW100,9))/Scale -> 1.726464209 | BR8: =(ROUND(DataFromEngine!BX100,9))/Scale -> -0.045681416 | BS8: =(ROUND(DataFromEngine!BY100,9))/Scale -> 0.001208709 | BT8: =(ROUND(DataFromEngine!BZ100,9))/Scale -> -3.1981e-05 | BU8: =(ROUND(DataFromEngine!CA100,9))/Scale -> 8.47e-07 | BV8: =(ROUND(DataFromEngine!CB100,9))/Scale -> -2.2e-08 | BW8: =(ROUND(DataFromEngine!CC100,9))/Scale -> 1e-09 | BX8: =(ROUND(DataFromEngine!CD100,9))/Scale -> 1e-09 | BY8: =(ROUND(DataFromEngine!CE100,9))/Scale -> 1e-09 | BZ8: =(ROUND(DataFromEngine!CF100,9))/Scale -> 1e-09 | CA8: =(ROUND(DataFromEngine!CG100,9))/Scale -> 1e-09 | CB8: =(ROUND(DataFromEngine!CH100,9))/Scale -> 1e-09 | CC8: =(ROUND(DataFromEngine!CI100,9))/Scale -> 1e-09 | CD8: =(ROUND(DataFromEngine!CJ100,9))/Scale -> 1e-09 | CE8: =(ROUND(DataFromEngine!CK100,9))/Scale -> 1e-09
B9: O&M: | C9: 12970693.48 | D9: =(ROUND(DataFromEngine!J101,8))/Scale -> 0 | E9: =(ROUND(DataFromEngine!K101,9))/Scale -> 0 | F9: =(ROUND(DataFromEngine!L101,9))/Scale -> 0 | G9: =(ROUND(DataFromEngine!M101,9))/Scale -> 937218.0296 | H9: =(ROUND(DataFromEngine!N101,9))/Scale -> 5095404.37 | I9: =(ROUND(DataFromEngine!O101,9))/Scale -> 5062707.984 | J9: =(ROUND(DataFromEngine!P101,9))/Scale -> 1875363.092 | K9: =(ROUND(DataFromEngine!Q101,9))/Scale -> 0 | L9: =(ROUND(DataFromEngine!R101,9))/Scale -> 0 | M9: =(ROUND(DataFromEngine!S101,9))/Scale -> 0 | N9: =(ROUND(DataFromEngine!T101,9))/Scale -> 0 | O9: =(ROUND(DataFromEngine!U101,9))/Scale -> 0 | P9: =(ROUND(DataFromEngine!V101,9))/Scale -> 0 | Q9: =(ROUND(DataFromEngine!W101,9))/Scale -> 0 | R9: =(ROUND(DataFromEngine!X101,9))/Scale -> 0 | S9: =(ROUND(DataFromEngine!Y101,9))/Scale -> 0 | T9: =(ROUND(DataFromEngine!Z101,9))/Scale -> 0 | U9: =(ROUND(DataFromEngine!AA101,9))/Scale -> 0 | V9: =(ROUND(DataFromEngine!AB101,9))/Scale -> 0 | W9: =(ROUND(DataFromEngine!AC101,9))/Scale -> 0 | X9: =(ROUND(DataFromEngine!AD101,9))/Scale -> 0 | Y9: =(ROUND(DataFromEngine!AE101,9))/Scale -> 0 | Z9: =(ROUND(DataFromEngine!AF101,9))/Scale -> 0 | AA9: =(ROUND(DataFromEngine!AG101,9))/Scale -> 0 | AB9: =(ROUND(DataFromEngine!AH101,9))/Scale -> 0 | AC9: =(ROUND(DataFromEngine!AI101,9))/Scale -> 0 | AD9: =(ROUND(DataFromEngine!AJ101,9))/Scale -> 0 | AE9: =(ROUND(DataFromEngine!AK101,9))/Scale -> 0 | AF9: =(ROUND(DataFromEngine!AL101,9))/Scale -> 0 | AG9: =(ROUND(DataFromEngine!AM101,9))/Scale -> 0 | AH9: =(ROUND(DataFromEngine!AN101,9))/Scale -> 0 | AI9: =(ROUND(DataFromEngine!AO101,9))/Scale -> 0 | AJ9: =(ROUND(DataFromEngine!AP101,9))/Scale -> 0 | AK9: =(ROUND(DataFromEngine!AQ101,9))/Scale -> 0 | AL9: =(ROUND(DataFromEngine!AR101,9))/Scale -> 0 | AM9: =(ROUND(DataFromEngine!AS101,9))/Scale -> 0 | AN9: =(ROUND(DataFromEngine!AT101,9))/Scale -> 0 | AO9: =(ROUND(DataFromEngine!AU101,9))/Scale -> 0 | AP9: =(ROUND(DataFromEngine!AV101,9))/Scale -> 0 | AQ9: =(ROUND(DataFromEngine!AW101,9))/Scale -> 0 | AR9: =(ROUND(DataFromEngine!AX101,9))/Scale -> 0 | AS9: =(ROUND(DataFromEngine!AY101,9))/Scale -> 0 | AT9: =(ROUND(DataFromEngine!AZ101,9))/Scale -> 0 | AU9: =(ROUND(DataFromEngine!BA101,9))/Scale -> 0 | AV9: =(ROUND(DataFromEngine!BB101,9))/Scale -> 0 | AW9: =(ROUND(DataFromEngine!BC101,9))/Scale -> 0 | AX9: =(ROUND(DataFromEngine!BD101,9))/Scale -> 0 | AY9: =(ROUND(DataFromEngine!BE101,9))/Scale -> 0 | AZ9: =(ROUND(DataFromEngine!BF101,9))/Scale -> 0 | BA9: =(ROUND(DataFromEngine!BG101,9))/Scale -> 0 | BB9: =(ROUND(DataFromEngine!BH101,9))/Scale -> 0 | BC9: =(ROUND(DataFromEngine!BI101,9))/Scale -> 0 | BD9: =(ROUND(DataFromEngine!BJ101,9))/Scale -> 0 | BE9: =(ROUND(DataFromEngine!BK101,9))/Scale -> 0 | BF9: =(ROUND(DataFromEngine!BL101,9))/Scale -> 0 | BG9: =(ROUND(DataFromEngine!BM101,9))/Scale -> 0 | BH9: =(ROUND(DataFromEngine!BN101,9))/Scale -> 0 | BI9: =(ROUND(DataFromEngine!BO101,9))/Scale -> 0 | BJ9: =(ROUND(DataFromEngine!BP101,9))/Scale -> 0 | BK9: =(ROUND(DataFromEngine!BQ101,9))/Scale -> 0 | BL9: =(ROUND(DataFromEngine!BR101,9))/Scale -> 0 | BM9: =(ROUND(DataFromEngine!BS101,9))/Scale -> 0 | BN9: =(ROUND(DataFromEngine!BT101,9))/Scale -> 0 | BO9: =(ROUND(DataFromEngine!BU101,9))/Scale -> 0 | BP9: =(ROUND(DataFromEngine!BV101,9))/Scale -> 0 | BQ9: =(ROUND(DataFromEngine!BW101,9))/Scale -> 0 | BR9: =(ROUND(DataFromEngine!BX101,9))/Scale -> 0 | BS9: =(ROUND(DataFromEngine!BY101,9))/Scale -> 0 | BT9: =(ROUND(DataFromEngine!BZ101,9))/Scale -> 0 | BU9: =(ROUND(DataFromEngine!CA101,9))/Scale -> 0 | BV9: =(ROUND(DataFromEngine!CB101,9))/Scale -> 0 | BW9: =(ROUND(DataFromEngine!CC101,9))/Scale -> 0 | BX9: =(ROUND(DataFromEngine!CD101,9))/Scale -> 0 | BY9: =(ROUND(DataFromEngine!CE101,9))/Scale -> 0 | BZ9: =(ROUND(DataFromEngine!CF101,9))/Scale -> 0 | CA9: =(ROUND(DataFromEngine!CG101,9))/Scale -> 0 | CB9: =(ROUND(DataFromEngine!CH101,9))/Scale -> 0 | CC9: =(ROUND(DataFromEngine!CI101,9))/Scale -> 0 | CD9: =(ROUND(DataFromEngine!CJ101,9))/Scale -> 0 | CE9: =(ROUND(DataFromEngine!CK101,9))/Scale -> 0
B10: Working Capital: | C10: 180536.9048 | D10: =(ROUND(DataFromEngine!J102,8))/Scale -> 0 | E10: =(ROUND(DataFromEngine!K102,9))/Scale -> 0 | F10: =(ROUND(DataFromEngine!L102,9))/Scale -> 0 | G10: =(ROUND(DataFromEngine!M102,9))/Scale -> 11977.15869 | H10: =(ROUND(DataFromEngine!N102,9))/Scale -> 69185.90213 | I10: =(ROUND(DataFromEngine!O102,9))/Scale -> 74287.69695 | J10: =(ROUND(DataFromEngine!P102,9))/Scale -> 25523.64816 | K10: =(ROUND(DataFromEngine!Q102,9))/Scale -> -449.0772397 | L10: =(ROUND(DataFromEngine!R102,9))/Scale -> 11.8823687 | M10: =(ROUND(DataFromEngine!S102,9))/Scale -> -0.314401785 | N10: =(ROUND(DataFromEngine!T102,9))/Scale -> 0.008318921 | O10: =(ROUND(DataFromEngine!U102,9))/Scale -> -0.000220115 | P10: =(ROUND(DataFromEngine!V102,9))/Scale -> 5.824e-06 | Q10: =(ROUND(DataFromEngine!W102,9))/Scale -> -1.54e-07 | R10: =(ROUND(DataFromEngine!X102,9))/Scale -> 4e-09 | S10: =(ROUND(DataFromEngine!Y102,9))/Scale -> 0 | T10: =(ROUND(DataFromEngine!Z102,9))/Scale -> 0 | U10: =(ROUND(DataFromEngine!AA102,9))/Scale -> 0 | V10: =(ROUND(DataFromEngine!AB102,9))/Scale -> 0 | W10: =(ROUND(DataFromEngine!AC102,9))/Scale -> 0 | X10: =(ROUND(DataFromEngine!AD102,9))/Scale -> 0 | Y10: =(ROUND(DataFromEngine!AE102,9))/Scale -> 0 | Z10: =(ROUND(DataFromEngine!AF102,9))/Scale -> 0 | AA10: =(ROUND(DataFromEngine!AG102,9))/Scale -> 0 | AB10: =(ROUND(DataFromEngine!AH102,9))/Scale -> 0 | AC10: =(ROUND(DataFromEngine!AI102,9))/Scale -> 0 | AD10: =(ROUND(DataFromEngine!AJ102,9))/Scale -> 0 | AE10: =(ROUND(DataFromEngine!AK102,9))/Scale -> 0 | AF10: =(ROUND(DataFromEngine!AL102,9))/Scale -> 0 | AG10: =(ROUND(DataFromEngine!AM102,9))/Scale -> 0 | AH10: =(ROUND(DataFromEngine!AN102,9))/Scale -> 0 | AI10: =(ROUND(DataFromEngine!AO102,9))/Scale -> 0 | AJ10: =(ROUND(DataFromEngine!AP102,9))/Scale -> 0 | AK10: =(ROUND(DataFromEngine!AQ102,9))/Scale -> 0 | AL10: =(ROUND(DataFromEngine!AR102,9))/Scale -> 0 | AM10: =(ROUND(DataFromEngine!AS102,9))/Scale -> 0 | AN10: =(ROUND(DataFromEngine!AT102,9))/Scale -> 0 | AO10: =(ROUND(DataFromEngine!AU102,9))/Scale -> 0 | AP10: =(ROUND(DataFromEngine!AV102,9))/Scale -> 0 | AQ10: =(ROUND(DataFromEngine!AW102,9))/Scale -> 0 | AR10: =(ROUND(DataFromEngine!AX102,9))/Scale -> 0 | AS10: =(ROUND(DataFromEngine!AY102,9))/Scale -> 0 | AT10: =(ROUND(DataFromEngine!AZ102,9))/Scale -> 0 | AU10: =(ROUND(DataFromEngine!BA102,9))/Scale -> 0 | AV10: =(ROUND(DataFromEngine!BB102,9))/Scale -> 0 | AW10: =(ROUND(DataFromEngine!BC102,9))/Scale -> 0 | AX10: =(ROUND(DataFromEngine!BD102,9))/Scale -> 0 | AY10: =(ROUND(DataFromEngine!BE102,9))/Scale -> 0 | AZ10: =(ROUND(DataFromEngine!BF102,9))/Scale -> 0 | BA10: =(ROUND(DataFromEngine!BG102,9))/Scale -> 0 | BB10: =(ROUND(DataFromEngine!BH102,9))/Scale -> 0 | BC10: =(ROUND(DataFromEngine!BI102,9))/Scale -> 0 | BD10: =(ROUND(DataFromEngine!BJ102,9))/Scale -> 0 | BE10: =(ROUND(DataFromEngine!BK102,9))/Scale -> 0 | BF10: =(ROUND(DataFromEngine!BL102,9))/Scale -> 0 | BG10: =(ROUND(DataFromEngine!BM102,9))/Scale -> 0 | BH10: =(ROUND(DataFromEngine!BN102,9))/Scale -> 0 | BI10: =(ROUND(DataFromEngine!BO102,9))/Scale -> 0 | BJ10: =(ROUND(DataFromEngine!BP102,9))/Scale -> 0 | BK10: =(ROUND(DataFromEngine!BQ102,9))/Scale -> 0 | BL10: =(ROUND(DataFromEngine!BR102,9))/Scale -> 0 | BM10: =(ROUND(DataFromEngine!BS102,9))/Scale -> 0 | BN10: =(ROUND(DataFromEngine!BT102,9))/Scale -> 0 | BO10: =(ROUND(DataFromEngine!BU102,9))/Scale -> 0 | BP10: =(ROUND(DataFromEngine!BV102,9))/Scale -> 0 | BQ10: =(ROUND(DataFromEngine!BW102,9))/Scale -> 0 | BR10: =(ROUND(DataFromEngine!BX102,9))/Scale -> 0 | BS10: =(ROUND(DataFromEngine!BY102,9))/Scale -> 0 | BT10: =(ROUND(DataFromEngine!BZ102,9))/Scale -> 0 | BU10: =(ROUND(DataFromEngine!CA102,9))/Scale -> 0 | BV10: =(ROUND(DataFromEngine!CB102,9))/Scale -> 0 | BW10: =(ROUND(DataFromEngine!CC102,9))/Scale -> 0 | BX10: =(ROUND(DataFromEngine!CD102,9))/Scale -> 0 | BY10: =(ROUND(DataFromEngine!CE102,9))/Scale -> 0 | BZ10: =(ROUND(DataFromEngine!CF102,9))/Scale -> 0 | CA10: =(ROUND(DataFromEngine!CG102,9))/Scale -> 0 | CB10: =(ROUND(DataFromEngine!CH102,9))/Scale -> 0 | CC10: =(ROUND(DataFromEngine!CI102,9))/Scale -> 0 | CD10: =(ROUND(DataFromEngine!CJ102,9))/Scale -> 0 | CE10: =(ROUND(DataFromEngine!CK102,9))/Scale -> 0
B11: Depreciation: | C11: 68258436.83 | D11: =(ROUND(DataFromEngine!J103,8))/Scale -> 0 | E11: =(ROUND(DataFromEngine!K103,9))/Scale -> 0 | F11: =(ROUND(DataFromEngine!L103,9))/Scale -> 0 | G11: =(ROUND(DataFromEngine!M103,9))/Scale -> 9692.643223 | H11: =(ROUND(DataFromEngine!N103,9))/Scale -> 816265.3512 | I11: =(ROUND(DataFromEngine!O103,9))/Scale -> 1798362.186 | J11: =(ROUND(DataFromEngine!P103,9))/Scale -> 2042309.339 | K11: =(ROUND(DataFromEngine!Q103,9))/Scale -> 2042309.339 | L11: =(ROUND(DataFromEngine!R103,9))/Scale -> 2042309.339 | M11: =(ROUND(DataFromEngine!S103,9))/Scale -> 2042309.339 | N11: =(ROUND(DataFromEngine!T103,9))/Scale -> 2042309.339 | O11: =(ROUND(DataFromEngine!U103,9))/Scale -> 2042309.339 | P11: =(ROUND(DataFromEngine!V103,9))/Scale -> 2042309.339 | Q11: =(ROUND(DataFromEngine!W103,9))/Scale -> 2036783.522 | R11: =(ROUND(DataFromEngine!X103,9))/Scale -> 1584209.77 | S11: =(ROUND(DataFromEngine!Y103,9))/Scale -> 1342316.257 | T11: =(ROUND(DataFromEngine!Z103,9))/Scale -> 1264574.09 | U11: =(ROUND(DataFromEngine!AA103,9))/Scale -> 1264574.09 | V11: =(ROUND(DataFromEngine!AB103,9))/Scale -> 1264574.09 | W11: =(ROUND(DataFromEngine!AC103,9))/Scale -> 1264574.09 | X11: =(ROUND(DataFromEngine!AD103,9))/Scale -> 1264574.09 | Y11: =(ROUND(DataFromEngine!AE103,9))/Scale -> 1264574.09 | Z11: =(ROUND(DataFromEngine!AF103,9))/Scale -> 1264574.09 | AA11: =(ROUND(DataFromEngine!AG103,9))/Scale -> 1264574.09 | AB11: =(ROUND(DataFromEngine!AH103,9))/Scale -> 1264574.09 | AC11: =(ROUND(DataFromEngine!AI103,9))/Scale -> 1264574.09 | AD11: =(ROUND(DataFromEngine!AJ103,9))/Scale -> 1264574.09 | AE11: =(ROUND(DataFromEngine!AK103,9))/Scale -> 1264574.09 | AF11: =(ROUND(DataFromEngine!AL103,9))/Scale -> 1264574.09 | AG11: =(ROUND(DataFromEngine!AM103,9))/Scale -> 1264574.09 | AH11: =(ROUND(DataFromEngine!AN103,9))/Scale -> 1264574.09 | AI11: =(ROUND(DataFromEngine!AO103,9))/Scale -> 1264574.09 | AJ11: =(ROUND(DataFromEngine!AP103,9))/Scale -> 1264574.09 | AK11: =(ROUND(DataFromEngine!AQ103,9))/Scale -> 1264574.09 | AL11: =(ROUND(DataFromEngine!AR103,9))/Scale -> 1264574.09 | AM11: =(ROUND(DataFromEngine!AS103,9))/Scale -> 1264574.09 | AN11: =(ROUND(DataFromEngine!AT103,9))/Scale -> 1264574.09 | AO11: =(ROUND(DataFromEngine!AU103,9))/Scale -> 1264574.09 | AP11: =(ROUND(DataFromEngine!AV103,9))/Scale -> 1264574.09 | AQ11: =(ROUND(DataFromEngine!AW103,9))/Scale -> 1264574.09 | AR11: =(ROUND(DataFromEngine!AX103,9))/Scale -> 1264574.09 | AS11: =(ROUND(DataFromEngine!AY103,9))/Scale -> 1264574.09 | AT11: =(ROUND(DataFromEngine!AZ103,9))/Scale -> 1264574.09 | AU11: =(ROUND(DataFromEngine!BA103,9))/Scale -> 1264574.09 | AV11: =(ROUND(DataFromEngine!BB103,9))/Scale -> 1264574.09 | AW11: =(ROUND(DataFromEngine!BC103,9))/Scale -> 1264574.09 | AX11: =(ROUND(DataFromEngine!BD103,9))/Scale -> 1264574.09 | AY11: =(ROUND(DataFromEngine!BE103,9))/Scale -> 1264574.09 | AZ11: =(ROUND(DataFromEngine!BF103,9))/Scale -> 1261390.758 | BA11: =(ROUND(DataFromEngine!BG103,9))/Scale -> 990790.9703 | BB11: =(ROUND(DataFromEngine!BH103,9))/Scale -> 424914.469 | BC11: =(ROUND(DataFromEngine!BI103,9))/Scale -> 297937.5245 | BD11: =(ROUND(DataFromEngine!BJ103,9))/Scale -> 297937.5245 | BE11: =(ROUND(DataFromEngine!BK103,9))/Scale -> 297937.5245 | BF11: =(ROUND(DataFromEngine!BL103,9))/Scale -> 297937.5245 | BG11: =(ROUND(DataFromEngine!BM103,9))/Scale -> 297937.5245 | BH11: =(ROUND(DataFromEngine!BN103,9))/Scale -> 297937.5245 | BI11: =(ROUND(DataFromEngine!BO103,9))/Scale -> 297937.5245 | BJ11: =(ROUND(DataFromEngine!BP103,9))/Scale -> 297937.5245 | BK11: =(ROUND(DataFromEngine!BQ103,9))/Scale -> 297937.5245 | BL11: =(ROUND(DataFromEngine!BR103,9))/Scale -> 296954.0303 | BM11: =(ROUND(DataFromEngine!BS103,9))/Scale -> 213554.8619 | BN11: =(ROUND(DataFromEngine!BT103,9))/Scale -> 39228.04191 | BO11: =(ROUND(DataFromEngine!BU103,9))/Scale -> 0 | BP11: =(ROUND(DataFromEngine!BV103,9))/Scale -> 0 | BQ11: =(ROUND(DataFromEngine!BW103,9))/Scale -> 0 | BR11: =(ROUND(DataFromEngine!BX103,9))/Scale -> 0 | BS11: =(ROUND(DataFromEngine!BY103,9))/Scale -> 0 | BT11: =(ROUND(DataFromEngine!BZ103,9))/Scale -> 0 | BU11: =(ROUND(DataFromEngine!CA103,9))/Scale -> 0 | BV11: =(ROUND(DataFromEngine!CB103,9))/Scale -> 0 | BW11: =(ROUND(DataFromEngine!CC103,9))/Scale -> 0 | BX11: =(ROUND(DataFromEngine!CD103,9))/Scale -> 0 | BY11: =(ROUND(DataFromEngine!CE103,9))/Scale -> 0 | BZ11: =(ROUND(DataFromEngine!CF103,9))/Scale -> 0 | CA11: =(ROUND(DataFromEngine!CG103,9))/Scale -> 0 | CB11: =(ROUND(DataFromEngine!CH103,9))/Scale -> 0 | CC11: =(ROUND(DataFromEngine!CI103,9))/Scale -> 0 | CD11: =(ROUND(DataFromEngine!CJ103,9))/Scale -> 0 | CE11: =(ROUND(DataFromEngine!CK103,9))/Scale -> 0
B12: Return on Common: | C12: 21809586.44 | D12: =(ROUND(DataFromEngine!J104,8))/Scale -> 0 | E12: =(ROUND(DataFromEngine!K104,9))/Scale -> 0 | F12: =(ROUND(DataFromEngine!L104,9))/Scale -> 0 | G12: =(ROUND(DataFromEngine!M104,9))/Scale -> 9462.069583 | H12: =(ROUND(DataFromEngine!N104,9))/Scale -> 792961.2051 | I12: =(ROUND(DataFromEngine!O104,9))/Scale -> 2010726.033 | J12: =(ROUND(DataFromEngine!P104,9))/Scale -> 2198815.267 | K12: =(ROUND(DataFromEngine!Q104,9))/Scale -> 2079813.117 | L12: =(ROUND(DataFromEngine!R104,9))/Scale -> 1963296.647 | M12: =(ROUND(DataFromEngine!S104,9))/Scale -> 1849079.431 | N12: =(ROUND(DataFromEngine!T104,9))/Scale -> 1736989.025 | O12: =(ROUND(DataFromEngine!U104,9))/Scale -> 1626842.851 | P12: =(ROUND(DataFromEngine!V104,9))/Scale -> 1518039.15 | Q12: =(ROUND(DataFromEngine!W104,9))/Scale -> 1409724.981 | R12: =(ROUND(DataFromEngine!X104,9))/Scale -> 1309284.576 | S12: =(ROUND(DataFromEngine!Y104,9))/Scale -> 1226906.565 | T12: =(ROUND(DataFromEngine!Z104,9))/Scale -> 1150236.949 | U12: =(ROUND(DataFromEngine!AA104,9))/Scale -> 1074723.875 | V12: =(ROUND(DataFromEngine!AB104,9))/Scale -> 999210.8008 | W12: =(ROUND(DataFromEngine!AC104,9))/Scale -> 923697.7268 | X12: =(ROUND(DataFromEngine!AD104,9))/Scale -> 848184.6528 | Y12: =(ROUND(DataFromEngine!AE104,9))/Scale -> 772671.5788 | Z12: =(ROUND(DataFromEngine!AF104,9))/Scale -> 697158.5048 | AA12: =(ROUND(DataFromEngine!AG104,9))/Scale -> 621829.9706 | AB12: =(ROUND(DataFromEngine!AH104,9))/Scale -> 550296.5941 | AC12: =(ROUND(DataFromEngine!AI104,9))/Scale -> 487793.2916 | AD12: =(ROUND(DataFromEngine!AJ104,9))/Scale -> 432702.824 | AE12: =(ROUND(DataFromEngine!AK104,9))/Scale -> 379605.7348 | AF12: =(ROUND(DataFromEngine!AL104,9))/Scale -> 326508.6455 | AG12: =(ROUND(DataFromEngine!AM104,9))/Scale -> 273411.5563 | AH12: =(ROUND(DataFromEngine!AN104,9))/Scale -> 220314.4671 | AI12: =(ROUND(DataFromEngine!AO104,9))/Scale -> 167217.3779 | AJ12: =(ROUND(DataFromEngine!AP104,9))/Scale -> 114120.2886 | AK12: =(ROUND(DataFromEngine!AQ104,9))/Scale -> 61023.1994 | AL12: =(ROUND(DataFromEngine!AR104,9))/Scale -> 7926.11017 | AM12: =(ROUND(DataFromEngine!AS104,9))/Scale -> -45170.97906 | AN12: =(ROUND(DataFromEngine!AT104,9))/Scale -> -98268.06829 | AO12: =(ROUND(DataFromEngine!AU104,9))/Scale -> -151365.1575 | AP12: =(ROUND(DataFromEngine!AV104,9))/Scale -> -204462.2467 | AQ12: =(ROUND(DataFromEngine!AW104,9))/Scale -> -257559.336 | AR12: =(ROUND(DataFromEngine!AX104,9))/Scale -> -310656.4252 | AS12: =(ROUND(DataFromEngine!AY104,9))/Scale -> -363753.5144 | AT12: =(ROUND(DataFromEngine!AZ104,9))/Scale -> -416850.6037 | AU12: =(ROUND(DataFromEngine!BA104,9))/Scale -> -469947.6929 | AV12: =(ROUND(DataFromEngine!BB104,9))/Scale -> -523044.7821 | AW12: =(ROUND(DataFromEngine!BC104,9))/Scale -> -576141.8713 | AX12: =(ROUND(DataFromEngine!BD104,9))/Scale -> -629238.9606 | AY12: =(ROUND(DataFromEngine!BE104,9))/Scale -> -682336.0498 | AZ12: =(ROUND(DataFromEngine!BF104,9))/Scale -> -731453.6124 | BA12: =(ROUND(DataFromEngine!BG104,9))/Scale -> -562172.1165 | BB12: =(ROUND(DataFromEngine!BH104,9))/Scale -> -178759.53 | BC12: =(ROUND(DataFromEngine!BI104,9))/Scale -> -108201.7797 | BD12: =(ROUND(DataFromEngine!BJ104,9))/Scale -> -120711.6488 | BE12: =(ROUND(DataFromEngine!BK104,9))/Scale -> -133221.518 | BF12: =(ROUND(DataFromEngine!BL104,9))/Scale -> -145731.3872 | BG12: =(ROUND(DataFromEngine!BM104,9))/Scale -> -158241.2564 | BH12: =(ROUND(DataFromEngine!BN104,9))/Scale -> -170751.1256 | BI12: =(ROUND(DataFromEngine!BO104,9))/Scale -> -183260.9948 | BJ12: =(ROUND(DataFromEngine!BP104,9))/Scale -> -195770.864 | BK12: =(ROUND(DataFromEngine!BQ104,9))/Scale -> -208280.7332 | BL12: =(ROUND(DataFromEngine!BR104,9))/Scale -> -219473.8579 | BM12: =(ROUND(DataFromEngine!BS104,9))/Scale -> -158618.6267 | BN12: =(ROUND(DataFromEngine!BT104,9))/Scale -> -27543.8836 | BO12: =(ROUND(DataFromEngine!BU104,9))/Scale -> 8e-09 | BP12: =(ROUND(DataFromEngine!BV104,9))/Scale -> 8e-09 | BQ12: =(ROUND(DataFromEngine!BW104,9))/Scale -> 8e-09 | BR12: =(ROUND(DataFromEngine!BX104,9))/Scale -> 8e-09 | BS12: =(ROUND(DataFromEngine!BY104,9))/Scale -> 8e-09 | BT12: =(ROUND(DataFromEngine!BZ104,9))/Scale -> 8e-09 | BU12: =(ROUND(DataFromEngine!CA104,9))/Scale -> 8e-09 | BV12: =(ROUND(DataFromEngine!CB104,9))/Scale -> 8e-09 | BW12: =(ROUND(DataFromEngine!CC104,9))/Scale -> 8e-09 | BX12: =(ROUND(DataFromEngine!CD104,9))/Scale -> 8e-09 | BY12: =(ROUND(DataFromEngine!CE104,9))/Scale -> 8e-09 | BZ12: =(ROUND(DataFromEngine!CF104,9))/Scale -> 8e-09 | CA12: =(ROUND(DataFromEngine!CG104,9))/Scale -> 8e-09 | CB12: =(ROUND(DataFromEngine!CH104,9))/Scale -> 8e-09 | CC12: =(ROUND(DataFromEngine!CI104,9))/Scale -> 8e-09 | CD12: =(ROUND(DataFromEngine!CJ104,9))/Scale -> 8e-09 | CE12: =(ROUND(DataFromEngine!CK104,9))/Scale -> 8e-09
B13: Return on Preferred: | C13: 687832.2222 | D13: =(ROUND(DataFromEngine!J105,8))/Scale -> 0 | E13: =(ROUND(DataFromEngine!K105,9))/Scale -> 0 | F13: =(ROUND(DataFromEngine!L105,9))/Scale -> 0 | G13: =(ROUND(DataFromEngine!M105,9))/Scale -> 286.6179052 | H13: =(ROUND(DataFromEngine!N105,9))/Scale -> 24080.16403 | I13: =(ROUND(DataFromEngine!O105,9))/Scale -> 62726.82602 | J13: =(ROUND(DataFromEngine!P105,9))/Scale -> 68767.94891 | K13: =(ROUND(DataFromEngine!Q105,9))/Scale -> 65174.14244 | L13: =(ROUND(DataFromEngine!R105,9))/Scale -> 61657.82925 | M13: =(ROUND(DataFromEngine!S105,9))/Scale -> 58213.19734 | N13: =(ROUND(DataFromEngine!T105,9))/Scale -> 54834.87062 | O13: =(ROUND(DataFromEngine!U105,9))/Scale -> 51517.18051 | P13: =(ROUND(DataFromEngine!V105,9))/Scale -> 48241.51384 | Q13: =(ROUND(DataFromEngine!W105,9))/Scale -> 44981.20272 | R13: =(ROUND(DataFromEngine!X105,9))/Scale -> 41925.04675 | S13: =(ROUND(DataFromEngine!Y105,9))/Scale -> 39336.53014 | T13: =(ROUND(DataFromEngine!Z105,9))/Scale -> 36895.80712 | U13: =(ROUND(DataFromEngine!AA105,9))/Scale -> 34485.02608 | V13: =(ROUND(DataFromEngine!AB105,9))/Scale -> 32074.24503 | W13: =(ROUND(DataFromEngine!AC105,9))/Scale -> 29663.46399 | X13: =(ROUND(DataFromEngine!AD105,9))/Scale -> 27252.68294 | Y13: =(ROUND(DataFromEngine!AE105,9))/Scale -> 24841.9019 | Z13: =(ROUND(DataFromEngine!AF105,9))/Scale -> 22431.12086 | AA13: =(ROUND(DataFromEngine!AG105,9))/Scale -> 20025.90536 | AB13: =(ROUND(DataFromEngine!AH105,9))/Scale -> 17737.66565 | AC13: =(ROUND(DataFromEngine!AI105,9))/Scale -> 15729.8806 | AD13: =(ROUND(DataFromEngine!AJ105,9))/Scale -> 13954.33975 | AE13: =(ROUND(DataFromEngine!AK105,9))/Scale -> 12241.99867 | AF13: =(ROUND(DataFromEngine!AL105,9))/Scale -> 10529.65758 | AG13: =(ROUND(DataFromEngine!AM105,9))/Scale -> 8817.316498 | AH13: =(ROUND(DataFromEngine!AN105,9))/Scale -> 7104.975414 | AI13: =(ROUND(DataFromEngine!AO105,9))/Scale -> 5392.634329 | AJ13: =(ROUND(DataFromEngine!AP105,9))/Scale -> 3680.293245 | AK13: =(ROUND(DataFromEngine!AQ105,9))/Scale -> 1967.95216 | AL13: =(ROUND(DataFromEngine!AR105,9))/Scale -> 255.6110755 | AM13: =(ROUND(DataFromEngine!AS105,9))/Scale -> -1456.730009 | AN13: =(ROUND(DataFromEngine!AT105,9))/Scale -> -3169.071094 | AO13: =(ROUND(DataFromEngine!AU105,9))/Scale -> -4881.412178 | AP13: =(ROUND(DataFromEngine!AV105,9))/Scale -> -6593.753263 | AQ13: =(ROUND(DataFromEngine!AW105,9))/Scale -> -8306.094347 | AR13: =(ROUND(DataFromEngine!AX105,9))/Scale -> -10018.43543 | AS13: =(ROUND(DataFromEngine!AY105,9))/Scale -> -11730.77652 | AT13: =(ROUND(DataFromEngine!AZ105,9))/Scale -> -13443.1176 | AU13: =(ROUND(DataFromEngine!BA105,9))/Scale -> -15155.45869 | AV13: =(ROUND(DataFromEngine!BB105,9))/Scale -> -16867.79977 | AW13: =(ROUND(DataFromEngine!BC105,9))/Scale -> -18580.14085 | AX13: =(ROUND(DataFromEngine!BD105,9))/Scale -> -20292.48194 | AY13: =(ROUND(DataFromEngine!BE105,9))/Scale -> -22004.82302 | AZ13: =(ROUND(DataFromEngine!BF105,9))/Scale -> -23588.82737 | BA13: =(ROUND(DataFromEngine!BG105,9))/Scale -> -18129.6268 | BB13: =(ROUND(DataFromEngine!BH105,9))/Scale -> -5764.860032 | BC13: =(ROUND(DataFromEngine!BI105,9))/Scale -> -3489.425794 | BD13: =(ROUND(DataFromEngine!BJ105,9))/Scale -> -3892.859641 | BE13: =(ROUND(DataFromEngine!BK105,9))/Scale -> -4296.293488 | BF13: =(ROUND(DataFromEngine!BL105,9))/Scale -> -4699.727336 | BG13: =(ROUND(DataFromEngine!BM105,9))/Scale -> -5103.161183 | BH13: =(ROUND(DataFromEngine!BN105,9))/Scale -> -5506.59503 | BI13: =(ROUND(DataFromEngine!BO105,9))/Scale -> -5910.028878 | BJ13: =(ROUND(DataFromEngine!BP105,9))/Scale -> -6313.462725 | BK13: =(ROUND(DataFromEngine!BQ105,9))/Scale -> -6716.896573 | BL13: =(ROUND(DataFromEngine!BR105,9))/Scale -> -7077.866401 | BM13: =(ROUND(DataFromEngine!BS105,9))/Scale -> -5115.331091 | BN13: =(ROUND(DataFromEngine!BT105,9))/Scale -> -888.2694739 | BO13: =(ROUND(DataFromEngine!BU105,9))/Scale -> 0 | BP13: =(ROUND(DataFromEngine!BV105,9))/Scale -> 0 | BQ13: =(ROUND(DataFromEngine!BW105,9))/Scale -> 0 | BR13: =(ROUND(DataFromEngine!BX105,9))/Scale -> 0 | BS13: =(ROUND(DataFromEngine!BY105,9))/Scale -> 0 | BT13: =(ROUND(DataFromEngine!BZ105,9))/Scale -> 0 | BU13: =(ROUND(DataFromEngine!CA105,9))/Scale -> 0 | BV13: =(ROUND(DataFromEngine!CB105,9))/Scale -> 0 | BW13: =(ROUND(DataFromEngine!CC105,9))/Scale -> 0 | BX13: =(ROUND(DataFromEngine!CD105,9))/Scale -> 0 | BY13: =(ROUND(DataFromEngine!CE105,9))/Scale -> 0 | BZ13: =(ROUND(DataFromEngine!CF105,9))/Scale -> 0 | CA13: =(ROUND(DataFromEngine!CG105,9))/Scale -> 0 | CB13: =(ROUND(DataFromEngine!CH105,9))/Scale -> 0 | CC13: =(ROUND(DataFromEngine!CI105,9))/Scale -> 0 | CD13: =(ROUND(DataFromEngine!CJ105,9))/Scale -> 0 | CE13: =(ROUND(DataFromEngine!CK105,9))/Scale -> 0
B14: Return On Debt: | C14: 8525925.568 | D14: =(ROUND(DataFromEngine!J106,8))/Scale -> 0 | E14: =(ROUND(DataFromEngine!K106,9))/Scale -> 0 | F14: =(ROUND(DataFromEngine!L106,9))/Scale -> 0 | G14: =(ROUND(DataFromEngine!M106,9))/Scale -> 3688.001024 | H14: =(ROUND(DataFromEngine!N106,9))/Scale -> 309126.1023 | I14: =(ROUND(DataFromEngine!O106,9))/Scale -> 785405.2518 | J14: =(ROUND(DataFromEngine!P106,9))/Scale -> 859035.5894 | K14: =(ROUND(DataFromEngine!Q106,9))/Scale -> 812662.6428 | L14: =(ROUND(DataFromEngine!R106,9))/Scale -> 767260.5755 | M14: =(ROUND(DataFromEngine!S106,9))/Scale -> 722756.5715 | N14: =(ROUND(DataFromEngine!T106,9))/Scale -> 679083.276 | O14: =(ROUND(DataFromEngine!U106,9))/Scale -> 636169.3979 | P14: =(ROUND(DataFromEngine!V106,9))/Scale -> 593780.0337 | Q14: =(ROUND(DataFromEngine!W106,9))/Scale -> 551581.9625 | R14: =(ROUND(DataFromEngine!X106,9))/Scale -> 512420.8988 | S14: =(ROUND(DataFromEngine!Y106,9))/Scale -> 480226.0795 | T14: =(ROUND(DataFromEngine!Z106,9))/Scale -> 450232.8571 | U14: =(ROUND(DataFromEngine!AA106,9))/Scale -> 420685.6848 | V14: =(ROUND(DataFromEngine!AB106,9))/Scale -> 391138.5125 | W14: =(ROUND(DataFromEngine!AC106,9))/Scale -> 361591.3403 | X14: =(ROUND(DataFromEngine!AD106,9))/Scale -> 332044.168 | Y14: =(ROUND(DataFromEngine!AE106,9))/Scale -> 302496.9957 | Z14: =(ROUND(DataFromEngine!AF106,9))/Scale -> 272949.8235 | AA14: =(ROUND(DataFromEngine!AG106,9))/Scale -> 243474.556 | AB14: =(ROUND(DataFromEngine!AH106,9))/Scale -> 215480.3885 | AC14: =(ROUND(DataFromEngine!AI106,9))/Scale -> 191012.278 | AD14: =(ROUND(DataFromEngine!AJ106,9))/Scale -> 169440.601 | AE14: =(ROUND(DataFromEngine!AK106,9))/Scale -> 148648.4957 | AF14: =(ROUND(DataFromEngine!AL106,9))/Scale -> 127856.3903 | AG14: =(ROUND(DataFromEngine!AM106,9))/Scale -> 107064.2849 | AH14: =(ROUND(DataFromEngine!AN106,9))/Scale -> 86272.17954 | AI14: =(ROUND(DataFromEngine!AO106,9))/Scale -> 65480.07416 | AJ14: =(ROUND(DataFromEngine!AP106,9))/Scale -> 44687.96879 | AK14: =(ROUND(DataFromEngine!AQ106,9))/Scale -> 23895.86342 | AL14: =(ROUND(DataFromEngine!AR106,9))/Scale -> 3103.758045 | AM14: =(ROUND(DataFromEngine!AS106,9))/Scale -> -17688.34733 | AN14: =(ROUND(DataFromEngine!AT106,9))/Scale -> -38480.4527 | AO14: =(ROUND(DataFromEngine!AU106,9))/Scale -> -59272.55807 | AP14: =(ROUND(DataFromEngine!AV106,9))/Scale -> -80064.66345 | AQ14: =(ROUND(DataFromEngine!AW106,9))/Scale -> -100856.7688 | AR14: =(ROUND(DataFromEngine!AX106,9))/Scale -> -121648.8742 | AS14: =(ROUND(DataFromEngine!AY106,9))/Scale -> -142440.9796 | AT14: =(ROUND(DataFromEngine!AZ106,9))/Scale -> -163233.0849 | AU14: =(ROUND(DataFromEngine!BA106,9))/Scale -> -184025.1903 | AV14: =(ROUND(DataFromEngine!BB106,9))/Scale -> -204817.2957 | AW14: =(ROUND(DataFromEngine!BC106,9))/Scale -> -225609.4011 | AX14: =(ROUND(DataFromEngine!BD106,9))/Scale -> -246401.5064 | AY14: =(ROUND(DataFromEngine!BE106,9))/Scale -> -267193.6118 | AZ14: =(ROUND(DataFromEngine!BF106,9))/Scale -> -286427.3881 | BA14: =(ROUND(DataFromEngine!BG106,9))/Scale -> -220139.0331 | BB14: =(ROUND(DataFromEngine!BH106,9))/Scale -> -69999.82558 | BC14: =(ROUND(DataFromEngine!BI106,9))/Scale -> -42370.36035 | BD14: =(ROUND(DataFromEngine!BJ106,9))/Scale -> -47269.05672 | BE14: =(ROUND(DataFromEngine!BK106,9))/Scale -> -52167.7531 | BF14: =(ROUND(DataFromEngine!BL106,9))/Scale -> -57066.44948 | BG14: =(ROUND(DataFromEngine!BM106,9))/Scale -> -61965.14585 | BH14: =(ROUND(DataFromEngine!BN106,9))/Scale -> -66863.84223 | BI14: =(ROUND(DataFromEngine!BO106,9))/Scale -> -71762.53861 | BJ14: =(ROUND(DataFromEngine!BP106,9))/Scale -> -76661.23498 | BK14: =(ROUND(DataFromEngine!BQ106,9))/Scale -> -81559.93136 | BL14: =(ROUND(DataFromEngine!BR106,9))/Scale -> -85943.0083 | BM14: =(ROUND(DataFromEngine!BS106,9))/Scale -> -62112.91898 | BN14: =(ROUND(DataFromEngine!BT106,9))/Scale -> -10785.81403 | BO14: =(ROUND(DataFromEngine!BU106,9))/Scale -> 3e-09 | BP14: =(ROUND(DataFromEngine!BV106,9))/Scale -> 3e-09 | BQ14: =(ROUND(DataFromEngine!BW106,9))/Scale -> 3e-09 | BR14: =(ROUND(DataFromEngine!BX106,9))/Scale -> 3e-09 | BS14: =(ROUND(DataFromEngine!BY106,9))/Scale -> 3e-09 | BT14: =(ROUND(DataFromEngine!BZ106,9))/Scale -> 3e-09 | BU14: =(ROUND(DataFromEngine!CA106,9))/Scale -> 3e-09 | BV14: =(ROUND(DataFromEngine!CB106,9))/Scale -> 3e-09 | BW14: =(ROUND(DataFromEngine!CC106,9))/Scale -> 3e-09 | BX14: =(ROUND(DataFromEngine!CD106,9))/Scale -> 3e-09 | BY14: =(ROUND(DataFromEngine!CE106,9))/Scale -> 3e-09 | BZ14: =(ROUND(DataFromEngine!CF106,9))/Scale -> 3e-09 | CA14: =(ROUND(DataFromEngine!CG106,9))/Scale -> 3e-09 | CB14: =(ROUND(DataFromEngine!CH106,9))/Scale -> 3e-09 | CC14: =(ROUND(DataFromEngine!CI106,9))/Scale -> 3e-09 | CD14: =(ROUND(DataFromEngine!CJ106,9))/Scale -> 3e-09 | CE14: =(ROUND(DataFromEngine!CK106,9))/Scale -> 3e-09
B15: Federal Taxes: | C15: 14604.57389 | D15: =(ROUND(DataFromEngine!J107,8))/Scale -> 0 | E15: =(ROUND(DataFromEngine!K107,9))/Scale -> 0 | F15: =(ROUND(DataFromEngine!L107,9))/Scale -> 0 | G15: =(ROUND(DataFromEngine!M107,9))/Scale -> 1895.903015 | H15: =(ROUND(DataFromEngine!N107,9))/Scale -> 242144.3038 | I15: =(ROUND(DataFromEngine!O107,9))/Scale -> 585992.2344 | J15: =(ROUND(DataFromEngine!P107,9))/Scale -> 609210.7928 | K15: =(ROUND(DataFromEngine!Q107,9))/Scale -> 575118.7545 | L15: =(ROUND(DataFromEngine!R107,9))/Scale -> 543010.6435 | M15: =(ROUND(DataFromEngine!S107,9))/Scale -> 511513.6292 | N15: =(ROUND(DataFromEngine!T107,9))/Scale -> 480614.4481 | O15: =(ROUND(DataFromEngine!U107,9))/Scale -> 450260.4575 | P15: =(ROUND(DataFromEngine!V107,9))/Scale -> 420271.081 | Q15: =(ROUND(DataFromEngine!W107,9))/Scale -> 387537.5769 | R15: =(ROUND(DataFromEngine!X107,9))/Scale -> 336167.4696 | S15: =(ROUND(DataFromEngine!Y107,9))/Scale -> 333668.4084 | T15: =(ROUND(DataFromEngine!Z107,9))/Scale -> 316359.8085 | U15: =(ROUND(DataFromEngine!AA107,9))/Scale -> 297357.3886 | V15: =(ROUND(DataFromEngine!AB107,9))/Scale -> 276434.4977 | W15: =(ROUND(DataFromEngine!AC107,9))/Scale -> 255542.3374 | X15: =(ROUND(DataFromEngine!AD107,9))/Scale -> 234085.9508 | Y15: =(ROUND(DataFromEngine!AE107,9))/Scale -> 212390.2241 | Z15: =(ROUND(DataFromEngine!AF107,9))/Scale -> 191343.2559 | AA15: =(ROUND(DataFromEngine!AG107,9))/Scale -> 170695.0331 | AB15: =(ROUND(DataFromEngine!AH107,9))/Scale -> 151202.1932 | AC15: =(ROUND(DataFromEngine!AI107,9))/Scale -> 134362.0581 | AD15: =(ROUND(DataFromEngine!AJ107,9))/Scale -> 119493.6748 | AE15: =(ROUND(DataFromEngine!AK107,9))/Scale -> 104986.4013 | AF15: =(ROUND(DataFromEngine!AL107,9))/Scale -> 90415.15688 | AG15: =(ROUND(DataFromEngine!AM107,9))/Scale -> 75845.60512 | AH15: =(ROUND(DataFromEngine!AN107,9))/Scale -> 61276.00856 | AI15: =(ROUND(DataFromEngine!AO107,9))/Scale -> 46706.41319 | AJ15: =(ROUND(DataFromEngine!AP107,9))/Scale -> 32136.81779 | AK15: =(ROUND(DataFromEngine!AQ107,9))/Scale -> 18032.15255 | AL15: =(ROUND(DataFromEngine!AR107,9))/Scale -> 12085.20536 | AM15: =(ROUND(DataFromEngine!AS107,9))/Scale -> 1848.665754 | AN15: =(ROUND(DataFromEngine!AT107,9))/Scale -> -21470.53027 | AO15: =(ROUND(DataFromEngine!AU107,9))/Scale -> -40834.75252 | AP15: =(ROUND(DataFromEngine!AV107,9))/Scale -> -55277.48438 | AQ15: =(ROUND(DataFromEngine!AW107,9))/Scale -> -69850.43653 | AR15: =(ROUND(DataFromEngine!AX107,9))/Scale -> -84419.94311 | AS15: =(ROUND(DataFromEngine!AY107,9))/Scale -> -98989.54086 | AT15: =(ROUND(DataFromEngine!AZ107,9))/Scale -> -113559.1362 | AU15: =(ROUND(DataFromEngine!BA107,9))/Scale -> -128128.7316 | AV15: =(ROUND(DataFromEngine!BB107,9))/Scale -> -142698.327 | AW15: =(ROUND(DataFromEngine!BC107,9))/Scale -> -157267.9224 | AX15: =(ROUND(DataFromEngine!BD107,9))/Scale -> -171837.5178 | AY15: =(ROUND(DataFromEngine!BE107,9))/Scale -> -186407.1132 | AZ15: =(ROUND(DataFromEngine!BF107,9))/Scale -> -474683.5225 | BA15: =(ROUND(DataFromEngine!BG107,9))/Scale -> -3324614.915 | BB15: =(ROUND(DataFromEngine!BH107,9))/Scale -> -1356323.006 | BC15: =(ROUND(DataFromEngine!BI107,9))/Scale -> 152631.647 | BD15: =(ROUND(DataFromEngine!BJ107,9))/Scale -> -37747.09819 | BE15: =(ROUND(DataFromEngine!BK107,9))/Scale -> -36233.24422 | BF15: =(ROUND(DataFromEngine!BL107,9))/Scale -> -39796.77653 | BG15: =(ROUND(DataFromEngine!BM107,9))/Scale -> -43225.96363 | BH15: =(ROUND(DataFromEngine!BN107,9))/Scale -> -46658.70544 | BI15: =(ROUND(DataFromEngine!BO107,9))/Scale -> -50091.35319 | BJ15: =(ROUND(DataFromEngine!BP107,9))/Scale -> -53524.00343 | BK15: =(ROUND(DataFromEngine!BQ107,9))/Scale -> -56956.65361 | BL15: =(ROUND(DataFromEngine!BR107,9))/Scale -> -151244.4376 | BM15: =(ROUND(DataFromEngine!BS107,9))/Scale -> -1092980.722 | BN15: =(ROUND(DataFromEngine!BT107,9))/Scale -> -441605.6221 | BO15: =(ROUND(DataFromEngine!BU107,9))/Scale -> 59940.96028 | BP15: =(ROUND(DataFromEngine!BV107,9))/Scale -> -1586.009103 | BQ15: =(ROUND(DataFromEngine!BW107,9))/Scale -> 41.96504132 | BR15: =(ROUND(DataFromEngine!BX107,9))/Scale -> -1.110374894 | BS15: =(ROUND(DataFromEngine!BY107,9))/Scale -> 0.02937999 | BT15: =(ROUND(DataFromEngine!BZ107,9))/Scale -> -0.000777378 | BU15: =(ROUND(DataFromEngine!CA107,9))/Scale -> 2.0571e-05 | BV15: =(ROUND(DataFromEngine!CB107,9))/Scale -> -5.42e-07 | BW15: =(ROUND(DataFromEngine!CC107,9))/Scale -> 1.7e-08 | BX15: =(ROUND(DataFromEngine!CD107,9))/Scale -> 2e-09 | BY15: =(ROUND(DataFromEngine!CE107,9))/Scale -> 2e-09 | BZ15: =(ROUND(DataFromEngine!CF107,9))/Scale -> 2e-09 | CA15: =(ROUND(DataFromEngine!CG107,9))/Scale -> 2e-09 | CB15: =(ROUND(DataFromEngine!CH107,9))/Scale -> 2e-09 | CC15: =(ROUND(DataFromEngine!CI107,9))/Scale -> 2e-09 | CD15: =(ROUND(DataFromEngine!CJ107,9))/Scale -> 2e-09 | CE15: =(ROUND(DataFromEngine!CK107,9))/Scale -> 2e-09
B16: State Taxes: | C16: 2209402.783 | D16: =(ROUND(DataFromEngine!J108,8))/Scale -> 0 | E16: =(ROUND(DataFromEngine!K108,9))/Scale -> 0 | F16: =(ROUND(DataFromEngine!L108,9))/Scale -> 0 | G16: =(ROUND(DataFromEngine!M108,9))/Scale -> -2727.130615 | H16: =(ROUND(DataFromEngine!N108,9))/Scale -> 83515.39308 | I16: =(ROUND(DataFromEngine!O108,9))/Scale -> 199560.5875 | J16: =(ROUND(DataFromEngine!P108,9))/Scale -> 207958.4666 | K16: =(ROUND(DataFromEngine!Q108,9))/Scale -> 210701.301 | L16: =(ROUND(DataFromEngine!R108,9))/Scale -> 212689.2625 | M16: =(ROUND(DataFromEngine!S108,9))/Scale -> 213850.3038 | N16: =(ROUND(DataFromEngine!T108,9))/Scale -> 214240.3015 | O16: =(ROUND(DataFromEngine!U108,9))/Scale -> 213905.3418 | P16: =(ROUND(DataFromEngine!V108,9))/Scale -> 212832.571 | Q16: =(ROUND(DataFromEngine!W108,9))/Scale -> 209223.7076 | R16: =(ROUND(DataFromEngine!X108,9))/Scale -> 157421.7626 | S16: =(ROUND(DataFromEngine!Y108,9))/Scale -> 140303.1819 | T16: =(ROUND(DataFromEngine!Z108,9))/Scale -> 133462.9825 | U16: =(ROUND(DataFromEngine!AA108,9))/Scale -> 133061.3441 | V16: =(ROUND(DataFromEngine!AB108,9))/Scale -> 131873.6378 | W16: =(ROUND(DataFromEngine!AC108,9))/Scale -> 130015.4692 | X16: =(ROUND(DataFromEngine!AD108,9))/Scale -> 125364.273 | Y16: =(ROUND(DataFromEngine!AE108,9))/Scale -> 117019.6741 | Z16: =(ROUND(DataFromEngine!AF108,9))/Scale -> 107422.2401 | AA16: =(ROUND(DataFromEngine!AG108,9))/Scale -> 97881.90846 | AB16: =(ROUND(DataFromEngine!AH108,9))/Scale -> 88832.98576 | AC16: =(ROUND(DataFromEngine!AI108,9))/Scale -> 80944.16602 | AD16: =(ROUND(DataFromEngine!AJ108,9))/Scale -> 73987.91303 | AE16: =(ROUND(DataFromEngine!AK108,9))/Scale -> 67266.10892 | AF16: =(ROUND(DataFromEngine!AL108,9))/Scale -> 60538.10141 | AG16: =(ROUND(DataFromEngine!AM108,9))/Scale -> 53810.25804 | AH16: =(ROUND(DataFromEngine!AN108,9))/Scale -> 47082.41033 | AI16: =(ROUND(DataFromEngine!AO108,9))/Scale -> 40354.56273 | AJ16: =(ROUND(DataFromEngine!AP108,9))/Scale -> 33626.71513 | AK16: =(ROUND(DataFromEngine!AQ108,9))/Scale -> 28647.89049 | AL16: =(ROUND(DataFromEngine!AR108,9))/Scale -> 56106.64721 | AM16: =(ROUND(DataFromEngine!AS108,9))/Scale -> 99865.94716 | AN16: =(ROUND(DataFromEngine!AT108,9))/Scale -> 110710.0829 | AO16: =(ROUND(DataFromEngine!AU108,9))/Scale -> 103517.289 | AP16: =(ROUND(DataFromEngine!AV108,9))/Scale -> 96801.74367 | AQ16: =(ROUND(DataFromEngine!AW108,9))/Scale -> 90073.57056 | AR16: =(ROUND(DataFromEngine!AX108,9))/Scale -> 83345.73157 | AS16: =(ROUND(DataFromEngine!AY108,9))/Scale -> 76617.88374 | AT16: =(ROUND(DataFromEngine!AZ108,9))/Scale -> 69890.03615 | AU16: =(ROUND(DataFromEngine!BA108,9))/Scale -> 63162.18855 | AV16: =(ROUND(DataFromEngine!BB108,9))/Scale -> 56434.34094 | AW16: =(ROUND(DataFromEngine!BC108,9))/Scale -> 49706.49334 | AX16: =(ROUND(DataFromEngine!BD108,9))/Scale -> 42978.64574 | AY16: =(ROUND(DataFromEngine!BE108,9))/Scale -> 36250.79814 | AZ16: =(ROUND(DataFromEngine!BF108,9))/Scale -> -86103.81419 | BA16: =(ROUND(DataFromEngine!BG108,9))/Scale -> -1321087.422 | BB16: =(ROUND(DataFromEngine!BH108,9))/Scale -> -650697.9011 | BC16: =(ROUND(DataFromEngine!BI108,9))/Scale -> 32861.79486 | BD16: =(ROUND(DataFromEngine!BJ108,9))/Scale -> 13148.08593 | BE16: =(ROUND(DataFromEngine!BK108,9))/Scale -> 12042.65449 | BF16: =(ROUND(DataFromEngine!BL108,9))/Scale -> 10444.85694 | BG16: =(ROUND(DataFromEngine!BM108,9))/Scale -> 8860.087166 | BH16: =(ROUND(DataFromEngine!BN108,9))/Scale -> 7274.97268 | BI16: =(ROUND(DataFromEngine!BO108,9))/Scale -> 5689.867316 | BJ16: =(ROUND(DataFromEngine!BP108,9))/Scale -> 4104.761709 | BK16: =(ROUND(DataFromEngine!BQ108,9))/Scale -> 2519.65611 | BL16: =(ROUND(DataFromEngine!BR108,9))/Scale -> -36648.73866 | BM16: =(ROUND(DataFromEngine!BS108,9))/Scale -> -439118.3819 | BN16: =(ROUND(DataFromEngine!BT108,9))/Scale -> -219679.5678 | BO16: =(ROUND(DataFromEngine!BU108,9))/Scale -> 5812.616157 | BP16: =(ROUND(DataFromEngine!BV108,9))/Scale -> -153.7990398 | BQ16: =(ROUND(DataFromEngine!BW108,9))/Scale -> 4.06944894 | BR16: =(ROUND(DataFromEngine!BX108,9))/Scale -> -0.107675669 | BS16: =(ROUND(DataFromEngine!BY108,9))/Scale -> 0.002849048 | BT16: =(ROUND(DataFromEngine!BZ108,9))/Scale -> -7.5383e-05 | BU16: =(ROUND(DataFromEngine!CA108,9))/Scale -> 1.996e-06 | BV16: =(ROUND(DataFromEngine!CB108,9))/Scale -> -5.2e-08 | BW16: =(ROUND(DataFromEngine!CC108,9))/Scale -> 2e-09 | BX16: =(ROUND(DataFromEngine!CD108,9))/Scale -> 1e-09 | BY16: =(ROUND(DataFromEngine!CE108,9))/Scale -> 1e-09 | BZ16: =(ROUND(DataFromEngine!CF108,9))/Scale -> 1e-09 | CA16: =(ROUND(DataFromEngine!CG108,9))/Scale -> 1e-09 | CB16: =(ROUND(DataFromEngine!CH108,9))/Scale -> 1e-09 | CC16: =(ROUND(DataFromEngine!CI108,9))/Scale -> 1e-09 | CD16: =(ROUND(DataFromEngine!CJ108,9))/Scale -> 1e-09 | CE16: =(ROUND(DataFromEngine!CK108,9))/Scale -> 1e-09
B17: Property Taxes: | C17: 6431691.48 | D17: =(ROUND(DataFromEngine!J109,8))/Scale -> 0 | E17: =(ROUND(DataFromEngine!K109,9))/Scale -> 0 | F17: =(ROUND(DataFromEngine!L109,9))/Scale -> 0 | G17: =(ROUND(DataFromEngine!M109,9))/Scale -> 0 | H17: =(ROUND(DataFromEngine!N109,9))/Scale -> 11645.81764 | I17: =(ROUND(DataFromEngine!O109,9))/Scale -> 234696.7791 | J17: =(ROUND(DataFromEngine!P109,9))/Scale -> 556994.7882 | K17: =(ROUND(DataFromEngine!Q109,9))/Scale -> 650114.1251 | L17: =(ROUND(DataFromEngine!R109,9))/Scale -> 614948.831 | M17: =(ROUND(DataFromEngine!S109,9))/Scale -> 580518.4295 | N17: =(ROUND(DataFromEngine!T109,9))/Scale -> 546767.8035 | O17: =(ROUND(DataFromEngine!U109,9))/Scale -> 513645.97 | P17: =(ROUND(DataFromEngine!V109,9))/Scale -> 481098.9531 | Q17: =(ROUND(DataFromEngine!W109,9))/Scale -> 448948.8653 | R17: =(ROUND(DataFromEngine!X109,9))/Scale -> 416972.7827 | S17: =(ROUND(DataFromEngine!Y109,9))/Scale -> 387851.3808 | T17: =(ROUND(DataFromEngine!Z109,9))/Scale -> 363043.3166 | U17: =(ROUND(DataFromEngine!AA109,9))/Scale -> 340226.424 | V17: =(ROUND(DataFromEngine!AB109,9))/Scale -> 317892.2999 | W17: =(ROUND(DataFromEngine!AC109,9))/Scale -> 295558.1759 | X17: =(ROUND(DataFromEngine!AD109,9))/Scale -> 273224.0518 | Y17: =(ROUND(DataFromEngine!AE109,9))/Scale -> 250889.9277 | Z17: =(ROUND(DataFromEngine!AF109,9))/Scale -> 228555.8037 | AA17: =(ROUND(DataFromEngine!AG109,9))/Scale -> 206221.6796 | AB17: =(ROUND(DataFromEngine!AH109,9))/Scale -> 183942.0862 | AC17: =(ROUND(DataFromEngine!AI109,9))/Scale -> 162784.328 | AD17: =(ROUND(DataFromEngine!AJ109,9))/Scale -> 144296.1529 | AE17: =(ROUND(DataFromEngine!AK109,9))/Scale -> 127999.7607 | AF17: =(ROUND(DataFromEngine!AL109,9))/Scale -> 112292.8729 | AG17: =(ROUND(DataFromEngine!AM109,9))/Scale -> 96585.98508 | AH17: =(ROUND(DataFromEngine!AN109,9))/Scale -> 80879.09726 | AI17: =(ROUND(DataFromEngine!AO109,9))/Scale -> 65172.20944 | AJ17: =(ROUND(DataFromEngine!AP109,9))/Scale -> 49465.32162 | AK17: =(ROUND(DataFromEngine!AQ109,9))/Scale -> 33758.4338 | AL17: =(ROUND(DataFromEngine!AR109,9))/Scale -> 18051.54598 | AM17: =(ROUND(DataFromEngine!AS109,9))/Scale -> 2344.658155 | AN17: =(ROUND(DataFromEngine!AT109,9))/Scale -> -13362.22966 | AO17: =(ROUND(DataFromEngine!AU109,9))/Scale -> -29069.11748 | AP17: =(ROUND(DataFromEngine!AV109,9))/Scale -> -44776.00531 | AQ17: =(ROUND(DataFromEngine!AW109,9))/Scale -> -60482.89313 | AR17: =(ROUND(DataFromEngine!AX109,9))/Scale -> -76189.78095 | AS17: =(ROUND(DataFromEngine!AY109,9))/Scale -> -91896.66877 | AT17: =(ROUND(DataFromEngine!AZ109,9))/Scale -> -107603.5566 | AU17: =(ROUND(DataFromEngine!BA109,9))/Scale -> -123310.4444 | AV17: =(ROUND(DataFromEngine!BB109,9))/Scale -> -139017.3322 | AW17: =(ROUND(DataFromEngine!BC109,9))/Scale -> -154724.22 | AX17: =(ROUND(DataFromEngine!BD109,9))/Scale -> -170431.1079 | AY17: =(ROUND(DataFromEngine!BE109,9))/Scale -> -186137.9957 | AZ17: =(ROUND(DataFromEngine!BF109,9))/Scale -> -201844.8835 | BA17: =(ROUND(DataFromEngine!BG109,9))/Scale -> -211864.8874 | BB17: =(ROUND(DataFromEngine!BH109,9))/Scale -> -154055.0717 | BC17: =(ROUND(DataFromEngine!BI109,9))/Scale -> -62118.02448 | BD17: =(ROUND(DataFromEngine!BJ109,9))/Scale -> -32007.65314 | BE17: =(ROUND(DataFromEngine!BK109,9))/Scale -> -35708.25359 | BF17: =(ROUND(DataFromEngine!BL109,9))/Scale -> -39408.85404 | BG17: =(ROUND(DataFromEngine!BM109,9))/Scale -> -43109.45449 | BH17: =(ROUND(DataFromEngine!BN109,9))/Scale -> -46810.05493 | BI17: =(ROUND(DataFromEngine!BO109,9))/Scale -> -50510.65538 | BJ17: =(ROUND(DataFromEngine!BP109,9))/Scale -> -54211.25583 | BK17: =(ROUND(DataFromEngine!BQ109,9))/Scale -> -57911.85628 | BL17: =(ROUND(DataFromEngine!BR109,9))/Scale -> -61612.45672 | BM17: =(ROUND(DataFromEngine!BS109,9))/Scale -> -63433.07336 | BN17: =(ROUND(DataFromEngine!BT109,9))/Scale -> -42895.54256 | BO17: =(ROUND(DataFromEngine!BU109,9))/Scale -> -11193.84767 | BP17: =(ROUND(DataFromEngine!BV109,9))/Scale -> 2e-09 | BQ17: =(ROUND(DataFromEngine!BW109,9))/Scale -> 2e-09 | BR17: =(ROUND(DataFromEngine!BX109,9))/Scale -> 2e-09 | BS17: =(ROUND(DataFromEngine!BY109,9))/Scale -> 2e-09 | BT17: =(ROUND(DataFromEngine!BZ109,9))/Scale -> 2e-09 | BU17: =(ROUND(DataFromEngine!CA109,9))/Scale -> 2e-09 | BV17: =(ROUND(DataFromEngine!CB109,9))/Scale -> 2e-09 | BW17: =(ROUND(DataFromEngine!CC109,9))/Scale -> 2e-09 | BX17: =(ROUND(DataFromEngine!CD109,9))/Scale -> 2e-09 | BY17: =(ROUND(DataFromEngine!CE109,9))/Scale -> 2e-09 | BZ17: =(ROUND(DataFromEngine!CF109,9))/Scale -> 2e-09 | CA17: =(ROUND(DataFromEngine!CG109,9))/Scale -> 2e-09 | CB17: =(ROUND(DataFromEngine!CH109,9))/Scale -> 2e-09 | CC17: =(ROUND(DataFromEngine!CI109,9))/Scale -> 2e-09 | CD17: =(ROUND(DataFromEngine!CJ109,9))/Scale -> 2e-09 | CE17: =(ROUND(DataFromEngine!CK109,9))/Scale -> 2e-09
B19: CPUC Only | D19: 2018 | E19: 2019 | F19: 2020 | G19: 2021 | H19: 2022 | I19: 2023 | J19: 2024 | K19: 2025 | L19: 2026 | M19: 2027 | N19: 2028 | O19: 2029 | P19: 2030 | Q19: 2031 | R19: 2032 | S19: 2033 | T19: 2034 | U19: 2035 | V19: 2036 | W19: 2037 | X19: 2038 | Y19: 2039 | Z19: 2040 | AA19: 2041 | AB19: 2042 | AC19: 2043 | AD19: 2044 | AE19: 2045 | AF19: 2046 | AG19: 2047 | AH19: 2048 | AI19: 2049 | AJ19: 2050 | AK19: 2051 | AL19: 2052 | AM19: 2053 | AN19: 2054 | AO19: 2055 | AP19: 2056 | AQ19: 2057 | AR19: 2058 | AS19: 2059 | AT19: 2060 | AU19: 2061 | AV19: 2062 | AW19: 2063 | AX19: 2064 | AY19: 2065 | AZ19: 2066 | BA19: 2067 | BB19: 2068 | BC19: 2069 | BD19: 2070 | BE19: 2071 | BF19: 2072 | BG19: 2073 | BH19: 2074 | BI19: 2075 | BJ19: 2076 | BK19: 2077 | BL19: 2078 | BM19: 2079 | BN19: 2080 | BO19: 2081 | BP19: 2082 | BQ19: 2083 | BR19: 2084 | BS19: 2085 | BT19: 2086 | BU19: 2087
B20: Total Rev Req: | C20: 123044383.3 | D20: 0 | E20: 0 | F20: 0 | G20: 1006016.446 | H20: 7538358.258 | I20: 10943358.32 | J20: 8456203.964 | K20: 6385972.994 | L20: 6162371.081 | M20: 5942094.954 | N20: 5725377.565 | O20: 5511888.779 | P20: 5300530.13 | Q20: 5081124.067 | R20: 4441661.537 | S20: 4071877.323 | T20: 3845699.339 | U20: 3691379.938 | V20: 3535103.964 | W20: 3378181.371 | X20: 3217917.765 | Y20: 3053696.275 | Z20: 2888841.175 | AA20: 2724702.679 | AB20: 2567610.518 | AC20: 2428293.471 | AD20: 2305216.694 | AE20: 2187856.083 | AF20: 2071025.23 | AG20: 1954196.275 | AH20: 1837367.269 | AI20: 1720538.265 | AJ20: 1603709.26 | AK20: 1489030.689 | AL20: 1414740.161 | AM20: 1353061.566 | AN20: 1245476.272 | AO20: 1123274.633 | AP20: 1006587.786 | AQ20: 889755.0205 | AR20: 772926.1157 | AS20: 656097.1087 | AT20: 539268.1044 | AU20: 422439.1 | AV20: 305610.0957 | AW20: 188781.0913 | AX20: 71952.08696 | AY20: -44876.91739 | AZ20: -563064.9774 | BA20: -4842254.988 | BB20: -2065343.827 | BC20: 277274.2943 | BD20: 72062.20012 | BE20: 50166.53782 | BF20: 22492.23674 | BG20: -5029.164314 | BH20: -32554.61103 | BI20: -60079.95071 | BJ20: -87605.29321 | BK20: -115130.6356 | BL20: -274986.5564 | BM20: -1668123.566 | BN20: -730579.6703 | BO20: 56605.92105 | BP20: -1805.057404 | BQ20: 47.76095448 | BR20: -1.263731965 | BS20: 0.03343775975 | BT20: -0.0008847299617 | BU20: 2.342667481e-05
B21: FF&U: | C21: 4447811.528 | D21: 0 | E21: 0 | F21: 0 | G21: 36365.50833 | H21: 272496.7679 | I21: 395580.7977 | J21: 305675.0781 | K21: 230840.3158 | L21: 222757.5481 | M21: 214795.001 | N21: 206961.0953 | O21: 199243.8971 | P21: 191603.6993 | Q21: 183672.6033 | R21: 160557.2953 | S21: 147190.326 | T21: 139014.4385 | U21: 133436.0968 | V21: 127787.0289 | W21: 122114.5869 | X21: 116321.374 | Y21: 110385.0914 | Z21: 104425.905 | AA21: 98492.6224 | AB21: 92814.05096 | AC21: 87778.01474 | AD21: 83329.03224 | AE21: 79086.67786 | AF21: 74863.4732 | AG21: 70640.33712 | AH21: 66417.19923 | AI21: 62194.06138 | AJ21: 57970.92353 | AK21: 53825.51957 | AL21: 51140.06366 | AM21: 48910.50423 | AN21: 45021.50826 | AO21: 40604.16029 | AP21: 36386.16115 | AQ21: 32162.88733 | AR21: 27939.75308 | AS21: 23716.61513 | AT21: 19493.47729 | AU21: 15270.33944 | AV21: 11047.20159 | AW21: 6824.063737 | AX21: 2600.925887 | AY21: -1622.211962 | AZ21: -20353.68726 | BA21: -175037.9577 | BB21: -74658.1017 | BC21: 10022.91831 | BD21: 2604.906261 | BE21: 1813.421297 | BF21: 813.0499514 | BG21: -181.7943608 | BH21: -1176.784916 | BI21: -2171.771601 | BJ21: -3166.758389 | BK21: -4161.745174 | BL21: -9940.221101 | BM21: -60299.37348 | BN21: -26409.01268 | BO21: 2046.192288 | BP21: -65.2492614 | BQ21: 1.726464209 | BR21: -0.04568141554 | BS21: 0.001208708998 | BT21: -3.198124138e-05 | BU21: 8.468280427e-07
B22: O&M: | C22: 12970693.48 | D22: 0 | E22: 0 | F22: 0 | G22: 937218.0296 | H22: 5095404.37 | I22: 5062707.984 | J22: 1875363.092 | K22: 0 | L22: 0 | M22: 0 | N22: 0 | O22: 0 | P22: 0 | Q22: 0 | R22: 0 | S22: 0 | T22: 0 | U22: 0 | V22: 0 | W22: 0 | X22: 0 | Y22: 0 | Z22: 0 | AA22: 0 | AB22: 0 | AC22: 0 | AD22: 0 | AE22: 0 | AF22: 0 | AG22: 0 | AH22: 0 | AI22: 0 | AJ22: 0 | AK22: 0 | AL22: 0 | AM22: 0 | AN22: 0 | AO22: 0 | AP22: 0 | AQ22: 0 | AR22: 0 | AS22: 0 | AT22: 0 | AU22: 0 | AV22: 0 | AW22: 0 | AX22: 0 | AY22: 0 | AZ22: 0 | BA22: 0 | BB22: 0 | BC22: 0 | BD22: 0 | BE22: 0 | BF22: 0 | BG22: 0 | BH22: 0 | BI22: 0 | BJ22: 0 | BK22: 0 | BL22: 0 | BM22: 0 | BN22: 0 | BO22: 0 | BP22: 0 | BQ22: 0 | BR22: 0 | BS22: 0 | BT22: 0 | BU22: 0
B23: Working Capital: | C23: 180536.9048 | D23: 0 | E23: 0 | F23: 0 | G23: 11977.15869 | H23: 69185.90213 | I23: 74287.69695 | J23: 25523.64816 | K23: -449.0772397 | L23: 11.8823687 | M23: -0.3144017852 | N23: 0.008318920668 | O23: -0.0002201146569 | P23: 5.824128407e-06 | Q23: -1.541036484e-07 | R23: 4.077508737e-09 | S23: -1.078889284e-10 | T23: 2.854689378e-12 | U23: -7.553371381e-14 | V23: 1.998585894e-15 | W23: -5.288162562e-17 | X23: 1.399222489e-18 | Y23: -3.702275695e-20 | Z23: 9.796044186e-22 | AA23: -2.591986378e-23 | AB23: 6.858271824e-25 | AC23: -1.81466588e-26 | AD23: 4.801519013e-28 | AE23: -1.270458936e-29 | AF23: 3.361573502e-31 | AG23: -8.894562499e-33 | AH23: 2.353458641e-34 | AI23: -6.227138855e-36 | AJ23: 1.647671119e-37 | AK23: -4.359658873e-39 | AL23: 1.153544859e-40 | AM23: -3.052224453e-42 | AN23: 8.076039731e-44 | AO23: -2.136881436e-45 | AP23: 5.654085944e-47 | AQ23: -1.496044063e-48 | AR23: 3.958460944e-50 | AS23: -1.047389809e-51 | AT23: 2.771343274e-53 | AU23: -7.332841581e-55 | AV23: 1.940234765e-56 | AW23: -5.133768269e-58 | AX23: 1.358370498e-59 | AY23: -3.594183285e-61 | AZ23: 9.510036844e-63 | BA23: -2.516310205e-64 | BB23: 6.658036295e-66 | BC23: -1.761684518e-67 | BD23: 4.661332866e-69 | BE23: -1.233366353e-70 | BF23: 3.263428304e-72 | BG23: -8.634875004e-74 | BH23: 2.284746573e-75 | BI23: -6.045330015e-77 | BJ23: 1.599565371e-78 | BK23: -4.232373366e-80 | BL23: 1.119865724e-81 | BM23: -2.963111074e-83 | BN23: 7.840249997e-85 | BO23: -2.074492602e-86 | BP23: 5.489008076e-88 | BQ23: -1.45236525e-89 | BR23: 3.842888896e-91 | BS23: -1.016809998e-92 | BT23: 2.690430559e-94 | BU23: -7.118750414e-96
B24: Depreciation: | C24: 66745326.37 | D24: 0 | E24: 0 | F24: 0 | G24: 8617.627384 | H24: 727140.9141 | I24: 1662178.566 | J24: 1890998.293 | K24: 1890998.293 | L24: 1890998.293 | M24: 1890998.293 | N24: 1890998.293 | O24: 1890998.293 | P24: 1890998.293 | Q24: 1886547.492 | R24: 1522023.161 | S24: 1327188.831 | T24: 1264574.09 | U24: 1264574.09 | V24: 1264574.09 | W24: 1264574.09 | X24: 1264574.09 | Y24: 1264574.09 | Z24: 1264574.09 | AA24: 1264574.09 | AB24: 1264574.09 | AC24: 1264574.09 | AD24: 1264574.09 | AE24: 1264574.09 | AF24: 1264574.09 | AG24: 1264574.09 | AH24: 1264574.09 | AI24: 1264574.09 | AJ24: 1264574.09 | AK24: 1264574.09 | AL24: 1264574.09 | AM24: 1264574.09 | AN24: 1264574.09 | AO24: 1264574.09 | AP24: 1264574.09 | AQ24: 1264574.09 | AR24: 1264574.09 | AS24: 1264574.09 | AT24: 1264574.09 | AU24: 1264574.09 | AV24: 1264574.09 | AW24: 1264574.09 | AX24: 1264574.09 | AY24: 1264574.09 | AZ24: 1261390.758 | BA24: 990790.9703 | BB24: 424914.469 | BC24: 297937.5245 | BD24: 297937.5245 | BE24: 297937.5245 | BF24: 297937.5245 | BG24: 297937.5245 | BH24: 297937.5245 | BI24: 297937.5245 | BJ24: 297937.5245 | BK24: 297937.5245 | BL24: 296954.0303 | BM24: 213554.8619 | BN24: 39228.04191 | BO24: 0 | BP24: 0 | BQ24: 0 | BR24: 0 | BS24: 0 | BT24: 0 | BU24: 0
B25: Return on Common: | C25: 21328629.68 | D25: 0 | E25: 0 | F25: 0 | G25: 8887.584735 | H25: 746689.2138 | I25: 1945063.345 | J25: 2132389.366 | K25: 2020950.9 | L25: 1911915.383 | M25: 1805102.594 | N25: 1700345.827 | O25: 1597469.31 | P25: 1495895.875 | Q25: 1394798.592 | R25: 1300031.85 | S25: 1219765.892 | T25: 1144082.789 | U25: 1069328.14 | V25: 994573.4911 | W25: 919818.8424 | X25: 845064.1937 | Y25: 770309.545 | Z25: 695554.8963 | AA25: 620972.827 | AB25: 550017.9983 | AC25: 487759.6417 | AD25: 432702.824 | AE25: 379605.7348 | AF25: 326508.6455 | AG25: 273411.5563 | AH25: 220314.4671 | AI25: 167217.3779 | AJ25: 114120.2886 | AK25: 61023.1994 | AL25: 7926.11017 | AM25: -45170.97906 | AN25: -98268.06829 | AO25: -151365.1575 | AP25: -204462.2467 | AQ25: -257559.336 | AR25: -310656.4252 | AS25: -363753.5144 | AT25: -416850.6037 | AU25: -469947.6929 | AV25: -523044.7821 | AW25: -576141.8713 | AX25: -629238.9606 | AY25: -682336.0498 | AZ25: -731453.6124 | BA25: -562172.1165 | BB25: -178759.53 | BC25: -108201.7797 | BD25: -120711.6488 | BE25: -133221.518 | BF25: -145731.3872 | BG25: -158241.2564 | BH25: -170751.1256 | BI25: -183260.9948 | BJ25: -195770.864 | BK25: -208280.7332 | BL25: -219473.8579 | BM25: -158618.6267 | BN25: -27543.8836 | BO25: 7.579164173e-09 | BP25: 7.577382943e-09 | BQ25: 7.575601714e-09 | BR25: 7.573820484e-09 | BS25: 7.572039255e-09 | BT25: 7.570258026e-09 | BU25: 7.568476796e-09
B26: Return on Preferred: | C26: 687832.2222 | D26: 0 | E26: 0 | F26: 0 | G26: 286.6179052 | H26: 24080.16403 | I26: 62726.82602 | J26: 68767.94891 | K26: 65174.14244 | L26: 61657.82925 | M26: 58213.19734 | N26: 54834.87062 | O26: 51517.18051 | P26: 48241.51384 | Q26: 44981.20272 | R26: 41925.04675 | S26: 39336.53014 | T26: 36895.80712 | U26: 34485.02608 | V26: 32074.24503 | W26: 29663.46399 | X26: 27252.68294 | Y26: 24841.9019 | Z26: 22431.12086 | AA26: 20025.90536 | AB26: 17737.66565 | AC26: 15729.8806 | AD26: 13954.33975 | AE26: 12241.99867 | AF26: 10529.65758 | AG26: 8817.316498 | AH26: 7104.975414 | AI26: 5392.634329 | AJ26: 3680.293245 | AK26: 1967.95216 | AL26: 255.6110755 | AM26: -1456.730009 | AN26: -3169.071094 | AO26: -4881.412178 | AP26: -6593.753263 | AQ26: -8306.094347 | AR26: -10018.43543 | AS26: -11730.77652 | AT26: -13443.1176 | AU26: -15155.45869 | AV26: -16867.79977 | AW26: -18580.14085 | AX26: -20292.48194 | AY26: -22004.82302 | AZ26: -23588.82737 | BA26: -18129.6268 | BB26: -5764.860032 | BC26: -3489.425794 | BD26: -3892.859641 | BE26: -4296.293488 | BF26: -4699.727336 | BG26: -5103.161183 | BH26: -5506.59503 | BI26: -5910.028878 | BJ26: -6313.462725 | BK26: -6716.896573 | BL26: -7077.866401 | BM26: -5115.331091 | BN26: -888.2694739 | BO26: 2.444223288e-10 | BP26: 2.443648855e-10 | BQ26: 2.443074422e-10 | BR26: 2.442499988e-10 | BS26: 2.441925555e-10 | BT26: 2.441351122e-10 | BU26: 2.440776689e-10
B27: Return On Debt: | C27: 8352004.266 | D27: 0 | E27: 0 | F27: 0 | G27: 3480.258542 | H27: 292393.4445 | I27: 761660.6225 | J27: 835014.9704 | K27: 791377.1675 | L27: 748680.3269 | M27: 706853.8764 | N27: 665832.5368 | O27: 625547.4773 | P27: 585772.6875 | Q27: 546184.3526 | R27: 509074.972 | S27: 477643.9034 | T27: 448007.4189 | U27: 418734.5048 | V27: 389461.5906 | W27: 360188.6765 | X27: 330915.7624 | Y27: 301642.8483 | Z27: 272369.9342 | AA27: 243164.5998 | AB27: 215379.6441 | AC27: 191000.1097 | AD27: 169440.601 | AE27: 148648.4957 | AF27: 127856.3903 | AG27: 107064.2849 | AH27: 86272.17954 | AI27: 65480.07416 | AJ27: 44687.96879 | AK27: 23895.86342 | AL27: 3103.758045 | AM27: -17688.34733 | AN27: -38480.4527 | AO27: -59272.55807 | AP27: -80064.66345 | AQ27: -100856.7688 | AR27: -121648.8742 | AS27: -142440.9796 | AT27: -163233.0849 | AU27: -184025.1903 | AV27: -204817.2957 | AW27: -225609.4011 | AX27: -246401.5064 | AY27: -267193.6118 | AZ27: -286427.3881 | BA27: -220139.0331 | BB27: -69999.82558 | BC27: -42370.36035 | BD27: -47269.05672 | BE27: -52167.7531 | BF27: -57066.44948 | BG27: -61965.14585 | BH27: -66863.84223 | BI27: -71762.53861 | BJ27: -76661.23498 | BK27: -81559.93136 | BL27: -85943.0083 | BM27: -62112.91898 | BN27: -10785.81403 | BO27: 2.967898663e-09 | BP27: 2.967201157e-09 | BQ27: 2.966503652e-09 | BR27: 2.965806146e-09 | BS27: 2.965108641e-09 | BT27: 2.964411136e-09 | BU27: 2.96371363e-09
B28: Federal Taxes: | C28: -113244.6929 | D28: 0 | E28: 0 | F28: 0 | G28: 1776.332525 | H28: 226877.5691 | I28: 567580.1461 | J28: 590918.3166 | K28: 559267.2812 | L28: 529144.3239 | M28: 499623.0948 | N28: 470680.1179 | O28: 442264.9496 | P28: 414204.1779 | Q28: 383947.0338 | R28: 338665.1458 | S28: 332822.6217 | T28: 315021.6889 | U28: 295860.0533 | V28: 275153.6861 | W28: 254469.7274 | X28: 233245.105 | Y28: 211782.083 | Z28: 190941.8598 | AA28: 170491.5279 | AB28: 151146.8694 | AC28: 134360.8215 | AD28: 119494.5979 | AE28: 104986.3769 | AF28: 90415.15753 | AG28: 75845.6051 | AH28: 61276.00856 | AI28: 46706.41319 | AJ28: 32136.81779 | AK28: 18002.48912 | AL28: 11699.19986 | AM28: 1418.29641 | AN28: -21542.59881 | AO28: -40832.84562 | AP28: -55277.53484 | AQ28: -69850.4352 | AR28: -84419.94315 | AS28: -98989.54086 | AT28: -113559.1362 | AU28: -128128.7316 | AV28: -142698.327 | AW28: -157267.9224 | AX28: -171837.5178 | AY28: -186407.1132 | AZ28: -474683.5225 | BA28: -3324614.915 | BB28: -1356323.006 | BC28: 152631.647 | BD28: -37747.09819 | BE28: -36233.24422 | BF28: -39796.77653 | BG28: -43225.96363 | BH28: -46658.70544 | BI28: -50091.35319 | BJ28: -53524.00343 | BK28: -56956.65361 | BL28: -151244.4376 | BM28: -1092980.722 | BN28: -441605.6221 | BO28: 59940.96028 | BP28: -1586.009103 | BQ28: 41.96504132 | BR28: -1.110374894 | BS28: 0.0293799901 | BT28: -0.0007773782921 | BU28: 2.057123261e-05
B29: State Taxes: | C29: 2150365.428 | D29: 0 | E29: 0 | F29: 0 | G29: -2592.671643 | H29: 73180.99745 | I29: 186737.4111 | J29: 193897.8204 | K29: 197022.3206 | L29: 199378.9548 | M29: 200936.9578 | N29: 201749.3313 | O29: 201860.756 | P29: 201259.3314 | Q29: 198485.1306 | R29: 156758.882 | S29: 142884.4265 | T29: 137164.5087 | U29: 136525.7724 | V29: 135157.0848 | W29: 133142.7439 | X29: 128448.8248 | Y29: 120178.4909 | Z29: 110674.6518 | AA29: 101225.8966 | AB29: 92247.44651 | AC29: 84387.6247 | AD29: 77434.84426 | AE29: 70712.94827 | AF29: 63984.94319 | AG29: 57257.09976 | AH29: 50529.25205 | AI29: 43801.40445 | AJ29: 37073.55685 | AK29: 31983.14124 | AL29: 57989.78202 | AM29: 100130.0735 | AN29: 110703.0942 | AO29: 103517.4739 | AP29: 96801.73878 | AQ29: 90073.57069 | AR29: 83345.73157 | AS29: 76617.88374 | AT29: 69890.03615 | AU29: 63162.18855 | AV29: 56434.34094 | AW29: 49706.49334 | AX29: 42978.64574 | AY29: 36250.79814 | AZ29: -86103.81419 | BA29: -1321087.422 | BB29: -650697.9011 | BC29: 32861.79486 | BD29: 13148.08593 | BE29: 12042.65449 | BF29: 10444.85694 | BG29: 8860.087166 | BH29: 7274.97268 | BI29: 5689.867316 | BJ29: 4104.761709 | BK29: 2519.65611 | BL29: -36648.73866 | BM29: -439118.3819 | BN29: -219679.5678 | BO29: 5812.616157 | BP29: -153.7990398 | BQ29: 4.06944894 | BR29: -0.1076756691 | BS29: 0.002849047626 | BT29: -7.538344694e-05 | BU29: 1.9955985e-06
B30: Property Taxes: | C30: 6294428.144 | D30: 0 | E30: 0 | F30: 0 | G30: 0 | H30: 10908.9149 | I30: 224834.9273 | J30: 537655.4308 | K30: 630791.6507 | L30: 597826.539 | M30: 565572.2543 | N30: 533975.4845 | O30: 502986.9162 | P30: 472554.5526 | Q30: 442507.6598 | R30: 412625.184 | S30: 385044.7918 | T30: 360938.5984 | U30: 338436.2548 | V30: 316322.7472 | W30: 294209.2397 | X30: 272095.7322 | Y30: 249982.2247 | Z30: 227868.7172 | AA30: 205755.2097 | AB30: 183692.7537 | AC30: 162703.288 | AD30: 144286.3646 | AE30: 127999.7607 | AF30: 112292.8729 | AG30: 96585.98508 | AH30: 80879.09726 | AI30: 65172.20944 | AJ30: 49465.32162 | AK30: 33758.4338 | AL30: 18051.54598 | AM30: 2344.658155 | AN30: -13362.22966 | AO30: -29069.11748 | AP30: -44776.00531 | AQ30: -60482.89313 | AR30: -76189.78095 | AS30: -91896.66877 | AT30: -107603.5566 | AU30: -123310.4444 | AV30: -139017.3322 | AW30: -154724.22 | AX30: -170431.1079 | AY30: -186137.9957 | AZ30: -201844.8835 | BA30: -211864.8874 | BB30: -154055.0717 | BC30: -62118.02448 | BD30: -32007.65314 | BE30: -35708.25359 | BF30: -39408.85404 | BG30: -43109.45449 | BH30: -46810.05493 | BI30: -50510.65538 | BJ30: -54211.25583 | BK30: -57911.85628 | BL30: -61612.45672 | BM30: -63433.07336 | BN30: -42895.54256 | BO30: -11193.84767 | BP30: 2.242026506e-09 | BQ30: 2.241499592e-09 | BR30: 2.240972679e-09 | BS30: 2.240445765e-09 | BT30: 2.239918852e-09 | BU30: 2.239391939e-09
B32: FERC Only | E32: 2019 | F32: 2020 | G32: 2021 | H32: 2022 | I32: 2023 | J32: 2024 | K32: 2025 | L32: 2026 | M32: 2027 | N32: 2028 | O32: 2029 | P32: 2030 | Q32: 2031 | R32: 2032 | S32: 2033 | T32: 2034 | U32: 2035 | V32: 2036 | W32: 2037 | X32: 2038 | Y32: 2039 | Z32: 2040 | AA32: 2041 | AB32: 2042 | AC32: 2043 | AD32: 2044 | AE32: 2045 | AF32: 2046 | AG32: 2047 | AH32: 2048 | AI32: 2049 | AJ32: 2050 | AK32: 2051 | AL32: 2052 | AM32: 2053 | AN32: 2054 | AO32: 2055 | AP32: 2056 | AQ32: 2057 | AR32: 2058 | AS32: 2059 | AT32: 2060 | AU32: 2061 | AV32: 2062 | AW32: 2063 | AX32: 2064 | AY32: 2065 | AZ32: 2066 | BA32: 2067 | BB32: 2068 | BC32: 2069 | BD32: 2070 | BE32: 2071 | BF32: 2072 | BG32: 2073 | BH32: 2074 | BI32: 2075 | BJ32: 2076 | BK32: 2077 | BL32: 2078 | BM32: 2079 | BN32: 2080 | BO32: 2081 | BP32: 2082 | BQ32: 2083 | BR32: 2084 | BS32: 2085 | BT32: 2086 | BU32: 2087
B33: Total Rev Req: | C33: 2585602.926 | E33: 0 | F33: 0 | G33: 1911.449826 | H33: 185160.2986 | I33: 276689.8456 | J33: 304455.5116 | K33: 290824.394 | L33: 275531.3937 | M33: 260351.839 | N33: 245289.3275 | O33: 230331.6913 | P33: 215433.7145 | Q33: 198505.9525 | R33: 80197.02894 | S33: 26893.55424 | T33: 8425.474341 | U33: 7438.892546 | V33: 6101.713618 | W33: 4747.429816 | X33: 3250.995308 | Y33: 1632.209574 | Z33: 20.30245632 | AA33: -1563.427885 | AB33: -2832.866753 | AC33: -3439.702162 | AD33: -3567.006185 | AE33: -3576.083273 | AF33: -3576.111806 | AG33: -3576.111051 | AH33: -3576.111071 | AI33: -3576.111071 | AJ33: -3576.111071 | AK33: -3429.559113 | AL33: -1553.277221 | AM33: 172.4777439 | AN33: 82.02213518 | AO33: -2.170266416 | AP33: 0.05742421022 | AQ33: -0.001519416877 | AR33: 4.02032793e-05 | AS33: -1.063511818e-06 | AT33: 2.839900639e-08 | AU33: -4.811366203e-10 | AV33: 2.943126161e-10 | AW33: 2.850890838e-10 | AX33: 2.966276172e-10 | AY33: 3.076167962e-10 | AZ33: 3.186205109e-10 | BA33: 3.29623841e-10 | BB33: 3.406271812e-10 | BC33: 3.516305212e-10 | BD33: 3.626338612e-10 | BE33: 3.736372012e-10 | BF33: 3.846405412e-10 | BG33: 3.956438812e-10 | BH33: 4.066472212e-10 | BI33: 4.176505611e-10 | BJ33: 4.286539011e-10 | BK33: 4.396572411e-10 | BL33: 4.506605811e-10 | BM33: 4.616639211e-10 | BN33: 4.726672611e-10 | BO33: 4.836706011e-10 | BP33: 4.946739411e-10 | BQ33: 5.056772811e-10 | BR33: 5.166806211e-10 | BS33: 5.276839611e-10 | BT33: 5.386873011e-10 | BU33: 5.49690641e-10
B34: FF&U: | C34: 93464.44096 | E34: 0 | F34: 0 | G34: 69.09513739 | H34: 6693.179228 | I34: 10001.79164 | J34: 11005.46565 | K34: 10512.72766 | L34: 9959.915894 | M34: 9411.204963 | N34: 8866.724911 | O34: 8326.035893 | P34: 7787.503444 | Q34: 7175.598269 | R34: 2898.964262 | S34: 972.1488893 | T34: 304.5642629 | U34: 268.9012788 | V34: 220.5649006 | W34: 171.6102149 | X34: 117.5170619 | Y34: 59.0011536 | Z34: 0.7338937124 | AA34: -56.51483134 | AB34: -102.4025401 | AC34: -124.3384421 | AD34: -128.9402312 | AE34: -129.26835 | AF34: -129.2693814 | AG34: -129.2693541 | AH34: -129.2693548 | AI34: -129.2693548 | AJ34: -129.2693548 | AK34: -123.9717909 | AL34: -56.14790486 | AM34: 6.234729915 | AN34: 2.964938249 | AO34: -0.07845084613 | AP34: 0.002075771826 | AQ34: -5.492392027e-05 | AR34: 1.453269173e-06 | AS34: -3.844385252e-08 | AT34: 1.026568012e-09 | AU34: -1.739213891e-11 | AV34: 1.063882001e-11 | AW34: 1.030540752e-11 | AX34: 1.072250272e-11 | AY34: 1.111973985e-11 | AZ34: 1.151750241e-11 | BA34: 1.191525107e-11 | BB34: 1.231300009e-11 | BC34: 1.271074911e-11 | BD34: 1.310849813e-11 | BE34: 1.350624714e-11 | BF34: 1.390399616e-11 | BG34: 1.430174518e-11 | BH34: 1.469949419e-11 | BI34: 1.509724321e-11 | BJ34: 1.549499223e-11 | BK34: 1.589274124e-11 | BL34: 1.629049026e-11 | BM34: 1.668823928e-11 | BN34: 1.708598829e-11 | BO34: 1.748373731e-11 | BP34: 1.788148633e-11 | BQ34: 1.827923534e-11 | BR34: 1.867698436e-11 | BS34: 1.907473338e-11 | BT34: 1.947248239e-11 | BU34: 1.987023141e-11
B35: O&M: | C35: 0 | E35: 0 | F35: 0 | G35: 0 | H35: 0 | I35: 0 | J35: 0 | K35: 0 | L35: 0 | M35: 0 | N35: 0 | O35: 0 | P35: 0 | Q35: 0 | R35: 0 | S35: 0 | T35: 0 | U35: 0 | V35: 0 | W35: 0 | X35: 0 | Y35: 0 | Z35: 0 | AA35: 0 | AB35: 0 | AC35: 0 | AD35: 0 | AE35: 0 | AF35: 0 | AG35: 0 | AH35: 0 | AI35: 0 | AJ35: 0 | AK35: 0 | AL35: 0 | AM35: 0 | AN35: 0 | AO35: 0 | AP35: 0 | AQ35: 0 | AR35: 0 | AS35: 0 | AT35: 0 | AU35: 0 | AV35: 0 | AW35: 0 | AX35: 0 | AY35: 0 | AZ35: 0 | BA35: 0 | BB35: 0 | BC35: 0 | BD35: 0 | BE35: 0 | BF35: 0 | BG35: 0 | BH35: 0 | BI35: 0 | BJ35: 0 | BK35: 0 | BL35: 0 | BM35: 0 | BN35: 0 | BO35: 0 | BP35: 0 | BQ35: 0 | BR35: 0 | BS35: 0 | BT35: 0 | BU35: 0
B36: Working Capital: | C36: 0 | E36: 0 | F36: 0 | G36: 0 | H36: 0 | I36: 0 | J36: 0 | K36: 0 | L36: 0 | M36: 0 | N36: 0 | O36: 0 | P36: 0 | Q36: 0 | R36: 0 | S36: 0 | T36: 0 | U36: 0 | V36: 0 | W36: 0 | X36: 0 | Y36: 0 | Z36: 0 | AA36: 0 | AB36: 0 | AC36: 0 | AD36: 0 | AE36: 0 | AF36: 0 | AG36: 0 | AH36: 0 | AI36: 0 | AJ36: 0 | AK36: 0 | AL36: 0 | AM36: 0 | AN36: 0 | AO36: 0 | AP36: 0 | AQ36: 0 | AR36: 0 | AS36: 0 | AT36: 0 | AU36: 0 | AV36: 0 | AW36: 0 | AX36: 0 | AY36: 0 | AZ36: 0 | BA36: 0 | BB36: 0 | BC36: 0 | BD36: 0 | BE36: 0 | BF36: 0 | BG36: 0 | BH36: 0 | BI36: 0 | BJ36: 0 | BK36: 0 | BL36: 0 | BM36: 0 | BN36: 0 | BO36: 0 | BP36: 0 | BQ36: 0 | BR36: 0 | BS36: 0 | BT36: 0 | BU36: 0
B37: Depreciation: | C37: 1513110.459 | E37: 0 | F37: 0 | G37: 1075.015839 | H37: 89124.43717 | I37: 136183.6204 | J37: 151311.0459 | K37: 151311.0459 | L37: 151311.0459 | M37: 151311.0459 | N37: 151311.0459 | O37: 151311.0459 | P37: 151311.0459 | Q37: 150236.0301 | R37: 62186.60876 | S37: 15127.42552 | T37: -9.022187442e-11 | U37: -9.022187442e-11 | V37: -9.022187442e-11 | W37: -9.022187442e-11 | X37: -9.022187442e-11 | Y37: -9.022187442e-11 | Z37: -9.022187442e-11 | AA37: -9.022187442e-11 | AB37: -9.022187442e-11 | AC37: -9.022187442e-11 | AD37: -9.022187442e-11 | AE37: -9.022187442e-11 | AF37: -9.022187442e-11 | AG37: -9.022187442e-11 | AH37: -9.022187442e-11 | AI37: -9.022187442e-11 | AJ37: -9.022187442e-11 | AK37: -9.022187442e-11 | AL37: -9.022187442e-11 | AM37: -9.022187442e-11 | AN37: -9.022187442e-11 | AO37: -9.022187442e-11 | AP37: -9.022187442e-11 | AQ37: -9.022187442e-11 | AR37: -9.022187442e-11 | AS37: -9.022187442e-11 | AT37: -9.022187442e-11 | AU37: -9.022187442e-11 | AV37: -9.022187442e-11 | AW37: -9.022187442e-11 | AX37: -9.022187442e-11 | AY37: -9.022187442e-11 | AZ37: -9.022187442e-11 | BA37: -9.022187442e-11 | BB37: -9.022187442e-11 | BC37: -9.022187442e-11 | BD37: -9.022187442e-11 | BE37: -9.022187442e-11 | BF37: -9.022187442e-11 | BG37: -9.022187442e-11 | BH37: -9.022187442e-11 | BI37: -9.022187442e-11 | BJ37: -9.022187442e-11 | BK37: -9.022187442e-11 | BL37: -9.022187442e-11 | BM37: -9.022187442e-11 | BN37: -9.022187442e-11 | BO37: -9.022187442e-11 | BP37: -9.022187442e-11 | BQ37: -9.022187442e-11 | BR37: -9.022187442e-11 | BS37: -9.022187442e-11 | BT37: -9.022187442e-11 | BU37: -9.022187442e-11
B38: Return on Common: | C38: 480956.7654 | E38: 0 | F38: 0 | G38: 574.4848476 | H38: 46271.99134 | I38: 65662.68764 | J38: 66425.90123 | K38: 58862.21686 | L38: 51381.26386 | M38: 43976.83739 | N38: 36643.19795 | O38: 29373.54146 | P38: 22143.27563 | Q38: 14926.38886 | R38: 9252.725886 | S38: 7140.672511 | T38: 6154.160242 | U38: 5395.734949 | V38: 4637.309657 | W38: 3878.884364 | X38: 3120.459072 | Y38: 2362.033779 | Z38: 1603.608486 | AA38: 857.1436764 | AB38: 278.5957142 | AC38: 33.64995785 | AD38: 1.02334182e-10 | AE38: 1.075302617e-10 | AF38: 1.127263414e-10 | AG38: 1.179224211e-10 | AH38: 1.231185008e-10 | AI38: 1.283145804e-10 | AJ38: 1.335106601e-10 | AK38: 1.387067398e-10 | AL38: 1.439028195e-10 | AM38: 1.490988992e-10 | AN38: 1.542949789e-10 | AO38: 1.594910586e-10 | AP38: 1.646871382e-10 | AQ38: 1.698832179e-10 | AR38: 1.750792976e-10 | AS38: 1.802753773e-10 | AT38: 1.85471457e-10 | AU38: 1.906675367e-10 | AV38: 1.958636163e-10 | AW38: 2.01059696e-10 | AX38: 2.062557757e-10 | AY38: 2.114518554e-10 | AZ38: 2.166479351e-10 | BA38: 2.218440148e-10 | BB38: 2.270400945e-10 | BC38: 2.322361741e-10 | BD38: 2.374322538e-10 | BE38: 2.426283335e-10 | BF38: 2.478244132e-10 | BG38: 2.530204929e-10 | BH38: 2.582165726e-10 | BI38: 2.634126522e-10 | BJ38: 2.686087319e-10 | BK38: 2.738048116e-10 | BL38: 2.790008913e-10 | BM38: 2.84196971e-10 | BN38: 2.893930507e-10 | BO38: 2.945891304e-10 | BP38: 2.9978521e-10 | BQ38: 3.049812897e-10 | BR38: 3.101773694e-10 | BS38: 3.153734491e-10 | BT38: 3.205695288e-10 | BU38: 3.257656085e-10
B39: Return on Preferred: | C39: 0 | E39: 0 | F39: 0 | G39: 0 | H39: 0 | I39: 0 | J39: 0 | K39: 0 | L39: 0 | M39: 0 | N39: 0 | O39: 0 | P39: 0 | Q39: 0 | R39: 0 | S39: 0 | T39: 0 | U39: 0 | V39: 0 | W39: 0 | X39: 0 | Y39: 0 | Z39: 0 | AA39: 0 | AB39: 0 | AC39: 0 | AD39: 0 | AE39: 0 | AF39: 0 | AG39: 0 | AH39: 0 | AI39: 0 | AJ39: 0 | AK39: 0 | AL39: 0 | AM39: 0 | AN39: 0 | AO39: 0 | AP39: 0 | AQ39: 0 | AR39: 0 | AS39: 0 | AT39: 0 | AU39: 0 | AV39: 0 | AW39: 0 | AX39: 0 | AY39: 0 | AZ39: 0 | BA39: 0 | BB39: 0 | BC39: 0 | BD39: 0 | BE39: 0 | BF39: 0 | BG39: 0 | BH39: 0 | BI39: 0 | BJ39: 0 | BK39: 0 | BL39: 0 | BM39: 0 | BN39: 0 | BO39: 0 | BP39: 0 | BQ39: 0 | BR39: 0 | BS39: 0 | BT39: 0 | BU39: 0
B40: Return On Debt: | C40: 173921.3017 | E40: 0 | F40: 0 | G40: 207.7424826 | H40: 16732.65779 | I40: 23744.62931 | J40: 24020.61898 | K40: 21285.47535 | L40: 18580.24865 | M40: 15902.69511 | N40: 13250.73924 | O40: 10621.92058 | P40: 8007.346187 | Q40: 5397.60986 | R40: 3345.926798 | S40: 2582.176086 | T40: 2225.438204 | U40: 1951.180051 | V40: 1676.921898 | W40: 1402.663745 | X40: 1128.405592 | Y40: 854.147439 | Z40: 579.8892861 | AA40: 309.9562261 | AB40: 100.7444592 | AC40: 12.16833797 | AD40: 3.700560097e-11 | AE40: 3.888458263e-11 | AF40: 4.076356429e-11 | AG40: 4.264254595e-11 | AH40: 4.452152762e-11 | AI40: 4.640050928e-11 | AJ40: 4.827949094e-11 | AK40: 5.01584726e-11 | AL40: 5.203745426e-11 | AM40: 5.391643593e-11 | AN40: 5.579541759e-11 | AO40: 5.767439925e-11 | AP40: 5.955338091e-11 | AQ40: 6.143236257e-11 | AR40: 6.331134424e-11 | AS40: 6.51903259e-11 | AT40: 6.706930756e-11 | AU40: 6.894828922e-11 | AV40: 7.082727088e-11 | AW40: 7.270625254e-11 | AX40: 7.458523421e-11 | AY40: 7.646421587e-11 | AZ40: 7.834319753e-11 | BA40: 8.022217919e-11 | BB40: 8.210116085e-11 | BC40: 8.398014252e-11 | BD40: 8.585912418e-11 | BE40: 8.773810584e-11 | BF40: 8.96170875e-11 | BG40: 9.149606916e-11 | BH40: 9.337505083e-11 | BI40: 9.525403249e-11 | BJ40: 9.713301415e-11 | BK40: 9.901199581e-11 | BL40: 1.008909775e-10 | BM40: 1.027699591e-10 | BN40: 1.046489408e-10 | BO40: 1.065279225e-10 | BP40: 1.084069041e-10 | BQ40: 1.102858858e-10 | BR40: 1.121648674e-10 | BS40: 1.140438491e-10 | BT40: 1.159228308e-10 | BU40: 1.178018124e-10
B41: Federal Taxes: | C41: 127849.2667 | E41: 0 | F41: 0 | G41: 119.5704905 | H41: 15266.73469 | I41: 18412.08831 | J41: 18292.4762 | K41: 15851.47337 | L41: 13866.31952 | M41: 11890.53437 | N41: 9934.33027 | O41: 7995.507879 | P41: 6066.903123 | Q41: 3590.543049 | R41: -2497.676121 | S41: 845.7867364 | T41: 1338.119628 | U41: 1497.335318 | V41: 1280.811509 | W41: 1072.610018 | X41: 840.8458241 | Y41: 608.1410529 | Z41: 401.3960328 | AA41: 203.5052283 | AB41: 55.32385079 | AC41: 1.236613947 | AD41: -0.9230819825 | AE41: 0.02442430718 | AF41: -0.0006462554727 | AG41: 1.709960981e-05 | AH41: -4.524458973e-07 | AI41: 1.197365748e-08 | AJ41: -3.125734338e-10 | AK41: 29.66342265 | AL41: 386.0055002 | AM41: 430.3693443 | AN41: 72.06854072 | AO41: -1.906899073 | AP41: 0.05045563627 | AQ41: -0.001335031958 | AR41: 3.532432161e-05 | AS41: -9.346478649e-07 | AT41: 2.474852067e-08 | AU41: -6.352304487e-10 | AV41: 3.782923274e-11 | AW41: 2.143817913e-11 | AX41: 2.328966178e-11 | AY41: 2.465845567e-11 | AZ41: 2.604002126e-11 | BA41: 2.742124892e-11 | BB41: 2.880248552e-11 | BC41: 3.018372189e-11 | BD41: 3.156495826e-11 | BE41: 3.294619463e-11 | BF41: 3.4327431e-11 | BG41: 3.570866738e-11 | BH41: 3.708990375e-11 | BI41: 3.847114012e-11 | BJ41: 3.985237649e-11 | BK41: 4.123361286e-11 | BL41: 4.261484923e-11 | BM41: 4.399608561e-11 | BN41: 4.537732198e-11 | BO41: 4.675855835e-11 | BP41: 4.813979472e-11 | BQ41: 4.952103109e-11 | BR41: 5.090226747e-11 | BS41: 5.228350384e-11 | BT41: 5.366474021e-11 | BU41: 5.504597658e-11
B42: State Taxes: | C42: 59037.35546 | E42: 0 | F42: 0 | G42: -134.4589717 | H42: 10334.39564 | I42: 12823.17638 | J42: 14060.64626 | K42: 13678.98037 | L42: 13310.30774 | M42: 12913.34604 | N42: 12490.97024 | O42: 12044.58575 | P42: 11573.23967 | Q42: 10738.57692 | R42: 662.8805847 | S42: -2581.244548 | T42: -3701.52619 | U42: -3464.428275 | V42: -3283.447018 | W42: -3127.274646 | X42: -3084.551808 | Y42: -3158.816864 | Z42: -3252.411703 | AA42: -3343.988092 | AB42: -3414.460749 | AC42: -3443.458683 | AD42: -3446.931229 | AE42: -3446.839347 | AF42: -3446.841779 | AG42: -3446.841714 | AH42: -3446.841716 | AI42: -3446.841716 | AJ42: -3446.841716 | AK42: -3335.250745 | AL42: -1883.134816 | AM42: -264.1263303 | AN42: 6.988656208 | AO42: -0.1849164964 | AP42: 0.004892801945 | AQ42: -0.000129461187 | AR42: 3.42549093e-06 | AS42: -9.062627307e-08 | AT42: 2.409158941e-09 | AU42: -5.185934085e-11 | AV42: 1.391271847e-11 | AW42: 1.282711547e-11 | AX42: 1.35105342e-11 | AY42: 1.414714546e-11 | AZ42: 1.478499522e-11 | BA42: 1.542281221e-11 | BB42: 1.606063007e-11 | BC42: 1.669844791e-11 | BD42: 1.733626574e-11 | BE42: 1.797408358e-11 | BF42: 1.861190141e-11 | BG42: 1.924971925e-11 | BH42: 1.988753709e-11 | BI42: 2.052535492e-11 | BJ42: 2.116317276e-11 | BK42: 2.180099059e-11 | BL42: 2.243880843e-11 | BM42: 2.307662627e-11 | BN42: 2.37144441e-11 | BO42: 2.435226194e-11 | BP42: 2.499007977e-11 | BQ42: 2.562789761e-11 | BR42: 2.626571545e-11 | BS42: 2.690353328e-11 | BT42: 2.754135112e-11 | BU42: 2.817916896e-11
B43: Property Taxes: | C43: 137263.3364 | E43: 0 | F43: 0 | G43: 0 | H43: 736.9027422 | I43: 9861.851869 | J43: 19339.35735 | K43: 19322.47446 | L43: 17122.29207 | M43: 14946.17522 | N43: 12792.31898 | O43: 10659.05382 | P43: 8544.400514 | Q43: 6441.205463 | R43: 4347.598772 | S43: 2806.589043 | T43: 2104.718195 | U43: 1790.169225 | V43: 1569.552672 | W43: 1348.936119 | X43: 1128.319566 | Y43: 907.7030134 | Z43: 687.0864606 | AA43: 466.4699078 | AB43: 249.3325117 | AC43: 81.04005324 | AD43: 9.78835724 | AE43: 2.976774996e-11 | AF43: 3.127922538e-11 | AG43: 3.27907008e-11 | AH43: 3.430217622e-11 | AI43: 3.581365164e-11 | AJ43: 3.732512706e-11 | AK43: 3.883660248e-11 | AL43: 4.03480779e-11 | AM43: 4.185955332e-11 | AN43: 4.337102874e-11 | AO43: 4.488250416e-11 | AP43: 4.639397958e-11 | AQ43: 4.790545501e-11 | AR43: 4.941693043e-11 | AS43: 5.092840585e-11 | AT43: 5.243988127e-11 | AU43: 5.395135669e-11 | AV43: 5.546283211e-11 | AW43: 5.697430753e-11 | AX43: 5.848578295e-11 | AY43: 5.999725837e-11 | AZ43: 6.150873379e-11 | BA43: 6.302020921e-11 | BB43: 6.453168463e-11 | BC43: 6.604316005e-11 | BD43: 6.755463547e-11 | BE43: 6.906611089e-11 | BF43: 7.057758631e-11 | BG43: 7.208906173e-11 | BH43: 7.360053716e-11 | BI43: 7.511201258e-11 | BJ43: 7.6623488e-11 | BK43: 7.813496342e-11 | BL43: 7.964643884e-11 | BM43: 8.115791426e-11 | BN43: 8.266938968e-11 | BO43: 8.41808651e-11 | BP43: 8.569234052e-11 | BQ43: 8.720381594e-11 | BR43: 8.871529136e-11 | BS43: 9.022676678e-11 | BT43: 9.17382422e-11 | BU43: 9.324971762e-11

Sheet O&M, WC
B1: =ReportAssumptions!C2 -> San Diego Gas & Electric
B2: =ReportAssumptions!C3 -> Power Your Drive Extension Program
B3: ="O&M and Working Capital ($ in "&ReportAssumptions!C9& ")" -> O&M and Working Capital ($ in Dollars)
C6: Total | D6: =DataFromEngine!J12 -> 2018 | E6: =DataFromEngine!K12 -> 2019 | F6: =DataFromEngine!L12 -> 2020 | G6: =DataFromEngine!M12 -> 2021 | H6: =DataFromEngine!N12 -> 2022 | I6: =DataFromEngine!O12 -> 2023 | J6: =DataFromEngine!P12 -> 2024 | K6: =DataFromEngine!Q12 -> 2025 | L6: =DataFromEngine!R12 -> 2026 | M6: =DataFromEngine!S12 -> 2027 | N6: =DataFromEngine!T12 -> 2028 | O6: =DataFromEngine!U12 -> 2029 | P6: =DataFromEngine!V12 -> 2030 | Q6: =DataFromEngine!W12 -> 2031 | R6: =DataFromEngine!X12 -> 2032 | S6: =DataFromEngine!Y12 -> 2033 | T6: =DataFromEngine!Z12 -> 2034 | U6: =DataFromEngine!AA12 -> 2035 | V6: =DataFromEngine!AB12 -> 2036 | W6: =DataFromEngine!AC12 -> 2037 | X6: =DataFromEngine!AD12 -> 2038 | Y6: =DataFromEngine!AE12 -> 2039 | Z6: =DataFromEngine!AF12 -> 2040 | AA6: =DataFromEngine!AG12 -> 2041 | AB6: =DataFromEngine!AH12 -> 2042 | AC6: =DataFromEngine!AI12 -> 2043 | AD6: =DataFromEngine!AJ12 -> 2044 | AE6: =DataFromEngine!AK12 -> 2045 | AF6: =DataFromEngine!AL12 -> 2046 | AG6: =DataFromEngine!AM12 -> 2047 | AH6: =DataFromEngine!AN12 -> 2048 | AI6: =DataFromEngine!AO12 -> 2049 | AJ6: =DataFromEngine!AP12 -> 2050 | AK6: =DataFromEngine!AQ12 -> 2051 | AL6: =DataFromEngine!AR12 -> 2052 | AM6: =DataFromEngine!AS12 -> 2053 | AN6: =DataFromEngine!AT12 -> 2054 | AO6: =DataFromEngine!AU12 -> 2055 | AP6: =DataFromEngine!AV12 -> 2056 | AQ6: =DataFromEngine!AW12 -> 2057 | AR6: =DataFromEngine!AX12 -> 2058 | AS6: =DataFromEngine!AY12 -> 2059 | AT6: =DataFromEngine!AZ12 -> 2060 | AU6: =DataFromEngine!BA12 -> 2061 | AV6: =DataFromEngine!BB12 -> 2062 | AW6: =DataFromEngine!BC12 -> 2063 | AX6: =DataFromEngine!BD12 -> 2064 | AY6: =DataFromEngine!BE12 -> 2065 | AZ6: =DataFromEngine!BF12 -> 2066 | BA6: =DataFromEngine!BG12 -> 2067 | BB6: =DataFromEngine!BH12 -> 2068 | BC6: =DataFromEngine!BI12 -> 2069 | BD6: =DataFromEngine!BJ12 -> 2070 | BE6: =DataFromEngine!BK12 -> 2071 | BF6: =DataFromEngine!BL12 -> 2072 | BG6: =DataFromEngine!BM12 -> 2073 | BH6: =DataFromEngine!BN12 -> 2074 | BI6: =DataFromEngine!BO12 -> 2075 | BJ6: =DataFromEngine!BP12 -> 2076 | BK6: =DataFromEngine!BQ12 -> 2077 | BL6: =DataFromEngine!BR12 -> 2078 | BM6: =DataFromEngine!BS12 -> 2079 | BN6: =DataFromEngine!BT12 -> 2080 | BO6: =DataFromEngine!BU12 -> 2081 | BP6: =DataFromEngine!BV12 -> 2082 | BQ6: =DataFromEngine!BW12 -> 2083 | BR6: =DataFromEngine!BX12 -> 2084 | BS6: =DataFromEngine!BY12 -> 2085 | BT6: =DataFromEngine!BZ12 -> 2086 | BU6: =DataFromEngine!CA12 -> 2087 | BV6: =DataFromEngine!CB12 -> 2088 | BW6: =DataFromEngine!CC12 -> 2089 | BX6: =DataFromEngine!CD12 -> 2090 | BY6: =DataFromEngine!CE12 -> 2091 | BZ6: =DataFromEngine!CF12 -> 2092 | CA6: =DataFromEngine!CG12 -> 2093 | CB6: =DataFromEngine!CH12 -> 2094 | CC6: =DataFromEngine!CI12 -> 2095 | CD6: =DataFromEngine!CJ12 -> 2096 | CE6: =DataFromEngine!CK12 -> 2097
B7: O&M All In | C7: =SUM(D7:CE7) -> 12970693.48 | D7: =ROUND(SUMIF(DataFromEngine!$J$13:$AJV$13,D$6,DataFromEngine!$J171:$AJV171),8)/Scale -> 0 | E7: =ROUND(SUMIF(DataFromEngine!$J$13:$AJV$13,E$6,DataFromEngine!$J171:$AJV171),9)/Scale -> 0 | F7: =ROUND(SUMIF(DataFromEngine!$J$13:$AJV$13,F$6,DataFromEngine!$J171:$AJV171),9)/Scale -> 0 | G7: =ROUND(SUMIF(DataFromEngine!$J$13:$AJV$13,G$6,DataFromEngine!$J171:$AJV171),9)/Scale -> 937218.0296 | H7: =ROUND(SUMIF(DataFromEngine!$J$13:$AJV$13,H$6,DataFromEngine!$J171:$AJV171),9)/Scale -> 5095404.37 | I7: =ROUND(SUMIF(DataFromEngine!$J$13:$AJV$13,I$6,DataFromEngine!$J171:$AJV171),9)/Scale -> 5062707.984 | J7: =ROUND(SUMIF(DataFromEngine!$J$13:$AJV$13,J$6,DataFromEngine!$J171:$AJV171),9)/Scale -> 1875363.092 | K7: =ROUND(SUMIF(DataFromEngine!$J$13:$AJV$13,K$6,DataFromEngine!$J171:$AJV171),9)/Scale -> 0 | L7: =ROUND(SUMIF(DataFromEngine!$J$13:$AJV$13,L$6,DataFromEngine!$J171:$AJV171),9)/Scale -> 0 | M7: =ROUND(SUMIF(DataFromEngine!$J$13:$AJV$13,M$6,DataFromEngine!$J171:$AJV171),9)/Scale -> 0 | N7: =ROUND(SUMIF(DataFromEngine!$J$13:$AJV$13,N$6,DataFromEngine!$J171:$AJV171),9)/Scale -> 0 | O7: =ROUND(SUMIF(DataFromEngine!$J$13:$AJV$13,O$6,DataFromEngine!$J171:$AJV171),9)/Scale -> 0 | P7: =ROUND(SUMIF(DataFromEngine!$J$13:$AJV$13,P$6,DataFromEngine!$J171:$AJV171),9)/Scale -> 0 | Q7: =ROUND(SUMIF(DataFromEngine!$J$13:$AJV$13,Q$6,DataFromEngine!$J171:$AJV171),9)/Scale -> 0 | R7: =ROUND(SUMIF(DataFromEngine!$J$13:$AJV$13,R$6,DataFromEngine!$J171:$AJV171),9)/Scale -> 0 | S7: =ROUND(SUMIF(DataFromEngine!$J$13:$AJV$13,S$6,DataFromEngine!$J171:$AJV171),9)/Scale -> 0 | T7: =ROUND(SUMIF(DataFromEngine!$J$13:$AJV$13,T$6,DataFromEngine!$J171:$AJV171),9)/Scale -> 0 | U7: =ROUND(SUMIF(DataFromEngine!$J$13:$AJV$13,U$6,DataFromEngine!$J171:$AJV171),9)/Scale -> 0 | V7: =ROUND(SUMIF(DataFromEngine!$J$13:$AJV$13,V$6,DataFromEngine!$J171:$AJV171),9)/Scale -> 0 | W7: =ROUND(SUMIF(DataFromEngine!$J$13:$AJV$13,W$6,DataFromEngine!$J171:$AJV171),9)/Scale -> 0 | X7: =ROUND(SUMIF(DataFromEngine!$J$13:$AJV$13,X$6,DataFromEngine!$J171:$AJV171),9)/Scale -> 0 | Y7: =ROUND(SUMIF(DataFromEngine!$J$13:$AJV$13,Y$6,DataFromEngine!$J171:$AJV171),9)/Scale -> 0 | Z7: =ROUND(SUMIF(DataFromEngine!$J$13:$AJV$13,Z$6,DataFromEngine!$J171:$AJV171),9)/Scale -> 0 | AA7: =ROUND(SUMIF(DataFromEngine!$J$13:$AJV$13,AA$6,DataFromEngine!$J171:$AJV171),9)/Scale -> 0 | AB7: =ROUND(SUMIF(DataFromEngine!$J$13:$AJV$13,AB$6,DataFromEngine!$J171:$AJV171),9)/Scale -> 0 | AC7: =ROUND(SUMIF(DataFromEngine!$J$13:$AJV$13,AC$6,DataFromEngine!$J171:$AJV171),9)/Scale -> 0 | AD7: =ROUND(SUMIF(DataFromEngine!$J$13:$AJV$13,AD$6,DataFromEngine!$J171:$AJV171),9)/Scale -> 0 | AE7: =ROUND(SUMIF(DataFromEngine!$J$13:$AJV$13,AE$6,DataFromEngine!$J171:$AJV171),9)/Scale -> 0 | AF7: =ROUND(SUMIF(DataFromEngine!$J$13:$AJV$13,AF$6,DataFromEngine!$J171:$AJV171),9)/Scale -> 0 | AG7: =ROUND(SUMIF(DataFromEngine!$J$13:$AJV$13,AG$6,DataFromEngine!$J171:$AJV171),9)/Scale -> 0 | AH7: =ROUND(SUMIF(DataFromEngine!$J$13:$AJV$13,AH$6,DataFromEngine!$J171:$AJV171),9)/Scale -> 0 | AI7: =ROUND(SUMIF(DataFromEngine!$J$13:$AJV$13,AI$6,DataFromEngine!$J171:$AJV171),9)/Scale -> 0 | AJ7: =ROUND(SUMIF(DataFromEngine!$J$13:$AJV$13,AJ$6,DataFromEngine!$J171:$AJV171),9)/Scale -> 0 | AK7: =ROUND(SUMIF(DataFromEngine!$J$13:$AJV$13,AK$6,DataFromEngine!$J171:$AJV171),9)/Scale -> 0 | AL7: =ROUND(SUMIF(DataFromEngine!$J$13:$AJV$13,AL$6,DataFromEngine!$J171:$AJV171),9)/Scale -> 0 | AM7: =ROUND(SUMIF(DataFromEngine!$J$13:$AJV$13,AM$6,DataFromEngine!$J171:$AJV171),9)/Scale -> 0 | AN7: =ROUND(SUMIF(DataFromEngine!$J$13:$AJV$13,AN$6,DataFromEngine!$J171:$AJV171),9)/Scale -> 0 | AO7: =ROUND(SUMIF(DataFromEngine!$J$13:$AJV$13,AO$6,DataFromEngine!$J171:$AJV171),9)/Scale -> 0 | AP7: =ROUND(SUMIF(DataFromEngine!$J$13:$AJV$13,AP$6,DataFromEngine!$J171:$AJV171),9)/Scale -> 0 | AQ7: =ROUND(SUMIF(DataFromEngine!$J$13:$AJV$13,AQ$6,DataFromEngine!$J171:$AJV171),9)/Scale -> 0 | AR7: =ROUND(SUMIF(DataFromEngine!$J$13:$AJV$13,AR$6,DataFromEngine!$J171:$AJV171),9)/Scale -> 0 | AS7: =ROUND(SUMIF(DataFromEngine!$J$13:$AJV$13,AS$6,DataFromEngine!$J171:$AJV171),9)/Scale -> 0 | AT7: =ROUND(SUMIF(DataFromEngine!$J$13:$AJV$13,AT$6,DataFromEngine!$J171:$AJV171),9)/Scale -> 0 | AU7: =ROUND(SUMIF(DataFromEngine!$J$13:$AJV$13,AU$6,DataFromEngine!$J171:$AJV171),9)/Scale -> 0 | AV7: =ROUND(SUMIF(DataFromEngine!$J$13:$AJV$13,AV$6,DataFromEngine!$J171:$AJV171),9)/Scale -> 0 | AW7: =ROUND(SUMIF(DataFromEngine!$J$13:$AJV$13,AW$6,DataFromEngine!$J171:$AJV171),9)/Scale -> 0 | AX7: =ROUND(SUMIF(DataFromEngine!$J$13:$AJV$13,AX$6,DataFromEngine!$J171:$AJV171),9)/Scale -> 0 | AY7: =ROUND(SUMIF(DataFromEngine!$J$13:$AJV$13,AY$6,DataFromEngine!$J171:$AJV171),9)/Scale -> 0 | AZ7: =ROUND(SUMIF(DataFromEngine!$J$13:$AJV$13,AZ$6,DataFromEngine!$J171:$AJV171),9)/Scale -> 0 | BA7: =ROUND(SUMIF(DataFromEngine!$J$13:$AJV$13,BA$6,DataFromEngine!$J171:$AJV171),9)/Scale -> 0 | BB7: =ROUND(SUMIF(DataFromEngine!$J$13:$AJV$13,BB$6,DataFromEngine!$J171:$AJV171),9)/Scale -> 0 | BC7: =ROUND(SUMIF(DataFromEngine!$J$13:$AJV$13,BC$6,DataFromEngine!$J171:$AJV171),9)/Scale -> 0 | BD7: =ROUND(SUMIF(DataFromEngine!$J$13:$AJV$13,BD$6,DataFromEngine!$J171:$AJV171),9)/Scale -> 0 | BE7: =ROUND(SUMIF(DataFromEngine!$J$13:$AJV$13,BE$6,DataFromEngine!$J171:$AJV171),9)/Scale -> 0 | BF7: =ROUND(SUMIF(DataFromEngine!$J$13:$AJV$13,BF$6,DataFromEngine!$J171:$AJV171),9)/Scale -> 0 | BG7: =ROUND(SUMIF(DataFromEngine!$J$13:$AJV$13,BG$6,DataFromEngine!$J171:$AJV171),9)/Scale -> 0 | BH7: =ROUND(SUMIF(DataFromEngine!$J$13:$AJV$13,BH$6,DataFromEngine!$J171:$AJV171),9)/Scale -> 0 | BI7: =ROUND(SUMIF(DataFromEngine!$J$13:$AJV$13,BI$6,DataFromEngine!$J171:$AJV171),9)/Scale -> 0 | BJ7: =ROUND(SUMIF(DataFromEngine!$J$13:$AJV$13,BJ$6,DataFromEngine!$J171:$AJV171),9)/Scale -> 0 | BK7: =ROUND(SUMIF(DataFromEngine!$J$13:$AJV$13,BK$6,DataFromEngine!$J171:$AJV171),9)/Scale -> 0 | BL7: =ROUND(SUMIF(DataFromEngine!$J$13:$AJV$13,BL$6,DataFromEngine!$J171:$AJV171),9)/Scale -> 0 | BM7: =ROUND(SUMIF(DataFromEngine!$J$13:$AJV$13,BM$6,DataFromEngine!$J171:$AJV171),9)/Scale -> 0 | BN7: =ROUND(SUMIF(DataFromEngine!$J$13:$AJV$13,BN$6,DataFromEngine!$J171:$AJV171),9)/Scale -> 0 | BO7: =ROUND(SUMIF(DataFromEngine!$J$13:$AJV$13,BO$6,DataFromEngine!$J171:$AJV171),9)/Scale -> 0 | BP7: =ROUND(SUMIF(DataFromEngine!$J$13:$AJV$13,BP$6,DataFromEngine!$J171:$AJV171),9)/Scale -> 0 | BQ7: =ROUND(SUMIF(DataFromEngine!$J$13:$AJV$13,BQ$6,DataFromEngine!$J171:$AJV171),9)/Scale -> 0 | BR7: =ROUND(SUMIF(DataFromEngine!$J$13:$AJV$13,BR$6,DataFromEngine!$J171:$AJV171),9)/Scale -> 0 | BS7: =ROUND(SUMIF(DataFromEngine!$J$13:$AJV$13,BS$6,DataFromEngine!$J171:$AJV171),9)/Scale -> 0 | BT7: =ROUND(SUMIF(DataFromEngine!$J$13:$AJV$13,BT$6,DataFromEngine!$J171:$AJV171),9)/Scale -> 0 | BU7: =ROUND(SUMIF(DataFromEngine!$J$13:$AJV$13,BU$6,DataFromEngine!$J171:$AJV171),9)/Scale -> 0 | BV7: =ROUND(SUMIF(DataFromEngine!$J$13:$AJV$13,BV$6,DataFromEngine!$J171:$AJV171),9)/Scale -> 0 | BW7: =ROUND(SUMIF(DataFromEngine!$J$13:$AJV$13,BW$6,DataFromEngine!$J171:$AJV171),9)/Scale -> 0 | BX7: =ROUND(SUMIF(DataFromEngine!$J$13:$AJV$13,BX$6,DataFromEngine!$J171:$AJV171),9)/Scale -> 0 | BY7: =ROUND(SUMIF(DataFromEngine!$J$13:$AJV$13,BY$6,DataFromEngine!$J171:$AJV171),9)/Scale -> 0 | BZ7: =ROUND(SUMIF(DataFromEngine!$J$13:$AJV$13,BZ$6,DataFromEngine!$J171:$AJV171),9)/Scale -> 0 | CA7: =ROUND(SUMIF(DataFromEngine!$J$13:$AJV$13,CA$6,DataFromEngine!$J171:$AJV171),9)/Scale -> 0 | CB7: =ROUND(SUMIF(DataFromEngine!$J$13:$AJV$13,CB$6,DataFromEngine!$J171:$AJV171),9)/Scale -> 0 | CC7: =ROUND(SUMIF(DataFromEngine!$J$13:$AJV$13,CC$6,DataFromEngine!$J171:$AJV171),9)/Scale -> 0 | CD7: =ROUND(SUMIF(DataFromEngine!$J$13:$AJV$13,CD$6,DataFromEngine!$J171:$AJV171),9)/Scale -> 0 | CE7: =ROUND(SUMIF(DataFromEngine!$J$13:$AJV$13,CE$6,DataFromEngine!$J171:$AJV171),9)/Scale -> 0
B9: Working Capital | C9: =C6 -> Total | D9: =D6 -> 2018 | E9: =E6 -> 2019 | F9: =F6 -> 2020 | G9: 2021 | H9: 2022 | I9: 2023 | J9: 2024 | K9: 2025 | L9: 2026 | M9: 2027 | N9: 2028 | O9: 2029 | P9: 2030 | Q9: 2031 | R9: 2032 | S9: 2033 | T9: 2034 | U9: 2035 | V9: 2036 | W9: 2037 | X9: 2038 | Y9: 2039 | Z9: 2040 | AA9: 2041 | AB9: 2042 | AC9: 2043 | AD9: 2044 | AE9: 2045 | AF9: 2046 | AG9: 2047 | AH9: 2048 | AI9: 2049 | AJ9: 2050 | AK9: 2051 | AL9: 2052 | AM9: 2053 | AN9: 2054 | AO9: 2055 | AP9: 2056 | AQ9: 2057 | AR9: 2058 | AS9: 2059 | AT9: 2060 | AU9: 2061 | AV9: 2062 | AW9: 2063 | AX9: 2064 | AY9: 2065 | AZ9: 2066 | BA9: 2067 | BB9: 2068 | BC9: =BC6 -> 2069 | BD9: 2070 | BE9: 2071 | BF9: 2072 | BG9: 2073 | BH9: 2074 | BI9: 2075 | BJ9: 2076 | BK9: 2077 | BL9: =BL6 -> 2078 | BM9: 2079 | BN9: 2080 | BO9: 2081 | BP9: 2082 | BQ9: 2083 | BR9: 2084 | BS9: 2085 | BT9: 2086 | BU9: 2087 | BV9: 2088 | BW9: 2089 | BX9: 2090 | BY9: 2091 | BZ9: 2092 | CA9: 2093 | CB9: 2094 | CC9: 2095 | CD9: 2096 | CE9: 2097
B10: O&M | C10: =SUM(D10:CE10) -> 12970693.48 | D10: =ROUND(SUMIF(DataFromEngine!$J$13:$AJV$13,D$6,DataFromEngine!$J171:$AJV171),9)/Scale -> 0 | E10: =ROUND(SUMIF(DataFromEngine!$J$13:$AJV$13,E$6,DataFromEngine!$J171:$AJV171),9)/Scale -> 0 | F10: =ROUND(SUMIF(DataFromEngine!$J$13:$AJV$13,F$6,DataFromEngine!$J171:$AJV171),9)/Scale -> 0 | G10: =ROUND(SUMIF(DataFromEngine!$J$13:$AJV$13,G$6,DataFromEngine!$J171:$AJV171),9)/Scale -> 937218.0296 | H10: =ROUND(SUMIF(DataFromEngine!$J$13:$AJV$13,H$6,DataFromEngine!$J171:$AJV171),9)/Scale -> 5095404.37 | I10: =ROUND(SUMIF(DataFromEngine!$J$13:$AJV$13,I$6,DataFromEngine!$J171:$AJV171),9)/Scale -> 5062707.984 | J10: =ROUND(SUMIF(DataFromEngine!$J$13:$AJV$13,J$6,DataFromEngine!$J171:$AJV171),9)/Scale -> 1875363.092 | K10: =ROUND(SUMIF(DataFromEngine!$J$13:$AJV$13,K$6,DataFromEngine!$J171:$AJV171),9)/Scale -> 0 | L10: =ROUND(SUMIF(DataFromEngine!$J$13:$AJV$13,L$6,DataFromEngine!$J171:$AJV171),9)/Scale -> 0 | M10: =ROUND(SUMIF(DataFromEngine!$J$13:$AJV$13,M$6,DataFromEngine!$J171:$AJV171),9)/Scale -> 0 | N10: =ROUND(SUMIF(DataFromEngine!$J$13:$AJV$13,N$6,DataFromEngine!$J171:$AJV171),9)/Scale -> 0 | O10: =ROUND(SUMIF(DataFromEngine!$J$13:$AJV$13,O$6,DataFromEngine!$J171:$AJV171),9)/Scale -> 0 | P10: =ROUND(SUMIF(DataFromEngine!$J$13:$AJV$13,P$6,DataFromEngine!$J171:$AJV171),9)/Scale -> 0 | Q10: =ROUND(SUMIF(DataFromEngine!$J$13:$AJV$13,Q$6,DataFromEngine!$J171:$AJV171),9)/Scale -> 0 | R10: =ROUND(SUMIF(DataFromEngine!$J$13:$AJV$13,R$6,DataFromEngine!$J171:$AJV171),9)/Scale -> 0 | S10: =ROUND(SUMIF(DataFromEngine!$J$13:$AJV$13,S$6,DataFromEngine!$J171:$AJV171),9)/Scale -> 0 | T10: =ROUND(SUMIF(DataFromEngine!$J$13:$AJV$13,T$6,DataFromEngine!$J171:$AJV171),9)/Scale -> 0 | U10: =ROUND(SUMIF(DataFromEngine!$J$13:$AJV$13,U$6,DataFromEngine!$J171:$AJV171),9)/Scale -> 0 | V10: =ROUND(SUMIF(DataFromEngine!$J$13:$AJV$13,V$6,DataFromEngine!$J171:$AJV171),9)/Scale -> 0 | W10: =ROUND(SUMIF(DataFromEngine!$J$13:$AJV$13,W$6,DataFromEngine!$J171:$AJV171),9)/Scale -> 0 | X10: =ROUND(SUMIF(DataFromEngine!$J$13:$AJV$13,X$6,DataFromEngine!$J171:$AJV171),9)/Scale -> 0 | Y10: =ROUND(SUMIF(DataFromEngine!$J$13:$AJV$13,Y$6,DataFromEngine!$J171:$AJV171),9)/Scale -> 0 | Z10: =ROUND(SUMIF(DataFromEngine!$J$13:$AJV$13,Z$6,DataFromEngine!$J171:$AJV171),9)/Scale -> 0 | AA10: =ROUND(SUMIF(DataFromEngine!$J$13:$AJV$13,AA$6,DataFromEngine!$J171:$AJV171),9)/Scale -> 0 | AB10: =ROUND(SUMIF(DataFromEngine!$J$13:$AJV$13,AB$6,DataFromEngine!$J171:$AJV171),9)/Scale -> 0 | AC10: =ROUND(SUMIF(DataFromEngine!$J$13:$AJV$13,AC$6,DataFromEngine!$J171:$AJV171),9)/Scale -> 0 | AD10: =ROUND(SUMIF(DataFromEngine!$J$13:$AJV$13,AD$6,DataFromEngine!$J171:$AJV171),9)/Scale -> 0 | AE10: =ROUND(SUMIF(DataFromEngine!$J$13:$AJV$13,AE$6,DataFromEngine!$J171:$AJV171),9)/Scale -> 0 | AF10: =ROUND(SUMIF(DataFromEngine!$J$13:$AJV$13,AF$6,DataFromEngine!$J171:$AJV171),9)/Scale -> 0 | AG10: =ROUND(SUMIF(DataFromEngine!$J$13:$AJV$13,AG$6,DataFromEngine!$J171:$AJV171),9)/Scale -> 0 | AH10: =ROUND(SUMIF(DataFromEngine!$J$13:$AJV$13,AH$6,DataFromEngine!$J171:$AJV171),9)/Scale -> 0 | AI10: =ROUND(SUMIF(DataFromEngine!$J$13:$AJV$13,AI$6,DataFromEngine!$J171:$AJV171),9)/Scale -> 0 | AJ10: =ROUND(SUMIF(DataFromEngine!$J$13:$AJV$13,AJ$6,DataFromEngine!$J171:$AJV171),9)/Scale -> 0 | AK10: =ROUND(SUMIF(DataFromEngine!$J$13:$AJV$13,AK$6,DataFromEngine!$J171:$AJV171),9)/Scale -> 0 | AL10: =ROUND(SUMIF(DataFromEngine!$J$13:$AJV$13,AL$6,DataFromEngine!$J171:$AJV171),9)/Scale -> 0 | AM10: =ROUND(SUMIF(DataFromEngine!$J$13:$AJV$13,AM$6,DataFromEngine!$J171:$AJV171),9)/Scale -> 0 | AN10: =ROUND(SUMIF(DataFromEngine!$J$13:$AJV$13,AN$6,DataFromEngine!$J171:$AJV171),9)/Scale -> 0 | AO10: =ROUND(SUMIF(DataFromEngine!$J$13:$AJV$13,AO$6,DataFromEngine!$J171:$AJV171),9)/Scale -> 0 | AP10: =ROUND(SUMIF(DataFromEngine!$J$13:$AJV$13,AP$6,DataFromEngine!$J171:$AJV171),9)/Scale -> 0 | AQ10: =ROUND(SUMIF(DataFromEngine!$J$13:$AJV$13,AQ$6,DataFromEngine!$J171:$AJV171),9)/Scale -> 0 | AR10: =ROUND(SUMIF(DataFromEngine!$J$13:$AJV$13,AR$6,DataFromEngine!$J171:$AJV171),9)/Scale -> 0 | AS10: =ROUND(SUMIF(DataFromEngine!$J$13:$AJV$13,AS$6,DataFromEngine!$J171:$AJV171),9)/Scale -> 0 | AT10: =ROUND(SUMIF(DataFromEngine!$J$13:$AJV$13,AT$6,DataFromEngine!$J171:$AJV171),9)/Scale -> 0 | AU10: =ROUND(SUMIF(DataFromEngine!$J$13:$AJV$13,AU$6,DataFromEngine!$J171:$AJV171),9)/Scale -> 0 | AV10: =ROUND(SUMIF(DataFromEngine!$J$13:$AJV$13,AV$6,DataFromEngine!$J171:$AJV171),9)/Scale -> 0 | AW10: =ROUND(SUMIF(DataFromEngine!$J$13:$AJV$13,AW$6,DataFromEngine!$J171:$AJV171),9)/Scale -> 0 | AX10: =ROUND(SUMIF(DataFromEngine!$J$13:$AJV$13,AX$6,DataFromEngine!$J171:$AJV171),9)/Scale -> 0 | AY10: =ROUND(SUMIF(DataFromEngine!$J$13:$AJV$13,AY$6,DataFromEngine!$J171:$AJV171),9)/Scale -> 0 | AZ10: =ROUND(SUMIF(DataFromEngine!$J$13:$AJV$13,AZ$6,DataFromEngine!$J171:$AJV171),9)/Scale -> 0 | BA10: =ROUND(SUMIF(DataFromEngine!$J$13:$AJV$13,BA$6,DataFromEngine!$J171:$AJV171),9)/Scale -> 0 | BB10: =ROUND(SUMIF(DataFromEngine!$J$13:$AJV$13,BB$6,DataFromEngine!$J171:$AJV171),9)/Scale -> 0 | BC10: =ROUND(SUMIF(DataFromEngine!$J$13:$AJV$13,BC$6,DataFromEngine!$J171:$AJV171),9)/Scale -> 0 | BD10: =ROUND(SUMIF(DataFromEngine!$J$13:$AJV$13,BD$6,DataFromEngine!$J171:$AJV171),9)/Scale -> 0 | BE10: =ROUND(SUMIF(DataFromEngine!$J$13:$AJV$13,BE$6,DataFromEngine!$J171:$AJV171),9)/Scale -> 0 | BF10: =ROUND(SUMIF(DataFromEngine!$J$13:$AJV$13,BF$6,DataFromEngine!$J171:$AJV171),9)/Scale -> 0 | BG10: =ROUND(SUMIF(DataFromEngine!$J$13:$AJV$13,BG$6,DataFromEngine!$J171:$AJV171),9)/Scale -> 0 | BH10: =ROUND(SUMIF(DataFromEngine!$J$13:$AJV$13,BH$6,DataFromEngine!$J171:$AJV171),9)/Scale -> 0 | BI10: =ROUND(SUMIF(DataFromEngine!$J$13:$AJV$13,BI$6,DataFromEngine!$J171:$AJV171),9)/Scale -> 0 | BJ10: =ROUND(SUMIF(DataFromEngine!$J$13:$AJV$13,BJ$6,DataFromEngine!$J171:$AJV171),9)/Scale -> 0 | BK10: =ROUND(SUMIF(DataFromEngine!$J$13:$AJV$13,BK$6,DataFromEngine!$J171:$AJV171),9)/Scale -> 0 | BL10: =ROUND(SUMIF(DataFromEngine!$J$13:$AJV$13,BL$6,DataFromEngine!$J171:$AJV171),9)/Scale -> 0 | BM10: =ROUND(SUMIF(DataFromEngine!$J$13:$AJV$13,BM$6,DataFromEngine!$J171:$AJV171),9)/Scale -> 0 | BN10: =ROUND(SUMIF(DataFromEngine!$J$13:$AJV$13,BN$6,DataFromEngine!$J171:$AJV171),9)/Scale -> 0 | BO10: =ROUND(SUMIF(DataFromEngine!$J$13:$AJV$13,BO$6,DataFromEngine!$J171:$AJV171),9)/Scale -> 0 | BP10: =ROUND(SUMIF(DataFromEngine!$J$13:$AJV$13,BP$6,DataFromEngine!$J171:$AJV171),9)/Scale -> 0 | BQ10: =ROUND(SUMIF(DataFromEngine!$J$13:$AJV$13,BQ$6,DataFromEngine!$J171:$AJV171),9)/Scale -> 0 | BR10: =ROUND(SUMIF(DataFromEngine!$J$13:$AJV$13,BR$6,DataFromEngine!$J171:$AJV171),9)/Scale -> 0 | BS10: =ROUND(SUMIF(DataFromEngine!$J$13:$AJV$13,BS$6,DataFromEngine!$J171:$AJV171),9)/Scale -> 0 | BT10: =ROUND(SUMIF(DataFromEngine!$J$13:$AJV$13,BT$6,DataFromEngine!$J171:$AJV171),9)/Scale -> 0 | BU10: =ROUND(SUMIF(DataFromEngine!$J$13:$AJV$13,BU$6,DataFromEngine!$J171:$AJV171),9)/Scale -> 0 | BV10: =ROUND(SUMIF(DataFromEngine!$J$13:$AJV$13,BV$6,DataFromEngine!$J171:$AJV171),9)/Scale -> 0 | BW10: =ROUND(SUMIF(DataFromEngine!$J$13:$AJV$13,BW$6,DataFromEngine!$J171:$AJV171),9)/Scale -> 0 | BX10: =ROUND(SUMIF(DataFromEngine!$J$13:$AJV$13,BX$6,DataFromEngine!$J171:$AJV171),9)/Scale -> 0 | BY10: =ROUND(SUMIF(DataFromEngine!$J$13:$AJV$13,BY$6,DataFromEngine!$J171:$AJV171),9)/Scale -> 0 | BZ10: =ROUND(SUMIF(DataFromEngine!$J$13:$AJV$13,BZ$6,DataFromEngine!$J171:$AJV171),9)/Scale -> 0 | CA10: =ROUND(SUMIF(DataFromEngine!$J$13:$AJV$13,CA$6,DataFromEngine!$J171:$AJV171),9)/Scale -> 0 | CB10: =ROUND(SUMIF(DataFromEngine!$J$13:$AJV$13,CB$6,DataFromEngine!$J171:$AJV171),9)/Scale -> 0 | CC10: =ROUND(SUMIF(DataFromEngine!$J$13:$AJV$13,CC$6,DataFromEngine!$J171:$AJV171),9)/Scale -> 0 | CD10: =ROUND(SUMIF(DataFromEngine!$J$13:$AJV$13,CD$6,DataFromEngine!$J171:$AJV171),9)/Scale -> 0 | CE10: =ROUND(SUMIF(DataFromEngine!$J$13:$AJV$13,CE$6,DataFromEngine!$J171:$AJV171),9)/Scale -> 0
B11: Average Monthly O&M | C11: 1080891.123 | D11: =ROUND(SUMIF(DataFromEngine!$J$13:$AJV$13,D$6,DataFromEngine!$J261:$AJV261),9)/Scale -> 0 | E11: =ROUND(AVERAGEIF(DataFromEngine!$J$13:$AJV$13,E$6,DataFromEngine!$J261:$AJV261),9)/Scale -> 0 | F11: =ROUND(AVERAGEIF(DataFromEngine!$J$13:$AJV$13,F$6,DataFromEngine!$J261:$AJV261),9)/Scale -> 0 | G11: =ROUND(AVERAGEIF(DataFromEngine!$J$13:$AJV$13,G$6,DataFromEngine!$J261:$AJV261),9)/Scale -> 78101.50247 | H11: =ROUND(AVERAGEIF(DataFromEngine!$J$13:$AJV$13,H$6,DataFromEngine!$J261:$AJV261),9)/Scale -> 424617.0309 | I11: =ROUND(AVERAGEIF(DataFromEngine!$J$13:$AJV$13,I$6,DataFromEngine!$J261:$AJV261),9)/Scale -> 421892.332 | J11: =ROUND(AVERAGEIF(DataFromEngine!$J$13:$AJV$13,J$6,DataFromEngine!$J261:$AJV261),9)/Scale -> 156280.2577 | K11: =ROUND(AVERAGEIF(DataFromEngine!$J$13:$AJV$13,K$6,DataFromEngine!$J261:$AJV261),9)/Scale -> 0 | L11: =ROUND(AVERAGEIF(DataFromEngine!$J$13:$AJV$13,L$6,DataFromEngine!$J261:$AJV261),9)/Scale -> 0 | M11: =ROUND(AVERAGEIF(DataFromEngine!$J$13:$AJV$13,M$6,DataFromEngine!$J261:$AJV261),9)/Scale -> 0 | N11: =ROUND(AVERAGEIF(DataFromEngine!$J$13:$AJV$13,N$6,DataFromEngine!$J261:$AJV261),9)/Scale -> 0 | O11: =ROUND(AVERAGEIF(DataFromEngine!$J$13:$AJV$13,O$6,DataFromEngine!$J261:$AJV261),9)/Scale -> 0 | P11: =ROUND(AVERAGEIF(DataFromEngine!$J$13:$AJV$13,P$6,DataFromEngine!$J261:$AJV261),9)/Scale -> 0 | Q11: =ROUND(AVERAGEIF(DataFromEngine!$J$13:$AJV$13,Q$6,DataFromEngine!$J261:$AJV261),9)/Scale -> 0 | R11: =ROUND(AVERAGEIF(DataFromEngine!$J$13:$AJV$13,R$6,DataFromEngine!$J261:$AJV261),9)/Scale -> 0 | S11: =ROUND(AVERAGEIF(DataFromEngine!$J$13:$AJV$13,S$6,DataFromEngine!$J261:$AJV261),9)/Scale -> 0 | T11: =ROUND(AVERAGEIF(DataFromEngine!$J$13:$AJV$13,T$6,DataFromEngine!$J261:$AJV261),9)/Scale -> 0 | U11: =ROUND(AVERAGEIF(DataFromEngine!$J$13:$AJV$13,U$6,DataFromEngine!$J261:$AJV261),9)/Scale -> 0 | V11: =ROUND(AVERAGEIF(DataFromEngine!$J$13:$AJV$13,V$6,DataFromEngine!$J261:$AJV261),9)/Scale -> 0 | W11: =ROUND(AVERAGEIF(DataFromEngine!$J$13:$AJV$13,W$6,DataFromEngine!$J261:$AJV261),9)/Scale -> 0 | X11: =ROUND(AVERAGEIF(DataFromEngine!$J$13:$AJV$13,X$6,DataFromEngine!$J261:$AJV261),9)/Scale -> 0 | Y11: =ROUND(AVERAGEIF(DataFromEngine!$J$13:$AJV$13,Y$6,DataFromEngine!$J261:$AJV261),9)/Scale -> 0 | Z11: =ROUND(AVERAGEIF(DataFromEngine!$J$13:$AJV$13,Z$6,DataFromEngine!$J261:$AJV261),9)/Scale -> 0 | AA11: =ROUND(AVERAGEIF(DataFromEngine!$J$13:$AJV$13,AA$6,DataFromEngine!$J261:$AJV261),9)/Scale -> 0 | AB11: =ROUND(AVERAGEIF(DataFromEngine!$J$13:$AJV$13,AB$6,DataFromEngine!$J261:$AJV261),9)/Scale -> 0 | AC11: =ROUND(AVERAGEIF(DataFromEngine!$J$13:$AJV$13,AC$6,DataFromEngine!$J261:$AJV261),9)/Scale -> 0 | AD11: =ROUND(AVERAGEIF(DataFromEngine!$J$13:$AJV$13,AD$6,DataFromEngine!$J261:$AJV261),9)/Scale -> 0 | AE11: =ROUND(AVERAGEIF(DataFromEngine!$J$13:$AJV$13,AE$6,DataFromEngine!$J261:$AJV261),9)/Scale -> 0 | AF11: =ROUND(AVERAGEIF(DataFromEngine!$J$13:$AJV$13,AF$6,DataFromEngine!$J261:$AJV261),9)/Scale -> 0 | AG11: =ROUND(AVERAGEIF(DataFromEngine!$J$13:$AJV$13,AG$6,DataFromEngine!$J261:$AJV261),9)/Scale -> 0 | AH11: =ROUND(AVERAGEIF(DataFromEngine!$J$13:$AJV$13,AH$6,DataFromEngine!$J261:$AJV261),9)/Scale -> 0 | AI11: =ROUND(AVERAGEIF(DataFromEngine!$J$13:$AJV$13,AI$6,DataFromEngine!$J261:$AJV261),9)/Scale -> 0 | AJ11: =ROUND(AVERAGEIF(DataFromEngine!$J$13:$AJV$13,AJ$6,DataFromEngine!$J261:$AJV261),9)/Scale -> 0 | AK11: =ROUND(AVERAGEIF(DataFromEngine!$J$13:$AJV$13,AK$6,DataFromEngine!$J261:$AJV261),9)/Scale -> 0 | AL11: =ROUND(AVERAGEIF(DataFromEngine!$J$13:$AJV$13,AL$6,DataFromEngine!$J261:$AJV261),9)/Scale -> 0 | AM11: =ROUND(AVERAGEIF(DataFromEngine!$J$13:$AJV$13,AM$6,DataFromEngine!$J261:$AJV261),9)/Scale -> 0 | AN11: =ROUND(AVERAGEIF(DataFromEngine!$J$13:$AJV$13,AN$6,DataFromEngine!$J261:$AJV261),9)/Scale -> 0 | AO11: =ROUND(AVERAGEIF(DataFromEngine!$J$13:$AJV$13,AO$6,DataFromEngine!$J261:$AJV261),9)/Scale -> 0 | AP11: =ROUND(AVERAGEIF(DataFromEngine!$J$13:$AJV$13,AP$6,DataFromEngine!$J261:$AJV261),9)/Scale -> 0 | AQ11: =ROUND(AVERAGEIF(DataFromEngine!$J$13:$AJV$13,AQ$6,DataFromEngine!$J261:$AJV261),9)/Scale -> 0 | AR11: =ROUND(AVERAGEIF(DataFromEngine!$J$13:$AJV$13,AR$6,DataFromEngine!$J261:$AJV261),9)/Scale -> 0 | AS11: =ROUND(AVERAGEIF(DataFromEngine!$J$13:$AJV$13,AS$6,DataFromEngine!$J261:$AJV261),9)/Scale -> 0 | AT11: =ROUND(AVERAGEIF(DataFromEngine!$J$13:$AJV$13,AT$6,DataFromEngine!$J261:$AJV261),9)/Scale -> 0 | AU11: =ROUND(AVERAGEIF(DataFromEngine!$J$13:$AJV$13,AU$6,DataFromEngine!$J261:$AJV261),9)/Scale -> 0 | AV11: =ROUND(AVERAGEIF(DataFromEngine!$J$13:$AJV$13,AV$6,DataFromEngine!$J261:$AJV261),9)/Scale -> 0 | AW11: =ROUND(AVERAGEIF(DataFromEngine!$J$13:$AJV$13,AW$6,DataFromEngine!$J261:$AJV261),9)/Scale -> 0 | AX11: =ROUND(AVERAGEIF(DataFromEngine!$J$13:$AJV$13,AX$6,DataFromEngine!$J261:$AJV261),9)/Scale -> 0 | AY11: =ROUND(AVERAGEIF(DataFromEngine!$J$13:$AJV$13,AY$6,DataFromEngine!$J261:$AJV261),9)/Scale -> 0 | AZ11: =ROUND(AVERAGEIF(DataFromEngine!$J$13:$AJV$13,AZ$6,DataFromEngine!$J261:$AJV261),9)/Scale -> 0 | BA11: =ROUND(AVERAGEIF(DataFromEngine!$J$13:$AJV$13,BA$6,DataFromEngine!$J261:$AJV261),9)/Scale -> 0 | BB11: =ROUND(AVERAGEIF(DataFromEngine!$J$13:$AJV$13,BB$6,DataFromEngine!$J261:$AJV261),9)/Scale -> 0 | BC11: =ROUND(AVERAGEIF(DataFromEngine!$J$13:$AJV$13,BC$6,DataFromEngine!$J261:$AJV261),9)/Scale -> 0 | BD11: =ROUND(AVERAGEIF(DataFromEngine!$J$13:$AJV$13,BD$6,DataFromEngine!$J261:$AJV261),9)/Scale -> 0 | BE11: =ROUND(AVERAGEIF(DataFromEngine!$J$13:$AJV$13,BE$6,DataFromEngine!$J261:$AJV261),9)/Scale -> 0 | BF11: =ROUND(AVERAGEIF(DataFromEngine!$J$13:$AJV$13,BF$6,DataFromEngine!$J261:$AJV261),9)/Scale -> 0 | BG11: =ROUND(AVERAGEIF(DataFromEngine!$J$13:$AJV$13,BG$6,DataFromEngine!$J261:$AJV261),9)/Scale -> 0 | BH11: =ROUND(AVERAGEIF(DataFromEngine!$J$13:$AJV$13,BH$6,DataFromEngine!$J261:$AJV261),9)/Scale -> 0 | BI11: =ROUND(AVERAGEIF(DataFromEngine!$J$13:$AJV$13,BI$6,DataFromEngine!$J261:$AJV261),9)/Scale -> 0 | BJ11: =ROUND(AVERAGEIF(DataFromEngine!$J$13:$AJV$13,BJ$6,DataFromEngine!$J261:$AJV261),9)/Scale -> 0 | BK11: =ROUND(AVERAGEIF(DataFromEngine!$J$13:$AJV$13,BK$6,DataFromEngine!$J261:$AJV261),9)/Scale -> 0 | BL11: =ROUND(AVERAGEIF(DataFromEngine!$J$13:$AJV$13,BL$6,DataFromEngine!$J261:$AJV261),9)/Scale -> 0 | BM11: =ROUND(AVERAGEIF(DataFromEngine!$J$13:$AJV$13,BM$6,DataFromEngine!$J261:$AJV261),9)/Scale -> 0 | BN11: =ROUND(AVERAGEIF(DataFromEngine!$J$13:$AJV$13,BN$6,DataFromEngine!$J261:$AJV261),9)/Scale -> 0 | BO11: =ROUND(AVERAGEIF(DataFromEngine!$J$13:$AJV$13,BO$6,DataFromEngine!$J261:$AJV261),9)/Scale -> 0 | BP11: =ROUND(AVERAGEIF(DataFromEngine!$J$13:$AJV$13,BP$6,DataFromEngine!$J261:$AJV261),9)/Scale -> 0 | BQ11: =ROUND(AVERAGEIF(DataFromEngine!$J$13:$AJV$13,BQ$6,DataFromEngine!$J261:$AJV261),9)/Scale -> 0 | BR11: =ROUND(AVERAGEIF(DataFromEngine!$J$13:$AJV$13,BR$6,DataFromEngine!$J261:$AJV261),9)/Scale -> 0 | BS11: =ROUND(AVERAGEIF(DataFromEngine!$J$13:$AJV$13,BS$6,DataFromEngine!$J261:$AJV261),9)/Scale -> 0 | BT11: =ROUND(AVERAGEIF(DataFromEngine!$J$13:$AJV$13,BT$6,DataFromEngine!$J261:$AJV261),9)/Scale -> 0 | BU11: =ROUND(AVERAGEIF(DataFromEngine!$J$13:$AJV$13,BU$6,DataFromEngine!$J261:$AJV261),9)/Scale -> 0 | BV11: =ROUND(AVERAGEIF(DataFromEngine!$J$13:$AJV$13,BV$6,DataFromEngine!$J261:$AJV261),9)/Scale -> 0 | BW11: =ROUND(AVERAGEIF(DataFromEngine!$J$13:$AJV$13,BW$6,DataFromEngine!$J261:$AJV261),9)/Scale -> 0 | BX11: =ROUND(AVERAGEIF(DataFromEngine!$J$13:$AJV$13,BX$6,DataFromEngine!$J261:$AJV261),9)/Scale -> 0 | BY11: =ROUND(AVERAGEIF(DataFromEngine!$J$13:$AJV$13,BY$6,DataFromEngine!$J261:$AJV261),9)/Scale -> 0 | BZ11: =ROUND(AVERAGEIF(DataFromEngine!$J$13:$AJV$13,BZ$6,DataFromEngine!$J261:$AJV261),9)/Scale -> 0 | CA11: =ROUND(AVERAGEIF(DataFromEngine!$J$13:$AJV$13,CA$6,DataFromEngine!$J261:$AJV261),9)/Scale -> 0 | CB11: =ROUND(AVERAGEIF(DataFromEngine!$J$13:$AJV$13,CB$6,DataFromEngine!$J261:$AJV261),9)/Scale -> 0 | CC11: =ROUND(AVERAGEIF(DataFromEngine!$J$13:$AJV$13,CC$6,DataFromEngine!$J261:$AJV261),9)/Scale -> 0 | CD11: =ROUND(AVERAGEIF(DataFromEngine!$J$13:$AJV$13,CD$6,DataFromEngine!$J261:$AJV261),9)/Scale -> 0 | CE11: =ROUND(AVERAGEIF(DataFromEngine!$J$13:$AJV$13,CE$6,DataFromEngine!$J261:$AJV261),9)/Scale -> 0
B12: WC Requirement | C12: 19456040.21 | D12: =ROUND(SUMIF(DataFromEngine!$J$13:$AJV$13,D$6,DataFromEngine!$J262:$AJV262),9)/Scale -> 0 | E12: =ROUND(SUMIF(DataFromEngine!$J$13:$AJV$13,E$6,DataFromEngine!$J262:$AJV262),9)/Scale -> 0 | F12: =ROUND(SUMIF(DataFromEngine!$J$13:$AJV$13,F$6,DataFromEngine!$J262:$AJV262),9)/Scale -> 0 | G12: =ROUND(SUMIF(DataFromEngine!$J$13:$AJV$13,G$6,DataFromEngine!$J262:$AJV262),9)/Scale -> 1405827.044 | H12: =ROUND(SUMIF(DataFromEngine!$J$13:$AJV$13,H$6,DataFromEngine!$J262:$AJV262),9)/Scale -> 7643106.556 | I12: =ROUND(SUMIF(DataFromEngine!$J$13:$AJV$13,I$6,DataFromEngine!$J262:$AJV262),9)/Scale -> 7594061.976 | J12: =ROUND(SUMIF(DataFromEngine!$J$13:$AJV$13,J$6,DataFromEngine!$J262:$AJV262),9)/Scale -> 2813044.638 | K12: =ROUND(SUMIF(DataFromEngine!$J$13:$AJV$13,K$6,DataFromEngine!$J262:$AJV262),9)/Scale -> 0 | L12: =ROUND(SUMIF(DataFromEngine!$J$13:$AJV$13,L$6,DataFromEngine!$J262:$AJV262),9)/Scale -> 0 | M12: =ROUND(SUMIF(DataFromEngine!$J$13:$AJV$13,M$6,DataFromEngine!$J262:$AJV262),9)/Scale -> 0 | N12: =ROUND(SUMIF(DataFromEngine!$J$13:$AJV$13,N$6,DataFromEngine!$J262:$AJV262),9)/Scale -> 0 | O12: =ROUND(SUMIF(DataFromEngine!$J$13:$AJV$13,O$6,DataFromEngine!$J262:$AJV262),9)/Scale -> 0 | P12: =ROUND(SUMIF(DataFromEngine!$J$13:$AJV$13,P$6,DataFromEngine!$J262:$AJV262),9)/Scale -> 0 | Q12: =ROUND(SUMIF(DataFromEngine!$J$13:$AJV$13,Q$6,DataFromEngine!$J262:$AJV262),9)/Scale -> 0 | R12: =ROUND(SUMIF(DataFromEngine!$J$13:$AJV$13,R$6,DataFromEngine!$J262:$AJV262),9)/Scale -> 0 | S12: =ROUND(SUMIF(DataFromEngine!$J$13:$AJV$13,S$6,DataFromEngine!$J262:$AJV262),9)/Scale -> 0 | T12: =ROUND(SUMIF(DataFromEngine!$J$13:$AJV$13,T$6,DataFromEngine!$J262:$AJV262),9)/Scale -> 0 | U12: =ROUND(SUMIF(DataFromEngine!$J$13:$AJV$13,U$6,DataFromEngine!$J262:$AJV262),9)/Scale -> 0 | V12: =ROUND(SUMIF(DataFromEngine!$J$13:$AJV$13,V$6,DataFromEngine!$J262:$AJV262),9)/Scale -> 0 | W12: =ROUND(SUMIF(DataFromEngine!$J$13:$AJV$13,W$6,DataFromEngine!$J262:$AJV262),9)/Scale -> 0 | X12: =ROUND(SUMIF(DataFromEngine!$J$13:$AJV$13,X$6,DataFromEngine!$J262:$AJV262),9)/Scale -> 0 | Y12: =ROUND(SUMIF(DataFromEngine!$J$13:$AJV$13,Y$6,DataFromEngine!$J262:$AJV262),9)/Scale -> 0 | Z12: =ROUND(SUMIF(DataFromEngine!$J$13:$AJV$13,Z$6,DataFromEngine!$J262:$AJV262),9)/Scale -> 0 | AA12: =ROUND(SUMIF(DataFromEngine!$J$13:$AJV$13,AA$6,DataFromEngine!$J262:$AJV262),9)/Scale -> 0 | AB12: =ROUND(SUMIF(DataFromEngine!$J$13:$AJV$13,AB$6,DataFromEngine!$J262:$AJV262),9)/Scale -> 0 | AC12: =ROUND(SUMIF(DataFromEngine!$J$13:$AJV$13,AC$6,DataFromEngine!$J262:$AJV262),9)/Scale -> 0 | AD12: =ROUND(SUMIF(DataFromEngine!$J$13:$AJV$13,AD$6,DataFromEngine!$J262:$AJV262),9)/Scale -> 0 | AE12: =ROUND(SUMIF(DataFromEngine!$J$13:$AJV$13,AE$6,DataFromEngine!$J262:$AJV262),9)/Scale -> 0 | AF12: =ROUND(SUMIF(DataFromEngine!$J$13:$AJV$13,AF$6,DataFromEngine!$J262:$AJV262),9)/Scale -> 0 | AG12: =ROUND(SUMIF(DataFromEngine!$J$13:$AJV$13,AG$6,DataFromEngine!$J262:$AJV262),9)/Scale -> 0 | AH12: =ROUND(SUMIF(DataFromEngine!$J$13:$AJV$13,AH$6,DataFromEngine!$J262:$AJV262),9)/Scale -> 0 | AI12: =ROUND(SUMIF(DataFromEngine!$J$13:$AJV$13,AI$6,DataFromEngine!$J262:$AJV262),9)/Scale -> 0 | AJ12: =ROUND(SUMIF(DataFromEngine!$J$13:$AJV$13,AJ$6,DataFromEngine!$J262:$AJV262),9)/Scale -> 0 | AK12: =ROUND(SUMIF(DataFromEngine!$J$13:$AJV$13,AK$6,DataFromEngine!$J262:$AJV262),9)/Scale -> 0 | AL12: =ROUND(SUMIF(DataFromEngine!$J$13:$AJV$13,AL$6,DataFromEngine!$J262:$AJV262),9)/Scale -> 0 | AM12: =ROUND(SUMIF(DataFromEngine!$J$13:$AJV$13,AM$6,DataFromEngine!$J262:$AJV262),9)/Scale -> 0 | AN12: =ROUND(SUMIF(DataFromEngine!$J$13:$AJV$13,AN$6,DataFromEngine!$J262:$AJV262),9)/Scale -> 0 | AO12: =ROUND(SUMIF(DataFromEngine!$J$13:$AJV$13,AO$6,DataFromEngine!$J262:$AJV262),9)/Scale -> 0 | AP12: =ROUND(SUMIF(DataFromEngine!$J$13:$AJV$13,AP$6,DataFromEngine!$J262:$AJV262),9)/Scale -> 0 | AQ12: =ROUND(SUMIF(DataFromEngine!$J$13:$AJV$13,AQ$6,DataFromEngine!$J262:$AJV262),9)/Scale -> 0 | AR12: =ROUND(SUMIF(DataFromEngine!$J$13:$AJV$13,AR$6,DataFromEngine!$J262:$AJV262),9)/Scale -> 0 | AS12: =ROUND(SUMIF(DataFromEngine!$J$13:$AJV$13,AS$6,DataFromEngine!$J262:$AJV262),9)/Scale -> 0 | AT12: =ROUND(SUMIF(DataFromEngine!$J$13:$AJV$13,AT$6,DataFromEngine!$J262:$AJV262),9)/Scale -> 0 | AU12: =ROUND(SUMIF(DataFromEngine!$J$13:$AJV$13,AU$6,DataFromEngine!$J262:$AJV262),9)/Scale -> 0 | AV12: =ROUND(SUMIF(DataFromEngine!$J$13:$AJV$13,AV$6,DataFromEngine!$J262:$AJV262),9)/Scale -> 0 | AW12: =ROUND(SUMIF(DataFromEngine!$J$13:$AJV$13,AW$6,DataFromEngine!$J262:$AJV262),9)/Scale -> 0 | AX12: =ROUND(SUMIF(DataFromEngine!$J$13:$AJV$13,AX$6,DataFromEngine!$J262:$AJV262),9)/Scale -> 0 | AY12: =ROUND(SUMIF(DataFromEngine!$J$13:$AJV$13,AY$6,DataFromEngine!$J262:$AJV262),9)/Scale -> 0 | AZ12: =ROUND(SUMIF(DataFromEngine!$J$13:$AJV$13,AZ$6,DataFromEngine!$J262:$AJV262),9)/Scale -> 0 | BA12: =ROUND(SUMIF(DataFromEngine!$J$13:$AJV$13,BA$6,DataFromEngine!$J262:$AJV262),9)/Scale -> 0 | BB12: =ROUND(SUMIF(DataFromEngine!$J$13:$AJV$13,BB$6,DataFromEngine!$J262:$AJV262),9)/Scale -> 0 | BC12: =ROUND(SUMIF(DataFromEngine!$J$13:$AJV$13,BC$6,DataFromEngine!$J262:$AJV262),9)/Scale -> 0 | BD12: =ROUND(SUMIF(DataFromEngine!$J$13:$AJV$13,BD$6,DataFromEngine!$J262:$AJV262),9)/Scale -> 0 | BE12: =ROUND(SUMIF(DataFromEngine!$J$13:$AJV$13,BE$6,DataFromEngine!$J262:$AJV262),9)/Scale -> 0 | BF12: =ROUND(SUMIF(DataFromEngine!$J$13:$AJV$13,BF$6,DataFromEngine!$J262:$AJV262),9)/Scale -> 0 | BG12: =ROUND(SUMIF(DataFromEngine!$J$13:$AJV$13,BG$6,DataFromEngine!$J262:$AJV262),9)/Scale -> 0 | BH12: =ROUND(SUMIF(DataFromEngine!$J$13:$AJV$13,BH$6,DataFromEngine!$J262:$AJV262),9)/Scale -> 0 | BI12: =ROUND(SUMIF(DataFromEngine!$J$13:$AJV$13,BI$6,DataFromEngine!$J262:$AJV262),9)/Scale -> 0 | BJ12: =ROUND(SUMIF(DataFromEngine!$J$13:$AJV$13,BJ$6,DataFromEngine!$J262:$AJV262),9)/Scale -> 0 | BK12: =ROUND(SUMIF(DataFromEngine!$J$13:$AJV$13,BK$6,DataFromEngine!$J262:$AJV262),9)/Scale -> 0 | BL12: =ROUND(SUMIF(DataFromEngine!$J$13:$AJV$13,BL$6,DataFromEngine!$J262:$AJV262),9)/Scale -> 0 | BM12: =ROUND(SUMIF(DataFromEngine!$J$13:$AJV$13,BM$6,DataFromEngine!$J262:$AJV262),9)/Scale -> 0 | BN12: =ROUND(SUMIF(DataFromEngine!$J$13:$AJV$13,BN$6,DataFromEngine!$J262:$AJV262),9)/Scale -> 0 | BO12: =ROUND(SUMIF(DataFromEngine!$J$13:$AJV$13,BO$6,DataFromEngine!$J262:$AJV262),9)/Scale -> 0 | BP12: =ROUND(SUMIF(DataFromEngine!$J$13:$AJV$13,BP$6,DataFromEngine!$J262:$AJV262),9)/Scale -> 0 | BQ12: =ROUND(SUMIF(DataFromEngine!$J$13:$AJV$13,BQ$6,DataFromEngine!$J262:$AJV262),9)/Scale -> 0 | BR12: =ROUND(SUMIF(DataFromEngine!$J$13:$AJV$13,BR$6,DataFromEngine!$J262:$AJV262),9)/Scale -> 0 | BS12: =ROUND(SUMIF(DataFromEngine!$J$13:$AJV$13,BS$6,DataFromEngine!$J262:$AJV262),9)/Scale -> 0 | BT12: =ROUND(SUMIF(DataFromEngine!$J$13:$AJV$13,BT$6,DataFromEngine!$J262:$AJV262),9)/Scale -> 0 | BU12: =ROUND(SUMIF(DataFromEngine!$J$13:$AJV$13,BU$6,DataFromEngine!$J262:$AJV262),9)/Scale -> 0 | BV12: =ROUND(SUMIF(DataFromEngine!$J$13:$AJV$13,BV$6,DataFromEngine!$J262:$AJV262),9)/Scale -> 0 | BW12: =ROUND(SUMIF(DataFromEngine!$J$13:$AJV$13,BW$6,DataFromEngine!$J262:$AJV262),9)/Scale -> 0 | BX12: =ROUND(SUMIF(DataFromEngine!$J$13:$AJV$13,BX$6,DataFromEngine!$J262:$AJV262),9)/Scale -> 0 | BY12: =ROUND(SUMIF(DataFromEngine!$J$13:$AJV$13,BY$6,DataFromEngine!$J262:$AJV262),9)/Scale -> 0 | BZ12: =ROUND(SUMIF(DataFromEngine!$J$13:$AJV$13,BZ$6,DataFromEngine!$J262:$AJV262),9)/Scale -> 0 | CA12: =ROUND(SUMIF(DataFromEngine!$J$13:$AJV$13,CA$6,DataFromEngine!$J262:$AJV262),9)/Scale -> 0 | CB12: =ROUND(SUMIF(DataFromEngine!$J$13:$AJV$13,CB$6,DataFromEngine!$J262:$AJV262),9)/Scale -> 0 | CC12: =ROUND(SUMIF(DataFromEngine!$J$13:$AJV$13,CC$6,DataFromEngine!$J262:$AJV262),9)/Scale -> 0 | CD12: =ROUND(SUMIF(DataFromEngine!$J$13:$AJV$13,CD$6,DataFromEngine!$J262:$AJV262),9)/Scale -> 0 | CE12: =ROUND(SUMIF(DataFromEngine!$J$13:$AJV$13,CE$6,DataFromEngine!$J262:$AJV262),9)/Scale -> 0
B13: Average WC Reqiurement | C13: 1602339.602 | D13: =ROUND(SUMIF(DataFromEngine!$J$13:$AJV$13,D$6,DataFromEngine!$J263:$AJV263),9)/Scale -> 0 | E13: =ROUND(AVERAGEIF(DataFromEngine!$J$13:$AJV$13,E$6,DataFromEngine!$J263:$AJV263),9)/Scale -> 0 | F13: =ROUND(AVERAGEIF(DataFromEngine!$J$13:$AJV$13,F$6,DataFromEngine!$J263:$AJV263),9)/Scale -> 0 | G13: =ROUND(AVERAGEIF(DataFromEngine!$J$13:$AJV$13,G$6,DataFromEngine!$J263:$AJV263),9)/Scale -> 102615.2336 | H13: =ROUND(AVERAGEIF(DataFromEngine!$J$13:$AJV$13,H$6,DataFromEngine!$J263:$AJV263),9)/Scale -> 601220.4994 | I13: =ROUND(AVERAGEIF(DataFromEngine!$J$13:$AJV$13,I$6,DataFromEngine!$J263:$AJV263),9)/Scale -> 663866.6602 | J13: =ROUND(AVERAGEIF(DataFromEngine!$J$13:$AJV$13,J$6,DataFromEngine!$J263:$AJV263),9)/Scale -> 234637.2089 | K13: =ROUND(AVERAGEIF(DataFromEngine!$J$13:$AJV$13,K$6,DataFromEngine!$J263:$AJV263),9)/Scale -> 0 | L13: =ROUND(AVERAGEIF(DataFromEngine!$J$13:$AJV$13,L$6,DataFromEngine!$J263:$AJV263),9)/Scale -> 0 | M13: =ROUND(AVERAGEIF(DataFromEngine!$J$13:$AJV$13,M$6,DataFromEngine!$J263:$AJV263),9)/Scale -> 0 | N13: =ROUND(AVERAGEIF(DataFromEngine!$J$13:$AJV$13,N$6,DataFromEngine!$J263:$AJV263),9)/Scale -> 0 | O13: =ROUND(AVERAGEIF(DataFromEngine!$J$13:$AJV$13,O$6,DataFromEngine!$J263:$AJV263),9)/Scale -> 0 | P13: =ROUND(AVERAGEIF(DataFromEngine!$J$13:$AJV$13,P$6,DataFromEngine!$J263:$AJV263),9)/Scale -> 0 | Q13: =ROUND(AVERAGEIF(DataFromEngine!$J$13:$AJV$13,Q$6,DataFromEngine!$J263:$AJV263),9)/Scale -> 0 | R13: =ROUND(AVERAGEIF(DataFromEngine!$J$13:$AJV$13,R$6,DataFromEngine!$J263:$AJV263),9)/Scale -> 0 | S13: =ROUND(AVERAGEIF(DataFromEngine!$J$13:$AJV$13,S$6,DataFromEngine!$J263:$AJV263),9)/Scale -> 0 | T13: =ROUND(AVERAGEIF(DataFromEngine!$J$13:$AJV$13,T$6,DataFromEngine!$J263:$AJV263),9)/Scale -> 0 | U13: =ROUND(AVERAGEIF(DataFromEngine!$J$13:$AJV$13,U$6,DataFromEngine!$J263:$AJV263),9)/Scale -> 0 | V13: =ROUND(AVERAGEIF(DataFromEngine!$J$13:$AJV$13,V$6,DataFromEngine!$J263:$AJV263),9)/Scale -> 0 | W13: =ROUND(AVERAGEIF(DataFromEngine!$J$13:$AJV$13,W$6,DataFromEngine!$J263:$AJV263),9)/Scale -> 0 | X13: =ROUND(AVERAGEIF(DataFromEngine!$J$13:$AJV$13,X$6,DataFromEngine!$J263:$AJV263),9)/Scale -> 0 | Y13: =ROUND(AVERAGEIF(DataFromEngine!$J$13:$AJV$13,Y$6,DataFromEngine!$J263:$AJV263),9)/Scale -> 0 | Z13: =ROUND(AVERAGEIF(DataFromEngine!$J$13:$AJV$13,Z$6,DataFromEngine!$J263:$AJV263),9)/Scale -> 0 | AA13: =ROUND(AVERAGEIF(DataFromEngine!$J$13:$AJV$13,AA$6,DataFromEngine!$J263:$AJV263),9)/Scale -> 0 | AB13: =ROUND(AVERAGEIF(DataFromEngine!$J$13:$AJV$13,AB$6,DataFromEngine!$J263:$AJV263),9)/Scale -> 0 | AC13: =ROUND(AVERAGEIF(DataFromEngine!$J$13:$AJV$13,AC$6,DataFromEngine!$J263:$AJV263),9)/Scale -> 0 | AD13: =ROUND(AVERAGEIF(DataFromEngine!$J$13:$AJV$13,AD$6,DataFromEngine!$J263:$AJV263),9)/Scale -> 0 | AE13: =ROUND(AVERAGEIF(DataFromEngine!$J$13:$AJV$13,AE$6,DataFromEngine!$J263:$AJV263),9)/Scale -> 0 | AF13: =ROUND(AVERAGEIF(DataFromEngine!$J$13:$AJV$13,AF$6,DataFromEngine!$J263:$AJV263),9)/Scale -> 0 | AG13: =ROUND(AVERAGEIF(DataFromEngine!$J$13:$AJV$13,AG$6,DataFromEngine!$J263:$AJV263),9)/Scale -> 0 | AH13: =ROUND(AVERAGEIF(DataFromEngine!$J$13:$AJV$13,AH$6,DataFromEngine!$J263:$AJV263),9)/Scale -> 0 | AI13: =ROUND(AVERAGEIF(DataFromEngine!$J$13:$AJV$13,AI$6,DataFromEngine!$J263:$AJV263),9)/Scale -> 0 | AJ13: =ROUND(AVERAGEIF(DataFromEngine!$J$13:$AJV$13,AJ$6,DataFromEngine!$J263:$AJV263),9)/Scale -> 0 | AK13: =ROUND(AVERAGEIF(DataFromEngine!$J$13:$AJV$13,AK$6,DataFromEngine!$J263:$AJV263),9)/Scale -> 0 | AL13: =ROUND(AVERAGEIF(DataFromEngine!$J$13:$AJV$13,AL$6,DataFromEngine!$J263:$AJV263),9)/Scale -> 0 | AM13: =ROUND(AVERAGEIF(DataFromEngine!$J$13:$AJV$13,AM$6,DataFromEngine!$J263:$AJV263),9)/Scale -> 0 | AN13: =ROUND(AVERAGEIF(DataFromEngine!$J$13:$AJV$13,AN$6,DataFromEngine!$J263:$AJV263),9)/Scale -> 0 | AO13: =ROUND(AVERAGEIF(DataFromEngine!$J$13:$AJV$13,AO$6,DataFromEngine!$J263:$AJV263),9)/Scale -> 0 | AP13: =ROUND(AVERAGEIF(DataFromEngine!$J$13:$AJV$13,AP$6,DataFromEngine!$J263:$AJV263),9)/Scale -> 0 | AQ13: =ROUND(AVERAGEIF(DataFromEngine!$J$13:$AJV$13,AQ$6,DataFromEngine!$J263:$AJV263),9)/Scale -> 0 | AR13: =ROUND(AVERAGEIF(DataFromEngine!$J$13:$AJV$13,AR$6,DataFromEngine!$J263:$AJV263),9)/Scale -> 0 | AS13: =ROUND(AVERAGEIF(DataFromEngine!$J$13:$AJV$13,AS$6,DataFromEngine!$J263:$AJV263),9)/Scale -> 0 | AT13: =ROUND(AVERAGEIF(DataFromEngine!$J$13:$AJV$13,AT$6,DataFromEngine!$J263:$AJV263),9)/Scale -> 0 | AU13: =ROUND(AVERAGEIF(DataFromEngine!$J$13:$AJV$13,AU$6,DataFromEngine!$J263:$AJV263),9)/Scale -> 0 | AV13: =ROUND(AVERAGEIF(DataFromEngine!$J$13:$AJV$13,AV$6,DataFromEngine!$J263:$AJV263),9)/Scale -> 0 | AW13: =ROUND(AVERAGEIF(DataFromEngine!$J$13:$AJV$13,AW$6,DataFromEngine!$J263:$AJV263),9)/Scale -> 0 | AX13: =ROUND(AVERAGEIF(DataFromEngine!$J$13:$AJV$13,AX$6,DataFromEngine!$J263:$AJV263),9)/Scale -> 0 | AY13: =ROUND(AVERAGEIF(DataFromEngine!$J$13:$AJV$13,AY$6,DataFromEngine!$J263:$AJV263),9)/Scale -> 0 | AZ13: =ROUND(AVERAGEIF(DataFromEngine!$J$13:$AJV$13,AZ$6,DataFromEngine!$J263:$AJV263),9)/Scale -> 0 | BA13: =ROUND(AVERAGEIF(DataFromEngine!$J$13:$AJV$13,BA$6,DataFromEngine!$J263:$AJV263),9)/Scale -> 0 | BB13: =ROUND(AVERAGEIF(DataFromEngine!$J$13:$AJV$13,BB$6,DataFromEngine!$J263:$AJV263),9)/Scale -> 0 | BC13: =ROUND(AVERAGEIF(DataFromEngine!$J$13:$AJV$13,BC$6,DataFromEngine!$J263:$AJV263),9)/Scale -> 0 | BD13: =ROUND(AVERAGEIF(DataFromEngine!$J$13:$AJV$13,BD$6,DataFromEngine!$J263:$AJV263),9)/Scale -> 0 | BE13: =ROUND(AVERAGEIF(DataFromEngine!$J$13:$AJV$13,BE$6,DataFromEngine!$J263:$AJV263),9)/Scale -> 0 | BF13: =ROUND(AVERAGEIF(DataFromEngine!$J$13:$AJV$13,BF$6,DataFromEngine!$J263:$AJV263),9)/Scale -> 0 | BG13: =ROUND(AVERAGEIF(DataFromEngine!$J$13:$AJV$13,BG$6,DataFromEngine!$J263:$AJV263),9)/Scale -> 0 | BH13: =ROUND(AVERAGEIF(DataFromEngine!$J$13:$AJV$13,BH$6,DataFromEngine!$J263:$AJV263),9)/Scale -> 0 | BI13: =ROUND(AVERAGEIF(DataFromEngine!$J$13:$AJV$13,BI$6,DataFromEngine!$J263:$AJV263),9)/Scale -> 0 | BJ13: =ROUND(AVERAGEIF(DataFromEngine!$J$13:$AJV$13,BJ$6,DataFromEngine!$J263:$AJV263),9)/Scale -> 0 | BK13: =ROUND(AVERAGEIF(DataFromEngine!$J$13:$AJV$13,BK$6,DataFromEngine!$J263:$AJV263),9)/Scale -> 0 | BL13: =ROUND(AVERAGEIF(DataFromEngine!$J$13:$AJV$13,BL$6,DataFromEngine!$J263:$AJV263),9)/Scale -> 0 | BM13: =ROUND(AVERAGEIF(DataFromEngine!$J$13:$AJV$13,BM$6,DataFromEngine!$J263:$AJV263),9)/Scale -> 0 | BN13: =ROUND(AVERAGEIF(DataFromEngine!$J$13:$AJV$13,BN$6,DataFromEngine!$J263:$AJV263),9)/Scale -> 0 | BO13: =ROUND(AVERAGEIF(DataFromEngine!$J$13:$AJV$13,BO$6,DataFromEngine!$J263:$AJV263),9)/Scale -> 0 | BP13: =ROUND(AVERAGEIF(DataFromEngine!$J$13:$AJV$13,BP$6,DataFromEngine!$J263:$AJV263),9)/Scale -> 0 | BQ13: =ROUND(AVERAGEIF(DataFromEngine!$J$13:$AJV$13,BQ$6,DataFromEngine!$J263:$AJV263),9)/Scale -> 0 | BR13: =ROUND(AVERAGEIF(DataFromEngine!$J$13:$AJV$13,BR$6,DataFromEngine!$J263:$AJV263),9)/Scale -> 0 | BS13: =ROUND(AVERAGEIF(DataFromEngine!$J$13:$AJV$13,BS$6,DataFromEngine!$J263:$AJV263),9)/Scale -> 0 | BT13: =ROUND(AVERAGEIF(DataFromEngine!$J$13:$AJV$13,BT$6,DataFromEngine!$J263:$AJV263),9)/Scale -> 0 | BU13: =ROUND(AVERAGEIF(DataFromEngine!$J$13:$AJV$13,BU$6,DataFromEngine!$J263:$AJV263),9)/Scale -> 0 | BV13: =ROUND(AVERAGEIF(DataFromEngine!$J$13:$AJV$13,BV$6,DataFromEngine!$J263:$AJV263),9)/Scale -> 0 | BW13: =ROUND(AVERAGEIF(DataFromEngine!$J$13:$AJV$13,BW$6,DataFromEngine!$J263:$AJV263),9)/Scale -> 0 | BX13: =ROUND(AVERAGEIF(DataFromEngine!$J$13:$AJV$13,BX$6,DataFromEngine!$J263:$AJV263),9)/Scale -> 0 | BY13: =ROUND(AVERAGEIF(DataFromEngine!$J$13:$AJV$13,BY$6,DataFromEngine!$J263:$AJV263),9)/Scale -> 0 | BZ13: =ROUND(AVERAGEIF(DataFromEngine!$J$13:$AJV$13,BZ$6,DataFromEngine!$J263:$AJV263),9)/Scale -> 0 | CA13: =ROUND(AVERAGEIF(DataFromEngine!$J$13:$AJV$13,CA$6,DataFromEngine!$J263:$AJV263),9)/Scale -> 0 | CB13: =ROUND(AVERAGEIF(DataFromEngine!$J$13:$AJV$13,CB$6,DataFromEngine!$J263:$AJV263),9)/Scale -> 0 | CC13: =ROUND(AVERAGEIF(DataFromEngine!$J$13:$AJV$13,CC$6,DataFromEngine!$J263:$AJV263),9)/Scale -> 0 | CD13: =ROUND(AVERAGEIF(DataFromEngine!$J$13:$AJV$13,CD$6,DataFromEngine!$J263:$AJV263),9)/Scale -> 0 | CE13: =ROUND(AVERAGEIF(DataFromEngine!$J$13:$AJV$13,CE$6,DataFromEngine!$J263:$AJV263),9)/Scale -> 0
B14: Return on Debt for WC | C14: 33280.19295 | D14: =ROUND(SUMIF(DataFromEngine!$J$13:$AJV$13,D$6,DataFromEngine!$J264:$AJV264),9)/Scale -> 0 | E14: =ROUND(SUMIF(DataFromEngine!$J$13:$AJV$13,E$6,DataFromEngine!$J264:$AJV264),9)/Scale -> 0 | F14: =ROUND(SUMIF(DataFromEngine!$J$13:$AJV$13,F$6,DataFromEngine!$J264:$AJV264),9)/Scale -> 0 | G14: =ROUND(SUMIF(DataFromEngine!$J$13:$AJV$13,G$6,DataFromEngine!$J264:$AJV264),9)/Scale -> 2131.292749 | H14: =ROUND(SUMIF(DataFromEngine!$J$13:$AJV$13,H$6,DataFromEngine!$J264:$AJV264),9)/Scale -> 12487.19947 | I14: =ROUND(SUMIF(DataFromEngine!$J$13:$AJV$13,I$6,DataFromEngine!$J264:$AJV264),9)/Scale -> 13788.34457 | J14: =ROUND(SUMIF(DataFromEngine!$J$13:$AJV$13,J$6,DataFromEngine!$J264:$AJV264),9)/Scale -> 4873.356169 | K14: =ROUND(SUMIF(DataFromEngine!$J$13:$AJV$13,K$6,DataFromEngine!$J264:$AJV264),9)/Scale -> 0 | L14: =ROUND(SUMIF(DataFromEngine!$J$13:$AJV$13,L$6,DataFromEngine!$J264:$AJV264),9)/Scale -> 0 | M14: =ROUND(SUMIF(DataFromEngine!$J$13:$AJV$13,M$6,DataFromEngine!$J264:$AJV264),9)/Scale -> 0 | N14: =ROUND(SUMIF(DataFromEngine!$J$13:$AJV$13,N$6,DataFromEngine!$J264:$AJV264),9)/Scale -> 0 | O14: =ROUND(SUMIF(DataFromEngine!$J$13:$AJV$13,O$6,DataFromEngine!$J264:$AJV264),9)/Scale -> 0 | P14: =ROUND(SUMIF(DataFromEngine!$J$13:$AJV$13,P$6,DataFromEngine!$J264:$AJV264),9)/Scale -> 0 | Q14: =ROUND(SUMIF(DataFromEngine!$J$13:$AJV$13,Q$6,DataFromEngine!$J264:$AJV264),9)/Scale -> 0 | R14: =ROUND(SUMIF(DataFromEngine!$J$13:$AJV$13,R$6,DataFromEngine!$J264:$AJV264),9)/Scale -> 0 | S14: =ROUND(SUMIF(DataFromEngine!$J$13:$AJV$13,S$6,DataFromEngine!$J264:$AJV264),9)/Scale -> 0 | T14: =ROUND(SUMIF(DataFromEngine!$J$13:$AJV$13,T$6,DataFromEngine!$J264:$AJV264),9)/Scale -> 0 | U14: =ROUND(SUMIF(DataFromEngine!$J$13:$AJV$13,U$6,DataFromEngine!$J264:$AJV264),9)/Scale -> 0 | V14: =ROUND(SUMIF(DataFromEngine!$J$13:$AJV$13,V$6,DataFromEngine!$J264:$AJV264),9)/Scale -> 0 | W14: =ROUND(SUMIF(DataFromEngine!$J$13:$AJV$13,W$6,DataFromEngine!$J264:$AJV264),9)/Scale -> 0 | X14: =ROUND(SUMIF(DataFromEngine!$J$13:$AJV$13,X$6,DataFromEngine!$J264:$AJV264),9)/Scale -> 0 | Y14: =ROUND(SUMIF(DataFromEngine!$J$13:$AJV$13,Y$6,DataFromEngine!$J264:$AJV264),9)/Scale -> 0 | Z14: =ROUND(SUMIF(DataFromEngine!$J$13:$AJV$13,Z$6,DataFromEngine!$J264:$AJV264),9)/Scale -> 0 | AA14: =ROUND(SUMIF(DataFromEngine!$J$13:$AJV$13,AA$6,DataFromEngine!$J264:$AJV264),9)/Scale -> 0 | AB14: =ROUND(SUMIF(DataFromEngine!$J$13:$AJV$13,AB$6,DataFromEngine!$J264:$AJV264),9)/Scale -> 0 | AC14: =ROUND(SUMIF(DataFromEngine!$J$13:$AJV$13,AC$6,DataFromEngine!$J264:$AJV264),9)/Scale -> 0 | AD14: =ROUND(SUMIF(DataFromEngine!$J$13:$AJV$13,AD$6,DataFromEngine!$J264:$AJV264),9)/Scale -> 0 | AE14: =ROUND(SUMIF(DataFromEngine!$J$13:$AJV$13,AE$6,DataFromEngine!$J264:$AJV264),9)/Scale -> 0 | AF14: =ROUND(SUMIF(DataFromEngine!$J$13:$AJV$13,AF$6,DataFromEngine!$J264:$AJV264),9)/Scale -> 0 | AG14: =ROUND(SUMIF(DataFromEngine!$J$13:$AJV$13,AG$6,DataFromEngine!$J264:$AJV264),9)/Scale -> 0 | AH14: =ROUND(SUMIF(DataFromEngine!$J$13:$AJV$13,AH$6,DataFromEngine!$J264:$AJV264),9)/Scale -> 0 | AI14: =ROUND(SUMIF(DataFromEngine!$J$13:$AJV$13,AI$6,DataFromEngine!$J264:$AJV264),9)/Scale -> 0 | AJ14: =ROUND(SUMIF(DataFromEngine!$J$13:$AJV$13,AJ$6,DataFromEngine!$J264:$AJV264),9)/Scale -> 0 | AK14: =ROUND(SUMIF(DataFromEngine!$J$13:$AJV$13,AK$6,DataFromEngine!$J264:$AJV264),9)/Scale -> 0 | AL14: =ROUND(SUMIF(DataFromEngine!$J$13:$AJV$13,AL$6,DataFromEngine!$J264:$AJV264),9)/Scale -> 0 | AM14: =ROUND(SUMIF(DataFromEngine!$J$13:$AJV$13,AM$6,DataFromEngine!$J264:$AJV264),9)/Scale -> 0 | AN14: =ROUND(SUMIF(DataFromEngine!$J$13:$AJV$13,AN$6,DataFromEngine!$J264:$AJV264),9)/Scale -> 0 | AO14: =ROUND(SUMIF(DataFromEngine!$J$13:$AJV$13,AO$6,DataFromEngine!$J264:$AJV264),9)/Scale -> 0 | AP14: =ROUND(SUMIF(DataFromEngine!$J$13:$AJV$13,AP$6,DataFromEngine!$J264:$AJV264),9)/Scale -> 0 | AQ14: =ROUND(SUMIF(DataFromEngine!$J$13:$AJV$13,AQ$6,DataFromEngine!$J264:$AJV264),9)/Scale -> 0 | AR14: =ROUND(SUMIF(DataFromEngine!$J$13:$AJV$13,AR$6,DataFromEngine!$J264:$AJV264),9)/Scale -> 0 | AS14: =ROUND(SUMIF(DataFromEngine!$J$13:$AJV$13,AS$6,DataFromEngine!$J264:$AJV264),9)/Scale -> 0 | AT14: =ROUND(SUMIF(DataFromEngine!$J$13:$AJV$13,AT$6,DataFromEngine!$J264:$AJV264),9)/Scale -> 0 | AU14: =ROUND(SUMIF(DataFromEngine!$J$13:$AJV$13,AU$6,DataFromEngine!$J264:$AJV264),9)/Scale -> 0 | AV14: =ROUND(SUMIF(DataFromEngine!$J$13:$AJV$13,AV$6,DataFromEngine!$J264:$AJV264),9)/Scale -> 0 | AW14: =ROUND(SUMIF(DataFromEngine!$J$13:$AJV$13,AW$6,DataFromEngine!$J264:$AJV264),9)/Scale -> 0 | AX14: =ROUND(SUMIF(DataFromEngine!$J$13:$AJV$13,AX$6,DataFromEngine!$J264:$AJV264),9)/Scale -> 0 | AY14: =ROUND(SUMIF(DataFromEngine!$J$13:$AJV$13,AY$6,DataFromEngine!$J264:$AJV264),9)/Scale -> 0 | AZ14: =ROUND(SUMIF(DataFromEngine!$J$13:$AJV$13,AZ$6,DataFromEngine!$J264:$AJV264),9)/Scale -> 0 | BA14: =ROUND(SUMIF(DataFromEngine!$J$13:$AJV$13,BA$6,DataFromEngine!$J264:$AJV264),9)/Scale -> 0 | BB14: =ROUND(SUMIF(DataFromEngine!$J$13:$AJV$13,BB$6,DataFromEngine!$J264:$AJV264),9)/Scale -> 0 | BC14: =ROUND(SUMIF(DataFromEngine!$J$13:$AJV$13,BC$6,DataFromEngine!$J264:$AJV264),9)/Scale -> 0 | BD14: =ROUND(SUMIF(DataFromEngine!$J$13:$AJV$13,BD$6,DataFromEngine!$J264:$AJV264),9)/Scale -> 0 | BE14: =ROUND(SUMIF(DataFromEngine!$J$13:$AJV$13,BE$6,DataFromEngine!$J264:$AJV264),9)/Scale -> 0 | BF14: =ROUND(SUMIF(DataFromEngine!$J$13:$AJV$13,BF$6,DataFromEngine!$J264:$AJV264),9)/Scale -> 0 | BG14: =ROUND(SUMIF(DataFromEngine!$J$13:$AJV$13,BG$6,DataFromEngine!$J264:$AJV264),9)/Scale -> 0 | BH14: =ROUND(SUMIF(DataFromEngine!$J$13:$AJV$13,BH$6,DataFromEngine!$J264:$AJV264),9)/Scale -> 0 | BI14: =ROUND(SUMIF(DataFromEngine!$J$13:$AJV$13,BI$6,DataFromEngine!$J264:$AJV264),9)/Scale -> 0 | BJ14: =ROUND(SUMIF(DataFromEngine!$J$13:$AJV$13,BJ$6,DataFromEngine!$J264:$AJV264),9)/Scale -> 0 | BK14: =ROUND(SUMIF(DataFromEngine!$J$13:$AJV$13,BK$6,DataFromEngine!$J264:$AJV264),9)/Scale -> 0 | BL14: =ROUND(SUMIF(DataFromEngine!$J$13:$AJV$13,BL$6,DataFromEngine!$J264:$AJV264),9)/Scale -> 0 | BM14: =ROUND(SUMIF(DataFromEngine!$J$13:$AJV$13,BM$6,DataFromEngine!$J264:$AJV264),9)/Scale -> 0 | BN14: =ROUND(SUMIF(DataFromEngine!$J$13:$AJV$13,BN$6,DataFromEngine!$J264:$AJV264),9)/Scale -> 0 | BO14: =ROUND(SUMIF(DataFromEngine!$J$13:$AJV$13,BO$6,DataFromEngine!$J264:$AJV264),9)/Scale -> 0 | BP14: =ROUND(SUMIF(DataFromEngine!$J$13:$AJV$13,BP$6,DataFromEngine!$J264:$AJV264),9)/Scale -> 0 | BQ14: =ROUND(SUMIF(DataFromEngine!$J$13:$AJV$13,BQ$6,DataFromEngine!$J264:$AJV264),9)/Scale -> 0 | BR14: =ROUND(SUMIF(DataFromEngine!$J$13:$AJV$13,BR$6,DataFromEngine!$J264:$AJV264),9)/Scale -> 0 | BS14: =ROUND(SUMIF(DataFromEngine!$J$13:$AJV$13,BS$6,DataFromEngine!$J264:$AJV264),9)/Scale -> 0 | BT14: =ROUND(SUMIF(DataFromEngine!$J$13:$AJV$13,BT$6,DataFromEngine!$J264:$AJV264),9)/Scale -> 0 | BU14: =ROUND(SUMIF(DataFromEngine!$J$13:$AJV$13,BU$6,DataFromEngine!$J264:$AJV264),9)/Scale -> 0 | BV14: =ROUND(SUMIF(DataFromEngine!$J$13:$AJV$13,BV$6,DataFromEngine!$J264:$AJV264),9)/Scale -> 0 | BW14: =ROUND(SUMIF(DataFromEngine!$J$13:$AJV$13,BW$6,DataFromEngine!$J264:$AJV264),9)/Scale -> 0 | BX14: =ROUND(SUMIF(DataFromEngine!$J$13:$AJV$13,BX$6,DataFromEngine!$J264:$AJV264),9)/Scale -> 0 | BY14: =ROUND(SUMIF(DataFromEngine!$J$13:$AJV$13,BY$6,DataFromEngine!$J264:$AJV264),9)/Scale -> 0 | BZ14: =ROUND(SUMIF(DataFromEngine!$J$13:$AJV$13,BZ$6,DataFromEngine!$J264:$AJV264),9)/Scale -> 0 | CA14: =ROUND(SUMIF(DataFromEngine!$J$13:$AJV$13,CA$6,DataFromEngine!$J264:$AJV264),9)/Scale -> 0 | CB14: =ROUND(SUMIF(DataFromEngine!$J$13:$AJV$13,CB$6,DataFromEngine!$J264:$AJV264),9)/Scale -> 0 | CC14: =ROUND(SUMIF(DataFromEngine!$J$13:$AJV$13,CC$6,DataFromEngine!$J264:$AJV264),9)/Scale -> 0 | CD14: =ROUND(SUMIF(DataFromEngine!$J$13:$AJV$13,CD$6,DataFromEngine!$J264:$AJV264),9)/Scale -> 0 | CE14: =ROUND(SUMIF(DataFromEngine!$J$13:$AJV$13,CE$6,DataFromEngine!$J264:$AJV264),9)/Scale -> 0
B15: Return on Preferred for WC | C15: 2740.801889 | D15: =ROUND(SUMIF(DataFromEngine!$J$13:$AJV$13,D$6,DataFromEngine!$J265:$AJV265),9)/Scale -> 0 | E15: =ROUND(SUMIF(DataFromEngine!$J$13:$AJV$13,E$6,DataFromEngine!$J265:$AJV265),9)/Scale -> 0 | F15: =ROUND(SUMIF(DataFromEngine!$J$13:$AJV$13,F$6,DataFromEngine!$J265:$AJV265),9)/Scale -> 0 | G15: =ROUND(SUMIF(DataFromEngine!$J$13:$AJV$13,G$6,DataFromEngine!$J265:$AJV265),9)/Scale -> 175.5233572 | H15: =ROUND(SUMIF(DataFromEngine!$J$13:$AJV$13,H$6,DataFromEngine!$J265:$AJV265),9)/Scale -> 1028.387664 | I15: =ROUND(SUMIF(DataFromEngine!$J$13:$AJV$13,I$6,DataFromEngine!$J265:$AJV265),9)/Scale -> 1135.543922 | J15: =ROUND(SUMIF(DataFromEngine!$J$13:$AJV$13,J$6,DataFromEngine!$J265:$AJV265),9)/Scale -> 401.3469458 | K15: =ROUND(SUMIF(DataFromEngine!$J$13:$AJV$13,K$6,DataFromEngine!$J265:$AJV265),9)/Scale -> 0 | L15: =ROUND(SUMIF(DataFromEngine!$J$13:$AJV$13,L$6,DataFromEngine!$J265:$AJV265),9)/Scale -> 0 | M15: =ROUND(SUMIF(DataFromEngine!$J$13:$AJV$13,M$6,DataFromEngine!$J265:$AJV265),9)/Scale -> 0 | N15: =ROUND(SUMIF(DataFromEngine!$J$13:$AJV$13,N$6,DataFromEngine!$J265:$AJV265),9)/Scale -> 0 | O15: =ROUND(SUMIF(DataFromEngine!$J$13:$AJV$13,O$6,DataFromEngine!$J265:$AJV265),9)/Scale -> 0 | P15: =ROUND(SUMIF(DataFromEngine!$J$13:$AJV$13,P$6,DataFromEngine!$J265:$AJV265),9)/Scale -> 0 | Q15: =ROUND(SUMIF(DataFromEngine!$J$13:$AJV$13,Q$6,DataFromEngine!$J265:$AJV265),9)/Scale -> 0 | R15: =ROUND(SUMIF(DataFromEngine!$J$13:$AJV$13,R$6,DataFromEngine!$J265:$AJV265),9)/Scale -> 0 | S15: =ROUND(SUMIF(DataFromEngine!$J$13:$AJV$13,S$6,DataFromEngine!$J265:$AJV265),9)/Scale -> 0 | T15: =ROUND(SUMIF(DataFromEngine!$J$13:$AJV$13,T$6,DataFromEngine!$J265:$AJV265),9)/Scale -> 0 | U15: =ROUND(SUMIF(DataFromEngine!$J$13:$AJV$13,U$6,DataFromEngine!$J265:$AJV265),9)/Scale -> 0 | V15: =ROUND(SUMIF(DataFromEngine!$J$13:$AJV$13,V$6,DataFromEngine!$J265:$AJV265),9)/Scale -> 0 | W15: =ROUND(SUMIF(DataFromEngine!$J$13:$AJV$13,W$6,DataFromEngine!$J265:$AJV265),9)/Scale -> 0 | X15: =ROUND(SUMIF(DataFromEngine!$J$13:$AJV$13,X$6,DataFromEngine!$J265:$AJV265),9)/Scale -> 0 | Y15: =ROUND(SUMIF(DataFromEngine!$J$13:$AJV$13,Y$6,DataFromEngine!$J265:$AJV265),9)/Scale -> 0 | Z15: =ROUND(SUMIF(DataFromEngine!$J$13:$AJV$13,Z$6,DataFromEngine!$J265:$AJV265),9)/Scale -> 0 | AA15: =ROUND(SUMIF(DataFromEngine!$J$13:$AJV$13,AA$6,DataFromEngine!$J265:$AJV265),9)/Scale -> 0 | AB15: =ROUND(SUMIF(DataFromEngine!$J$13:$AJV$13,AB$6,DataFromEngine!$J265:$AJV265),9)/Scale -> 0 | AC15: =ROUND(SUMIF(DataFromEngine!$J$13:$AJV$13,AC$6,DataFromEngine!$J265:$AJV265),9)/Scale -> 0 | AD15: =ROUND(SUMIF(DataFromEngine!$J$13:$AJV$13,AD$6,DataFromEngine!$J265:$AJV265),9)/Scale -> 0 | AE15: =ROUND(SUMIF(DataFromEngine!$J$13:$AJV$13,AE$6,DataFromEngine!$J265:$AJV265),9)/Scale -> 0 | AF15: =ROUND(SUMIF(DataFromEngine!$J$13:$AJV$13,AF$6,DataFromEngine!$J265:$AJV265),9)/Scale -> 0 | AG15: =ROUND(SUMIF(DataFromEngine!$J$13:$AJV$13,AG$6,DataFromEngine!$J265:$AJV265),9)/Scale -> 0 | AH15: =ROUND(SUMIF(DataFromEngine!$J$13:$AJV$13,AH$6,DataFromEngine!$J265:$AJV265),9)/Scale -> 0 | AI15: =ROUND(SUMIF(DataFromEngine!$J$13:$AJV$13,AI$6,DataFromEngine!$J265:$AJV265),9)/Scale -> 0 | AJ15: =ROUND(SUMIF(DataFromEngine!$J$13:$AJV$13,AJ$6,DataFromEngine!$J265:$AJV265),9)/Scale -> 0 | AK15: =ROUND(SUMIF(DataFromEngine!$J$13:$AJV$13,AK$6,DataFromEngine!$J265:$AJV265),9)/Scale -> 0 | AL15: =ROUND(SUMIF(DataFromEngine!$J$13:$AJV$13,AL$6,DataFromEngine!$J265:$AJV265),9)/Scale -> 0 | AM15: =ROUND(SUMIF(DataFromEngine!$J$13:$AJV$13,AM$6,DataFromEngine!$J265:$AJV265),9)/Scale -> 0 | AN15: =ROUND(SUMIF(DataFromEngine!$J$13:$AJV$13,AN$6,DataFromEngine!$J265:$AJV265),9)/Scale -> 0 | AO15: =ROUND(SUMIF(DataFromEngine!$J$13:$AJV$13,AO$6,DataFromEngine!$J265:$AJV265),9)/Scale -> 0 | AP15: =ROUND(SUMIF(DataFromEngine!$J$13:$AJV$13,AP$6,DataFromEngine!$J265:$AJV265),9)/Scale -> 0 | AQ15: =ROUND(SUMIF(DataFromEngine!$J$13:$AJV$13,AQ$6,DataFromEngine!$J265:$AJV265),9)/Scale -> 0 | AR15: =ROUND(SUMIF(DataFromEngine!$J$13:$AJV$13,AR$6,DataFromEngine!$J265:$AJV265),9)/Scale -> 0 | AS15: =ROUND(SUMIF(DataFromEngine!$J$13:$AJV$13,AS$6,DataFromEngine!$J265:$AJV265),9)/Scale -> 0 | AT15: =ROUND(SUMIF(DataFromEngine!$J$13:$AJV$13,AT$6,DataFromEngine!$J265:$AJV265),9)/Scale -> 0 | AU15: =ROUND(SUMIF(DataFromEngine!$J$13:$AJV$13,AU$6,DataFromEngine!$J265:$AJV265),9)/Scale -> 0 | AV15: =ROUND(SUMIF(DataFromEngine!$J$13:$AJV$13,AV$6,DataFromEngine!$J265:$AJV265),9)/Scale -> 0 | AW15: =ROUND(SUMIF(DataFromEngine!$J$13:$AJV$13,AW$6,DataFromEngine!$J265:$AJV265),9)/Scale -> 0 | AX15: =ROUND(SUMIF(DataFromEngine!$J$13:$AJV$13,AX$6,DataFromEngine!$J265:$AJV265),9)/Scale -> 0 | AY15: =ROUND(SUMIF(DataFromEngine!$J$13:$AJV$13,AY$6,DataFromEngine!$J265:$AJV265),9)/Scale -> 0 | AZ15: =ROUND(SUMIF(DataFromEngine!$J$13:$AJV$13,AZ$6,DataFromEngine!$J265:$AJV265),9)/Scale -> 0 | BA15: =ROUND(SUMIF(DataFromEngine!$J$13:$AJV$13,BA$6,DataFromEngine!$J265:$AJV265),9)/Scale -> 0 | BB15: =ROUND(SUMIF(DataFromEngine!$J$13:$AJV$13,BB$6,DataFromEngine!$J265:$AJV265),9)/Scale -> 0 | BC15: =ROUND(SUMIF(DataFromEngine!$J$13:$AJV$13,BC$6,DataFromEngine!$J265:$AJV265),9)/Scale -> 0 | BD15: =ROUND(SUMIF(DataFromEngine!$J$13:$AJV$13,BD$6,DataFromEngine!$J265:$AJV265),9)/Scale -> 0 | BE15: =ROUND(SUMIF(DataFromEngine!$J$13:$AJV$13,BE$6,DataFromEngine!$J265:$AJV265),9)/Scale -> 0 | BF15: =ROUND(SUMIF(DataFromEngine!$J$13:$AJV$13,BF$6,DataFromEngine!$J265:$AJV265),9)/Scale -> 0 | BG15: =ROUND(SUMIF(DataFromEngine!$J$13:$AJV$13,BG$6,DataFromEngine!$J265:$AJV265),9)/Scale -> 0 | BH15: =ROUND(SUMIF(DataFromEngine!$J$13:$AJV$13,BH$6,DataFromEngine!$J265:$AJV265),9)/Scale -> 0 | BI15: =ROUND(SUMIF(DataFromEngine!$J$13:$AJV$13,BI$6,DataFromEngine!$J265:$AJV265),9)/Scale -> 0 | BJ15: =ROUND(SUMIF(DataFromEngine!$J$13:$AJV$13,BJ$6,DataFromEngine!$J265:$AJV265),9)/Scale -> 0 | BK15: =ROUND(SUMIF(DataFromEngine!$J$13:$AJV$13,BK$6,DataFromEngine!$J265:$AJV265),9)/Scale -> 0 | BL15: =ROUND(SUMIF(DataFromEngine!$J$13:$AJV$13,BL$6,DataFromEngine!$J265:$AJV265),9)/Scale -> 0 | BM15: =ROUND(SUMIF(DataFromEngine!$J$13:$AJV$13,BM$6,DataFromEngine!$J265:$AJV265),9)/Scale -> 0 | BN15: =ROUND(SUMIF(DataFromEngine!$J$13:$AJV$13,BN$6,DataFromEngine!$J265:$AJV265),9)/Scale -> 0 | BO15: =ROUND(SUMIF(DataFromEngine!$J$13:$AJV$13,BO$6,DataFromEngine!$J265:$AJV265),9)/Scale -> 0 | BP15: =ROUND(SUMIF(DataFromEngine!$J$13:$AJV$13,BP$6,DataFromEngine!$J265:$AJV265),9)/Scale -> 0 | BQ15: =ROUND(SUMIF(DataFromEngine!$J$13:$AJV$13,BQ$6,DataFromEngine!$J265:$AJV265),9)/Scale -> 0 | BR15: =ROUND(SUMIF(DataFromEngine!$J$13:$AJV$13,BR$6,DataFromEngine!$J265:$AJV265),9)/Scale -> 0 | BS15: =ROUND(SUMIF(DataFromEngine!$J$13:$AJV$13,BS$6,DataFromEngine!$J265:$AJV265),9)/Scale -> 0 | BT15: =ROUND(SUMIF(DataFromEngine!$J$13:$AJV$13,BT$6,DataFromEngine!$J265:$AJV265),9)/Scale -> 0 | BU15: =ROUND(SUMIF(DataFromEngine!$J$13:$AJV$13,BU$6,DataFromEngine!$J265:$AJV265),9)/Scale -> 0 | BV15: =ROUND(SUMIF(DataFromEngine!$J$13:$AJV$13,BV$6,DataFromEngine!$J265:$AJV265),9)/Scale -> 0 | BW15: =ROUND(SUMIF(DataFromEngine!$J$13:$AJV$13,BW$6,DataFromEngine!$J265:$AJV265),9)/Scale -> 0 | BX15: =ROUND(SUMIF(DataFromEngine!$J$13:$AJV$13,BX$6,DataFromEngine!$J265:$AJV265),9)/Scale -> 0 | BY15: =ROUND(SUMIF(DataFromEngine!$J$13:$AJV$13,BY$6,DataFromEngine!$J265:$AJV265),9)/Scale -> 0 | BZ15: =ROUND(SUMIF(DataFromEngine!$J$13:$AJV$13,BZ$6,DataFromEngine!$J265:$AJV265),9)/Scale -> 0 | CA15: =ROUND(SUMIF(DataFromEngine!$J$13:$AJV$13,CA$6,DataFromEngine!$J265:$AJV265),9)/Scale -> 0 | CB15: =ROUND(SUMIF(DataFromEngine!$J$13:$AJV$13,CB$6,DataFromEngine!$J265:$AJV265),9)/Scale -> 0 | CC15: =ROUND(SUMIF(DataFromEngine!$J$13:$AJV$13,CC$6,DataFromEngine!$J265:$AJV265),9)/Scale -> 0 | CD15: =ROUND(SUMIF(DataFromEngine!$J$13:$AJV$13,CD$6,DataFromEngine!$J265:$AJV265),9)/Scale -> 0 | CE15: =ROUND(SUMIF(DataFromEngine!$J$13:$AJV$13,CE$6,DataFromEngine!$J265:$AJV265),9)/Scale -> 0
B16: Return on Common WC | C16: 84988.09249 | D16: =ROUND(SUMIF(DataFromEngine!$J$13:$AJV$13,D$6,DataFromEngine!$J266:$AJV266),9)/Scale -> 0 | E16: =ROUND(SUMIF(DataFromEngine!$J$13:$AJV$13,E$6,DataFromEngine!$J266:$AJV266),9)/Scale -> 0 | F16: =ROUND(SUMIF(DataFromEngine!$J$13:$AJV$13,F$6,DataFromEngine!$J266:$AJV266),9)/Scale -> 0 | G16: =ROUND(SUMIF(DataFromEngine!$J$13:$AJV$13,G$6,DataFromEngine!$J266:$AJV266),9)/Scale -> 5442.711993 | H16: =ROUND(SUMIF(DataFromEngine!$J$13:$AJV$13,H$6,DataFromEngine!$J266:$AJV266),9)/Scale -> 31888.73529 | I16: =ROUND(SUMIF(DataFromEngine!$J$13:$AJV$13,I$6,DataFromEngine!$J266:$AJV266),9)/Scale -> 35211.48766 | J16: =ROUND(SUMIF(DataFromEngine!$J$13:$AJV$13,J$6,DataFromEngine!$J266:$AJV266),9)/Scale -> 12445.15756 | K16: =ROUND(SUMIF(DataFromEngine!$J$13:$AJV$13,K$6,DataFromEngine!$J266:$AJV266),9)/Scale -> 0 | L16: =ROUND(SUMIF(DataFromEngine!$J$13:$AJV$13,L$6,DataFromEngine!$J266:$AJV266),9)/Scale -> 0 | M16: =ROUND(SUMIF(DataFromEngine!$J$13:$AJV$13,M$6,DataFromEngine!$J266:$AJV266),9)/Scale -> 0 | N16: =ROUND(SUMIF(DataFromEngine!$J$13:$AJV$13,N$6,DataFromEngine!$J266:$AJV266),9)/Scale -> 0 | O16: =ROUND(SUMIF(DataFromEngine!$J$13:$AJV$13,O$6,DataFromEngine!$J266:$AJV266),9)/Scale -> 0 | P16: =ROUND(SUMIF(DataFromEngine!$J$13:$AJV$13,P$6,DataFromEngine!$J266:$AJV266),9)/Scale -> 0 | Q16: =ROUND(SUMIF(DataFromEngine!$J$13:$AJV$13,Q$6,DataFromEngine!$J266:$AJV266),9)/Scale -> 0 | R16: =ROUND(SUMIF(DataFromEngine!$J$13:$AJV$13,R$6,DataFromEngine!$J266:$AJV266),9)/Scale -> 0 | S16: =ROUND(SUMIF(DataFromEngine!$J$13:$AJV$13,S$6,DataFromEngine!$J266:$AJV266),9)/Scale -> 0 | T16: =ROUND(SUMIF(DataFromEngine!$J$13:$AJV$13,T$6,DataFromEngine!$J266:$AJV266),9)/Scale -> 0 | U16: =ROUND(SUMIF(DataFromEngine!$J$13:$AJV$13,U$6,DataFromEngine!$J266:$AJV266),9)/Scale -> 0 | V16: =ROUND(SUMIF(DataFromEngine!$J$13:$AJV$13,V$6,DataFromEngine!$J266:$AJV266),9)/Scale -> 0 | W16: =ROUND(SUMIF(DataFromEngine!$J$13:$AJV$13,W$6,DataFromEngine!$J266:$AJV266),9)/Scale -> 0 | X16: =ROUND(SUMIF(DataFromEngine!$J$13:$AJV$13,X$6,DataFromEngine!$J266:$AJV266),9)/Scale -> 0 | Y16: =ROUND(SUMIF(DataFromEngine!$J$13:$AJV$13,Y$6,DataFromEngine!$J266:$AJV266),9)/Scale -> 0 | Z16: =ROUND(SUMIF(DataFromEngine!$J$13:$AJV$13,Z$6,DataFromEngine!$J266:$AJV266),9)/Scale -> 0 | AA16: =ROUND(SUMIF(DataFromEngine!$J$13:$AJV$13,AA$6,DataFromEngine!$J266:$AJV266),9)/Scale -> 0 | AB16: =ROUND(SUMIF(DataFromEngine!$J$13:$AJV$13,AB$6,DataFromEngine!$J266:$AJV266),9)/Scale -> 0 | AC16: =ROUND(SUMIF(DataFromEngine!$J$13:$AJV$13,AC$6,DataFromEngine!$J266:$AJV266),9)/Scale -> 0 | AD16: =ROUND(SUMIF(DataFromEngine!$J$13:$AJV$13,AD$6,DataFromEngine!$J266:$AJV266),9)/Scale -> 0 | AE16: =ROUND(SUMIF(DataFromEngine!$J$13:$AJV$13,AE$6,DataFromEngine!$J266:$AJV266),9)/Scale -> 0 | AF16: =ROUND(SUMIF(DataFromEngine!$J$13:$AJV$13,AF$6,DataFromEngine!$J266:$AJV266),9)/Scale -> 0 | AG16: =ROUND(SUMIF(DataFromEngine!$J$13:$AJV$13,AG$6,DataFromEngine!$J266:$AJV266),9)/Scale -> 0 | AH16: =ROUND(SUMIF(DataFromEngine!$J$13:$AJV$13,AH$6,DataFromEngine!$J266:$AJV266),9)/Scale -> 0 | AI16: =ROUND(SUMIF(DataFromEngine!$J$13:$AJV$13,AI$6,DataFromEngine!$J266:$AJV266),9)/Scale -> 0 | AJ16: =ROUND(SUMIF(DataFromEngine!$J$13:$AJV$13,AJ$6,DataFromEngine!$J266:$AJV266),9)/Scale -> 0 | AK16: =ROUND(SUMIF(DataFromEngine!$J$13:$AJV$13,AK$6,DataFromEngine!$J266:$AJV266),9)/Scale -> 0 | AL16: =ROUND(SUMIF(DataFromEngine!$J$13:$AJV$13,AL$6,DataFromEngine!$J266:$AJV266),9)/Scale -> 0 | AM16: =ROUND(SUMIF(DataFromEngine!$J$13:$AJV$13,AM$6,DataFromEngine!$J266:$AJV266),9)/Scale -> 0 | AN16: =ROUND(SUMIF(DataFromEngine!$J$13:$AJV$13,AN$6,DataFromEngine!$J266:$AJV266),9)/Scale -> 0 | AO16: =ROUND(SUMIF(DataFromEngine!$J$13:$AJV$13,AO$6,DataFromEngine!$J266:$AJV266),9)/Scale -> 0 | AP16: =ROUND(SUMIF(DataFromEngine!$J$13:$AJV$13,AP$6,DataFromEngine!$J266:$AJV266),9)/Scale -> 0 | AQ16: =ROUND(SUMIF(DataFromEngine!$J$13:$AJV$13,AQ$6,DataFromEngine!$J266:$AJV266),9)/Scale -> 0 | AR16: =ROUND(SUMIF(DataFromEngine!$J$13:$AJV$13,AR$6,DataFromEngine!$J266:$AJV266),9)/Scale -> 0 | AS16: =ROUND(SUMIF(DataFromEngine!$J$13:$AJV$13,AS$6,DataFromEngine!$J266:$AJV266),9)/Scale -> 0 | AT16: =ROUND(SUMIF(DataFromEngine!$J$13:$AJV$13,AT$6,DataFromEngine!$J266:$AJV266),9)/Scale -> 0 | AU16: =ROUND(SUMIF(DataFromEngine!$J$13:$AJV$13,AU$6,DataFromEngine!$J266:$AJV266),9)/Scale -> 0 | AV16: =ROUND(SUMIF(DataFromEngine!$J$13:$AJV$13,AV$6,DataFromEngine!$J266:$AJV266),9)/Scale -> 0 | AW16: =ROUND(SUMIF(DataFromEngine!$J$13:$AJV$13,AW$6,DataFromEngine!$J266:$AJV266),9)/Scale -> 0 | AX16: =ROUND(SUMIF(DataFromEngine!$J$13:$AJV$13,AX$6,DataFromEngine!$J266:$AJV266),9)/Scale -> 0 | AY16: =ROUND(SUMIF(DataFromEngine!$J$13:$AJV$13,AY$6,DataFromEngine!$J266:$AJV266),9)/Scale -> 0 | AZ16: =ROUND(SUMIF(DataFromEngine!$J$13:$AJV$13,AZ$6,DataFromEngine!$J266:$AJV266),9)/Scale -> 0 | BA16: =ROUND(SUMIF(DataFromEngine!$J$13:$AJV$13,BA$6,DataFromEngine!$J266:$AJV266),9)/Scale -> 0 | BB16: =ROUND(SUMIF(DataFromEngine!$J$13:$AJV$13,BB$6,DataFromEngine!$J266:$AJV266),9)/Scale -> 0 | BC16: =ROUND(SUMIF(DataFromEngine!$J$13:$AJV$13,BC$6,DataFromEngine!$J266:$AJV266),9)/Scale -> 0 | BD16: =ROUND(SUMIF(DataFromEngine!$J$13:$AJV$13,BD$6,DataFromEngine!$J266:$AJV266),9)/Scale -> 0 | BE16: =ROUND(SUMIF(DataFromEngine!$J$13:$AJV$13,BE$6,DataFromEngine!$J266:$AJV266),9)/Scale -> 0 | BF16: =ROUND(SUMIF(DataFromEngine!$J$13:$AJV$13,BF$6,DataFromEngine!$J266:$AJV266),9)/Scale -> 0 | BG16: =ROUND(SUMIF(DataFromEngine!$J$13:$AJV$13,BG$6,DataFromEngine!$J266:$AJV266),9)/Scale -> 0 | BH16: =ROUND(SUMIF(DataFromEngine!$J$13:$AJV$13,BH$6,DataFromEngine!$J266:$AJV266),9)/Scale -> 0 | BI16: =ROUND(SUMIF(DataFromEngine!$J$13:$AJV$13,BI$6,DataFromEngine!$J266:$AJV266),9)/Scale -> 0 | BJ16: =ROUND(SUMIF(DataFromEngine!$J$13:$AJV$13,BJ$6,DataFromEngine!$J266:$AJV266),9)/Scale -> 0 | BK16: =ROUND(SUMIF(DataFromEngine!$J$13:$AJV$13,BK$6,DataFromEngine!$J266:$AJV266),9)/Scale -> 0 | BL16: =ROUND(SUMIF(DataFromEngine!$J$13:$AJV$13,BL$6,DataFromEngine!$J266:$AJV266),9)/Scale -> 0 | BM16: =ROUND(SUMIF(DataFromEngine!$J$13:$AJV$13,BM$6,DataFromEngine!$J266:$AJV266),9)/Scale -> 0 | BN16: =ROUND(SUMIF(DataFromEngine!$J$13:$AJV$13,BN$6,DataFromEngine!$J266:$AJV266),9)/Scale -> 0 | BO16: =ROUND(SUMIF(DataFromEngine!$J$13:$AJV$13,BO$6,DataFromEngine!$J266:$AJV266),9)/Scale -> 0 | BP16: =ROUND(SUMIF(DataFromEngine!$J$13:$AJV$13,BP$6,DataFromEngine!$J266:$AJV266),9)/Scale -> 0 | BQ16: =ROUND(SUMIF(DataFromEngine!$J$13:$AJV$13,BQ$6,DataFromEngine!$J266:$AJV266),9)/Scale -> 0 | BR16: =ROUND(SUMIF(DataFromEngine!$J$13:$AJV$13,BR$6,DataFromEngine!$J266:$AJV266),9)/Scale -> 0 | BS16: =ROUND(SUMIF(DataFromEngine!$J$13:$AJV$13,BS$6,DataFromEngine!$J266:$AJV266),9)/Scale -> 0 | BT16: =ROUND(SUMIF(DataFromEngine!$J$13:$AJV$13,BT$6,DataFromEngine!$J266:$AJV266),9)/Scale -> 0 | BU16: =ROUND(SUMIF(DataFromEngine!$J$13:$AJV$13,BU$6,DataFromEngine!$J266:$AJV266),9)/Scale -> 0 | BV16: =ROUND(SUMIF(DataFromEngine!$J$13:$AJV$13,BV$6,DataFromEngine!$J266:$AJV266),9)/Scale -> 0 | BW16: =ROUND(SUMIF(DataFromEngine!$J$13:$AJV$13,BW$6,DataFromEngine!$J266:$AJV266),9)/Scale -> 0 | BX16: =ROUND(SUMIF(DataFromEngine!$J$13:$AJV$13,BX$6,DataFromEngine!$J266:$AJV266),9)/Scale -> 0 | BY16: =ROUND(SUMIF(DataFromEngine!$J$13:$AJV$13,BY$6,DataFromEngine!$J266:$AJV266),9)/Scale -> 0 | BZ16: =ROUND(SUMIF(DataFromEngine!$J$13:$AJV$13,BZ$6,DataFromEngine!$J266:$AJV266),9)/Scale -> 0 | CA16: =ROUND(SUMIF(DataFromEngine!$J$13:$AJV$13,CA$6,DataFromEngine!$J266:$AJV266),9)/Scale -> 0 | CB16: =ROUND(SUMIF(DataFromEngine!$J$13:$AJV$13,CB$6,DataFromEngine!$J266:$AJV266),9)/Scale -> 0 | CC16: =ROUND(SUMIF(DataFromEngine!$J$13:$AJV$13,CC$6,DataFromEngine!$J266:$AJV266),9)/Scale -> 0 | CD16: =ROUND(SUMIF(DataFromEngine!$J$13:$AJV$13,CD$6,DataFromEngine!$J266:$AJV266),9)/Scale -> 0 | CE16: =ROUND(SUMIF(DataFromEngine!$J$13:$AJV$13,CE$6,DataFromEngine!$J266:$AJV266),9)/Scale -> 0
B17: Book Income Pre-tax | C17: 155098.1322 | D17: =ROUND(SUMIF(DataFromEngine!$J$13:$AJV$13,D$6,DataFromEngine!$J267:$AJV267),9)/Scale -> 0 | E17: =ROUND(SUMIF(DataFromEngine!$J$13:$AJV$13,E$6,DataFromEngine!$J267:$AJV267),9)/Scale -> 0 | F17: =ROUND(SUMIF(DataFromEngine!$J$13:$AJV$13,F$6,DataFromEngine!$J267:$AJV267),9)/Scale -> 0 | G17: =ROUND(SUMIF(DataFromEngine!$J$13:$AJV$13,G$6,DataFromEngine!$J267:$AJV267),9)/Scale -> 10139.03983 | H17: =ROUND(SUMIF(DataFromEngine!$J$13:$AJV$13,H$6,DataFromEngine!$J267:$AJV267),9)/Scale -> 59192.54031 | I17: =ROUND(SUMIF(DataFromEngine!$J$13:$AJV$13,I$6,DataFromEngine!$J267:$AJV267),9)/Scale -> 64358.46092 | J17: =ROUND(SUMIF(DataFromEngine!$J$13:$AJV$13,J$6,DataFromEngine!$J267:$AJV267),9)/Scale -> 21845.59229 | K17: =ROUND(SUMIF(DataFromEngine!$J$13:$AJV$13,K$6,DataFromEngine!$J267:$AJV267),9)/Scale -> -449.0772397 | L17: =ROUND(SUMIF(DataFromEngine!$J$13:$AJV$13,L$6,DataFromEngine!$J267:$AJV267),9)/Scale -> 11.8823687 | M17: =ROUND(SUMIF(DataFromEngine!$J$13:$AJV$13,M$6,DataFromEngine!$J267:$AJV267),9)/Scale -> -0.314401785 | N17: =ROUND(SUMIF(DataFromEngine!$J$13:$AJV$13,N$6,DataFromEngine!$J267:$AJV267),9)/Scale -> 0.008318921 | O17: =ROUND(SUMIF(DataFromEngine!$J$13:$AJV$13,O$6,DataFromEngine!$J267:$AJV267),9)/Scale -> -0.000220115 | P17: =ROUND(SUMIF(DataFromEngine!$J$13:$AJV$13,P$6,DataFromEngine!$J267:$AJV267),9)/Scale -> 5.824e-06 | Q17: =ROUND(SUMIF(DataFromEngine!$J$13:$AJV$13,Q$6,DataFromEngine!$J267:$AJV267),9)/Scale -> -1.54e-07 | R17: =ROUND(SUMIF(DataFromEngine!$J$13:$AJV$13,R$6,DataFromEngine!$J267:$AJV267),9)/Scale -> 4e-09 | S17: =ROUND(SUMIF(DataFromEngine!$J$13:$AJV$13,S$6,DataFromEngine!$J267:$AJV267),9)/Scale -> 0 | T17: =ROUND(SUMIF(DataFromEngine!$J$13:$AJV$13,T$6,DataFromEngine!$J267:$AJV267),9)/Scale -> 0 | U17: =ROUND(SUMIF(DataFromEngine!$J$13:$AJV$13,U$6,DataFromEngine!$J267:$AJV267),9)/Scale -> 0 | V17: =ROUND(SUMIF(DataFromEngine!$J$13:$AJV$13,V$6,DataFromEngine!$J267:$AJV267),9)/Scale -> 0 | W17: =ROUND(SUMIF(DataFromEngine!$J$13:$AJV$13,W$6,DataFromEngine!$J267:$AJV267),9)/Scale -> 0 | X17: =ROUND(SUMIF(DataFromEngine!$J$13:$AJV$13,X$6,DataFromEngine!$J267:$AJV267),9)/Scale -> 0 | Y17: =ROUND(SUMIF(DataFromEngine!$J$13:$AJV$13,Y$6,DataFromEngine!$J267:$AJV267),9)/Scale -> 0 | Z17: =ROUND(SUMIF(DataFromEngine!$J$13:$AJV$13,Z$6,DataFromEngine!$J267:$AJV267),9)/Scale -> 0 | AA17: =ROUND(SUMIF(DataFromEngine!$J$13:$AJV$13,AA$6,DataFromEngine!$J267:$AJV267),9)/Scale -> 0 | AB17: =ROUND(SUMIF(DataFromEngine!$J$13:$AJV$13,AB$6,DataFromEngine!$J267:$AJV267),9)/Scale -> 0 | AC17: =ROUND(SUMIF(DataFromEngine!$J$13:$AJV$13,AC$6,DataFromEngine!$J267:$AJV267),9)/Scale -> 0 | AD17: =ROUND(SUMIF(DataFromEngine!$J$13:$AJV$13,AD$6,DataFromEngine!$J267:$AJV267),9)/Scale -> 0 | AE17: =ROUND(SUMIF(DataFromEngine!$J$13:$AJV$13,AE$6,DataFromEngine!$J267:$AJV267),9)/Scale -> 0 | AF17: =ROUND(SUMIF(DataFromEngine!$J$13:$AJV$13,AF$6,DataFromEngine!$J267:$AJV267),9)/Scale -> 0 | AG17: =ROUND(SUMIF(DataFromEngine!$J$13:$AJV$13,AG$6,DataFromEngine!$J267:$AJV267),9)/Scale -> 0 | AH17: =ROUND(SUMIF(DataFromEngine!$J$13:$AJV$13,AH$6,DataFromEngine!$J267:$AJV267),9)/Scale -> 0 | AI17: =ROUND(SUMIF(DataFromEngine!$J$13:$AJV$13,AI$6,DataFromEngine!$J267:$AJV267),9)/Scale -> 0 | AJ17: =ROUND(SUMIF(DataFromEngine!$J$13:$AJV$13,AJ$6,DataFromEngine!$J267:$AJV267),9)/Scale -> 0 | AK17: =ROUND(SUMIF(DataFromEngine!$J$13:$AJV$13,AK$6,DataFromEngine!$J267:$AJV267),9)/Scale -> 0 | AL17: =ROUND(SUMIF(DataFromEngine!$J$13:$AJV$13,AL$6,DataFromEngine!$J267:$AJV267),9)/Scale -> 0 | AM17: =ROUND(SUMIF(DataFromEngine!$J$13:$AJV$13,AM$6,DataFromEngine!$J267:$AJV267),9)/Scale -> 0 | AN17: =ROUND(SUMIF(DataFromEngine!$J$13:$AJV$13,AN$6,DataFromEngine!$J267:$AJV267),9)/Scale -> 0 | AO17: =ROUND(SUMIF(DataFromEngine!$J$13:$AJV$13,AO$6,DataFromEngine!$J267:$AJV267),9)/Scale -> 0 | AP17: =ROUND(SUMIF(DataFromEngine!$J$13:$AJV$13,AP$6,DataFromEngine!$J267:$AJV267),9)/Scale -> 0 | AQ17: =ROUND(SUMIF(DataFromEngine!$J$13:$AJV$13,AQ$6,DataFromEngine!$J267:$AJV267),9)/Scale -> 0 | AR17: =ROUND(SUMIF(DataFromEngine!$J$13:$AJV$13,AR$6,DataFromEngine!$J267:$AJV267),9)/Scale -> 0 | AS17: =ROUND(SUMIF(DataFromEngine!$J$13:$AJV$13,AS$6,DataFromEngine!$J267:$AJV267),9)/Scale -> 0 | AT17: =ROUND(SUMIF(DataFromEngine!$J$13:$AJV$13,AT$6,DataFromEngine!$J267:$AJV267),9)/Scale -> 0 | AU17: =ROUND(SUMIF(DataFromEngine!$J$13:$AJV$13,AU$6,DataFromEngine!$J267:$AJV267),9)/Scale -> 0 | AV17: =ROUND(SUMIF(DataFromEngine!$J$13:$AJV$13,AV$6,DataFromEngine!$J267:$AJV267),9)/Scale -> 0 | AW17: =ROUND(SUMIF(DataFromEngine!$J$13:$AJV$13,AW$6,DataFromEngine!$J267:$AJV267),9)/Scale -> 0 | AX17: =ROUND(SUMIF(DataFromEngine!$J$13:$AJV$13,AX$6,DataFromEngine!$J267:$AJV267),9)/Scale -> 0 | AY17: =ROUND(SUMIF(DataFromEngine!$J$13:$AJV$13,AY$6,DataFromEngine!$J267:$AJV267),9)/Scale -> 0 | AZ17: =ROUND(SUMIF(DataFromEngine!$J$13:$AJV$13,AZ$6,DataFromEngine!$J267:$AJV267),9)/Scale -> 0 | BA17: =ROUND(SUMIF(DataFromEngine!$J$13:$AJV$13,BA$6,DataFromEngine!$J267:$AJV267),9)/Scale -> 0 | BB17: =ROUND(SUMIF(DataFromEngine!$J$13:$AJV$13,BB$6,DataFromEngine!$J267:$AJV267),9)/Scale -> 0 | BC17: =ROUND(SUMIF(DataFromEngine!$J$13:$AJV$13,BC$6,DataFromEngine!$J267:$AJV267),9)/Scale -> 0 | BD17: =ROUND(SUMIF(DataFromEngine!$J$13:$AJV$13,BD$6,DataFromEngine!$J267:$AJV267),9)/Scale -> 0 | BE17: =ROUND(SUMIF(DataFromEngine!$J$13:$AJV$13,BE$6,DataFromEngine!$J267:$AJV267),9)/Scale -> 0 | BF17: =ROUND(SUMIF(DataFromEngine!$J$13:$AJV$13,BF$6,DataFromEngine!$J267:$AJV267),9)/Scale -> 0 | BG17: =ROUND(SUMIF(DataFromEngine!$J$13:$AJV$13,BG$6,DataFromEngine!$J267:$AJV267),9)/Scale -> 0 | BH17: =ROUND(SUMIF(DataFromEngine!$J$13:$AJV$13,BH$6,DataFromEngine!$J267:$AJV267),9)/Scale -> 0 | BI17: =ROUND(SUMIF(DataFromEngine!$J$13:$AJV$13,BI$6,DataFromEngine!$J267:$AJV267),9)/Scale -> 0 | BJ17: =ROUND(SUMIF(DataFromEngine!$J$13:$AJV$13,BJ$6,DataFromEngine!$J267:$AJV267),9)/Scale -> 0 | BK17: =ROUND(SUMIF(DataFromEngine!$J$13:$AJV$13,BK$6,DataFromEngine!$J267:$AJV267),9)/Scale -> 0 | BL17: =ROUND(SUMIF(DataFromEngine!$J$13:$AJV$13,BL$6,DataFromEngine!$J267:$AJV267),9)/Scale -> 0 | BM17: =ROUND(SUMIF(DataFromEngine!$J$13:$AJV$13,BM$6,DataFromEngine!$J267:$AJV267),9)/Scale -> 0 | BN17: =ROUND(SUMIF(DataFromEngine!$J$13:$AJV$13,BN$6,DataFromEngine!$J267:$AJV267),9)/Scale -> 0 | BO17: =ROUND(SUMIF(DataFromEngine!$J$13:$AJV$13,BO$6,DataFromEngine!$J267:$AJV267),9)/Scale -> 0 | BP17: =ROUND(SUMIF(DataFromEngine!$J$13:$AJV$13,BP$6,DataFromEngine!$J267:$AJV267),9)/Scale -> 0 | BQ17: =ROUND(SUMIF(DataFromEngine!$J$13:$AJV$13,BQ$6,DataFromEngine!$J267:$AJV267),9)/Scale -> 0 | BR17: =ROUND(SUMIF(DataFromEngine!$J$13:$AJV$13,BR$6,DataFromEngine!$J267:$AJV267),9)/Scale -> 0 | BS17: =ROUND(SUMIF(DataFromEngine!$J$13:$AJV$13,BS$6,DataFromEngine!$J267:$AJV267),9)/Scale -> 0 | BT17: =ROUND(SUMIF(DataFromEngine!$J$13:$AJV$13,BT$6,DataFromEngine!$J267:$AJV267),9)/Scale -> 0 | BU17: =ROUND(SUMIF(DataFromEngine!$J$13:$AJV$13,BU$6,DataFromEngine!$J267:$AJV267),9)/Scale -> 0 | BV17: =ROUND(SUMIF(DataFromEngine!$J$13:$AJV$13,BV$6,DataFromEngine!$J267:$AJV267),9)/Scale -> 0 | BW17: =ROUND(SUMIF(DataFromEngine!$J$13:$AJV$13,BW$6,DataFromEngine!$J267:$AJV267),9)/Scale -> 0 | BX17: =ROUND(SUMIF(DataFromEngine!$J$13:$AJV$13,BX$6,DataFromEngine!$J267:$AJV267),9)/Scale -> 0 | BY17: =ROUND(SUMIF(DataFromEngine!$J$13:$AJV$13,BY$6,DataFromEngine!$J267:$AJV267),9)/Scale -> 0 | BZ17: =ROUND(SUMIF(DataFromEngine!$J$13:$AJV$13,BZ$6,DataFromEngine!$J267:$AJV267),9)/Scale -> 0 | CA17: =ROUND(SUMIF(DataFromEngine!$J$13:$AJV$13,CA$6,DataFromEngine!$J267:$AJV267),9)/Scale -> 0 | CB17: =ROUND(SUMIF(DataFromEngine!$J$13:$AJV$13,CB$6,DataFromEngine!$J267:$AJV267),9)/Scale -> 0 | CC17: =ROUND(SUMIF(DataFromEngine!$J$13:$AJV$13,CC$6,DataFromEngine!$J267:$AJV267),9)/Scale -> 0 | CD17: =ROUND(SUMIF(DataFromEngine!$J$13:$AJV$13,CD$6,DataFromEngine!$J267:$AJV267),9)/Scale -> 0 | CE17: =ROUND(SUMIF(DataFromEngine!$J$13:$AJV$13,CE$6,DataFromEngine!$J267:$AJV267),9)/Scale -> 0
B18: Federal income tax for WC | C18: 23320.33901 | D18: =ROUND(SUMIF(DataFromEngine!$J$13:$AJV$13,D$6,DataFromEngine!$J268:$AJV268),9)/Scale -> 0 | E18: =ROUND(SUMIF(DataFromEngine!$J$13:$AJV$13,E$6,DataFromEngine!$J268:$AJV268),9)/Scale -> 0 | F18: =ROUND(SUMIF(DataFromEngine!$J$13:$AJV$13,F$6,DataFromEngine!$J268:$AJV268),9)/Scale -> 0 | G18: =ROUND(SUMIF(DataFromEngine!$J$13:$AJV$13,G$6,DataFromEngine!$J268:$AJV268),9)/Scale -> 1681.626886 | H18: =ROUND(SUMIF(DataFromEngine!$J$13:$AJV$13,H$6,DataFromEngine!$J268:$AJV268),9)/Scale -> 9659.46576 | I18: =ROUND(SUMIF(DataFromEngine!$J$13:$AJV$13,I$6,DataFromEngine!$J268:$AJV268),9)/Scale -> 9752.686486 | J18: =ROUND(SUMIF(DataFromEngine!$J$13:$AJV$13,J$6,DataFromEngine!$J268:$AJV268),9)/Scale -> 2625.385946 | K18: =ROUND(SUMIF(DataFromEngine!$J$13:$AJV$13,K$6,DataFromEngine!$J268:$AJV268),9)/Scale -> -409.3788117 | L18: =ROUND(SUMIF(DataFromEngine!$J$13:$AJV$13,L$6,DataFromEngine!$J268:$AJV268),9)/Scale -> 10.8319673 | M18: =ROUND(SUMIF(DataFromEngine!$J$13:$AJV$13,M$6,DataFromEngine!$J268:$AJV268),9)/Scale -> -0.286608667 | N18: =ROUND(SUMIF(DataFromEngine!$J$13:$AJV$13,N$6,DataFromEngine!$J268:$AJV268),9)/Scale -> 0.007583528 | O18: =ROUND(SUMIF(DataFromEngine!$J$13:$AJV$13,O$6,DataFromEngine!$J268:$AJV268),9)/Scale -> -0.000200657 | P18: =ROUND(SUMIF(DataFromEngine!$J$13:$AJV$13,P$6,DataFromEngine!$J268:$AJV268),9)/Scale -> 5.309e-06 | Q18: =ROUND(SUMIF(DataFromEngine!$J$13:$AJV$13,Q$6,DataFromEngine!$J268:$AJV268),9)/Scale -> -1.4e-07 | R18: =ROUND(SUMIF(DataFromEngine!$J$13:$AJV$13,R$6,DataFromEngine!$J268:$AJV268),9)/Scale -> 4e-09 | S18: =ROUND(SUMIF(DataFromEngine!$J$13:$AJV$13,S$6,DataFromEngine!$J268:$AJV268),9)/Scale -> 0 | T18: =ROUND(SUMIF(DataFromEngine!$J$13:$AJV$13,T$6,DataFromEngine!$J268:$AJV268),9)/Scale -> 0 | U18: =ROUND(SUMIF(DataFromEngine!$J$13:$AJV$13,U$6,DataFromEngine!$J268:$AJV268),9)/Scale -> 0 | V18: =ROUND(SUMIF(DataFromEngine!$J$13:$AJV$13,V$6,DataFromEngine!$J268:$AJV268),9)/Scale -> 0 | W18: =ROUND(SUMIF(DataFromEngine!$J$13:$AJV$13,W$6,DataFromEngine!$J268:$AJV268),9)/Scale -> 0 | X18: =ROUND(SUMIF(DataFromEngine!$J$13:$AJV$13,X$6,DataFromEngine!$J268:$AJV268),9)/Scale -> 0 | Y18: =ROUND(SUMIF(DataFromEngine!$J$13:$AJV$13,Y$6,DataFromEngine!$J268:$AJV268),9)/Scale -> 0 | Z18: =ROUND(SUMIF(DataFromEngine!$J$13:$AJV$13,Z$6,DataFromEngine!$J268:$AJV268),9)/Scale -> 0 | AA18: =ROUND(SUMIF(DataFromEngine!$J$13:$AJV$13,AA$6,DataFromEngine!$J268:$AJV268),9)/Scale -> 0 | AB18: =ROUND(SUMIF(DataFromEngine!$J$13:$AJV$13,AB$6,DataFromEngine!$J268:$AJV268),9)/Scale -> 0 | AC18: =ROUND(SUMIF(DataFromEngine!$J$13:$AJV$13,AC$6,DataFromEngine!$J268:$AJV268),9)/Scale -> 0 | AD18: =ROUND(SUMIF(DataFromEngine!$J$13:$AJV$13,AD$6,DataFromEngine!$J268:$AJV268),9)/Scale -> 0 | AE18: =ROUND(SUMIF(DataFromEngine!$J$13:$AJV$13,AE$6,DataFromEngine!$J268:$AJV268),9)/Scale -> 0 | AF18: =ROUND(SUMIF(DataFromEngine!$J$13:$AJV$13,AF$6,DataFromEngine!$J268:$AJV268),9)/Scale -> 0 | AG18: =ROUND(SUMIF(DataFromEngine!$J$13:$AJV$13,AG$6,DataFromEngine!$J268:$AJV268),9)/Scale -> 0 | AH18: =ROUND(SUMIF(DataFromEngine!$J$13:$AJV$13,AH$6,DataFromEngine!$J268:$AJV268),9)/Scale -> 0 | AI18: =ROUND(SUMIF(DataFromEngine!$J$13:$AJV$13,AI$6,DataFromEngine!$J268:$AJV268),9)/Scale -> 0 | AJ18: =ROUND(SUMIF(DataFromEngine!$J$13:$AJV$13,AJ$6,DataFromEngine!$J268:$AJV268),9)/Scale -> 0 | AK18: =ROUND(SUMIF(DataFromEngine!$J$13:$AJV$13,AK$6,DataFromEngine!$J268:$AJV268),9)/Scale -> 0 | AL18: =ROUND(SUMIF(DataFromEngine!$J$13:$AJV$13,AL$6,DataFromEngine!$J268:$AJV268),9)/Scale -> 0 | AM18: =ROUND(SUMIF(DataFromEngine!$J$13:$AJV$13,AM$6,DataFromEngine!$J268:$AJV268),9)/Scale -> 0 | AN18: =ROUND(SUMIF(DataFromEngine!$J$13:$AJV$13,AN$6,DataFromEngine!$J268:$AJV268),9)/Scale -> 0 | AO18: =ROUND(SUMIF(DataFromEngine!$J$13:$AJV$13,AO$6,DataFromEngine!$J268:$AJV268),9)/Scale -> 0 | AP18: =ROUND(SUMIF(DataFromEngine!$J$13:$AJV$13,AP$6,DataFromEngine!$J268:$AJV268),9)/Scale -> 0 | AQ18: =ROUND(SUMIF(DataFromEngine!$J$13:$AJV$13,AQ$6,DataFromEngine!$J268:$AJV268),9)/Scale -> 0 | AR18: =ROUND(SUMIF(DataFromEngine!$J$13:$AJV$13,AR$6,DataFromEngine!$J268:$AJV268),9)/Scale -> 0 | AS18: =ROUND(SUMIF(DataFromEngine!$J$13:$AJV$13,AS$6,DataFromEngine!$J268:$AJV268),9)/Scale -> 0 | AT18: =ROUND(SUMIF(DataFromEngine!$J$13:$AJV$13,AT$6,DataFromEngine!$J268:$AJV268),9)/Scale -> 0 | AU18: =ROUND(SUMIF(DataFromEngine!$J$13:$AJV$13,AU$6,DataFromEngine!$J268:$AJV268),9)/Scale -> 0 | AV18: =ROUND(SUMIF(DataFromEngine!$J$13:$AJV$13,AV$6,DataFromEngine!$J268:$AJV268),9)/Scale -> 0 | AW18: =ROUND(SUMIF(DataFromEngine!$J$13:$AJV$13,AW$6,DataFromEngine!$J268:$AJV268),9)/Scale -> 0 | AX18: =ROUND(SUMIF(DataFromEngine!$J$13:$AJV$13,AX$6,DataFromEngine!$J268:$AJV268),9)/Scale -> 0 | AY18: =ROUND(SUMIF(DataFromEngine!$J$13:$AJV$13,AY$6,DataFromEngine!$J268:$AJV268),9)/Scale -> 0 | AZ18: =ROUND(SUMIF(DataFromEngine!$J$13:$AJV$13,AZ$6,DataFromEngine!$J268:$AJV268),9)/Scale -> 0 | BA18: =ROUND(SUMIF(DataFromEngine!$J$13:$AJV$13,BA$6,DataFromEngine!$J268:$AJV268),9)/Scale -> 0 | BB18: =ROUND(SUMIF(DataFromEngine!$J$13:$AJV$13,BB$6,DataFromEngine!$J268:$AJV268),9)/Scale -> 0 | BC18: =ROUND(SUMIF(DataFromEngine!$J$13:$AJV$13,BC$6,DataFromEngine!$J268:$AJV268),9)/Scale -> 0 | BD18: =ROUND(SUMIF(DataFromEngine!$J$13:$AJV$13,BD$6,DataFromEngine!$J268:$AJV268),9)/Scale -> 0 | BE18: =ROUND(SUMIF(DataFromEngine!$J$13:$AJV$13,BE$6,DataFromEngine!$J268:$AJV268),9)/Scale -> 0 | BF18: =ROUND(SUMIF(DataFromEngine!$J$13:$AJV$13,BF$6,DataFromEngine!$J268:$AJV268),9)/Scale -> 0 | BG18: =ROUND(SUMIF(DataFromEngine!$J$13:$AJV$13,BG$6,DataFromEngine!$J268:$AJV268),9)/Scale -> 0 | BH18: =ROUND(SUMIF(DataFromEngine!$J$13:$AJV$13,BH$6,DataFromEngine!$J268:$AJV268),9)/Scale -> 0 | BI18: =ROUND(SUMIF(DataFromEngine!$J$13:$AJV$13,BI$6,DataFromEngine!$J268:$AJV268),9)/Scale -> 0 | BJ18: =ROUND(SUMIF(DataFromEngine!$J$13:$AJV$13,BJ$6,DataFromEngine!$J268:$AJV268),9)/Scale -> 0 | BK18: =ROUND(SUMIF(DataFromEngine!$J$13:$AJV$13,BK$6,DataFromEngine!$J268:$AJV268),9)/Scale -> 0 | BL18: =ROUND(SUMIF(DataFromEngine!$J$13:$AJV$13,BL$6,DataFromEngine!$J268:$AJV268),9)/Scale -> 0 | BM18: =ROUND(SUMIF(DataFromEngine!$J$13:$AJV$13,BM$6,DataFromEngine!$J268:$AJV268),9)/Scale -> 0 | BN18: =ROUND(SUMIF(DataFromEngine!$J$13:$AJV$13,BN$6,DataFromEngine!$J268:$AJV268),9)/Scale -> 0 | BO18: =ROUND(SUMIF(DataFromEngine!$J$13:$AJV$13,BO$6,DataFromEngine!$J268:$AJV268),9)/Scale -> 0 | BP18: =ROUND(SUMIF(DataFromEngine!$J$13:$AJV$13,BP$6,DataFromEngine!$J268:$AJV268),9)/Scale -> 0 | BQ18: =ROUND(SUMIF(DataFromEngine!$J$13:$AJV$13,BQ$6,DataFromEngine!$J268:$AJV268),9)/Scale -> 0 | BR18: =ROUND(SUMIF(DataFromEngine!$J$13:$AJV$13,BR$6,DataFromEngine!$J268:$AJV268),9)/Scale -> 0 | BS18: =ROUND(SUMIF(DataFromEngine!$J$13:$AJV$13,BS$6,DataFromEngine!$J268:$AJV268),9)/Scale -> 0 | BT18: =ROUND(SUMIF(DataFromEngine!$J$13:$AJV$13,BT$6,DataFromEngine!$J268:$AJV268),9)/Scale -> 0 | BU18: =ROUND(SUMIF(DataFromEngine!$J$13:$AJV$13,BU$6,DataFromEngine!$J268:$AJV268),9)/Scale -> 0 | BV18: =ROUND(SUMIF(DataFromEngine!$J$13:$AJV$13,BV$6,DataFromEngine!$J268:$AJV268),9)/Scale -> 0 | BW18: =ROUND(SUMIF(DataFromEngine!$J$13:$AJV$13,BW$6,DataFromEngine!$J268:$AJV268),9)/Scale -> 0 | BX18: =ROUND(SUMIF(DataFromEngine!$J$13:$AJV$13,BX$6,DataFromEngine!$J268:$AJV268),9)/Scale -> 0 | BY18: =ROUND(SUMIF(DataFromEngine!$J$13:$AJV$13,BY$6,DataFromEngine!$J268:$AJV268),9)/Scale -> 0 | BZ18: =ROUND(SUMIF(DataFromEngine!$J$13:$AJV$13,BZ$6,DataFromEngine!$J268:$AJV268),9)/Scale -> 0 | CA18: =ROUND(SUMIF(DataFromEngine!$J$13:$AJV$13,CA$6,DataFromEngine!$J268:$AJV268),9)/Scale -> 0 | CB18: =ROUND(SUMIF(DataFromEngine!$J$13:$AJV$13,CB$6,DataFromEngine!$J268:$AJV268),9)/Scale -> 0 | CC18: =ROUND(SUMIF(DataFromEngine!$J$13:$AJV$13,CC$6,DataFromEngine!$J268:$AJV268),9)/Scale -> 0 | CD18: =ROUND(SUMIF(DataFromEngine!$J$13:$AJV$13,CD$6,DataFromEngine!$J268:$AJV268),9)/Scale -> 0 | CE18: =ROUND(SUMIF(DataFromEngine!$J$13:$AJV$13,CE$6,DataFromEngine!$J268:$AJV268),9)/Scale -> 0
B19: State Income tax for WC | C19: 10768.70583 | D19: =ROUND(SUMIF(DataFromEngine!$J$13:$AJV$13,D$6,DataFromEngine!$J269:$AJV269),9)/Scale -> 0 | E19: =ROUND(SUMIF(DataFromEngine!$J$13:$AJV$13,E$6,DataFromEngine!$J269:$AJV269),9)/Scale -> 0 | F19: =ROUND(SUMIF(DataFromEngine!$J$13:$AJV$13,F$6,DataFromEngine!$J269:$AJV269),9)/Scale -> 0 | G19: =ROUND(SUMIF(DataFromEngine!$J$13:$AJV$13,G$6,DataFromEngine!$J269:$AJV269),9)/Scale -> 707.8848417 | H19: =ROUND(SUMIF(DataFromEngine!$J$13:$AJV$13,H$6,DataFromEngine!$J269:$AJV269),9)/Scale -> 4128.75213 | I19: =ROUND(SUMIF(DataFromEngine!$J$13:$AJV$13,I$6,DataFromEngine!$J269:$AJV269),9)/Scale -> 4470.398285 | J19: =ROUND(SUMIF(DataFromEngine!$J$13:$AJV$13,J$6,DataFromEngine!$J269:$AJV269),9)/Scale -> 1500.345673 | K19: =ROUND(SUMIF(DataFromEngine!$J$13:$AJV$13,K$6,DataFromEngine!$J269:$AJV269),9)/Scale -> -39.69842799 | L19: =ROUND(SUMIF(DataFromEngine!$J$13:$AJV$13,L$6,DataFromEngine!$J269:$AJV269),9)/Scale -> 1.050401393 | M19: =ROUND(SUMIF(DataFromEngine!$J$13:$AJV$13,M$6,DataFromEngine!$J269:$AJV269),9)/Scale -> -0.027793118 | N19: =ROUND(SUMIF(DataFromEngine!$J$13:$AJV$13,N$6,DataFromEngine!$J269:$AJV269),9)/Scale -> 0.000735393 | O19: =ROUND(SUMIF(DataFromEngine!$J$13:$AJV$13,O$6,DataFromEngine!$J269:$AJV269),9)/Scale -> -1.9458e-05 | P19: =ROUND(SUMIF(DataFromEngine!$J$13:$AJV$13,P$6,DataFromEngine!$J269:$AJV269),9)/Scale -> 5.15e-07 | Q19: =ROUND(SUMIF(DataFromEngine!$J$13:$AJV$13,Q$6,DataFromEngine!$J269:$AJV269),9)/Scale -> -1.4e-08 | R19: =ROUND(SUMIF(DataFromEngine!$J$13:$AJV$13,R$6,DataFromEngine!$J269:$AJV269),9)/Scale -> 0 | S19: =ROUND(SUMIF(DataFromEngine!$J$13:$AJV$13,S$6,DataFromEngine!$J269:$AJV269),9)/Scale -> 0 | T19: =ROUND(SUMIF(DataFromEngine!$J$13:$AJV$13,T$6,DataFromEngine!$J269:$AJV269),9)/Scale -> 0 | U19: =ROUND(SUMIF(DataFromEngine!$J$13:$AJV$13,U$6,DataFromEngine!$J269:$AJV269),9)/Scale -> 0 | V19: =ROUND(SUMIF(DataFromEngine!$J$13:$AJV$13,V$6,DataFromEngine!$J269:$AJV269),9)/Scale -> 0 | W19: =ROUND(SUMIF(DataFromEngine!$J$13:$AJV$13,W$6,DataFromEngine!$J269:$AJV269),9)/Scale -> 0 | X19: =ROUND(SUMIF(DataFromEngine!$J$13:$AJV$13,X$6,DataFromEngine!$J269:$AJV269),9)/Scale -> 0 | Y19: =ROUND(SUMIF(DataFromEngine!$J$13:$AJV$13,Y$6,DataFromEngine!$J269:$AJV269),9)/Scale -> 0 | Z19: =ROUND(SUMIF(DataFromEngine!$J$13:$AJV$13,Z$6,DataFromEngine!$J269:$AJV269),9)/Scale -> 0 | AA19: =ROUND(SUMIF(DataFromEngine!$J$13:$AJV$13,AA$6,DataFromEngine!$J269:$AJV269),9)/Scale -> 0 | AB19: =ROUND(SUMIF(DataFromEngine!$J$13:$AJV$13,AB$6,DataFromEngine!$J269:$AJV269),9)/Scale -> 0 | AC19: =ROUND(SUMIF(DataFromEngine!$J$13:$AJV$13,AC$6,DataFromEngine!$J269:$AJV269),9)/Scale -> 0 | AD19: =ROUND(SUMIF(DataFromEngine!$J$13:$AJV$13,AD$6,DataFromEngine!$J269:$AJV269),9)/Scale -> 0 | AE19: =ROUND(SUMIF(DataFromEngine!$J$13:$AJV$13,AE$6,DataFromEngine!$J269:$AJV269),9)/Scale -> 0 | AF19: =ROUND(SUMIF(DataFromEngine!$J$13:$AJV$13,AF$6,DataFromEngine!$J269:$AJV269),9)/Scale -> 0 | AG19: =ROUND(SUMIF(DataFromEngine!$J$13:$AJV$13,AG$6,DataFromEngine!$J269:$AJV269),9)/Scale -> 0 | AH19: =ROUND(SUMIF(DataFromEngine!$J$13:$AJV$13,AH$6,DataFromEngine!$J269:$AJV269),9)/Scale -> 0 | AI19: =ROUND(SUMIF(DataFromEngine!$J$13:$AJV$13,AI$6,DataFromEngine!$J269:$AJV269),9)/Scale -> 0 | AJ19: =ROUND(SUMIF(DataFromEngine!$J$13:$AJV$13,AJ$6,DataFromEngine!$J269:$AJV269),9)/Scale -> 0 | AK19: =ROUND(SUMIF(DataFromEngine!$J$13:$AJV$13,AK$6,DataFromEngine!$J269:$AJV269),9)/Scale -> 0 | AL19: =ROUND(SUMIF(DataFromEngine!$J$13:$AJV$13,AL$6,DataFromEngine!$J269:$AJV269),9)/Scale -> 0 | AM19: =ROUND(SUMIF(DataFromEngine!$J$13:$AJV$13,AM$6,DataFromEngine!$J269:$AJV269),9)/Scale -> 0 | AN19: =ROUND(SUMIF(DataFromEngine!$J$13:$AJV$13,AN$6,DataFromEngine!$J269:$AJV269),9)/Scale -> 0 | AO19: =ROUND(SUMIF(DataFromEngine!$J$13:$AJV$13,AO$6,DataFromEngine!$J269:$AJV269),9)/Scale -> 0 | AP19: =ROUND(SUMIF(DataFromEngine!$J$13:$AJV$13,AP$6,DataFromEngine!$J269:$AJV269),9)/Scale -> 0 | AQ19: =ROUND(SUMIF(DataFromEngine!$J$13:$AJV$13,AQ$6,DataFromEngine!$J269:$AJV269),9)/Scale -> 0 | AR19: =ROUND(SUMIF(DataFromEngine!$J$13:$AJV$13,AR$6,DataFromEngine!$J269:$AJV269),9)/Scale -> 0 | AS19: =ROUND(SUMIF(DataFromEngine!$J$13:$AJV$13,AS$6,DataFromEngine!$J269:$AJV269),9)/Scale -> 0 | AT19: =ROUND(SUMIF(DataFromEngine!$J$13:$AJV$13,AT$6,DataFromEngine!$J269:$AJV269),9)/Scale -> 0 | AU19: =ROUND(SUMIF(DataFromEngine!$J$13:$AJV$13,AU$6,DataFromEngine!$J269:$AJV269),9)/Scale -> 0 | AV19: =ROUND(SUMIF(DataFromEngine!$J$13:$AJV$13,AV$6,DataFromEngine!$J269:$AJV269),9)/Scale -> 0 | AW19: =ROUND(SUMIF(DataFromEngine!$J$13:$AJV$13,AW$6,DataFromEngine!$J269:$AJV269),9)/Scale -> 0 | AX19: =ROUND(SUMIF(DataFromEngine!$J$13:$AJV$13,AX$6,DataFromEngine!$J269:$AJV269),9)/Scale -> 0 | AY19: =ROUND(SUMIF(DataFromEngine!$J$13:$AJV$13,AY$6,DataFromEngine!$J269:$AJV269),9)/Scale -> 0 | AZ19: =ROUND(SUMIF(DataFromEngine!$J$13:$AJV$13,AZ$6,DataFromEngine!$J269:$AJV269),9)/Scale -> 0 | BA19: =ROUND(SUMIF(DataFromEngine!$J$13:$AJV$13,BA$6,DataFromEngine!$J269:$AJV269),9)/Scale -> 0 | BB19: =ROUND(SUMIF(DataFromEngine!$J$13:$AJV$13,BB$6,DataFromEngine!$J269:$AJV269),9)/Scale -> 0 | BC19: =ROUND(SUMIF(DataFromEngine!$J$13:$AJV$13,BC$6,DataFromEngine!$J269:$AJV269),9)/Scale -> 0 | BD19: =ROUND(SUMIF(DataFromEngine!$J$13:$AJV$13,BD$6,DataFromEngine!$J269:$AJV269),9)/Scale -> 0 | BE19: =ROUND(SUMIF(DataFromEngine!$J$13:$AJV$13,BE$6,DataFromEngine!$J269:$AJV269),9)/Scale -> 0 | BF19: =ROUND(SUMIF(DataFromEngine!$J$13:$AJV$13,BF$6,DataFromEngine!$J269:$AJV269),9)/Scale -> 0 | BG19: =ROUND(SUMIF(DataFromEngine!$J$13:$AJV$13,BG$6,DataFromEngine!$J269:$AJV269),9)/Scale -> 0 | BH19: =ROUND(SUMIF(DataFromEngine!$J$13:$AJV$13,BH$6,DataFromEngine!$J269:$AJV269),9)/Scale -> 0 | BI19: =ROUND(SUMIF(DataFromEngine!$J$13:$AJV$13,BI$6,DataFromEngine!$J269:$AJV269),9)/Scale -> 0 | BJ19: =ROUND(SUMIF(DataFromEngine!$J$13:$AJV$13,BJ$6,DataFromEngine!$J269:$AJV269),9)/Scale -> 0 | BK19: =ROUND(SUMIF(DataFromEngine!$J$13:$AJV$13,BK$6,DataFromEngine!$J269:$AJV269),9)/Scale -> 0 | BL19: =ROUND(SUMIF(DataFromEngine!$J$13:$AJV$13,BL$6,DataFromEngine!$J269:$AJV269),9)/Scale -> 0 | BM19: =ROUND(SUMIF(DataFromEngine!$J$13:$AJV$13,BM$6,DataFromEngine!$J269:$AJV269),9)/Scale -> 0 | BN19: =ROUND(SUMIF(DataFromEngine!$J$13:$AJV$13,BN$6,DataFromEngine!$J269:$AJV269),9)/Scale -> 0 | BO19: =ROUND(SUMIF(DataFromEngine!$J$13:$AJV$13,BO$6,DataFromEngine!$J269:$AJV269),9)/Scale -> 0 | BP19: =ROUND(SUMIF(DataFromEngine!$J$13:$AJV$13,BP$6,DataFromEngine!$J269:$AJV269),9)/Scale -> 0 | BQ19: =ROUND(SUMIF(DataFromEngine!$J$13:$AJV$13,BQ$6,DataFromEngine!$J269:$AJV269),9)/Scale -> 0 | BR19: =ROUND(SUMIF(DataFromEngine!$J$13:$AJV$13,BR$6,DataFromEngine!$J269:$AJV269),9)/Scale -> 0 | BS19: =ROUND(SUMIF(DataFromEngine!$J$13:$AJV$13,BS$6,DataFromEngine!$J269:$AJV269),9)/Scale -> 0 | BT19: =ROUND(SUMIF(DataFromEngine!$J$13:$AJV$13,BT$6,DataFromEngine!$J269:$AJV269),9)/Scale -> 0 | BU19: =ROUND(SUMIF(DataFromEngine!$J$13:$AJV$13,BU$6,DataFromEngine!$J269:$AJV269),9)/Scale -> 0 | BV19: =ROUND(SUMIF(DataFromEngine!$J$13:$AJV$13,BV$6,DataFromEngine!$J269:$AJV269),9)/Scale -> 0 | BW19: =ROUND(SUMIF(DataFromEngine!$J$13:$AJV$13,BW$6,DataFromEngine!$J269:$AJV269),9)/Scale -> 0 | BX19: =ROUND(SUMIF(DataFromEngine!$J$13:$AJV$13,BX$6,DataFromEngine!$J269:$AJV269),9)/Scale -> 0 | BY19: =ROUND(SUMIF(DataFromEngine!$J$13:$AJV$13,BY$6,DataFromEngine!$J269:$AJV269),9)/Scale -> 0 | BZ19: =ROUND(SUMIF(DataFromEngine!$J$13:$AJV$13,BZ$6,DataFromEngine!$J269:$AJV269),9)/Scale -> 0 | CA19: =ROUND(SUMIF(DataFromEngine!$J$13:$AJV$13,CA$6,DataFromEngine!$J269:$AJV269),9)/Scale -> 0 | CB19: =ROUND(SUMIF(DataFromEngine!$J$13:$AJV$13,CB$6,DataFromEngine!$J269:$AJV269),9)/Scale -> 0 | CC19: =ROUND(SUMIF(DataFromEngine!$J$13:$AJV$13,CC$6,DataFromEngine!$J269:$AJV269),9)/Scale -> 0 | CD19: =ROUND(SUMIF(DataFromEngine!$J$13:$AJV$13,CD$6,DataFromEngine!$J269:$AJV269),9)/Scale -> 0 | CE19: =ROUND(SUMIF(DataFromEngine!$J$13:$AJV$13,CE$6,DataFromEngine!$J269:$AJV269),9)/Scale -> 0
B20: Property taxes for WC | C20: 25438.77258 | D20: =ROUND(SUMIF(DataFromEngine!$J$13:$AJV$13,D$6,DataFromEngine!$J270:$AJV270),9)/Scale -> 0 | E20: =ROUND(SUMIF(DataFromEngine!$J$13:$AJV$13,E$6,DataFromEngine!$J270:$AJV270),9)/Scale -> 0 | F20: =ROUND(SUMIF(DataFromEngine!$J$13:$AJV$13,F$6,DataFromEngine!$J270:$AJV270),9)/Scale -> 0 | G20: =ROUND(SUMIF(DataFromEngine!$J$13:$AJV$13,G$6,DataFromEngine!$J270:$AJV270),9)/Scale -> 1838.118861 | H20: =ROUND(SUMIF(DataFromEngine!$J$13:$AJV$13,H$6,DataFromEngine!$J270:$AJV270),9)/Scale -> 9993.361821 | I20: =ROUND(SUMIF(DataFromEngine!$J$13:$AJV$13,I$6,DataFromEngine!$J270:$AJV270),9)/Scale -> 9929.236033 | J20: =ROUND(SUMIF(DataFromEngine!$J$13:$AJV$13,J$6,DataFromEngine!$J270:$AJV270),9)/Scale -> 3678.055864 | K20: =ROUND(SUMIF(DataFromEngine!$J$13:$AJV$13,K$6,DataFromEngine!$J270:$AJV270),9)/Scale -> 0 | L20: =ROUND(SUMIF(DataFromEngine!$J$13:$AJV$13,L$6,DataFromEngine!$J270:$AJV270),9)/Scale -> 0 | M20: =ROUND(SUMIF(DataFromEngine!$J$13:$AJV$13,M$6,DataFromEngine!$J270:$AJV270),9)/Scale -> 0 | N20: =ROUND(SUMIF(DataFromEngine!$J$13:$AJV$13,N$6,DataFromEngine!$J270:$AJV270),9)/Scale -> 0 | O20: =ROUND(SUMIF(DataFromEngine!$J$13:$AJV$13,O$6,DataFromEngine!$J270:$AJV270),9)/Scale -> 0 | P20: =ROUND(SUMIF(DataFromEngine!$J$13:$AJV$13,P$6,DataFromEngine!$J270:$AJV270),9)/Scale -> 0 | Q20: =ROUND(SUMIF(DataFromEngine!$J$13:$AJV$13,Q$6,DataFromEngine!$J270:$AJV270),9)/Scale -> 0 | R20: =ROUND(SUMIF(DataFromEngine!$J$13:$AJV$13,R$6,DataFromEngine!$J270:$AJV270),9)/Scale -> 0 | S20: =ROUND(SUMIF(DataFromEngine!$J$13:$AJV$13,S$6,DataFromEngine!$J270:$AJV270),9)/Scale -> 0 | T20: =ROUND(SUMIF(DataFromEngine!$J$13:$AJV$13,T$6,DataFromEngine!$J270:$AJV270),9)/Scale -> 0 | U20: =ROUND(SUMIF(DataFromEngine!$J$13:$AJV$13,U$6,DataFromEngine!$J270:$AJV270),9)/Scale -> 0 | V20: =ROUND(SUMIF(DataFromEngine!$J$13:$AJV$13,V$6,DataFromEngine!$J270:$AJV270),9)/Scale -> 0 | W20: =ROUND(SUMIF(DataFromEngine!$J$13:$AJV$13,W$6,DataFromEngine!$J270:$AJV270),9)/Scale -> 0 | X20: =ROUND(SUMIF(DataFromEngine!$J$13:$AJV$13,X$6,DataFromEngine!$J270:$AJV270),9)/Scale -> 0 | Y20: =ROUND(SUMIF(DataFromEngine!$J$13:$AJV$13,Y$6,DataFromEngine!$J270:$AJV270),9)/Scale -> 0 | Z20: =ROUND(SUMIF(DataFromEngine!$J$13:$AJV$13,Z$6,DataFromEngine!$J270:$AJV270),9)/Scale -> 0 | AA20: =ROUND(SUMIF(DataFromEngine!$J$13:$AJV$13,AA$6,DataFromEngine!$J270:$AJV270),9)/Scale -> 0 | AB20: =ROUND(SUMIF(DataFromEngine!$J$13:$AJV$13,AB$6,DataFromEngine!$J270:$AJV270),9)/Scale -> 0 | AC20: =ROUND(SUMIF(DataFromEngine!$J$13:$AJV$13,AC$6,DataFromEngine!$J270:$AJV270),9)/Scale -> 0 | AD20: =ROUND(SUMIF(DataFromEngine!$J$13:$AJV$13,AD$6,DataFromEngine!$J270:$AJV270),9)/Scale -> 0 | AE20: =ROUND(SUMIF(DataFromEngine!$J$13:$AJV$13,AE$6,DataFromEngine!$J270:$AJV270),9)/Scale -> 0 | AF20: =ROUND(SUMIF(DataFromEngine!$J$13:$AJV$13,AF$6,DataFromEngine!$J270:$AJV270),9)/Scale -> 0 | AG20: =ROUND(SUMIF(DataFromEngine!$J$13:$AJV$13,AG$6,DataFromEngine!$J270:$AJV270),9)/Scale -> 0 | AH20: =ROUND(SUMIF(DataFromEngine!$J$13:$AJV$13,AH$6,DataFromEngine!$J270:$AJV270),9)/Scale -> 0 | AI20: =ROUND(SUMIF(DataFromEngine!$J$13:$AJV$13,AI$6,DataFromEngine!$J270:$AJV270),9)/Scale -> 0 | AJ20: =ROUND(SUMIF(DataFromEngine!$J$13:$AJV$13,AJ$6,DataFromEngine!$J270:$AJV270),9)/Scale -> 0 | AK20: =ROUND(SUMIF(DataFromEngine!$J$13:$AJV$13,AK$6,DataFromEngine!$J270:$AJV270),9)/Scale -> 0 | AL20: =ROUND(SUMIF(DataFromEngine!$J$13:$AJV$13,AL$6,DataFromEngine!$J270:$AJV270),9)/Scale -> 0 | AM20: =ROUND(SUMIF(DataFromEngine!$J$13:$AJV$13,AM$6,DataFromEngine!$J270:$AJV270),9)/Scale -> 0 | AN20: =ROUND(SUMIF(DataFromEngine!$J$13:$AJV$13,AN$6,DataFromEngine!$J270:$AJV270),9)/Scale -> 0 | AO20: =ROUND(SUMIF(DataFromEngine!$J$13:$AJV$13,AO$6,DataFromEngine!$J270:$AJV270),9)/Scale -> 0 | AP20: =ROUND(SUMIF(DataFromEngine!$J$13:$AJV$13,AP$6,DataFromEngine!$J270:$AJV270),9)/Scale -> 0 | AQ20: =ROUND(SUMIF(DataFromEngine!$J$13:$AJV$13,AQ$6,DataFromEngine!$J270:$AJV270),9)/Scale -> 0 | AR20: =ROUND(SUMIF(DataFromEngine!$J$13:$AJV$13,AR$6,DataFromEngine!$J270:$AJV270),9)/Scale -> 0 | AS20: =ROUND(SUMIF(DataFromEngine!$J$13:$AJV$13,AS$6,DataFromEngine!$J270:$AJV270),9)/Scale -> 0 | AT20: =ROUND(SUMIF(DataFromEngine!$J$13:$AJV$13,AT$6,DataFromEngine!$J270:$AJV270),9)/Scale -> 0 | AU20: =ROUND(SUMIF(DataFromEngine!$J$13:$AJV$13,AU$6,DataFromEngine!$J270:$AJV270),9)/Scale -> 0 | AV20: =ROUND(SUMIF(DataFromEngine!$J$13:$AJV$13,AV$6,DataFromEngine!$J270:$AJV270),9)/Scale -> 0 | AW20: =ROUND(SUMIF(DataFromEngine!$J$13:$AJV$13,AW$6,DataFromEngine!$J270:$AJV270),9)/Scale -> 0 | AX20: =ROUND(SUMIF(DataFromEngine!$J$13:$AJV$13,AX$6,DataFromEngine!$J270:$AJV270),9)/Scale -> 0 | AY20: =ROUND(SUMIF(DataFromEngine!$J$13:$AJV$13,AY$6,DataFromEngine!$J270:$AJV270),9)/Scale -> 0 | AZ20: =ROUND(SUMIF(DataFromEngine!$J$13:$AJV$13,AZ$6,DataFromEngine!$J270:$AJV270),9)/Scale -> 0 | BA20: =ROUND(SUMIF(DataFromEngine!$J$13:$AJV$13,BA$6,DataFromEngine!$J270:$AJV270),9)/Scale -> 0 | BB20: =ROUND(SUMIF(DataFromEngine!$J$13:$AJV$13,BB$6,DataFromEngine!$J270:$AJV270),9)/Scale -> 0 | BC20: =ROUND(SUMIF(DataFromEngine!$J$13:$AJV$13,BC$6,DataFromEngine!$J270:$AJV270),9)/Scale -> 0 | BD20: =ROUND(SUMIF(DataFromEngine!$J$13:$AJV$13,BD$6,DataFromEngine!$J270:$AJV270),9)/Scale -> 0 | BE20: =ROUND(SUMIF(DataFromEngine!$J$13:$AJV$13,BE$6,DataFromEngine!$J270:$AJV270),9)/Scale -> 0 | BF20: =ROUND(SUMIF(DataFromEngine!$J$13:$AJV$13,BF$6,DataFromEngine!$J270:$AJV270),9)/Scale -> 0 | BG20: =ROUND(SUMIF(DataFromEngine!$J$13:$AJV$13,BG$6,DataFromEngine!$J270:$AJV270),9)/Scale -> 0 | BH20: =ROUND(SUMIF(DataFromEngine!$J$13:$AJV$13,BH$6,DataFromEngine!$J270:$AJV270),9)/Scale -> 0 | BI20: =ROUND(SUMIF(DataFromEngine!$J$13:$AJV$13,BI$6,DataFromEngine!$J270:$AJV270),9)/Scale -> 0 | BJ20: =ROUND(SUMIF(DataFromEngine!$J$13:$AJV$13,BJ$6,DataFromEngine!$J270:$AJV270),9)/Scale -> 0 | BK20: =ROUND(SUMIF(DataFromEngine!$J$13:$AJV$13,BK$6,DataFromEngine!$J270:$AJV270),9)/Scale -> 0 | BL20: =ROUND(SUMIF(DataFromEngine!$J$13:$AJV$13,BL$6,DataFromEngine!$J270:$AJV270),9)/Scale -> 0 | BM20: =ROUND(SUMIF(DataFromEngine!$J$13:$AJV$13,BM$6,DataFromEngine!$J270:$AJV270),9)/Scale -> 0 | BN20: =ROUND(SUMIF(DataFromEngine!$J$13:$AJV$13,BN$6,DataFromEngine!$J270:$AJV270),9)/Scale -> 0 | BO20: =ROUND(SUMIF(DataFromEngine!$J$13:$AJV$13,BO$6,DataFromEngine!$J270:$AJV270),9)/Scale -> 0 | BP20: =ROUND(SUMIF(DataFromEngine!$J$13:$AJV$13,BP$6,DataFromEngine!$J270:$AJV270),9)/Scale -> 0 | BQ20: =ROUND(SUMIF(DataFromEngine!$J$13:$AJV$13,BQ$6,DataFromEngine!$J270:$AJV270),9)/Scale -> 0 | BR20: =ROUND(SUMIF(DataFromEngine!$J$13:$AJV$13,BR$6,DataFromEngine!$J270:$AJV270),9)/Scale -> 0 | BS20: =ROUND(SUMIF(DataFromEngine!$J$13:$AJV$13,BS$6,DataFromEngine!$J270:$AJV270),9)/Scale -> 0 | BT20: =ROUND(SUMIF(DataFromEngine!$J$13:$AJV$13,BT$6,DataFromEngine!$J270:$AJV270),9)/Scale -> 0 | BU20: =ROUND(SUMIF(DataFromEngine!$J$13:$AJV$13,BU$6,DataFromEngine!$J270:$AJV270),9)/Scale -> 0 | BV20: =ROUND(SUMIF(DataFromEngine!$J$13:$AJV$13,BV$6,DataFromEngine!$J270:$AJV270),9)/Scale -> 0 | BW20: =ROUND(SUMIF(DataFromEngine!$J$13:$AJV$13,BW$6,DataFromEngine!$J270:$AJV270),9)/Scale -> 0 | BX20: =ROUND(SUMIF(DataFromEngine!$J$13:$AJV$13,BX$6,DataFromEngine!$J270:$AJV270),9)/Scale -> 0 | BY20: =ROUND(SUMIF(DataFromEngine!$J$13:$AJV$13,BY$6,DataFromEngine!$J270:$AJV270),9)/Scale -> 0 | BZ20: =ROUND(SUMIF(DataFromEngine!$J$13:$AJV$13,BZ$6,DataFromEngine!$J270:$AJV270),9)/Scale -> 0 | CA20: =ROUND(SUMIF(DataFromEngine!$J$13:$AJV$13,CA$6,DataFromEngine!$J270:$AJV270),9)/Scale -> 0 | CB20: =ROUND(SUMIF(DataFromEngine!$J$13:$AJV$13,CB$6,DataFromEngine!$J270:$AJV270),9)/Scale -> 0 | CC20: =ROUND(SUMIF(DataFromEngine!$J$13:$AJV$13,CC$6,DataFromEngine!$J270:$AJV270),9)/Scale -> 0 | CD20: =ROUND(SUMIF(DataFromEngine!$J$13:$AJV$13,CD$6,DataFromEngine!$J270:$AJV270),9)/Scale -> 0 | CE20: =ROUND(SUMIF(DataFromEngine!$J$13:$AJV$13,CE$6,DataFromEngine!$J270:$AJV270),9)/Scale -> 0
B21: Total Rev Req of Working Cash | C21: 180536.9048 | D21: =ROUND(SUMIF(DataFromEngine!$J$13:$AJV$13,D$6,DataFromEngine!$J271:$AJV271),9)/Scale -> 0 | E21: =ROUND(SUMIF(DataFromEngine!$J$13:$AJV$13,E$6,DataFromEngine!$J271:$AJV271),9)/Scale -> 0 | F21: =ROUND(SUMIF(DataFromEngine!$J$13:$AJV$13,F$6,DataFromEngine!$J271:$AJV271),9)/Scale -> 0 | G21: =ROUND(SUMIF(DataFromEngine!$J$13:$AJV$13,G$6,DataFromEngine!$J271:$AJV271),9)/Scale -> 11977.15869 | H21: =ROUND(SUMIF(DataFromEngine!$J$13:$AJV$13,H$6,DataFromEngine!$J271:$AJV271),9)/Scale -> 69185.90213 | I21: =ROUND(SUMIF(DataFromEngine!$J$13:$AJV$13,I$6,DataFromEngine!$J271:$AJV271),9)/Scale -> 74287.69695 | J21: =ROUND(SUMIF(DataFromEngine!$J$13:$AJV$13,J$6,DataFromEngine!$J271:$AJV271),9)/Scale -> 25523.64816 | K21: =ROUND(SUMIF(DataFromEngine!$J$13:$AJV$13,K$6,DataFromEngine!$J271:$AJV271),9)/Scale -> -449.0772397 | L21: =ROUND(SUMIF(DataFromEngine!$J$13:$AJV$13,L$6,DataFromEngine!$J271:$AJV271),9)/Scale -> 11.8823687 | M21: =ROUND(SUMIF(DataFromEngine!$J$13:$AJV$13,M$6,DataFromEngine!$J271:$AJV271),9)/Scale -> -0.314401785 | N21: =ROUND(SUMIF(DataFromEngine!$J$13:$AJV$13,N$6,DataFromEngine!$J271:$AJV271),9)/Scale -> 0.008318921 | O21: =ROUND(SUMIF(DataFromEngine!$J$13:$AJV$13,O$6,DataFromEngine!$J271:$AJV271),9)/Scale -> -0.000220115 | P21: =ROUND(SUMIF(DataFromEngine!$J$13:$AJV$13,P$6,DataFromEngine!$J271:$AJV271),9)/Scale -> 5.824e-06 | Q21: =ROUND(SUMIF(DataFromEngine!$J$13:$AJV$13,Q$6,DataFromEngine!$J271:$AJV271),9)/Scale -> -1.54e-07 | R21: =ROUND(SUMIF(DataFromEngine!$J$13:$AJV$13,R$6,DataFromEngine!$J271:$AJV271),9)/Scale -> 4e-09 | S21: =ROUND(SUMIF(DataFromEngine!$J$13:$AJV$13,S$6,DataFromEngine!$J271:$AJV271),9)/Scale -> 0 | T21: =ROUND(SUMIF(DataFromEngine!$J$13:$AJV$13,T$6,DataFromEngine!$J271:$AJV271),9)/Scale -> 0 | U21: =ROUND(SUMIF(DataFromEngine!$J$13:$AJV$13,U$6,DataFromEngine!$J271:$AJV271),9)/Scale -> 0 | V21: =ROUND(SUMIF(DataFromEngine!$J$13:$AJV$13,V$6,DataFromEngine!$J271:$AJV271),9)/Scale -> 0 | W21: =ROUND(SUMIF(DataFromEngine!$J$13:$AJV$13,W$6,DataFromEngine!$J271:$AJV271),9)/Scale -> 0 | X21: =ROUND(SUMIF(DataFromEngine!$J$13:$AJV$13,X$6,DataFromEngine!$J271:$AJV271),9)/Scale -> 0 | Y21: =ROUND(SUMIF(DataFromEngine!$J$13:$AJV$13,Y$6,DataFromEngine!$J271:$AJV271),9)/Scale -> 0 | Z21: =ROUND(SUMIF(DataFromEngine!$J$13:$AJV$13,Z$6,DataFromEngine!$J271:$AJV271),9)/Scale -> 0 | AA21: =ROUND(SUMIF(DataFromEngine!$J$13:$AJV$13,AA$6,DataFromEngine!$J271:$AJV271),9)/Scale -> 0 | AB21: =ROUND(SUMIF(DataFromEngine!$J$13:$AJV$13,AB$6,DataFromEngine!$J271:$AJV271),9)/Scale -> 0 | AC21: =ROUND(SUMIF(DataFromEngine!$J$13:$AJV$13,AC$6,DataFromEngine!$J271:$AJV271),9)/Scale -> 0 | AD21: =ROUND(SUMIF(DataFromEngine!$J$13:$AJV$13,AD$6,DataFromEngine!$J271:$AJV271),9)/Scale -> 0 | AE21: =ROUND(SUMIF(DataFromEngine!$J$13:$AJV$13,AE$6,DataFromEngine!$J271:$AJV271),9)/Scale -> 0 | AF21: =ROUND(SUMIF(DataFromEngine!$J$13:$AJV$13,AF$6,DataFromEngine!$J271:$AJV271),9)/Scale -> 0 | AG21: =ROUND(SUMIF(DataFromEngine!$J$13:$AJV$13,AG$6,DataFromEngine!$J271:$AJV271),9)/Scale -> 0 | AH21: =ROUND(SUMIF(DataFromEngine!$J$13:$AJV$13,AH$6,DataFromEngine!$J271:$AJV271),9)/Scale -> 0 | AI21: =ROUND(SUMIF(DataFromEngine!$J$13:$AJV$13,AI$6,DataFromEngine!$J271:$AJV271),9)/Scale -> 0 | AJ21: =ROUND(SUMIF(DataFromEngine!$J$13:$AJV$13,AJ$6,DataFromEngine!$J271:$AJV271),9)/Scale -> 0 | AK21: =ROUND(SUMIF(DataFromEngine!$J$13:$AJV$13,AK$6,DataFromEngine!$J271:$AJV271),9)/Scale -> 0 | AL21: =ROUND(SUMIF(DataFromEngine!$J$13:$AJV$13,AL$6,DataFromEngine!$J271:$AJV271),9)/Scale -> 0 | AM21: =ROUND(SUMIF(DataFromEngine!$J$13:$AJV$13,AM$6,DataFromEngine!$J271:$AJV271),9)/Scale -> 0 | AN21: =ROUND(SUMIF(DataFromEngine!$J$13:$AJV$13,AN$6,DataFromEngine!$J271:$AJV271),9)/Scale -> 0 | AO21: =ROUND(SUMIF(DataFromEngine!$J$13:$AJV$13,AO$6,DataFromEngine!$J271:$AJV271),9)/Scale -> 0 | AP21: =ROUND(SUMIF(DataFromEngine!$J$13:$AJV$13,AP$6,DataFromEngine!$J271:$AJV271),9)/Scale -> 0 | AQ21: =ROUND(SUMIF(DataFromEngine!$J$13:$AJV$13,AQ$6,DataFromEngine!$J271:$AJV271),9)/Scale -> 0 | AR21: =ROUND(SUMIF(DataFromEngine!$J$13:$AJV$13,AR$6,DataFromEngine!$J271:$AJV271),9)/Scale -> 0 | AS21: =ROUND(SUMIF(DataFromEngine!$J$13:$AJV$13,AS$6,DataFromEngine!$J271:$AJV271),9)/Scale -> 0 | AT21: =ROUND(SUMIF(DataFromEngine!$J$13:$AJV$13,AT$6,DataFromEngine!$J271:$AJV271),9)/Scale -> 0 | AU21: =ROUND(SUMIF(DataFromEngine!$J$13:$AJV$13,AU$6,DataFromEngine!$J271:$AJV271),9)/Scale -> 0 | AV21: =ROUND(SUMIF(DataFromEngine!$J$13:$AJV$13,AV$6,DataFromEngine!$J271:$AJV271),9)/Scale -> 0 | AW21: =ROUND(SUMIF(DataFromEngine!$J$13:$AJV$13,AW$6,DataFromEngine!$J271:$AJV271),9)/Scale -> 0 | AX21: =ROUND(SUMIF(DataFromEngine!$J$13:$AJV$13,AX$6,DataFromEngine!$J271:$AJV271),9)/Scale -> 0 | AY21: =ROUND(SUMIF(DataFromEngine!$J$13:$AJV$13,AY$6,DataFromEngine!$J271:$AJV271),9)/Scale -> 0 | AZ21: =ROUND(SUMIF(DataFromEngine!$J$13:$AJV$13,AZ$6,DataFromEngine!$J271:$AJV271),9)/Scale -> 0 | BA21: =ROUND(SUMIF(DataFromEngine!$J$13:$AJV$13,BA$6,DataFromEngine!$J271:$AJV271),9)/Scale -> 0 | BB21: =ROUND(SUMIF(DataFromEngine!$J$13:$AJV$13,BB$6,DataFromEngine!$J271:$AJV271),9)/Scale -> 0 | BC21: =ROUND(SUMIF(DataFromEngine!$J$13:$AJV$13,BC$6,DataFromEngine!$J271:$AJV271),9)/Scale -> 0 | BD21: =ROUND(SUMIF(DataFromEngine!$J$13:$AJV$13,BD$6,DataFromEngine!$J271:$AJV271),9)/Scale -> 0 | BE21: =ROUND(SUMIF(DataFromEngine!$J$13:$AJV$13,BE$6,DataFromEngine!$J271:$AJV271),9)/Scale -> 0 | BF21: =ROUND(SUMIF(DataFromEngine!$J$13:$AJV$13,BF$6,DataFromEngine!$J271:$AJV271),9)/Scale -> 0 | BG21: =ROUND(SUMIF(DataFromEngine!$J$13:$AJV$13,BG$6,DataFromEngine!$J271:$AJV271),9)/Scale -> 0 | BH21: =ROUND(SUMIF(DataFromEngine!$J$13:$AJV$13,BH$6,DataFromEngine!$J271:$AJV271),9)/Scale -> 0 | BI21: =ROUND(SUMIF(DataFromEngine!$J$13:$AJV$13,BI$6,DataFromEngine!$J271:$AJV271),9)/Scale -> 0 | BJ21: =ROUND(SUMIF(DataFromEngine!$J$13:$AJV$13,BJ$6,DataFromEngine!$J271:$AJV271),9)/Scale -> 0 | BK21: =ROUND(SUMIF(DataFromEngine!$J$13:$AJV$13,BK$6,DataFromEngine!$J271:$AJV271),9)/Scale -> 0 | BL21: =ROUND(SUMIF(DataFromEngine!$J$13:$AJV$13,BL$6,DataFromEngine!$J271:$AJV271),9)/Scale -> 0 | BM21: =ROUND(SUMIF(DataFromEngine!$J$13:$AJV$13,BM$6,DataFromEngine!$J271:$AJV271),9)/Scale -> 0 | BN21: =ROUND(SUMIF(DataFromEngine!$J$13:$AJV$13,BN$6,DataFromEngine!$J271:$AJV271),9)/Scale -> 0 | BO21: =ROUND(SUMIF(DataFromEngine!$J$13:$AJV$13,BO$6,DataFromEngine!$J271:$AJV271),9)/Scale -> 0 | BP21: =ROUND(SUMIF(DataFromEngine!$J$13:$AJV$13,BP$6,DataFromEngine!$J271:$AJV271),9)/Scale -> 0 | BQ21: =ROUND(SUMIF(DataFromEngine!$J$13:$AJV$13,BQ$6,DataFromEngine!$J271:$AJV271),9)/Scale -> 0 | BR21: =ROUND(SUMIF(DataFromEngine!$J$13:$AJV$13,BR$6,DataFromEngine!$J271:$AJV271),9)/Scale -> 0 | BS21: =ROUND(SUMIF(DataFromEngine!$J$13:$AJV$13,BS$6,DataFromEngine!$J271:$AJV271),9)/Scale -> 0 | BT21: =ROUND(SUMIF(DataFromEngine!$J$13:$AJV$13,BT$6,DataFromEngine!$J271:$AJV271),9)/Scale -> 0 | BU21: =ROUND(SUMIF(DataFromEngine!$J$13:$AJV$13,BU$6,DataFromEngine!$J271:$AJV271),9)/Scale -> 0 | BV21: =ROUND(SUMIF(DataFromEngine!$J$13:$AJV$13,BV$6,DataFromEngine!$J271:$AJV271),9)/Scale -> 0 | BW21: =ROUND(SUMIF(DataFromEngine!$J$13:$AJV$13,BW$6,DataFromEngine!$J271:$AJV271),9)/Scale -> 0 | BX21: =ROUND(SUMIF(DataFromEngine!$J$13:$AJV$13,BX$6,DataFromEngine!$J271:$AJV271),9)/Scale -> 0 | BY21: =ROUND(SUMIF(DataFromEngine!$J$13:$AJV$13,BY$6,DataFromEngine!$J271:$AJV271),9)/Scale -> 0 | BZ21: =ROUND(SUMIF(DataFromEngine!$J$13:$AJV$13,BZ$6,DataFromEngine!$J271:$AJV271),9)/Scale -> 0 | CA21: =ROUND(SUMIF(DataFromEngine!$J$13:$AJV$13,CA$6,DataFromEngine!$J271:$AJV271),9)/Scale -> 0 | CB21: =ROUND(SUMIF(DataFromEngine!$J$13:$AJV$13,CB$6,DataFromEngine!$J271:$AJV271),9)/Scale -> 0 | CC21: =ROUND(SUMIF(DataFromEngine!$J$13:$AJV$13,CC$6,DataFromEngine!$J271:$AJV271),9)/Scale -> 0 | CD21: =ROUND(SUMIF(DataFromEngine!$J$13:$AJV$13,CD$6,DataFromEngine!$J271:$AJV271),9)/Scale -> 0 | CE21: =ROUND(SUMIF(DataFromEngine!$J$13:$AJV$13,CE$6,DataFromEngine!$J271:$AJV271),9)/Scale -> 0

Sheet Rate Base, Return
B1: =ReportAssumptions!C2 -> San Diego Gas & Electric
B2: =ReportAssumptions!C3 -> Power Your Drive Extension Program
B3: ="Rate Base and Return ($ in "&ReportAssumptions!C9& ")" -> Rate Base and Return ($ in Dollars)
C6: Total | D6: =DataFromEngine!J12 -> 2018 | E6: =DataFromEngine!K12 -> 2019 | F6: =DataFromEngine!L12 -> 2020 | G6: =DataFromEngine!M12 -> 2021 | H6: =DataFromEngine!N12 -> 2022 | I6: =DataFromEngine!O12 -> 2023 | J6: =DataFromEngine!P12 -> 2024 | K6: =DataFromEngine!Q12 -> 2025 | L6: =DataFromEngine!R12 -> 2026 | M6: =DataFromEngine!S12 -> 2027 | N6: =DataFromEngine!T12 -> 2028 | O6: =DataFromEngine!U12 -> 2029 | P6: =DataFromEngine!V12 -> 2030 | Q6: =DataFromEngine!W12 -> 2031 | R6: =DataFromEngine!X12 -> 2032 | S6: =DataFromEngine!Y12 -> 2033 | T6: =DataFromEngine!Z12 -> 2034 | U6: =DataFromEngine!AA12 -> 2035 | V6: =DataFromEngine!AB12 -> 2036 | W6: =DataFromEngine!AC12 -> 2037 | X6: =DataFromEngine!AD12 -> 2038 | Y6: =DataFromEngine!AE12 -> 2039 | Z6: =DataFromEngine!AF12 -> 2040 | AA6: =DataFromEngine!AG12 -> 2041 | AB6: =DataFromEngine!AH12 -> 2042 | AC6: =DataFromEngine!AI12 -> 2043 | AD6: =DataFromEngine!AJ12 -> 2044 | AE6: =DataFromEngine!AK12 -> 2045 | AF6: =DataFromEngine!AL12 -> 2046 | AG6: =DataFromEngine!AM12 -> 2047 | AH6: =DataFromEngine!AN12 -> 2048 | AI6: =DataFromEngine!AO12 -> 2049 | AJ6: =DataFromEngine!AP12 -> 2050 | AK6: =DataFromEngine!AQ12 -> 2051 | AL6: =DataFromEngine!AR12 -> 2052 | AM6: =DataFromEngine!AS12 -> 2053 | AN6: =DataFromEngine!AT12 -> 2054 | AO6: =DataFromEngine!AU12 -> 2055 | AP6: =DataFromEngine!AV12 -> 2056 | AQ6: =DataFromEngine!AW12 -> 2057 | AR6: =DataFromEngine!AX12 -> 2058 | AS6: =DataFromEngine!AY12 -> 2059 | AT6: =DataFromEngine!AZ12 -> 2060 | AU6: =DataFromEngine!BA12 -> 2061 | AV6: =DataFromEngine!BB12 -> 2062 | AW6: =DataFromEngine!BC12 -> 2063 | AX6: =DataFromEngine!BD12 -> 2064 | AY6: =DataFromEngine!BE12 -> 2065 | AZ6: =DataFromEngine!BF12 -> 2066 | BA6: =DataFromEngine!BG12 -> 2067 | BB6: =DataFromEngine!BH12 -> 2068 | BC6: =DataFromEngine!BI12 -> 2069 | BD6: =DataFromEngine!BJ12 -> 2070 | BE6: =DataFromEngine!BK12 -> 2071 | BF6: =DataFromEngine!BL12 -> 2072 | BG6: =DataFromEngine!BM12 -> 2073 | BH6: =DataFromEngine!BN12 -> 2074 | BI6: =DataFromEngine!BO12 -> 2075 | BJ6: =DataFromEngine!BP12 -> 2076 | BK6: =DataFromEngine!BQ12 -> 2077 | BL6: =DataFromEngine!BR12 -> 2078 | BM6: =DataFromEngine!BS12 -> 2079 | BN6: =DataFromEngine!BT12 -> 2080 | BO6: =DataFromEngine!BU12 -> 2081 | BP6: =DataFromEngine!BV12 -> 2082 | BQ6: =DataFromEngine!BW12 -> 2083 | BR6: =DataFromEngine!BX12 -> 2084 | BS6: =DataFromEngine!BY12 -> 2085 | BT6: =DataFromEngine!BZ12 -> 2086 | BU6: =DataFromEngine!CA12 -> 2087 | BV6: =DataFromEngine!CB12 -> 2088 | BW6: =DataFromEngine!CC12 -> 2089 | BX6: =DataFromEngine!CD12 -> 2090 | BY6: =DataFromEngine!CE12 -> 2091 | BZ6: =DataFromEngine!CF12 -> 2092 | CA6: =DataFromEngine!CG12 -> 2093 | CB6: =DataFromEngine!CH12 -> 2094 | CC6: =DataFromEngine!CI12 -> 2095 | CD6: =DataFromEngine!CJ12 -> 2096 | CE6: =DataFromEngine!CK12 -> 2097
B7: Average Monthly Rate Base | D7: 0 | E7: =IFERROR(HLOOKUP(E6,DataFromEngine!$K$286:$BH$287,2,FALSE),0) -> 0 | F7: =IFERROR(HLOOKUP(F6,DataFromEngine!$K$286:$BH$287,2,FALSE),0) -> 0 | G7: =IFERROR(HLOOKUP(G6,DataFromEngine!$K$286:$BH$287,2,FALSE),0) -> 178214.5827 | H7: =IFERROR(HLOOKUP(H6,DataFromEngine!$K$286:$BH$287,2,FALSE),0) -> 14935719.07 | I7: =IFERROR(HLOOKUP(I6,DataFromEngine!$K$286:$BH$287,2,FALSE),0) -> 37888997.22 | J7: =IFERROR(HLOOKUP(J6,DataFromEngine!$K$286:$BH$287,2,FALSE),0) -> 41434934.68 | K7: =IFERROR(HLOOKUP(K6,DataFromEngine!$K$286:$BH$287,2,FALSE),0) -> 39193679.48 | L7: =IFERROR(HLOOKUP(L6,DataFromEngine!$K$286:$BH$287,2,FALSE),0) -> 36999262.56 | M7: =IFERROR(HLOOKUP(M6,DataFromEngine!$K$286:$BH$287,2,FALSE),0) -> 34848171.03 | N7: =IFERROR(HLOOKUP(N6,DataFromEngine!$K$286:$BH$287,2,FALSE),0) -> 32737155.51 | O7: =IFERROR(HLOOKUP(O6,DataFromEngine!$K$286:$BH$287,2,FALSE),0) -> 30662775.85 | P7: =IFERROR(HLOOKUP(P6,DataFromEngine!$K$286:$BH$287,2,FALSE),0) -> 28613694.41 | Q7: =IFERROR(HLOOKUP(Q6,DataFromEngine!$K$286:$BH$287,2,FALSE),0) -> 26573838.24 | R7: =IFERROR(HLOOKUP(R6,DataFromEngine!$K$286:$BH$287,2,FALSE),0) -> 24681947.03 | S7: =IFERROR(HLOOKUP(S6,DataFromEngine!$K$286:$BH$287,2,FALSE),0) -> 23129480.31 | T7: =IFERROR(HLOOKUP(T6,DataFromEngine!$K$286:$BH$287,2,FALSE),0) -> 21684284.51 | U7: =IFERROR(HLOOKUP(U6,DataFromEngine!$K$286:$BH$287,2,FALSE),0) -> 20260822.17 | V7: =IFERROR(HLOOKUP(V6,DataFromEngine!$K$286:$BH$287,2,FALSE),0) -> 18837359.84 | W7: =IFERROR(HLOOKUP(W6,DataFromEngine!$K$286:$BH$287,2,FALSE),0) -> 17413897.5 | X7: =IFERROR(HLOOKUP(X6,DataFromEngine!$K$286:$BH$287,2,FALSE),0) -> 15990435.17 | Y7: =IFERROR(HLOOKUP(Y6,DataFromEngine!$K$286:$BH$287,2,FALSE),0) -> 14566972.83 | Z7: =IFERROR(HLOOKUP(Z6,DataFromEngine!$K$286:$BH$287,2,FALSE),0) -> 13143510.49 | AA7: =IFERROR(HLOOKUP(AA6,DataFromEngine!$K$286:$BH$287,2,FALSE),0) -> 11723523.66 | AB7: =IFERROR(HLOOKUP(AB6,DataFromEngine!$K$286:$BH$287,2,FALSE),0) -> 10375036.84 | AC7: =IFERROR(HLOOKUP(AC6,DataFromEngine!$K$286:$BH$287,2,FALSE),0) -> 9196695.535 | AD7: =IFERROR(HLOOKUP(AD6,DataFromEngine!$K$286:$BH$287,2,FALSE),0) -> 8158047.209 | AE7: =IFERROR(HLOOKUP(AE6,DataFromEngine!$K$286:$BH$287,2,FALSE),0) -> 7156970.867 | AF7: =IFERROR(HLOOKUP(AF6,DataFromEngine!$K$286:$BH$287,2,FALSE),0) -> 6155894.524 | AG7: =IFERROR(HLOOKUP(AG6,DataFromEngine!$K$286:$BH$287,2,FALSE),0) -> 5154818.181 | AH7: =IFERROR(HLOOKUP(AH6,DataFromEngine!$K$286:$BH$287,2,FALSE),0) -> 4153741.838 | AI7: =IFERROR(HLOOKUP(AI6,DataFromEngine!$K$286:$BH$287,2,FALSE),0) -> 3152665.495 | AJ7: =IFERROR(HLOOKUP(AJ6,DataFromEngine!$K$286:$BH$287,2,FALSE),0) -> 2151589.152 | AK7: =IFERROR(HLOOKUP(AK6,DataFromEngine!$K$286:$BH$287,2,FALSE),0) -> 1150512.809 | AL7: =IFERROR(HLOOKUP(AL6,DataFromEngine!$K$286:$BH$287,2,FALSE),0) -> 149436.4662 | AM7: =IFERROR(HLOOKUP(AM6,DataFromEngine!$K$286:$BH$287,2,FALSE),0) -> -851639.8767 | AN7: =IFERROR(HLOOKUP(AN6,DataFromEngine!$K$286:$BH$287,2,FALSE),0) -> -1852716.22 | AO7: =IFERROR(HLOOKUP(AO6,DataFromEngine!$K$286:$BH$287,2,FALSE),0) -> -2853792.562 | AP7: =IFERROR(HLOOKUP(AP6,DataFromEngine!$K$286:$BH$287,2,FALSE),0) -> -3854868.905 | AQ7: =IFERROR(HLOOKUP(AQ6,DataFromEngine!$K$286:$BH$287,2,FALSE),0) -> -4855945.248 | AR7: =IFERROR(HLOOKUP(AR6,DataFromEngine!$K$286:$BH$287,2,FALSE),0) -> -5857021.591 | AS7: =IFERROR(HLOOKUP(AS6,DataFromEngine!$K$286:$BH$287,2,FALSE),0) -> -6858097.934 | AT7: =IFERROR(HLOOKUP(AT6,DataFromEngine!$K$286:$BH$287,2,FALSE),0) -> -7859174.277 | AU7: =IFERROR(HLOOKUP(AU6,DataFromEngine!$K$286:$BH$287,2,FALSE),0) -> -8860250.62 | AV7: =IFERROR(HLOOKUP(AV6,DataFromEngine!$K$286:$BH$287,2,FALSE),0) -> -9861326.963 | AW7: =IFERROR(HLOOKUP(AW6,DataFromEngine!$K$286:$BH$287,2,FALSE),0) -> -10862403.31 | AX7: =IFERROR(HLOOKUP(AX6,DataFromEngine!$K$286:$BH$287,2,FALSE),0) -> -11863479.65 | AY7: =IFERROR(HLOOKUP(AY6,DataFromEngine!$K$286:$BH$287,2,FALSE),0) -> -12864555.99 | AZ7: =IFERROR(HLOOKUP(AZ6,DataFromEngine!$K$286:$BH$287,2,FALSE),0) -> -13790603.55 | BA7: =IFERROR(HLOOKUP(BA6,DataFromEngine!$K$286:$BH$287,2,FALSE),0) -> -10599021.81 | BB7: =IFERROR(HLOOKUP(BB6,DataFromEngine!$K$286:$BH$287,2,FALSE),0) -> -3370277.715 | BC7: =IFERROR(HLOOKUP(BC6,DataFromEngine!$K$286:$BH$287,2,FALSE),0) -> 0 | BD7: =IFERROR(HLOOKUP(BD6,DataFromEngine!$K$286:$BH$287,2,FALSE),0) -> 0 | BE7: =IFERROR(HLOOKUP(BE6,DataFromEngine!$K$286:$BH$287,2,FALSE),0) -> 0 | BF7: =IFERROR(HLOOKUP(BF6,DataFromEngine!$K$286:$BH$287,2,FALSE),0) -> 0 | BG7: =IFERROR(HLOOKUP(BG6,DataFromEngine!$K$286:$BH$287,2,FALSE),0) -> 0 | BH7: =IFERROR(HLOOKUP(BH6,DataFromEngine!$K$286:$BH$287,2,FALSE),0) -> 0 | BI7: =IFERROR(HLOOKUP(BI6,DataFromEngine!$K$286:$BH$287,2,FALSE),0) -> 0 | BJ7: =IFERROR(HLOOKUP(BJ6,DataFromEngine!$K$286:$BH$287,2,FALSE),0) -> 0 | BK7: =IFERROR(HLOOKUP(BK6,DataFromEngine!$K$286:$BH$287,2,FALSE),0) -> 0 | BL7: =IFERROR(HLOOKUP(BL6,DataFromEngine!$K$286:$BH$287,2,FALSE),0) -> 0 | BM7: =IFERROR(HLOOKUP(BM6,DataFromEngine!$K$286:$BH$287,2,FALSE),0) -> 0 | BN7: =IFERROR(HLOOKUP(BN6,DataFromEngine!$K$286:$BH$287,2,FALSE),0) -> 0 | BO7: =IFERROR(HLOOKUP(BO6,DataFromEngine!$K$286:$BH$287,2,FALSE),0) -> 0 | BP7: =IFERROR(HLOOKUP(BP6,DataFromEngine!$K$286:$BH$287,2,FALSE),0) -> 0 | BQ7: =IFERROR(HLOOKUP(BQ6,DataFromEngine!$K$286:$BH$287,2,FALSE),0) -> 0 | BR7: =IFERROR(HLOOKUP(BR6,DataFromEngine!$K$286:$BH$287,2,FALSE),0) -> 0 | BS7: =IFERROR(HLOOKUP(BS6,DataFromEngine!$K$286:$BH$287,2,FALSE),0) -> 0 | BT7: =IFERROR(HLOOKUP(BT6,DataFromEngine!$K$286:$BH$287,2,FALSE),0) -> 0 | BU7: =IFERROR(HLOOKUP(BU6,DataFromEngine!$K$286:$BH$287,2,FALSE),0) -> 0 | BV7: =IFERROR(HLOOKUP(BV6,DataFromEngine!$K$286:$BH$287,2,FALSE),0) -> 0 | BW7: =IFERROR(HLOOKUP(BW6,DataFromEngine!$K$286:$BH$287,2,FALSE),0) -> 0 | BX7: =IFERROR(HLOOKUP(BX6,DataFromEngine!$K$286:$BH$287,2,FALSE),0) -> 0 | BY7: =IFERROR(HLOOKUP(BY6,DataFromEngine!$K$286:$BH$287,2,FALSE),0) -> 0 | BZ7: =IFERROR(HLOOKUP(BZ6,DataFromEngine!$K$286:$BH$287,2,FALSE),0) -> 0 | CA7: =IFERROR(HLOOKUP(CA6,DataFromEngine!$K$286:$BH$287,2,FALSE),0) -> 0 | CB7: =IFERROR(HLOOKUP(CB6,DataFromEngine!$K$286:$BH$287,2,FALSE),0) -> 0 | CC7: =IFERROR(HLOOKUP(CC6,DataFromEngine!$K$286:$BH$287,2,FALSE),0) -> 0 | CD7: =IFERROR(HLOOKUP(CD6,DataFromEngine!$K$286:$BH$287,2,FALSE),0) -> 0 | CE7: =IFERROR(HLOOKUP(CE6,DataFromEngine!$K$286:$BH$287,2,FALSE),0) -> 0
B8: Return on Equity ($) | C8: =SUM(D8:CE8) -> 21809586.44 | D8: =ROUND(SUMIF(DataFromEngine!$J$13:$AJV$13,D$6,DataFromEngine!$J259:$AJV259),3)/Scale -> 0 | E8: =ROUND(SUMIF(DataFromEngine!$J$13:$AJV$13,E$6,DataFromEngine!$J259:$AJV259),3)/Scale -> 0 | F8: =ROUND(SUMIF(DataFromEngine!$J$13:$AJV$13,F$6,DataFromEngine!$J259:$AJV259),3)/Scale -> 0 | G8: =ROUND(SUMIF(DataFromEngine!$J$13:$AJV$13,G$6,DataFromEngine!$J259:$AJV259),3)/Scale -> 9462.07 | H8: =ROUND(SUMIF(DataFromEngine!$J$13:$AJV$13,H$6,DataFromEngine!$J259:$AJV259),3)/Scale -> 792961.205 | I8: =ROUND(SUMIF(DataFromEngine!$J$13:$AJV$13,I$6,DataFromEngine!$J259:$AJV259),3)/Scale -> 2010726.033 | J8: =ROUND(SUMIF(DataFromEngine!$J$13:$AJV$13,J$6,DataFromEngine!$J259:$AJV259),3)/Scale -> 2198815.267 | K8: =ROUND(SUMIF(DataFromEngine!$J$13:$AJV$13,K$6,DataFromEngine!$J259:$AJV259),3)/Scale -> 2079813.117 | L8: =ROUND(SUMIF(DataFromEngine!$J$13:$AJV$13,L$6,DataFromEngine!$J259:$AJV259),3)/Scale -> 1963296.647 | M8: =ROUND(SUMIF(DataFromEngine!$J$13:$AJV$13,M$6,DataFromEngine!$J259:$AJV259),3)/Scale -> 1849079.431 | N8: =ROUND(SUMIF(DataFromEngine!$J$13:$AJV$13,N$6,DataFromEngine!$J259:$AJV259),3)/Scale -> 1736989.025 | O8: =ROUND(SUMIF(DataFromEngine!$J$13:$AJV$13,O$6,DataFromEngine!$J259:$AJV259),3)/Scale -> 1626842.851 | P8: =ROUND(SUMIF(DataFromEngine!$J$13:$AJV$13,P$6,DataFromEngine!$J259:$AJV259),3)/Scale -> 1518039.15 | Q8: =ROUND(SUMIF(DataFromEngine!$J$13:$AJV$13,Q$6,DataFromEngine!$J259:$AJV259),3)/Scale -> 1409724.981 | R8: =ROUND(SUMIF(DataFromEngine!$J$13:$AJV$13,R$6,DataFromEngine!$J259:$AJV259),3)/Scale -> 1309284.576 | S8: =ROUND(SUMIF(DataFromEngine!$J$13:$AJV$13,S$6,DataFromEngine!$J259:$AJV259),3)/Scale -> 1226906.565 | T8: =ROUND(SUMIF(DataFromEngine!$J$13:$AJV$13,T$6,DataFromEngine!$J259:$AJV259),3)/Scale -> 1150236.949 | U8: =ROUND(SUMIF(DataFromEngine!$J$13:$AJV$13,U$6,DataFromEngine!$J259:$AJV259),3)/Scale -> 1074723.875 | V8: =ROUND(SUMIF(DataFromEngine!$J$13:$AJV$13,V$6,DataFromEngine!$J259:$AJV259),3)/Scale -> 999210.801 | W8: =ROUND(SUMIF(DataFromEngine!$J$13:$AJV$13,W$6,DataFromEngine!$J259:$AJV259),3)/Scale -> 923697.727 | X8: =ROUND(SUMIF(DataFromEngine!$J$13:$AJV$13,X$6,DataFromEngine!$J259:$AJV259),3)/Scale -> 848184.653 | Y8: =ROUND(SUMIF(DataFromEngine!$J$13:$AJV$13,Y$6,DataFromEngine!$J259:$AJV259),3)/Scale -> 772671.579 | Z8: =ROUND(SUMIF(DataFromEngine!$J$13:$AJV$13,Z$6,DataFromEngine!$J259:$AJV259),3)/Scale -> 697158.505 | AA8: =ROUND(SUMIF(DataFromEngine!$J$13:$AJV$13,AA$6,DataFromEngine!$J259:$AJV259),3)/Scale -> 621829.971 | AB8: =ROUND(SUMIF(DataFromEngine!$J$13:$AJV$13,AB$6,DataFromEngine!$J259:$AJV259),3)/Scale -> 550296.594 | AC8: =ROUND(SUMIF(DataFromEngine!$J$13:$AJV$13,AC$6,DataFromEngine!$J259:$AJV259),3)/Scale -> 487793.292 | AD8: =ROUND(SUMIF(DataFromEngine!$J$13:$AJV$13,AD$6,DataFromEngine!$J259:$AJV259),3)/Scale -> 432702.824 | AE8: =ROUND(SUMIF(DataFromEngine!$J$13:$AJV$13,AE$6,DataFromEngine!$J259:$AJV259),3)/Scale -> 379605.735 | AF8: =ROUND(SUMIF(DataFromEngine!$J$13:$AJV$13,AF$6,DataFromEngine!$J259:$AJV259),3)/Scale -> 326508.646 | AG8: =ROUND(SUMIF(DataFromEngine!$J$13:$AJV$13,AG$6,DataFromEngine!$J259:$AJV259),3)/Scale -> 273411.556 | AH8: =ROUND(SUMIF(DataFromEngine!$J$13:$AJV$13,AH$6,DataFromEngine!$J259:$AJV259),3)/Scale -> 220314.467 | AI8: =ROUND(SUMIF(DataFromEngine!$J$13:$AJV$13,AI$6,DataFromEngine!$J259:$AJV259),3)/Scale -> 167217.378 | AJ8: =ROUND(SUMIF(DataFromEngine!$J$13:$AJV$13,AJ$6,DataFromEngine!$J259:$AJV259),3)/Scale -> 114120.289 | AK8: =ROUND(SUMIF(DataFromEngine!$J$13:$AJV$13,AK$6,DataFromEngine!$J259:$AJV259),3)/Scale -> 61023.199 | AL8: =ROUND(SUMIF(DataFromEngine!$J$13:$AJV$13,AL$6,DataFromEngine!$J259:$AJV259),3)/Scale -> 7926.11 | AM8: =ROUND(SUMIF(DataFromEngine!$J$13:$AJV$13,AM$6,DataFromEngine!$J259:$AJV259),3)/Scale -> -45170.979 | AN8: =ROUND(SUMIF(DataFromEngine!$J$13:$AJV$13,AN$6,DataFromEngine!$J259:$AJV259),3)/Scale -> -98268.068 | AO8: =ROUND(SUMIF(DataFromEngine!$J$13:$AJV$13,AO$6,DataFromEngine!$J259:$AJV259),3)/Scale -> -151365.158 | AP8: =ROUND(SUMIF(DataFromEngine!$J$13:$AJV$13,AP$6,DataFromEngine!$J259:$AJV259),3)/Scale -> -204462.247 | AQ8: =ROUND(SUMIF(DataFromEngine!$J$13:$AJV$13,AQ$6,DataFromEngine!$J259:$AJV259),3)/Scale -> -257559.336 | AR8: =ROUND(SUMIF(DataFromEngine!$J$13:$AJV$13,AR$6,DataFromEngine!$J259:$AJV259),3)/Scale -> -310656.425 | AS8: =ROUND(SUMIF(DataFromEngine!$J$13:$AJV$13,AS$6,DataFromEngine!$J259:$AJV259),3)/Scale -> -363753.514 | AT8: =ROUND(SUMIF(DataFromEngine!$J$13:$AJV$13,AT$6,DataFromEngine!$J259:$AJV259),3)/Scale -> -416850.604 | AU8: =ROUND(SUMIF(DataFromEngine!$J$13:$AJV$13,AU$6,DataFromEngine!$J259:$AJV259),3)/Scale -> -469947.693 | AV8: =ROUND(SUMIF(DataFromEngine!$J$13:$AJV$13,AV$6,DataFromEngine!$J259:$AJV259),3)/Scale -> -523044.782 | AW8: =ROUND(SUMIF(DataFromEngine!$J$13:$AJV$13,AW$6,DataFromEngine!$J259:$AJV259),3)/Scale -> -576141.871 | AX8: =ROUND(SUMIF(DataFromEngine!$J$13:$AJV$13,AX$6,DataFromEngine!$J259:$AJV259),3)/Scale -> -629238.961 | AY8: =ROUND(SUMIF(DataFromEngine!$J$13:$AJV$13,AY$6,DataFromEngine!$J259:$AJV259),3)/Scale -> -682336.05 | AZ8: =ROUND(SUMIF(DataFromEngine!$J$13:$AJV$13,AZ$6,DataFromEngine!$J259:$AJV259),3)/Scale -> -731453.612 | BA8: =ROUND(SUMIF(DataFromEngine!$J$13:$AJV$13,BA$6,DataFromEngine!$J259:$AJV259),3)/Scale -> -562172.117 | BB8: =ROUND(SUMIF(DataFromEngine!$J$13:$AJV$13,BB$6,DataFromEngine!$J259:$AJV259),3)/Scale -> -178759.53 | BC8: =ROUND(SUMIF(DataFromEngine!$J$13:$AJV$13,BC$6,DataFromEngine!$J259:$AJV259),3)/Scale -> -108201.78 | BD8: =ROUND(SUMIF(DataFromEngine!$J$13:$AJV$13,BD$6,DataFromEngine!$J259:$AJV259),3)/Scale -> -120711.649 | BE8: =ROUND(SUMIF(DataFromEngine!$J$13:$AJV$13,BE$6,DataFromEngine!$J259:$AJV259),3)/Scale -> -133221.518 | BF8: =ROUND(SUMIF(DataFromEngine!$J$13:$AJV$13,BF$6,DataFromEngine!$J259:$AJV259),3)/Scale -> -145731.387 | BG8: =ROUND(SUMIF(DataFromEngine!$J$13:$AJV$13,BG$6,DataFromEngine!$J259:$AJV259),3)/Scale -> -158241.256 | BH8: =ROUND(SUMIF(DataFromEngine!$J$13:$AJV$13,BH$6,DataFromEngine!$J259:$AJV259),3)/Scale -> -170751.126 | BI8: =ROUND(SUMIF(DataFromEngine!$J$13:$AJV$13,BI$6,DataFromEngine!$J259:$AJV259),3)/Scale -> -183260.995 | BJ8: =ROUND(SUMIF(DataFromEngine!$J$13:$AJV$13,BJ$6,DataFromEngine!$J259:$AJV259),3)/Scale -> -195770.864 | BK8: =ROUND(SUMIF(DataFromEngine!$J$13:$AJV$13,BK$6,DataFromEngine!$J259:$AJV259),3)/Scale -> -208280.733 | BL8: =ROUND(SUMIF(DataFromEngine!$J$13:$AJV$13,BL$6,DataFromEngine!$J259:$AJV259),3)/Scale -> -219473.858 | BM8: =ROUND(SUMIF(DataFromEngine!$J$13:$AJV$13,BM$6,DataFromEngine!$J259:$AJV259),3)/Scale -> -158618.627 | BN8: =ROUND(SUMIF(DataFromEngine!$J$13:$AJV$13,BN$6,DataFromEngine!$J259:$AJV259),3)/Scale -> -27543.884 | BO8: =ROUND(SUMIF(DataFromEngine!$J$13:$AJV$13,BO$6,DataFromEngine!$J259:$AJV259),3)/Scale -> 0 | BP8: =ROUND(SUMIF(DataFromEngine!$J$13:$AJV$13,BP$6,DataFromEngine!$J259:$AJV259),3)/Scale -> 0 | BQ8: =ROUND(SUMIF(DataFromEngine!$J$13:$AJV$13,BQ$6,DataFromEngine!$J259:$AJV259),3)/Scale -> 0 | BR8: =ROUND(SUMIF(DataFromEngine!$J$13:$AJV$13,BR$6,DataFromEngine!$J259:$AJV259),3)/Scale -> 0 | BS8: =ROUND(SUMIF(DataFromEngine!$J$13:$AJV$13,BS$6,DataFromEngine!$J259:$AJV259),3)/Scale -> 0 | BT8: =ROUND(SUMIF(DataFromEngine!$J$13:$AJV$13,BT$6,DataFromEngine!$J259:$AJV259),3)/Scale -> 0 | BU8: =ROUND(SUMIF(DataFromEngine!$J$13:$AJV$13,BU$6,DataFromEngine!$J259:$AJV259),3)/Scale -> 0 | BV8: =ROUND(SUMIF(DataFromEngine!$J$13:$AJV$13,BV$6,DataFromEngine!$J259:$AJV259),3)/Scale -> 0 | BW8: =ROUND(SUMIF(DataFromEngine!$J$13:$AJV$13,BW$6,DataFromEngine!$J259:$AJV259),3)/Scale -> 0 | BX8: =ROUND(SUMIF(DataFromEngine!$J$13:$AJV$13,BX$6,DataFromEngine!$J259:$AJV259),3)/Scale -> 0 | BY8: =ROUND(SUMIF(DataFromEngine!$J$13:$AJV$13,BY$6,DataFromEngine!$J259:$AJV259),3)/Scale -> 0 | BZ8: =ROUND(SUMIF(DataFromEngine!$J$13:$AJV$13,BZ$6,DataFromEngine!$J259:$AJV259),3)/Scale -> 0 | CA8: =ROUND(SUMIF(DataFromEngine!$J$13:$AJV$13,CA$6,DataFromEngine!$J259:$AJV259),3)/Scale -> 0 | CB8: =ROUND(SUMIF(DataFromEngine!$J$13:$AJV$13,CB$6,DataFromEngine!$J259:$AJV259),3)/Scale -> 0 | CC8: =ROUND(SUMIF(DataFromEngine!$J$13:$AJV$13,CC$6,DataFromEngine!$J259:$AJV259),3)/Scale -> 0 | CD8: =ROUND(SUMIF(DataFromEngine!$J$13:$AJV$13,CD$6,DataFromEngine!$J259:$AJV259),3)/Scale -> 0 | CE8: =ROUND(SUMIF(DataFromEngine!$J$13:$AJV$13,CE$6,DataFromEngine!$J259:$AJV259),3)/Scale -> 0
B9: Weighted Return on Equity (%) | D9: =IF(ISERROR(D8/D7),"-",(D8/D7)) -> - | E9: =IF(ISERROR(E8/E7),"-",(E8/E7)) -> - | F9: =IF(ISERROR(F8/F7),"-",(F8/F7)) -> - | G9: 0.05309369109 | H9: 0.05309159884 | I9: 0.0530688638 | J9: 0.05306670046 | K9: 0.05306501315 | L9: 0.05306312914 | M9: 0.05306101801 | N9: 0.05305864232 | O9: 0.05305595485 | P9: 0.05305288888 | Q9: 0.05304935509 | R9: 0.05304624365 | S9: 0.05304514189 | T9: 0.05304472686 | U9: 0.0530444355 | V9: 0.05304410011 | W9: 0.05304370988 | X9: 0.05304325018 | Y9: 0.05304270064 | Z9: 0.05304203207 | AA9: 0.05304121774 | AB9: 0.05304044723 | AC9: 0.05304006098 | AD9: 0.05304 | AE9: 0.05304000003 | AF9: 0.05304000008 | AG9: 0.05303999994 | AH9: 0.05303999998 | AI9: 0.05304000005 | AJ9: 0.05304000017 | AK9: 0.05303999965 | AL9: 0.05303999886 | AM9: 0.05303999993 | AN9: 0.05303999985 | AO9: 0.05304000017 | AP9: 0.05304000007 | AQ9: 0.05304000001 | AR9: 0.05303999997 | AS9: 0.05303999994 | AT9: 0.05304000004 | AU9: 0.05304000001 | AV9: 0.05303999999 | AW9: 0.05303999997 | AX9: 0.05304000004 | AY9: 0.05304000002 | AZ9: 0.05303999997 | BA9: 0.05304000004 | BB9: 0.05303999999 | BC9: =IF(ISERROR(BC8/BC7),"-",(BC8/BC7)) -> - | BD9: - | BE9: - | BF9: - | BG9: - | BH9: - | BI9: - | BJ9: - | BK9: - | BL9: =IF(ISERROR(BL8/BL7),"-",(BL8/BL7)) -> - | BM9: - | BN9: - | BO9: - | BP9: - | BQ9: - | BR9: - | BS9: - | BT9: - | BU9: - | BV9: - | BW9: - | BX9: - | BY9: - | BZ9: - | CA9: - | CB9: - | CC9: - | CD9: - | CE9: -
B10: Return on Preferred ($) | C10: =SUM(D10:CE10) -> 687832.223 | D10: =ROUND(SUMIF(DataFromEngine!$J$13:$AJV$13,D$6,DataFromEngine!$J258:$AJV258),3)/Scale -> 0 | E10: =ROUND(SUMIF(DataFromEngine!$J$13:$AJV$13,E$6,DataFromEngine!$J258:$AJV258),3)/Scale -> 0 | F10: =ROUND(SUMIF(DataFromEngine!$J$13:$AJV$13,F$6,DataFromEngine!$J258:$AJV258),3)/Scale -> 0 | G10: =ROUND(SUMIF(DataFromEngine!$J$13:$AJV$13,G$6,DataFromEngine!$J258:$AJV258),3)/Scale -> 286.618 | H10: =ROUND(SUMIF(DataFromEngine!$J$13:$AJV$13,H$6,DataFromEngine!$J258:$AJV258),3)/Scale -> 24080.164 | I10: =ROUND(SUMIF(DataFromEngine!$J$13:$AJV$13,I$6,DataFromEngine!$J258:$AJV258),3)/Scale -> 62726.826 | J10: =ROUND(SUMIF(DataFromEngine!$J$13:$AJV$13,J$6,DataFromEngine!$J258:$AJV258),3)/Scale -> 68767.949 | K10: =ROUND(SUMIF(DataFromEngine!$J$13:$AJV$13,K$6,DataFromEngine!$J258:$AJV258),3)/Scale -> 65174.142 | L10: =ROUND(SUMIF(DataFromEngine!$J$13:$AJV$13,L$6,DataFromEngine!$J258:$AJV258),3)/Scale -> 61657.829 | M10: =ROUND(SUMIF(DataFromEngine!$J$13:$AJV$13,M$6,DataFromEngine!$J258:$AJV258),3)/Scale -> 58213.197 | N10: =ROUND(SUMIF(DataFromEngine!$J$13:$AJV$13,N$6,DataFromEngine!$J258:$AJV258),3)/Scale -> 54834.871 | O10: =ROUND(SUMIF(DataFromEngine!$J$13:$AJV$13,O$6,DataFromEngine!$J258:$AJV258),3)/Scale -> 51517.181 | P10: =ROUND(SUMIF(DataFromEngine!$J$13:$AJV$13,P$6,DataFromEngine!$J258:$AJV258),3)/Scale -> 48241.514 | Q10: =ROUND(SUMIF(DataFromEngine!$J$13:$AJV$13,Q$6,DataFromEngine!$J258:$AJV258),3)/Scale -> 44981.203 | R10: =ROUND(SUMIF(DataFromEngine!$J$13:$AJV$13,R$6,DataFromEngine!$J258:$AJV258),3)/Scale -> 41925.047 | S10: =ROUND(SUMIF(DataFromEngine!$J$13:$AJV$13,S$6,DataFromEngine!$J258:$AJV258),3)/Scale -> 39336.53 | T10: =ROUND(SUMIF(DataFromEngine!$J$13:$AJV$13,T$6,DataFromEngine!$J258:$AJV258),3)/Scale -> 36895.807 | U10: =ROUND(SUMIF(DataFromEngine!$J$13:$AJV$13,U$6,DataFromEngine!$J258:$AJV258),3)/Scale -> 34485.026 | V10: =ROUND(SUMIF(DataFromEngine!$J$13:$AJV$13,V$6,DataFromEngine!$J258:$AJV258),3)/Scale -> 32074.245 | W10: =ROUND(SUMIF(DataFromEngine!$J$13:$AJV$13,W$6,DataFromEngine!$J258:$AJV258),3)/Scale -> 29663.464 | X10: =ROUND(SUMIF(DataFromEngine!$J$13:$AJV$13,X$6,DataFromEngine!$J258:$AJV258),3)/Scale -> 27252.683 | Y10: =ROUND(SUMIF(DataFromEngine!$J$13:$AJV$13,Y$6,DataFromEngine!$J258:$AJV258),3)/Scale -> 24841.902 | Z10: =ROUND(SUMIF(DataFromEngine!$J$13:$AJV$13,Z$6,DataFromEngine!$J258:$AJV258),3)/Scale -> 22431.121 | AA10: =ROUND(SUMIF(DataFromEngine!$J$13:$AJV$13,AA$6,DataFromEngine!$J258:$AJV258),3)/Scale -> 20025.905 | AB10: =ROUND(SUMIF(DataFromEngine!$J$13:$AJV$13,AB$6,DataFromEngine!$J258:$AJV258),3)/Scale -> 17737.666 | AC10: =ROUND(SUMIF(DataFromEngine!$J$13:$AJV$13,AC$6,DataFromEngine!$J258:$AJV258),3)/Scale -> 15729.881 | AD10: =ROUND(SUMIF(DataFromEngine!$J$13:$AJV$13,AD$6,DataFromEngine!$J258:$AJV258),3)/Scale -> 13954.34 | AE10: =ROUND(SUMIF(DataFromEngine!$J$13:$AJV$13,AE$6,DataFromEngine!$J258:$AJV258),3)/Scale -> 12241.999 | AF10: =ROUND(SUMIF(DataFromEngine!$J$13:$AJV$13,AF$6,DataFromEngine!$J258:$AJV258),3)/Scale -> 10529.658 | AG10: =ROUND(SUMIF(DataFromEngine!$J$13:$AJV$13,AG$6,DataFromEngine!$J258:$AJV258),3)/Scale -> 8817.316 | AH10: =ROUND(SUMIF(DataFromEngine!$J$13:$AJV$13,AH$6,DataFromEngine!$J258:$AJV258),3)/Scale -> 7104.975 | AI10: =ROUND(SUMIF(DataFromEngine!$J$13:$AJV$13,AI$6,DataFromEngine!$J258:$AJV258),3)/Scale -> 5392.634 | AJ10: =ROUND(SUMIF(DataFromEngine!$J$13:$AJV$13,AJ$6,DataFromEngine!$J258:$AJV258),3)/Scale -> 3680.293 | AK10: =ROUND(SUMIF(DataFromEngine!$J$13:$AJV$13,AK$6,DataFromEngine!$J258:$AJV258),3)/Scale -> 1967.952 | AL10: =ROUND(SUMIF(DataFromEngine!$J$13:$AJV$13,AL$6,DataFromEngine!$J258:$AJV258),3)/Scale -> 255.611 | AM10: =ROUND(SUMIF(DataFromEngine!$J$13:$AJV$13,AM$6,DataFromEngine!$J258:$AJV258),3)/Scale -> -1456.73 | AN10: =ROUND(SUMIF(DataFromEngine!$J$13:$AJV$13,AN$6,DataFromEngine!$J258:$AJV258),3)/Scale -> -3169.071 | AO10: =ROUND(SUMIF(DataFromEngine!$J$13:$AJV$13,AO$6,DataFromEngine!$J258:$AJV258),3)/Scale -> -4881.412 | AP10: =ROUND(SUMIF(DataFromEngine!$J$13:$AJV$13,AP$6,DataFromEngine!$J258:$AJV258),3)/Scale -> -6593.753 | AQ10: =ROUND(SUMIF(DataFromEngine!$J$13:$AJV$13,AQ$6,DataFromEngine!$J258:$AJV258),3)/Scale -> -8306.094 | AR10: =ROUND(SUMIF(DataFromEngine!$J$13:$AJV$13,AR$6,DataFromEngine!$J258:$AJV258),3)/Scale -> -10018.435 | AS10: =ROUND(SUMIF(DataFromEngine!$J$13:$AJV$13,AS$6,DataFromEngine!$J258:$AJV258),3)/Scale -> -11730.777 | AT10: =ROUND(SUMIF(DataFromEngine!$J$13:$AJV$13,AT$6,DataFromEngine!$J258:$AJV258),3)/Scale -> -13443.118 | AU10: =ROUND(SUMIF(DataFromEngine!$J$13:$AJV$13,AU$6,DataFromEngine!$J258:$AJV258),3)/Scale -> -15155.459 | AV10: =ROUND(SUMIF(DataFromEngine!$J$13:$AJV$13,AV$6,DataFromEngine!$J258:$AJV258),3)/Scale -> -16867.8 | AW10: =ROUND(SUMIF(DataFromEngine!$J$13:$AJV$13,AW$6,DataFromEngine!$J258:$AJV258),3)/Scale -> -18580.141 | AX10: =ROUND(SUMIF(DataFromEngine!$J$13:$AJV$13,AX$6,DataFromEngine!$J258:$AJV258),3)/Scale -> -20292.482 | AY10: =ROUND(SUMIF(DataFromEngine!$J$13:$AJV$13,AY$6,DataFromEngine!$J258:$AJV258),3)/Scale -> -22004.823 | AZ10: =ROUND(SUMIF(DataFromEngine!$J$13:$AJV$13,AZ$6,DataFromEngine!$J258:$AJV258),3)/Scale -> -23588.827 | BA10: =ROUND(SUMIF(DataFromEngine!$J$13:$AJV$13,BA$6,DataFromEngine!$J258:$AJV258),3)/Scale -> -18129.627 | BB10: =ROUND(SUMIF(DataFromEngine!$J$13:$AJV$13,BB$6,DataFromEngine!$J258:$AJV258),3)/Scale -> -5764.86 | BC10: =ROUND(SUMIF(DataFromEngine!$J$13:$AJV$13,BC$6,DataFromEngine!$J258:$AJV258),3)/Scale -> -3489.426 | BD10: =ROUND(SUMIF(DataFromEngine!$J$13:$AJV$13,BD$6,DataFromEngine!$J258:$AJV258),3)/Scale -> -3892.86 | BE10: =ROUND(SUMIF(DataFromEngine!$J$13:$AJV$13,BE$6,DataFromEngine!$J258:$AJV258),3)/Scale -> -4296.293 | BF10: =ROUND(SUMIF(DataFromEngine!$J$13:$AJV$13,BF$6,DataFromEngine!$J258:$AJV258),3)/Scale -> -4699.727 | BG10: =ROUND(SUMIF(DataFromEngine!$J$13:$AJV$13,BG$6,DataFromEngine!$J258:$AJV258),3)/Scale -> -5103.161 | BH10: =ROUND(SUMIF(DataFromEngine!$J$13:$AJV$13,BH$6,DataFromEngine!$J258:$AJV258),3)/Scale -> -5506.595 | BI10: =ROUND(SUMIF(DataFromEngine!$J$13:$AJV$13,BI$6,DataFromEngine!$J258:$AJV258),3)/Scale -> -5910.029 | BJ10: =ROUND(SUMIF(DataFromEngine!$J$13:$AJV$13,BJ$6,DataFromEngine!$J258:$AJV258),3)/Scale -> -6313.463 | BK10: =ROUND(SUMIF(DataFromEngine!$J$13:$AJV$13,BK$6,DataFromEngine!$J258:$AJV258),3)/Scale -> -6716.897 | BL10: =ROUND(SUMIF(DataFromEngine!$J$13:$AJV$13,BL$6,DataFromEngine!$J258:$AJV258),3)/Scale -> -7077.866 | BM10: =ROUND(SUMIF(DataFromEngine!$J$13:$AJV$13,BM$6,DataFromEngine!$J258:$AJV258),3)/Scale -> -5115.331 | BN10: =ROUND(SUMIF(DataFromEngine!$J$13:$AJV$13,BN$6,DataFromEngine!$J258:$AJV258),3)/Scale -> -888.269 | BO10: =ROUND(SUMIF(DataFromEngine!$J$13:$AJV$13,BO$6,DataFromEngine!$J258:$AJV258),3)/Scale -> 0 | BP10: =ROUND(SUMIF(DataFromEngine!$J$13:$AJV$13,BP$6,DataFromEngine!$J258:$AJV258),3)/Scale -> 0 | BQ10: =ROUND(SUMIF(DataFromEngine!$J$13:$AJV$13,BQ$6,DataFromEngine!$J258:$AJV258),3)/Scale -> 0 | BR10: =ROUND(SUMIF(DataFromEngine!$J$13:$AJV$13,BR$6,DataFromEngine!$J258:$AJV258),3)/Scale -> 0 | BS10: =ROUND(SUMIF(DataFromEngine!$J$13:$AJV$13,BS$6,DataFromEngine!$J258:$AJV258),3)/Scale -> 0 | BT10: =ROUND(SUMIF(DataFromEngine!$J$13:$AJV$13,BT$6,DataFromEngine!$J258:$AJV258),3)/Scale -> 0 | BU10: =ROUND(SUMIF(DataFromEngine!$J$13:$AJV$13,BU$6,DataFromEngine!$J258:$AJV258),3)/Scale -> 0 | BV10: =ROUND(SUMIF(DataFromEngine!$J$13:$AJV$13,BV$6,DataFromEngine!$J258:$AJV258),3)/Scale -> 0 | BW10: =ROUND(SUMIF(DataFromEngine!$J$13:$AJV$13,BW$6,DataFromEngine!$J258:$AJV258),3)/Scale -> 0 | BX10: =ROUND(SUMIF(DataFromEngine!$J$13:$AJV$13,BX$6,DataFromEngine!$J258:$AJV258),3)/Scale -> 0 | BY10: =ROUND(SUMIF(DataFromEngine!$J$13:$AJV$13,BY$6,DataFromEngine!$J258:$AJV258),3)/Scale -> 0 | BZ10: =ROUND(SUMIF(DataFromEngine!$J$13:$AJV$13,BZ$6,DataFromEngine!$J258:$AJV258),3)/Scale -> 0 | CA10: =ROUND(SUMIF(DataFromEngine!$J$13:$AJV$13,CA$6,DataFromEngine!$J258:$AJV258),3)/Scale -> 0 | CB10: =ROUND(SUMIF(DataFromEngine!$J$13:$AJV$13,CB$6,DataFromEngine!$J258:$AJV258),3)/Scale -> 0 | CC10: =ROUND(SUMIF(DataFromEngine!$J$13:$AJV$13,CC$6,DataFromEngine!$J258:$AJV258),3)/Scale -> 0 | CD10: =ROUND(SUMIF(DataFromEngine!$J$13:$AJV$13,CD$6,DataFromEngine!$J258:$AJV258),3)/Scale -> 0 | CE10: =ROUND(SUMIF(DataFromEngine!$J$13:$AJV$13,CE$6,DataFromEngine!$J258:$AJV258),3)/Scale -> 0
B11: Weighted Return on Preferred (%) | D11: =IF(ISERROR(D10/D7),"-",(D10/D7)) -> - | E11: =IF(ISERROR(E10/E7),"-",(E10/E7)) -> - | F11: =IF(ISERROR(F10/F7),"-",(F10/F7)) -> - | G11: 0.001608274675 | H11: 0.00161225341 | I11: 0.001655541994 | J11: 0.001659661094 | K11: 0.001662873781 | L11: 0.001666461025 | M11: 0.001670480696 | N11: 0.00167500414 | O11: 0.001680121241 | P11: 0.001685958944 | Q11: 0.001692687469 | R11: 0.001698611821 | S11: 0.001700709634 | T11: 0.001701499857 | U11: 0.001702054621 | V11: 0.001702693226 | W11: 0.001703436235 | X11: 0.001704311529 | Y11: 0.001705357887 | Z11: 0.001706630889 | AA11: 0.001708181395 | AB11: 0.001709648483 | AC11: 0.001710384011 | AD11: 0.00171050003 | AE11: 0.001710500046 | AF11: 0.001710500068 | AG11: 0.001710499903 | AH11: 0.0017104999 | AI11: 0.001710499896 | AJ11: 0.001710499886 | AK11: 0.001710499861 | AL11: 0.001710499495 | AM11: 0.001710499989 | AN11: 0.00171049995 | AO11: 0.001710499938 | AP11: 0.001710499932 | AQ11: 0.001710499929 | AR11: 0.001710499926 | AS11: 0.001710500071 | AT11: 0.001710500051 | AU11: 0.001710500036 | AV11: 0.001710500023 | AW11: 0.001710500013 | AX11: 0.001710500005 | AY11: 0.001710499998 | AZ11: 0.001710499973 | BA11: 0.001710500019 | BB11: 0.001710499991 | BC11: =IF(ISERROR(BC10/BC7),"-",(BC10/BC7)) -> - | BD11: - | BE11: - | BF11: - | BG11: - | BH11: - | BI11: - | BJ11: - | BK11: - | BL11: =IF(ISERROR(BL10/BL7),"-",(BL10/BL7)) -> - | BM11: - | BN11: - | BO11: - | BP11: - | BQ11: - | BR11: - | BS11: - | BT11: - | BU11: - | BV11: - | BW11: - | BX11: - | BY11: - | BZ11: - | CA11: - | CB11: - | CC11: - | CD11: - | CE11: -
B12: Return on Debt ($) | C12: =SUM(D12:CE12) -> 8525925.569 | D12: =ROUND(SUMIF(DataFromEngine!$J$13:$AJV$13,D$6,DataFromEngine!$J257:$AJV257),3)/Scale -> 0 | E12: =ROUND(SUMIF(DataFromEngine!$J$13:$AJV$13,E$6,DataFromEngine!$J257:$AJV257),3)/Scale -> 0 | F12: =ROUND(SUMIF(DataFromEngine!$J$13:$AJV$13,F$6,DataFromEngine!$J257:$AJV257),3)/Scale -> 0 | G12: =ROUND(SUMIF(DataFromEngine!$J$13:$AJV$13,G$6,DataFromEngine!$J257:$AJV257),3)/Scale -> 3688.001 | H12: =ROUND(SUMIF(DataFromEngine!$J$13:$AJV$13,H$6,DataFromEngine!$J257:$AJV257),3)/Scale -> 309126.102 | I12: =ROUND(SUMIF(DataFromEngine!$J$13:$AJV$13,I$6,DataFromEngine!$J257:$AJV257),3)/Scale -> 785405.252 | J12: =ROUND(SUMIF(DataFromEngine!$J$13:$AJV$13,J$6,DataFromEngine!$J257:$AJV257),3)/Scale -> 859035.589 | K12: =ROUND(SUMIF(DataFromEngine!$J$13:$AJV$13,K$6,DataFromEngine!$J257:$AJV257),3)/Scale -> 812662.643 | L12: =ROUND(SUMIF(DataFromEngine!$J$13:$AJV$13,L$6,DataFromEngine!$J257:$AJV257),3)/Scale -> 767260.576 | M12: =ROUND(SUMIF(DataFromEngine!$J$13:$AJV$13,M$6,DataFromEngine!$J257:$AJV257),3)/Scale -> 722756.571 | N12: =ROUND(SUMIF(DataFromEngine!$J$13:$AJV$13,N$6,DataFromEngine!$J257:$AJV257),3)/Scale -> 679083.276 | O12: =ROUND(SUMIF(DataFromEngine!$J$13:$AJV$13,O$6,DataFromEngine!$J257:$AJV257),3)/Scale -> 636169.398 | P12: =ROUND(SUMIF(DataFromEngine!$J$13:$AJV$13,P$6,DataFromEngine!$J257:$AJV257),3)/Scale -> 593780.034 | Q12: =ROUND(SUMIF(DataFromEngine!$J$13:$AJV$13,Q$6,DataFromEngine!$J257:$AJV257),3)/Scale -> 551581.962 | R12: =ROUND(SUMIF(DataFromEngine!$J$13:$AJV$13,R$6,DataFromEngine!$J257:$AJV257),3)/Scale -> 512420.899 | S12: =ROUND(SUMIF(DataFromEngine!$J$13:$AJV$13,S$6,DataFromEngine!$J257:$AJV257),3)/Scale -> 480226.079 | T12: =ROUND(SUMIF(DataFromEngine!$J$13:$AJV$13,T$6,DataFromEngine!$J257:$AJV257),3)/Scale -> 450232.857 | U12: =ROUND(SUMIF(DataFromEngine!$J$13:$AJV$13,U$6,DataFromEngine!$J257:$AJV257),3)/Scale -> 420685.685 | V12: =ROUND(SUMIF(DataFromEngine!$J$13:$AJV$13,V$6,DataFromEngine!$J257:$AJV257),3)/Scale -> 391138.513 | W12: =ROUND(SUMIF(DataFromEngine!$J$13:$AJV$13,W$6,DataFromEngine!$J257:$AJV257),3)/Scale -> 361591.34 | X12: =ROUND(SUMIF(DataFromEngine!$J$13:$AJV$13,X$6,DataFromEngine!$J257:$AJV257),3)/Scale -> 332044.168 | Y12: =ROUND(SUMIF(DataFromEngine!$J$13:$AJV$13,Y$6,DataFromEngine!$J257:$AJV257),3)/Scale -> 302496.996 | Z12: =ROUND(SUMIF(DataFromEngine!$J$13:$AJV$13,Z$6,DataFromEngine!$J257:$AJV257),3)/Scale -> 272949.823 | AA12: =ROUND(SUMIF(DataFromEngine!$J$13:$AJV$13,AA$6,DataFromEngine!$J257:$AJV257),3)/Scale -> 243474.556 | AB12: =ROUND(SUMIF(DataFromEngine!$J$13:$AJV$13,AB$6,DataFromEngine!$J257:$AJV257),3)/Scale -> 215480.389 | AC12: =ROUND(SUMIF(DataFromEngine!$J$13:$AJV$13,AC$6,DataFromEngine!$J257:$AJV257),3)/Scale -> 191012.278 | AD12: =ROUND(SUMIF(DataFromEngine!$J$13:$AJV$13,AD$6,DataFromEngine!$J257:$AJV257),3)/Scale -> 169440.601 | AE12: =ROUND(SUMIF(DataFromEngine!$J$13:$AJV$13,AE$6,DataFromEngine!$J257:$AJV257),3)/Scale -> 148648.496 | AF12: =ROUND(SUMIF(DataFromEngine!$J$13:$AJV$13,AF$6,DataFromEngine!$J257:$AJV257),3)/Scale -> 127856.39 | AG12: =ROUND(SUMIF(DataFromEngine!$J$13:$AJV$13,AG$6,DataFromEngine!$J257:$AJV257),3)/Scale -> 107064.285 | AH12: =ROUND(SUMIF(DataFromEngine!$J$13:$AJV$13,AH$6,DataFromEngine!$J257:$AJV257),3)/Scale -> 86272.18 | AI12: =ROUND(SUMIF(DataFromEngine!$J$13:$AJV$13,AI$6,DataFromEngine!$J257:$AJV257),3)/Scale -> 65480.074 | AJ12: =ROUND(SUMIF(DataFromEngine!$J$13:$AJV$13,AJ$6,DataFromEngine!$J257:$AJV257),3)/Scale -> 44687.969 | AK12: =ROUND(SUMIF(DataFromEngine!$J$13:$AJV$13,AK$6,DataFromEngine!$J257:$AJV257),3)/Scale -> 23895.863 | AL12: =ROUND(SUMIF(DataFromEngine!$J$13:$AJV$13,AL$6,DataFromEngine!$J257:$AJV257),3)/Scale -> 3103.758 | AM12: =ROUND(SUMIF(DataFromEngine!$J$13:$AJV$13,AM$6,DataFromEngine!$J257:$AJV257),3)/Scale -> -17688.347 | AN12: =ROUND(SUMIF(DataFromEngine!$J$13:$AJV$13,AN$6,DataFromEngine!$J257:$AJV257),3)/Scale -> -38480.453 | AO12: =ROUND(SUMIF(DataFromEngine!$J$13:$AJV$13,AO$6,DataFromEngine!$J257:$AJV257),3)/Scale -> -59272.558 | AP12: =ROUND(SUMIF(DataFromEngine!$J$13:$AJV$13,AP$6,DataFromEngine!$J257:$AJV257),3)/Scale -> -80064.663 | AQ12: =ROUND(SUMIF(DataFromEngine!$J$13:$AJV$13,AQ$6,DataFromEngine!$J257:$AJV257),3)/Scale -> -100856.769 | AR12: =ROUND(SUMIF(DataFromEngine!$J$13:$AJV$13,AR$6,DataFromEngine!$J257:$AJV257),3)/Scale -> -121648.874 | AS12: =ROUND(SUMIF(DataFromEngine!$J$13:$AJV$13,AS$6,DataFromEngine!$J257:$AJV257),3)/Scale -> -142440.98 | AT12: =ROUND(SUMIF(DataFromEngine!$J$13:$AJV$13,AT$6,DataFromEngine!$J257:$AJV257),3)/Scale -> -163233.085 | AU12: =ROUND(SUMIF(DataFromEngine!$J$13:$AJV$13,AU$6,DataFromEngine!$J257:$AJV257),3)/Scale -> -184025.19 | AV12: =ROUND(SUMIF(DataFromEngine!$J$13:$AJV$13,AV$6,DataFromEngine!$J257:$AJV257),3)/Scale -> -204817.296 | AW12: =ROUND(SUMIF(DataFromEngine!$J$13:$AJV$13,AW$6,DataFromEngine!$J257:$AJV257),3)/Scale -> -225609.401 | AX12: =ROUND(SUMIF(DataFromEngine!$J$13:$AJV$13,AX$6,DataFromEngine!$J257:$AJV257),3)/Scale -> -246401.506 | AY12: =ROUND(SUMIF(DataFromEngine!$J$13:$AJV$13,AY$6,DataFromEngine!$J257:$AJV257),3)/Scale -> -267193.612 | AZ12: =ROUND(SUMIF(DataFromEngine!$J$13:$AJV$13,AZ$6,DataFromEngine!$J257:$AJV257),3)/Scale -> -286427.388 | BA12: =ROUND(SUMIF(DataFromEngine!$J$13:$AJV$13,BA$6,DataFromEngine!$J257:$AJV257),3)/Scale -> -220139.033 | BB12: =ROUND(SUMIF(DataFromEngine!$J$13:$AJV$13,BB$6,DataFromEngine!$J257:$AJV257),3)/Scale -> -69999.826 | BC12: =ROUND(SUMIF(DataFromEngine!$J$13:$AJV$13,BC$6,DataFromEngine!$J257:$AJV257),3)/Scale -> -42370.36 | BD12: =ROUND(SUMIF(DataFromEngine!$J$13:$AJV$13,BD$6,DataFromEngine!$J257:$AJV257),3)/Scale -> -47269.057 | BE12: =ROUND(SUMIF(DataFromEngine!$J$13:$AJV$13,BE$6,DataFromEngine!$J257:$AJV257),3)/Scale -> -52167.753 | BF12: =ROUND(SUMIF(DataFromEngine!$J$13:$AJV$13,BF$6,DataFromEngine!$J257:$AJV257),3)/Scale -> -57066.449 | BG12: =ROUND(SUMIF(DataFromEngine!$J$13:$AJV$13,BG$6,DataFromEngine!$J257:$AJV257),3)/Scale -> -61965.146 | BH12: =ROUND(SUMIF(DataFromEngine!$J$13:$AJV$13,BH$6,DataFromEngine!$J257:$AJV257),3)/Scale -> -66863.842 | BI12: =ROUND(SUMIF(DataFromEngine!$J$13:$AJV$13,BI$6,DataFromEngine!$J257:$AJV257),3)/Scale -> -71762.539 | BJ12: =ROUND(SUMIF(DataFromEngine!$J$13:$AJV$13,BJ$6,DataFromEngine!$J257:$AJV257),3)/Scale -> -76661.235 | BK12: =ROUND(SUMIF(DataFromEngine!$J$13:$AJV$13,BK$6,DataFromEngine!$J257:$AJV257),3)/Scale -> -81559.931 | BL12: =ROUND(SUMIF(DataFromEngine!$J$13:$AJV$13,BL$6,DataFromEngine!$J257:$AJV257),3)/Scale -> -85943.008 | BM12: =ROUND(SUMIF(DataFromEngine!$J$13:$AJV$13,BM$6,DataFromEngine!$J257:$AJV257),3)/Scale -> -62112.919 | BN12: =ROUND(SUMIF(DataFromEngine!$J$13:$AJV$13,BN$6,DataFromEngine!$J257:$AJV257),3)/Scale -> -10785.814 | BO12: =ROUND(SUMIF(DataFromEngine!$J$13:$AJV$13,BO$6,DataFromEngine!$J257:$AJV257),3)/Scale -> 0 | BP12: =ROUND(SUMIF(DataFromEngine!$J$13:$AJV$13,BP$6,DataFromEngine!$J257:$AJV257),3)/Scale -> 0 | BQ12: =ROUND(SUMIF(DataFromEngine!$J$13:$AJV$13,BQ$6,DataFromEngine!$J257:$AJV257),3)/Scale -> 0 | BR12: =ROUND(SUMIF(DataFromEngine!$J$13:$AJV$13,BR$6,DataFromEngine!$J257:$AJV257),3)/Scale -> 0 | BS12: =ROUND(SUMIF(DataFromEngine!$J$13:$AJV$13,BS$6,DataFromEngine!$J257:$AJV257),3)/Scale -> 0 | BT12: =ROUND(SUMIF(DataFromEngine!$J$13:$AJV$13,BT$6,DataFromEngine!$J257:$AJV257),3)/Scale -> 0 | BU12: =ROUND(SUMIF(DataFromEngine!$J$13:$AJV$13,BU$6,DataFromEngine!$J257:$AJV257),3)/Scale -> 0 | BV12: =ROUND(SUMIF(DataFromEngine!$J$13:$AJV$13,BV$6,DataFromEngine!$J257:$AJV257),3)/Scale -> 0 | BW12: =ROUND(SUMIF(DataFromEngine!$J$13:$AJV$13,BW$6,DataFromEngine!$J257:$AJV257),3)/Scale -> 0 | BX12: =ROUND(SUMIF(DataFromEngine!$J$13:$AJV$13,BX$6,DataFromEngine!$J257:$AJV257),3)/Scale -> 0 | BY12: =ROUND(SUMIF(DataFromEngine!$J$13:$AJV$13,BY$6,DataFromEngine!$J257:$AJV257),3)/Scale -> 0 | BZ12: =ROUND(SUMIF(DataFromEngine!$J$13:$AJV$13,BZ$6,DataFromEngine!$J257:$AJV257),3)/Scale -> 0 | CA12: =ROUND(SUMIF(DataFromEngine!$J$13:$AJV$13,CA$6,DataFromEngine!$J257:$AJV257),3)/Scale -> 0 | CB12: =ROUND(SUMIF(DataFromEngine!$J$13:$AJV$13,CB$6,DataFromEngine!$J257:$AJV257),3)/Scale -> 0 | CC12: =ROUND(SUMIF(DataFromEngine!$J$13:$AJV$13,CC$6,DataFromEngine!$J257:$AJV257),3)/Scale -> 0 | CD12: =ROUND(SUMIF(DataFromEngine!$J$13:$AJV$13,CD$6,DataFromEngine!$J257:$AJV257),3)/Scale -> 0 | CE12: =ROUND(SUMIF(DataFromEngine!$J$13:$AJV$13,CE$6,DataFromEngine!$J257:$AJV257),3)/Scale -> 0
B13: Weighted Return on Debt (%) | D13: =IF(ISERROR(D12/D7),"-",(D12/D7)) -> - | E13: =IF(ISERROR(E12/E7),"-",(E12/E7)) -> - | F13: =IF(ISERROR(F12/F7),"-",(F12/F7)) -> - | G13: =IF(ISERROR(G12/G7),"-",(G12/G7)) -> 0.0206941595 | H13: 0.02069710207 | I13: 0.0207291116 | J13: 0.02073215743 | K13: 0.02073453306 | L13: 0.02073718564 | M13: 0.02074015793 | N13: 0.02074350277 | O13: 0.02074728658 | P13: 0.02075160325 | Q13: 0.0207565786 | R13: 0.02076095935 | S13: 0.02076251055 | T13: 0.02076309489 | U13: 0.02076350512 | V13: 0.02076397735 | W13: 0.02076452672 | X13: 0.02076517397 | Y13: 0.02076594771 | Z13: 0.02076688896 | AA13: 0.02076803554 | AB13: 0.02076912037 | AC13: 0.0207696642 | AD13: 0.02076975 | AE13: 0.02076975005 | AF13: 0.02076974995 | AG13: 0.02076975002 | AH13: 0.02076975011 | AI13: 0.02076974995 | AJ13: 0.0207697501 | AK13: 0.02076974964 | AL13: 0.0207697497 | AM13: 0.02076974961 | AN13: 0.02076975016 | AO13: 0.02076974997 | AP13: 0.02076974988 | AQ13: 0.02076975004 | AR13: 0.02076974997 | AS13: 0.02076975006 | AT13: 0.02076975001 | AU13: 0.02076974996 | AV13: 0.02076975003 | AW13: 0.02076974999 | AX13: 0.02076974996 | AY13: 0.02076975002 | AZ13: 0.02076974999 | BA13: 0.02076974999 | BB13: 0.02076975013 | BC13: =IF(ISERROR(BC12/BC7),"-",(BC12/BC7)) -> - | BD13: - | BE13: - | BF13: - | BG13: - | BH13: - | BI13: - | BJ13: - | BK13: - | BL13: =IF(ISERROR(BL12/BL7),"-",(BL12/BL7)) -> - | BM13: - | BN13: - | BO13: - | BP13: - | BQ13: - | BR13: - | BS13: - | BT13: - | BU13: - | BV13: - | BW13: - | BX13: - | BY13: - | BZ13: - | CA13: - | CB13: - | CC13: - | CD13: - | CE13: -
B14: Total Return | C14: =SUM(C8,C10,C12) -> 31023344.24 | D14: =SUM(D8,D10,D12) -> 0 | E14: =SUM(E8,E10,E12) -> 0 | F14: =SUM(F8,F10,F12) -> 0 | G14: 13436.689 | H14: 1126167.471 | I14: 2858858.111 | J14: 3126618.805 | K14: 2957649.902 | L14: 2792215.052 | M14: 2630049.199 | N14: 2470907.172 | O14: 2314529.43 | P14: 2160060.698 | Q14: 2006288.146 | R14: 1863630.522 | S14: 1746469.174 | T14: 1637365.613 | U14: 1529894.586 | V14: 1422423.559 | W14: 1314952.531 | X14: 1207481.504 | Y14: 1100010.477 | Z14: 992539.449 | AA14: 885330.432 | AB14: 783514.649 | AC14: 694535.451 | AD14: 616097.765 | AE14: 540496.23 | AF14: 464894.694 | AG14: 389293.157 | AH14: 313691.622 | AI14: 238090.086 | AJ14: 162488.551 | AK14: 86887.014 | AL14: 11285.479 | AM14: -64316.056 | AN14: -139917.592 | AO14: -215519.128 | AP14: -291120.663 | AQ14: -366722.199 | AR14: -442323.734 | AS14: -517925.271 | AT14: -593526.807 | AU14: -669128.342 | AV14: -744729.878 | AW14: -820331.413 | AX14: -895932.949 | AY14: -971534.485 | AZ14: -1041469.827 | BA14: -800440.777 | BB14: -254524.216 | BC14: =SUM(BC8,BC10,BC12) -> -154061.566 | BD14: =SUM(BD8,BD10,BD12) -> -171873.566 | BE14: -189685.564 | BF14: -207497.563 | BG14: -225309.563 | BH14: -243121.563 | BI14: -260933.563 | BJ14: -278745.562 | BK14: -296557.561 | BL14: =SUM(BL8,BL10,BL12) -> -312494.732 | BM14: -225846.877 | BN14: -39217.967 | BO14: 0 | BP14: 0 | BQ14: 0 | BR14: 0 | BS14: 0 | BT14: 0 | BU14: 0 | BV14: 0 | BW14: 0 | BX14: 0 | BY14: 0 | BZ14: 0 | CA14: 0 | CB14: 0 | CC14: 0 | CD14: 0 | CE14: 0
B15: Total Rate of Return | D15: =IF(ISERROR(D14/D7), "-",(D14/D7)) -> - | E15: =IF(ISERROR(E14/E7), "-",(E14/E7)) -> - | F15: - | G15: 0.07539612527 | H15: 0.07540095431 | I15: 0.0754535174 | J15: 0.07545851898 | K15: 0.07546241999 | L15: 0.0754667758 | M15: 0.07547165664 | N15: 0.07547714923 | O15: 0.07548336267 | P15: 0.07549045108 | Q15: 0.07549862116 | R15: 0.07550581482 | S15: 0.07550836207 | T15: 0.07550932161 | U15: 0.07550999524 | V15: 0.07551077068 | W15: 0.07551167284 | X15: 0.07551273568 | Y15: 0.07551400623 | Z15: 0.07551555192 | AA15: 0.07551743468 | AB15: 0.07551921608 | AC15: 0.07552010919 | AD15: 0.07552025003 | AE15: 0.07552025013 | AF15: 0.0755202501 | AG15: 0.07552024986 | AH15: 0.07552024999 | AI15: 0.07552024989 | AJ15: =IF(ISERROR(AJ14/AJ7), "-",(AJ14/AJ7)) -> 0.07552025016 | AK15: 0.07552024915 | AL15: 0.07552024806 | AM15: 0.07552024954 | AN15: 0.07552024996 | AO15: 0.07552025008 | AP15: 0.07552024988 | AQ15: 0.07552024997 | AR15: 0.07552024986 | AS15: 0.07552025007 | AT15: 0.0755202501 | AU15: 0.07552025001 | AV15: 0.07552025004 | AW15: 0.07552024998 | AX15: 0.07552025001 | AY15: 0.07552025003 | AZ15: 0.07552024994 | BA15: 0.07552025005 | BB15: 0.07552025011 | BC15: =IF(ISERROR(BC14/BC7), "-",(BC14/BC7)) -> - | BD15: - | BE15: - | BF15: - | BG15: - | BH15: - | BI15: - | BJ15: - | BK15: - | BL15: =IF(ISERROR(BL14/BL7), "-",(BL14/BL7)) -> - | BM15: - | BN15: - | BO15: - | BP15: - | BQ15: - | BR15: - | BS15: - | BT15: - | BU15: - | BV15: - | BW15: - | BX15: - | BY15: - | BZ15: - | CA15: - | CB15: - | CC15: - | CD15: - | CE15: -

Sheet Property Taxes
B1: =ReportAssumptions!C2 -> San Diego Gas & Electric
B2: =ReportAssumptions!C3 -> Power Your Drive Extension Program
B3: ="Property Taxes ($ in "&ReportAssumptions!C9& ")" -> Property Taxes ($ in Dollars)
E4: =COUNTIFS(DataFromEngine!$J$13:$WL$13,'Property Taxes'!E6,DataFromEngine!$J$201:$WL$201,">0") -> 0
C6: Total | D6: =DataFromEngine!J12 -> 2018 | E6: =DataFromEngine!K12 -> 2019 | F6: =DataFromEngine!L12 -> 2020 | G6: =DataFromEngine!M12 -> 2021 | H6: =DataFromEngine!N12 -> 2022 | I6: =DataFromEngine!O12 -> 2023 | J6: =DataFromEngine!P12 -> 2024 | K6: =DataFromEngine!Q12 -> 2025 | L6: =DataFromEngine!R12 -> 2026 | M6: =DataFromEngine!S12 -> 2027 | N6: =DataFromEngine!T12 -> 2028 | O6: =DataFromEngine!U12 -> 2029 | P6: =DataFromEngine!V12 -> 2030 | Q6: =DataFromEngine!W12 -> 2031 | R6: =DataFromEngine!X12 -> 2032 | S6: =DataFromEngine!Y12 -> 2033 | T6: =DataFromEngine!Z12 -> 2034 | U6: =DataFromEngine!AA12 -> 2035 | V6: =DataFromEngine!AB12 -> 2036 | W6: =DataFromEngine!AC12 -> 2037 | X6: =DataFromEngine!AD12 -> 2038 | Y6: =DataFromEngine!AE12 -> 2039 | Z6: =DataFromEngine!AF12 -> 2040 | AA6: =DataFromEngine!AG12 -> 2041 | AB6: =DataFromEngine!AH12 -> 2042 | AC6: =DataFromEngine!AI12 -> 2043 | AD6: =DataFromEngine!AJ12 -> 2044 | AE6: =DataFromEngine!AK12 -> 2045 | AF6: =DataFromEngine!AL12 -> 2046 | AG6: =DataFromEngine!AM12 -> 2047 | AH6: =DataFromEngine!AN12 -> 2048 | AI6: =DataFromEngine!AO12 -> 2049 | AJ6: =DataFromEngine!AP12 -> 2050 | AK6: =DataFromEngine!AQ12 -> 2051 | AL6: =DataFromEngine!AR12 -> 2052 | AM6: =DataFromEngine!AS12 -> 2053 | AN6: =DataFromEngine!AT12 -> 2054 | AO6: =DataFromEngine!AU12 -> 2055 | AP6: =DataFromEngine!AV12 -> 2056 | AQ6: =DataFromEngine!AW12 -> 2057 | AR6: =DataFromEngine!AX12 -> 2058 | AS6: =DataFromEngine!AY12 -> 2059 | AT6: =DataFromEngine!AZ12 -> 2060 | AU6: =DataFromEngine!BA12 -> 2061 | AV6: =DataFromEngine!BB12 -> 2062 | AW6: =DataFromEngine!BC12 -> 2063 | AX6: =DataFromEngine!BD12 -> 2064 | AY6: =DataFromEngine!BE12 -> 2065 | AZ6: =DataFromEngine!BF12 -> 2066 | BA6: =DataFromEngine!BG12 -> 2067 | BB6: =DataFromEngine!BH12 -> 2068 | BC6: =DataFromEngine!BI12 -> 2069 | BD6: =DataFromEngine!BJ12 -> 2070 | BE6: =DataFromEngine!BK12 -> 2071 | BF6: =DataFromEngine!BL12 -> 2072 | BG6: =DataFromEngine!BM12 -> 2073 | BH6: =DataFromEngine!BN12 -> 2074 | BI6: =DataFromEngine!BO12 -> 2075 | BJ6: =DataFromEngine!BP12 -> 2076 | BK6: =DataFromEngine!BQ12 -> 2077 | BL6: =DataFromEngine!BR12 -> 2078 | BM6: =DataFromEngine!BS12 -> 2079 | BN6: =DataFromEngine!BT12 -> 2080 | BO6: =DataFromEngine!BU12 -> 2081 | BP6: =DataFromEngine!BV12 -> 2082 | BQ6: =DataFromEngine!BW12 -> 2083 | BR6: =DataFromEngine!BX12 -> 2084 | BS6: =DataFromEngine!BY12 -> 2085 | BT6: =DataFromEngine!BZ12 -> 2086 | BU6: =DataFromEngine!CA12 -> 2087 | BV6: =DataFromEngine!CB12 -> 2088 | BW6: =DataFromEngine!CC12 -> 2089 | BX6: =DataFromEngine!CD12 -> 2090 | BY6: =DataFromEngine!CE12 -> 2091 | BZ6: =DataFromEngine!CF12 -> 2092 | CA6: =DataFromEngine!CG12 -> 2093 | CB6: =DataFromEngine!CH12 -> 2094 | CC6: =DataFromEngine!CI12 -> 2095 | CD6: =DataFromEngine!CJ12 -> 2096 | CE6: =DataFromEngine!CK12 -> 2097
B7: Average of Month-End Rate Base | D7: 0 | E7: =ROUND(AVERAGEIF(DataFromEngine!$J$13:$AJV$13,E$6,DataFromEngine!$J246:$AJV246),11)/Scale -> 0 | F7: =ROUND(AVERAGEIF(DataFromEngine!$J$13:$AJV$13,F$6,DataFromEngine!$J246:$AJV246),11)/Scale -> 0 | G7: =ROUND(AVERAGEIF(DataFromEngine!$J$13:$AJV$13,G$6,DataFromEngine!$J246:$AJV246),11)/Scale -> 177407.6931 | H7: =ROUND(AVERAGEIF(DataFromEngine!$J$13:$AJV$13,H$6,DataFromEngine!$J246:$AJV246),11)/Scale -> 14898803.79 | I7: =ROUND(AVERAGEIF(DataFromEngine!$J$13:$AJV$13,I$6,DataFromEngine!$J246:$AJV246),11)/Scale -> 37806133.31 | J7: =ROUND(AVERAGEIF(DataFromEngine!$J$13:$AJV$13,J$6,DataFromEngine!$J246:$AJV246),11)/Scale -> 41340535.23 | K7: =ROUND(AVERAGEIF(DataFromEngine!$J$13:$AJV$13,K$6,DataFromEngine!$J246:$AJV246),11)/Scale -> 39101307.66 | L7: =ROUND(AVERAGEIF(DataFromEngine!$J$13:$AJV$13,L$6,DataFromEngine!$J246:$AJV246),11)/Scale -> 36908766.3 | M7: =ROUND(AVERAGEIF(DataFromEngine!$J$13:$AJV$13,M$6,DataFromEngine!$J246:$AJV246),11)/Scale -> 34759409.67 | N7: =ROUND(AVERAGEIF(DataFromEngine!$J$13:$AJV$13,N$6,DataFromEngine!$J246:$AJV246),11)/Scale -> 32649998.92 | O7: =ROUND(AVERAGEIF(DataFromEngine!$J$13:$AJV$13,O$6,DataFromEngine!$J246:$AJV246),11)/Scale -> 30577067.47 | P7: =ROUND(AVERAGEIF(DataFromEngine!$J$13:$AJV$13,P$6,DataFromEngine!$J246:$AJV246),11)/Scale -> 28528646 | Q7: =ROUND(AVERAGEIF(DataFromEngine!$J$13:$AJV$13,Q$6,DataFromEngine!$J246:$AJV246),11)/Scale -> 26489054.04 | R7: =ROUND(AVERAGEIF(DataFromEngine!$J$13:$AJV$13,R$6,DataFromEngine!$J246:$AJV246),11)/Scale -> 24612060.51 | S7: =ROUND(AVERAGEIF(DataFromEngine!$J$13:$AJV$13,S$6,DataFromEngine!$J246:$AJV246),11)/Scale -> 23067605.28 | T7: =ROUND(AVERAGEIF(DataFromEngine!$J$13:$AJV$13,T$6,DataFromEngine!$J246:$AJV246),11)/Scale -> 21624973.58 | U7: =ROUND(AVERAGEIF(DataFromEngine!$J$13:$AJV$13,U$6,DataFromEngine!$J246:$AJV246),11)/Scale -> 20201511.24 | V7: =ROUND(AVERAGEIF(DataFromEngine!$J$13:$AJV$13,V$6,DataFromEngine!$J246:$AJV246),11)/Scale -> 18778048.91 | W7: =ROUND(AVERAGEIF(DataFromEngine!$J$13:$AJV$13,W$6,DataFromEngine!$J246:$AJV246),11)/Scale -> 17354586.57 | X7: =ROUND(AVERAGEIF(DataFromEngine!$J$13:$AJV$13,X$6,DataFromEngine!$J246:$AJV246),11)/Scale -> 15931124.23 | Y7: =ROUND(AVERAGEIF(DataFromEngine!$J$13:$AJV$13,Y$6,DataFromEngine!$J246:$AJV246),11)/Scale -> 14507661.9 | Z7: =ROUND(AVERAGEIF(DataFromEngine!$J$13:$AJV$13,Z$6,DataFromEngine!$J246:$AJV246),11)/Scale -> 13084199.56 | AA7: =ROUND(AVERAGEIF(DataFromEngine!$J$13:$AJV$13,AA$6,DataFromEngine!$J246:$AJV246),11)/Scale -> 11664502.35 | AB7: =ROUND(AVERAGEIF(DataFromEngine!$J$13:$AJV$13,AB$6,DataFromEngine!$J246:$AJV246),11)/Scale -> 10321684.24 | AC7: =ROUND(AVERAGEIF(DataFromEngine!$J$13:$AJV$13,AC$6,DataFromEngine!$J246:$AJV246),11)/Scale -> 9151853.022 | AD7: =ROUND(AVERAGEIF(DataFromEngine!$J$13:$AJV$13,AD$6,DataFromEngine!$J246:$AJV246),11)/Scale -> 8116335.695 | AE7: =ROUND(AVERAGEIF(DataFromEngine!$J$13:$AJV$13,AE$6,DataFromEngine!$J246:$AJV246),11)/Scale -> 7115259.352 | AF7: =ROUND(AVERAGEIF(DataFromEngine!$J$13:$AJV$13,AF$6,DataFromEngine!$J246:$AJV246),11)/Scale -> 6114183.009 | AG7: =ROUND(AVERAGEIF(DataFromEngine!$J$13:$AJV$13,AG$6,DataFromEngine!$J246:$AJV246),11)/Scale -> 5113106.666 | AH7: =ROUND(AVERAGEIF(DataFromEngine!$J$13:$AJV$13,AH$6,DataFromEngine!$J246:$AJV246),11)/Scale -> 4112030.324 | AI7: =ROUND(AVERAGEIF(DataFromEngine!$J$13:$AJV$13,AI$6,DataFromEngine!$J246:$AJV246),11)/Scale -> 3110953.981 | AJ7: =ROUND(AVERAGEIF(DataFromEngine!$J$13:$AJV$13,AJ$6,DataFromEngine!$J246:$AJV246),11)/Scale -> 2109877.638 | AK7: =ROUND(AVERAGEIF(DataFromEngine!$J$13:$AJV$13,AK$6,DataFromEngine!$J246:$AJV246),11)/Scale -> 1108801.295 | AL7: =ROUND(AVERAGEIF(DataFromEngine!$J$13:$AJV$13,AL$6,DataFromEngine!$J246:$AJV246),11)/Scale -> 107724.952 | AM7: =ROUND(AVERAGEIF(DataFromEngine!$J$13:$AJV$13,AM$6,DataFromEngine!$J246:$AJV246),11)/Scale -> -893351.3909 | AN7: =ROUND(AVERAGEIF(DataFromEngine!$J$13:$AJV$13,AN$6,DataFromEngine!$J246:$AJV246),11)/Scale -> -1894427.734 | AO7: =ROUND(AVERAGEIF(DataFromEngine!$J$13:$AJV$13,AO$6,DataFromEngine!$J246:$AJV246),11)/Scale -> -2895504.077 | AP7: =ROUND(AVERAGEIF(DataFromEngine!$J$13:$AJV$13,AP$6,DataFromEngine!$J246:$AJV246),11)/Scale -> -3896580.42 | AQ7: =ROUND(AVERAGEIF(DataFromEngine!$J$13:$AJV$13,AQ$6,DataFromEngine!$J246:$AJV246),11)/Scale -> -4897656.763 | AR7: =ROUND(AVERAGEIF(DataFromEngine!$J$13:$AJV$13,AR$6,DataFromEngine!$J246:$AJV246),11)/Scale -> -5898733.105 | AS7: =ROUND(AVERAGEIF(DataFromEngine!$J$13:$AJV$13,AS$6,DataFromEngine!$J246:$AJV246),11)/Scale -> -6899809.448 | AT7: =ROUND(AVERAGEIF(DataFromEngine!$J$13:$AJV$13,AT$6,DataFromEngine!$J246:$AJV246),11)/Scale -> -7900885.791 | AU7: =ROUND(AVERAGEIF(DataFromEngine!$J$13:$AJV$13,AU$6,DataFromEngine!$J246:$AJV246),11)/Scale -> -8901962.134 | AV7: =ROUND(AVERAGEIF(DataFromEngine!$J$13:$AJV$13,AV$6,DataFromEngine!$J246:$AJV246),11)/Scale -> -9903038.477 | AW7: =ROUND(AVERAGEIF(DataFromEngine!$J$13:$AJV$13,AW$6,DataFromEngine!$J246:$AJV246),11)/Scale -> -10904114.82 | AX7: =ROUND(AVERAGEIF(DataFromEngine!$J$13:$AJV$13,AX$6,DataFromEngine!$J246:$AJV246),11)/Scale -> -11905191.16 | AY7: =ROUND(AVERAGEIF(DataFromEngine!$J$13:$AJV$13,AY$6,DataFromEngine!$J246:$AJV246),11)/Scale -> -12906267.51 | AZ7: =ROUND(AVERAGEIF(DataFromEngine!$J$13:$AJV$13,AZ$6,DataFromEngine!$J246:$AJV246),11)/Scale -> -13802110.67 | BA7: =ROUND(AVERAGEIF(DataFromEngine!$J$13:$AJV$13,BA$6,DataFromEngine!$J246:$AJV246),11)/Scale -> -10280472.96 | BB7: =ROUND(AVERAGEIF(DataFromEngine!$J$13:$AJV$13,BB$6,DataFromEngine!$J246:$AJV246),11)/Scale -> -3200526.963 | BC7: =ROUND(AVERAGEIF(DataFromEngine!$J$13:$AJV$13,BC$6,DataFromEngine!$J246:$AJV246),11)/Scale -> -2049830.773 | BD7: =ROUND(AVERAGEIF(DataFromEngine!$J$13:$AJV$13,BD$6,DataFromEngine!$J246:$AJV246),11)/Scale -> -2285688.035 | BE7: =ROUND(AVERAGEIF(DataFromEngine!$J$13:$AJV$13,BE$6,DataFromEngine!$J246:$AJV246),11)/Scale -> -2521545.298 | BF7: =ROUND(AVERAGEIF(DataFromEngine!$J$13:$AJV$13,BF$6,DataFromEngine!$J246:$AJV246),11)/Scale -> -2757402.56 | BG7: =ROUND(AVERAGEIF(DataFromEngine!$J$13:$AJV$13,BG$6,DataFromEngine!$J246:$AJV246),11)/Scale -> -2993259.823 | BH7: =ROUND(AVERAGEIF(DataFromEngine!$J$13:$AJV$13,BH$6,DataFromEngine!$J246:$AJV246),11)/Scale -> -3229117.085 | BI7: =ROUND(AVERAGEIF(DataFromEngine!$J$13:$AJV$13,BI$6,DataFromEngine!$J246:$AJV246),11)/Scale -> -3464974.348 | BJ7: =ROUND(AVERAGEIF(DataFromEngine!$J$13:$AJV$13,BJ$6,DataFromEngine!$J246:$AJV246),11)/Scale -> -3700831.61 | BK7: =ROUND(AVERAGEIF(DataFromEngine!$J$13:$AJV$13,BK$6,DataFromEngine!$J246:$AJV246),11)/Scale -> -3936688.872 | BL7: =ROUND(AVERAGEIF(DataFromEngine!$J$13:$AJV$13,BL$6,DataFromEngine!$J246:$AJV246),11)/Scale -> -4137735.592 | BM7: =ROUND(AVERAGEIF(DataFromEngine!$J$13:$AJV$13,BM$6,DataFromEngine!$J246:$AJV246),11)/Scale -> -2881625.192 | BN7: =ROUND(AVERAGEIF(DataFromEngine!$J$13:$AJV$13,BN$6,DataFromEngine!$J246:$AJV246),11)/Scale -> -459850.7938 | BO7: =ROUND(AVERAGEIF(DataFromEngine!$J$13:$AJV$13,BO$6,DataFromEngine!$J246:$AJV246),11)/Scale -> 1.4836e-07 | BP7: =ROUND(AVERAGEIF(DataFromEngine!$J$13:$AJV$13,BP$6,DataFromEngine!$J246:$AJV246),11)/Scale -> 1.4842e-07 | BQ7: =ROUND(AVERAGEIF(DataFromEngine!$J$13:$AJV$13,BQ$6,DataFromEngine!$J246:$AJV246),11)/Scale -> 1.4848e-07 | BR7: =ROUND(AVERAGEIF(DataFromEngine!$J$13:$AJV$13,BR$6,DataFromEngine!$J246:$AJV246),11)/Scale -> 1.4855e-07 | BS7: =ROUND(AVERAGEIF(DataFromEngine!$J$13:$AJV$13,BS$6,DataFromEngine!$J246:$AJV246),11)/Scale -> 1.4861e-07 | BT7: =ROUND(AVERAGEIF(DataFromEngine!$J$13:$AJV$13,BT$6,DataFromEngine!$J246:$AJV246),11)/Scale -> 1.4867e-07 | BU7: =ROUND(AVERAGEIF(DataFromEngine!$J$13:$AJV$13,BU$6,DataFromEngine!$J246:$AJV246),11)/Scale -> 1.4874e-07 | BV7: =ROUND(AVERAGEIF(DataFromEngine!$J$13:$AJV$13,BV$6,DataFromEngine!$J246:$AJV246),11)/Scale -> 1.488e-07 | BW7: =ROUND(AVERAGEIF(DataFromEngine!$J$13:$AJV$13,BW$6,DataFromEngine!$J246:$AJV246),11)/Scale -> 1.4886e-07 | BX7: =ROUND(AVERAGEIF(DataFromEngine!$J$13:$AJV$13,BX$6,DataFromEngine!$J246:$AJV246),11)/Scale -> 1.4892e-07 | BY7: =ROUND(AVERAGEIF(DataFromEngine!$J$13:$AJV$13,BY$6,DataFromEngine!$J246:$AJV246),11)/Scale -> 1.4899e-07 | BZ7: =ROUND(AVERAGEIF(DataFromEngine!$J$13:$AJV$13,BZ$6,DataFromEngine!$J246:$AJV246),11)/Scale -> 1.4905e-07 | CA7: =ROUND(AVERAGEIF(DataFromEngine!$J$13:$AJV$13,CA$6,DataFromEngine!$J246:$AJV246),11)/Scale -> 1.4911e-07 | CB7: =ROUND(AVERAGEIF(DataFromEngine!$J$13:$AJV$13,CB$6,DataFromEngine!$J246:$AJV246),11)/Scale -> 1.4918e-07 | CC7: =ROUND(AVERAGEIF(DataFromEngine!$J$13:$AJV$13,CC$6,DataFromEngine!$J246:$AJV246),11)/Scale -> 1.4924e-07 | CD7: =ROUND(AVERAGEIF(DataFromEngine!$J$13:$AJV$13,CD$6,DataFromEngine!$J246:$AJV246),11)/Scale -> 1.493e-07 | CE7: =ROUND(AVERAGEIF(DataFromEngine!$J$13:$AJV$13,CE$6,DataFromEngine!$J246:$AJV246),11)/Scale -> 1.4936e-07
B8: Property Tax Rate | D8: =IF(ROUND(SUMIF(DataFromEngine!$J$13:$AJV$13,D$6,DataFromEngine!$J246:$AJV246),3)=0,"-",ROUND(SUMIF(DataFromEngine!$J$13:$AJV$13,D$6,DataFromEngine!$J232:$AJV232),3)/ROUND(SUMIF(DataFromEngine!$J$13:$AJV$13,D$6,DataFromEngine!$J246:$AJV246),3)*12) -> - | E8: =IF(ROUND(SUMIF(DataFromEngine!$J$13:$AJV$13,E$6,DataFromEngine!$J246:$AJV246),11)=0,"-",ROUND(SUMIF(DataFromEngine!$J$13:$AJV$13,E$6,DataFromEngine!$J232:$AJV232),11)/ROUND(SUMIF(DataFromEngine!$J$13:$AJV$13,E$6,DataFromEngine!$J246:$AJV246),11)*12) -> - | F8: =IF(ROUND(SUMIF(DataFromEngine!$J$13:$AJV$13,F$6,DataFromEngine!$J246:$AJV246),11)=0,"-",ROUND(SUMIF(DataFromEngine!$J$13:$AJV$13,F$6,DataFromEngine!$J232:$AJV232),11)/ROUND(SUMIF(DataFromEngine!$J$13:$AJV$13,F$6,DataFromEngine!$J246:$AJV246),11)*12) -> - | G8: =IF(ROUND(SUMIF(DataFromEngine!$J$13:$AJV$13,G$6,DataFromEngine!$J246:$AJV246),11)=0,"-",ROUND(SUMIF(DataFromEngine!$J$13:$AJV$13,G$6,DataFromEngine!$J232:$AJV232),11)/ROUND(SUMIF(DataFromEngine!$J$13:$AJV$13,G$6,DataFromEngine!$J246:$AJV246),11)*12) -> 0 | H8: =IF(ROUND(SUMIF(DataFromEngine!$J$13:$AJV$13,H$6,DataFromEngine!$J246:$AJV246),11)=0,"-",ROUND(SUMIF(DataFromEngine!$J$13:$AJV$13,H$6,DataFromEngine!$J232:$AJV232),11)/ROUND(SUMIF(DataFromEngine!$J$13:$AJV$13,H$6,DataFromEngine!$J246:$AJV246),11)*12) -> 0.0007816612532 | I8: =IF(ROUND(SUMIF(DataFromEngine!$J$13:$AJV$13,I$6,DataFromEngine!$J246:$AJV246),11)=0,"-",ROUND(SUMIF(DataFromEngine!$J$13:$AJV$13,I$6,DataFromEngine!$J232:$AJV232),11)/ROUND(SUMIF(DataFromEngine!$J$13:$AJV$13,I$6,DataFromEngine!$J246:$AJV246),11)*12) -> 0.006207902226 | J8: =IF(ROUND(SUMIF(DataFromEngine!$J$13:$AJV$13,J$6,DataFromEngine!$J246:$AJV246),11)=0,"-",ROUND(SUMIF(DataFromEngine!$J$13:$AJV$13,J$6,DataFromEngine!$J232:$AJV232),11)/ROUND(SUMIF(DataFromEngine!$J$13:$AJV$13,J$6,DataFromEngine!$J246:$AJV246),11)*12) -> 0.01347333277 | K8: =IF(ROUND(SUMIF(DataFromEngine!$J$13:$AJV$13,K$6,DataFromEngine!$J246:$AJV246),11)=0,"-",ROUND(SUMIF(DataFromEngine!$J$13:$AJV$13,K$6,DataFromEngine!$J232:$AJV232),11)/ROUND(SUMIF(DataFromEngine!$J$13:$AJV$13,K$6,DataFromEngine!$J246:$AJV246),11)*12) -> 0.01662640367 | L8: =IF(ROUND(SUMIF(DataFromEngine!$J$13:$AJV$13,L$6,DataFromEngine!$J246:$AJV246),11)=0,"-",ROUND(SUMIF(DataFromEngine!$J$13:$AJV$13,L$6,DataFromEngine!$J232:$AJV232),11)/ROUND(SUMIF(DataFromEngine!$J$13:$AJV$13,L$6,DataFromEngine!$J246:$AJV246),11)*12) -> 0.01666132176 | M8: =IF(ROUND(SUMIF(DataFromEngine!$J$13:$AJV$13,M$6,DataFromEngine!$J246:$AJV246),11)=0,"-",ROUND(SUMIF(DataFromEngine!$J$13:$AJV$13,M$6,DataFromEngine!$J232:$AJV232),11)/ROUND(SUMIF(DataFromEngine!$J$13:$AJV$13,M$6,DataFromEngine!$J246:$AJV246),11)*12) -> 0.01670104398 | N8: =IF(ROUND(SUMIF(DataFromEngine!$J$13:$AJV$13,N$6,DataFromEngine!$J246:$AJV246),11)=0,"-",ROUND(SUMIF(DataFromEngine!$J$13:$AJV$13,N$6,DataFromEngine!$J232:$AJV232),11)/ROUND(SUMIF(DataFromEngine!$J$13:$AJV$13,N$6,DataFromEngine!$J246:$AJV246),11)*12) -> 0.01674633451 | O8: =IF(ROUND(SUMIF(DataFromEngine!$J$13:$AJV$13,O$6,DataFromEngine!$J246:$AJV246),11)=0,"-",ROUND(SUMIF(DataFromEngine!$J$13:$AJV$13,O$6,DataFromEngine!$J232:$AJV232),11)/ROUND(SUMIF(DataFromEngine!$J$13:$AJV$13,O$6,DataFromEngine!$J246:$AJV246),11)*12) -> 0.01679840523 | P8: =IF(ROUND(SUMIF(DataFromEngine!$J$13:$AJV$13,P$6,DataFromEngine!$J246:$AJV246),11)=0,"-",ROUND(SUMIF(DataFromEngine!$J$13:$AJV$13,P$6,DataFromEngine!$J232:$AJV232),11)/ROUND(SUMIF(DataFromEngine!$J$13:$AJV$13,P$6,DataFromEngine!$J246:$AJV246),11)*12) -> 0.01686371492 | Q8: =IF(ROUND(SUMIF(DataFromEngine!$J$13:$AJV$13,Q$6,DataFromEngine!$J246:$AJV246),11)=0,"-",ROUND(SUMIF(DataFromEngine!$J$13:$AJV$13,Q$6,DataFromEngine!$J232:$AJV232),11)/ROUND(SUMIF(DataFromEngine!$J$13:$AJV$13,Q$6,DataFromEngine!$J246:$AJV246),11)*12) -> 0.01694846726 | R8: =IF(ROUND(SUMIF(DataFromEngine!$J$13:$AJV$13,R$6,DataFromEngine!$J246:$AJV246),11)=0,"-",ROUND(SUMIF(DataFromEngine!$J$13:$AJV$13,R$6,DataFromEngine!$J232:$AJV232),11)/ROUND(SUMIF(DataFromEngine!$J$13:$AJV$13,R$6,DataFromEngine!$J246:$AJV246),11)*12) -> 0.01694180715 | S8: =IF(ROUND(SUMIF(DataFromEngine!$J$13:$AJV$13,S$6,DataFromEngine!$J246:$AJV246),11)=0,"-",ROUND(SUMIF(DataFromEngine!$J$13:$AJV$13,S$6,DataFromEngine!$J232:$AJV232),11)/ROUND(SUMIF(DataFromEngine!$J$13:$AJV$13,S$6,DataFromEngine!$J246:$AJV246),11)*12) -> 0.01681368205 | T8: =IF(ROUND(SUMIF(DataFromEngine!$J$13:$AJV$13,T$6,DataFromEngine!$J246:$AJV246),11)=0,"-",ROUND(SUMIF(DataFromEngine!$J$13:$AJV$13,T$6,DataFromEngine!$J232:$AJV232),11)/ROUND(SUMIF(DataFromEngine!$J$13:$AJV$13,T$6,DataFromEngine!$J246:$AJV246),11)*12) -> 0.01678815076 | U8: =IF(ROUND(SUMIF(DataFromEngine!$J$13:$AJV$13,U$6,DataFromEngine!$J246:$AJV246),11)=0,"-",ROUND(SUMIF(DataFromEngine!$J$13:$AJV$13,U$6,DataFromEngine!$J232:$AJV232),11)/ROUND(SUMIF(DataFromEngine!$J$13:$AJV$13,U$6,DataFromEngine!$J246:$AJV246),11)*12) -> 0.01684163229 | V8: =IF(ROUND(SUMIF(DataFromEngine!$J$13:$AJV$13,V$6,DataFromEngine!$J246:$AJV246),11)=0,"-",ROUND(SUMIF(DataFromEngine!$J$13:$AJV$13,V$6,DataFromEngine!$J232:$AJV232),11)/ROUND(SUMIF(DataFromEngine!$J$13:$AJV$13,V$6,DataFromEngine!$J246:$AJV246),11)*12) -> 0.0169289313 | W8: =IF(ROUND(SUMIF(DataFromEngine!$J$13:$AJV$13,W$6,DataFromEngine!$J246:$AJV246),11)=0,"-",ROUND(SUMIF(DataFromEngine!$J$13:$AJV$13,W$6,DataFromEngine!$J232:$AJV232),11)/ROUND(SUMIF(DataFromEngine!$J$13:$AJV$13,W$6,DataFromEngine!$J246:$AJV246),11)*12) -> 0.01703055124 | X8: =IF(ROUND(SUMIF(DataFromEngine!$J$13:$AJV$13,X$6,DataFromEngine!$J246:$AJV246),11)=0,"-",ROUND(SUMIF(DataFromEngine!$J$13:$AJV$13,X$6,DataFromEngine!$J232:$AJV232),11)/ROUND(SUMIF(DataFromEngine!$J$13:$AJV$13,X$6,DataFromEngine!$J246:$AJV246),11)*12) -> 0.01715033087 | Y8: =IF(ROUND(SUMIF(DataFromEngine!$J$13:$AJV$13,Y$6,DataFromEngine!$J246:$AJV246),11)=0,"-",ROUND(SUMIF(DataFromEngine!$J$13:$AJV$13,Y$6,DataFromEngine!$J232:$AJV232),11)/ROUND(SUMIF(DataFromEngine!$J$13:$AJV$13,Y$6,DataFromEngine!$J246:$AJV246),11)*12) -> 0.01729361557 | Z8: =IF(ROUND(SUMIF(DataFromEngine!$J$13:$AJV$13,Z$6,DataFromEngine!$J246:$AJV246),11)=0,"-",ROUND(SUMIF(DataFromEngine!$J$13:$AJV$13,Z$6,DataFromEngine!$J232:$AJV232),11)/ROUND(SUMIF(DataFromEngine!$J$13:$AJV$13,Z$6,DataFromEngine!$J246:$AJV246),11)*12) -> 0.01746807687 | AA8: =IF(ROUND(SUMIF(DataFromEngine!$J$13:$AJV$13,AA$6,DataFromEngine!$J246:$AJV246),11)=0,"-",ROUND(SUMIF(DataFromEngine!$J$13:$AJV$13,AA$6,DataFromEngine!$J232:$AJV232),11)/ROUND(SUMIF(DataFromEngine!$J$13:$AJV$13,AA$6,DataFromEngine!$J246:$AJV246),11)*12) -> 0.01767942373 | AB8: =IF(ROUND(SUMIF(DataFromEngine!$J$13:$AJV$13,AB$6,DataFromEngine!$J246:$AJV246),11)=0,"-",ROUND(SUMIF(DataFromEngine!$J$13:$AJV$13,AB$6,DataFromEngine!$J232:$AJV232),11)/ROUND(SUMIF(DataFromEngine!$J$13:$AJV$13,AB$6,DataFromEngine!$J246:$AJV246),11)*12) -> 0.01782093715 | AC8: =IF(ROUND(SUMIF(DataFromEngine!$J$13:$AJV$13,AC$6,DataFromEngine!$J246:$AJV246),11)=0,"-",ROUND(SUMIF(DataFromEngine!$J$13:$AJV$13,AC$6,DataFromEngine!$J232:$AJV232),11)/ROUND(SUMIF(DataFromEngine!$J$13:$AJV$13,AC$6,DataFromEngine!$J246:$AJV246),11)*12) -> 0.01778703478 | AD8: =IF(ROUND(SUMIF(DataFromEngine!$J$13:$AJV$13,AD$6,DataFromEngine!$J246:$AJV246),11)=0,"-",ROUND(SUMIF(DataFromEngine!$J$13:$AJV$13,AD$6,DataFromEngine!$J232:$AJV232),11)/ROUND(SUMIF(DataFromEngine!$J$13:$AJV$13,AD$6,DataFromEngine!$J246:$AJV246),11)*12) -> 0.01777848507 | AE8: =IF(ROUND(SUMIF(DataFromEngine!$J$13:$AJV$13,AE$6,DataFromEngine!$J246:$AJV246),11)=0,"-",ROUND(SUMIF(DataFromEngine!$J$13:$AJV$13,AE$6,DataFromEngine!$J232:$AJV232),11)/ROUND(SUMIF(DataFromEngine!$J$13:$AJV$13,AE$6,DataFromEngine!$J246:$AJV246),11)*12) -> 0.01798947226 | AF8: =IF(ROUND(SUMIF(DataFromEngine!$J$13:$AJV$13,AF$6,DataFromEngine!$J246:$AJV246),11)=0,"-",ROUND(SUMIF(DataFromEngine!$J$13:$AJV$13,AF$6,DataFromEngine!$J232:$AJV232),11)/ROUND(SUMIF(DataFromEngine!$J$13:$AJV$13,AF$6,DataFromEngine!$J246:$AJV246),11)*12) -> 0.01836596529 | AG8: =IF(ROUND(SUMIF(DataFromEngine!$J$13:$AJV$13,AG$6,DataFromEngine!$J246:$AJV246),11)=0,"-",ROUND(SUMIF(DataFromEngine!$J$13:$AJV$13,AG$6,DataFromEngine!$J232:$AJV232),11)/ROUND(SUMIF(DataFromEngine!$J$13:$AJV$13,AG$6,DataFromEngine!$J246:$AJV246),11)*12) -> 0.01888988268 | AH8: =IF(ROUND(SUMIF(DataFromEngine!$J$13:$AJV$13,AH$6,DataFromEngine!$J246:$AJV246),11)=0,"-",ROUND(SUMIF(DataFromEngine!$J$13:$AJV$13,AH$6,DataFromEngine!$J232:$AJV232),11)/ROUND(SUMIF(DataFromEngine!$J$13:$AJV$13,AH$6,DataFromEngine!$J246:$AJV246),11)*12) -> 0.01966889612 | AI8: =IF(ROUND(SUMIF(DataFromEngine!$J$13:$AJV$13,AI$6,DataFromEngine!$J246:$AJV246),11)=0,"-",ROUND(SUMIF(DataFromEngine!$J$13:$AJV$13,AI$6,DataFromEngine!$J232:$AJV232),11)/ROUND(SUMIF(DataFromEngine!$J$13:$AJV$13,AI$6,DataFromEngine!$J246:$AJV246),11)*12) -> 0.02094926824 | AJ8: =IF(ROUND(SUMIF(DataFromEngine!$J$13:$AJV$13,AJ$6,DataFromEngine!$J246:$AJV246),11)=0,"-",ROUND(SUMIF(DataFromEngine!$J$13:$AJV$13,AJ$6,DataFromEngine!$J232:$AJV232),11)/ROUND(SUMIF(DataFromEngine!$J$13:$AJV$13,AJ$6,DataFromEngine!$J246:$AJV246),11)*12) -> 0.02344463998 | AK8: =IF(ROUND(SUMIF(DataFromEngine!$J$13:$AJV$13,AK$6,DataFromEngine!$J246:$AJV246),11)=0,"-",ROUND(SUMIF(DataFromEngine!$J$13:$AJV$13,AK$6,DataFromEngine!$J232:$AJV232),11)/ROUND(SUMIF(DataFromEngine!$J$13:$AJV$13,AK$6,DataFromEngine!$J246:$AJV246),11)*12) -> 0.03044588237 | AL8: =IF(ROUND(SUMIF(DataFromEngine!$J$13:$AJV$13,AL$6,DataFromEngine!$J246:$AJV246),11)=0,"-",ROUND(SUMIF(DataFromEngine!$J$13:$AJV$13,AL$6,DataFromEngine!$J232:$AJV232),11)/ROUND(SUMIF(DataFromEngine!$J$13:$AJV$13,AL$6,DataFromEngine!$J246:$AJV246),11)*12) -> 0.1675707034 | AM8: =IF(ROUND(SUMIF(DataFromEngine!$J$13:$AJV$13,AM$6,DataFromEngine!$J246:$AJV246),11)=0,"-",ROUND(SUMIF(DataFromEngine!$J$13:$AJV$13,AM$6,DataFromEngine!$J232:$AJV232),11)/ROUND(SUMIF(DataFromEngine!$J$13:$AJV$13,AM$6,DataFromEngine!$J246:$AJV246),11)*12) -> -0.002624564286 | AN8: =IF(ROUND(SUMIF(DataFromEngine!$J$13:$AJV$13,AN$6,DataFromEngine!$J246:$AJV246),11)=0,"-",ROUND(SUMIF(DataFromEngine!$J$13:$AJV$13,AN$6,DataFromEngine!$J232:$AJV232),11)/ROUND(SUMIF(DataFromEngine!$J$13:$AJV$13,AN$6,DataFromEngine!$J246:$AJV246),11)*12) -> 0.00705343858 | AO8: =IF(ROUND(SUMIF(DataFromEngine!$J$13:$AJV$13,AO$6,DataFromEngine!$J246:$AJV246),11)=0,"-",ROUND(SUMIF(DataFromEngine!$J$13:$AJV$13,AO$6,DataFromEngine!$J232:$AJV232),11)/ROUND(SUMIF(DataFromEngine!$J$13:$AJV$13,AO$6,DataFromEngine!$J246:$AJV246),11)*12) -> 0.01003939788 | AP8: =IF(ROUND(SUMIF(DataFromEngine!$J$13:$AJV$13,AP$6,DataFromEngine!$J246:$AJV246),11)=0,"-",ROUND(SUMIF(DataFromEngine!$J$13:$AJV$13,AP$6,DataFromEngine!$J232:$AJV232),11)/ROUND(SUMIF(DataFromEngine!$J$13:$AJV$13,AP$6,DataFromEngine!$J246:$AJV246),11)*12) -> 0.01149110258 | AQ8: =IF(ROUND(SUMIF(DataFromEngine!$J$13:$AJV$13,AQ$6,DataFromEngine!$J246:$AJV246),11)=0,"-",ROUND(SUMIF(DataFromEngine!$J$13:$AJV$13,AQ$6,DataFromEngine!$J232:$AJV232),11)/ROUND(SUMIF(DataFromEngine!$J$13:$AJV$13,AQ$6,DataFromEngine!$J246:$AJV246),11)*12) -> 0.01234935318 | AR8: =IF(ROUND(SUMIF(DataFromEngine!$J$13:$AJV$13,AR$6,DataFromEngine!$J246:$AJV246),11)=0,"-",ROUND(SUMIF(DataFromEngine!$J$13:$AJV$13,AR$6,DataFromEngine!$J232:$AJV232),11)/ROUND(SUMIF(DataFromEngine!$J$13:$AJV$13,AR$6,DataFromEngine!$J246:$AJV246),11)*12) -> 0.01291629568 | AS8: =IF(ROUND(SUMIF(DataFromEngine!$J$13:$AJV$13,AS$6,DataFromEngine!$J246:$AJV246),11)=0,"-",ROUND(SUMIF(DataFromEngine!$J$13:$AJV$13,AS$6,DataFromEngine!$J232:$AJV232),11)/ROUND(SUMIF(DataFromEngine!$J$13:$AJV$13,AS$6,DataFromEngine!$J246:$AJV246),11)*12) -> 0.0133187256 | AT8: =IF(ROUND(SUMIF(DataFromEngine!$J$13:$AJV$13,AT$6,DataFromEngine!$J246:$AJV246),11)=0,"-",ROUND(SUMIF(DataFromEngine!$J$13:$AJV$13,AT$6,DataFromEngine!$J232:$AJV232),11)/ROUND(SUMIF(DataFromEngine!$J$13:$AJV$13,AT$6,DataFromEngine!$J246:$AJV246),11)*12) -> 0.01361917631 | AU8: =IF(ROUND(SUMIF(DataFromEngine!$J$13:$AJV$13,AU$6,DataFromEngine!$J246:$AJV246),11)=0,"-",ROUND(SUMIF(DataFromEngine!$J$13:$AJV$13,AU$6,DataFromEngine!$J232:$AJV232),11)/ROUND(SUMIF(DataFromEngine!$J$13:$AJV$13,AU$6,DataFromEngine!$J246:$AJV246),11)*12) -> 0.01385205223 | AV8: =IF(ROUND(SUMIF(DataFromEngine!$J$13:$AJV$13,AV$6,DataFromEngine!$J246:$AJV246),11)=0,"-",ROUND(SUMIF(DataFromEngine!$J$13:$AJV$13,AV$6,DataFromEngine!$J232:$AJV232),11)/ROUND(SUMIF(DataFromEngine!$J$13:$AJV$13,AV$6,DataFromEngine!$J246:$AJV246),11)*12) -> 0.01403784632 | AW8: =IF(ROUND(SUMIF(DataFromEngine!$J$13:$AJV$13,AW$6,DataFromEngine!$J246:$AJV246),11)=0,"-",ROUND(SUMIF(DataFromEngine!$J$13:$AJV$13,AW$6,DataFromEngine!$J232:$AJV232),11)/ROUND(SUMIF(DataFromEngine!$J$13:$AJV$13,AW$6,DataFromEngine!$J246:$AJV246),11)*12) -> 0.01418952594 | AX8: =IF(ROUND(SUMIF(DataFromEngine!$J$13:$AJV$13,AX$6,DataFromEngine!$J246:$AJV246),11)=0,"-",ROUND(SUMIF(DataFromEngine!$J$13:$AJV$13,AX$6,DataFromEngine!$J232:$AJV232),11)/ROUND(SUMIF(DataFromEngine!$J$13:$AJV$13,AX$6,DataFromEngine!$J246:$AJV246),11)*12) -> 0.01431569687 | AY8: =IF(ROUND(SUMIF(DataFromEngine!$J$13:$AJV$13,AY$6,DataFromEngine!$J246:$AJV246),11)=0,"-",ROUND(SUMIF(DataFromEngine!$J$13:$AJV$13,AY$6,DataFromEngine!$J232:$AJV232),11)/ROUND(SUMIF(DataFromEngine!$J$13:$AJV$13,AY$6,DataFromEngine!$J246:$AJV246),11)*12) -> 0.01442229487 | AZ8: =IF(ROUND(SUMIF(DataFromEngine!$J$13:$AJV$13,AZ$6,DataFromEngine!$J246:$AJV246),11)=0,"-",ROUND(SUMIF(DataFromEngine!$J$13:$AJV$13,AZ$6,DataFromEngine!$J232:$AJV232),11)/ROUND(SUMIF(DataFromEngine!$J$13:$AJV$13,AZ$6,DataFromEngine!$J246:$AJV246),11)*12) -> 0.01462420411 | BA8: =IF(ROUND(SUMIF(DataFromEngine!$J$13:$AJV$13,BA$6,DataFromEngine!$J246:$AJV246),11)=0,"-",ROUND(SUMIF(DataFromEngine!$J$13:$AJV$13,BA$6,DataFromEngine!$J232:$AJV232),11)/ROUND(SUMIF(DataFromEngine!$J$13:$AJV$13,BA$6,DataFromEngine!$J246:$AJV246),11)*12) -> 0.02060847668 | BB8: =IF(ROUND(SUMIF(DataFromEngine!$J$13:$AJV$13,BB$6,DataFromEngine!$J246:$AJV246),11)=0,"-",ROUND(SUMIF(DataFromEngine!$J$13:$AJV$13,BB$6,DataFromEngine!$J232:$AJV232),11)/ROUND(SUMIF(DataFromEngine!$J$13:$AJV$13,BB$6,DataFromEngine!$J246:$AJV246),11)*12) -> 0.04813428334 | BC8: =IF(ROUND(SUMIF(DataFromEngine!$J$13:$AJV$13,BC$6,DataFromEngine!$J246:$AJV246),11)=0,"-",ROUND(SUMIF(DataFromEngine!$J$13:$AJV$13,BC$6,DataFromEngine!$J232:$AJV232),11)/ROUND(SUMIF(DataFromEngine!$J$13:$AJV$13,BC$6,DataFromEngine!$J246:$AJV246),11)*12) -> 0.03030397694 | BD8: =IF(ROUND(SUMIF(DataFromEngine!$J$13:$AJV$13,BD$6,DataFromEngine!$J246:$AJV246),11)=0,"-",ROUND(SUMIF(DataFromEngine!$J$13:$AJV$13,BD$6,DataFromEngine!$J232:$AJV232),11)/ROUND(SUMIF(DataFromEngine!$J$13:$AJV$13,BD$6,DataFromEngine!$J246:$AJV246),11)*12) -> 0.01400350907 | BE8: =IF(ROUND(SUMIF(DataFromEngine!$J$13:$AJV$13,BE$6,DataFromEngine!$J246:$AJV246),11)=0,"-",ROUND(SUMIF(DataFromEngine!$J$13:$AJV$13,BE$6,DataFromEngine!$J232:$AJV232),11)/ROUND(SUMIF(DataFromEngine!$J$13:$AJV$13,BE$6,DataFromEngine!$J246:$AJV246),11)*12) -> 0.01416125803 | BF8: =IF(ROUND(SUMIF(DataFromEngine!$J$13:$AJV$13,BF$6,DataFromEngine!$J246:$AJV246),11)=0,"-",ROUND(SUMIF(DataFromEngine!$J$13:$AJV$13,BF$6,DataFromEngine!$J232:$AJV232),11)/ROUND(SUMIF(DataFromEngine!$J$13:$AJV$13,BF$6,DataFromEngine!$J246:$AJV246),11)*12) -> 0.01429202054 | BG8: =IF(ROUND(SUMIF(DataFromEngine!$J$13:$AJV$13,BG$6,DataFromEngine!$J246:$AJV246),11)=0,"-",ROUND(SUMIF(DataFromEngine!$J$13:$AJV$13,BG$6,DataFromEngine!$J232:$AJV232),11)/ROUND(SUMIF(DataFromEngine!$J$13:$AJV$13,BG$6,DataFromEngine!$J246:$AJV246),11)*12) -> 0.0144021759 | BH8: =IF(ROUND(SUMIF(DataFromEngine!$J$13:$AJV$13,BH$6,DataFromEngine!$J246:$AJV246),11)=0,"-",ROUND(SUMIF(DataFromEngine!$J$13:$AJV$13,BH$6,DataFromEngine!$J232:$AJV232),11)/ROUND(SUMIF(DataFromEngine!$J$13:$AJV$13,BH$6,DataFromEngine!$J246:$AJV246),11)*12) -> 0.01449623959 | BI8: =IF(ROUND(SUMIF(DataFromEngine!$J$13:$AJV$13,BI$6,DataFromEngine!$J246:$AJV246),11)=0,"-",ROUND(SUMIF(DataFromEngine!$J$13:$AJV$13,BI$6,DataFromEngine!$J232:$AJV232),11)/ROUND(SUMIF(DataFromEngine!$J$13:$AJV$13,BI$6,DataFromEngine!$J246:$AJV246),11)*12) -> 0.01457749764 | BJ8: =IF(ROUND(SUMIF(DataFromEngine!$J$13:$AJV$13,BJ$6,DataFromEngine!$J246:$AJV246),11)=0,"-",ROUND(SUMIF(DataFromEngine!$J$13:$AJV$13,BJ$6,DataFromEngine!$J232:$AJV232),11)/ROUND(SUMIF(DataFromEngine!$J$13:$AJV$13,BJ$6,DataFromEngine!$J246:$AJV246),11)*12) -> 0.0146483984 | BK8: =IF(ROUND(SUMIF(DataFromEngine!$J$13:$AJV$13,BK$6,DataFromEngine!$J246:$AJV246),11)=0,"-",ROUND(SUMIF(DataFromEngine!$J$13:$AJV$13,BK$6,DataFromEngine!$J232:$AJV232),11)/ROUND(SUMIF(DataFromEngine!$J$13:$AJV$13,BK$6,DataFromEngine!$J246:$AJV246),11)*12) -> 0.01471080346 | BL8: =IF(ROUND(SUMIF(DataFromEngine!$J$13:$AJV$13,BL$6,DataFromEngine!$J246:$AJV246),11)=0,"-",ROUND(SUMIF(DataFromEngine!$J$13:$AJV$13,BL$6,DataFromEngine!$J232:$AJV232),11)/ROUND(SUMIF(DataFromEngine!$J$13:$AJV$13,BL$6,DataFromEngine!$J246:$AJV246),11)*12) -> 0.01489038034 | BM8: =IF(ROUND(SUMIF(DataFromEngine!$J$13:$AJV$13,BM$6,DataFromEngine!$J246:$AJV246),11)=0,"-",ROUND(SUMIF(DataFromEngine!$J$13:$AJV$13,BM$6,DataFromEngine!$J232:$AJV232),11)/ROUND(SUMIF(DataFromEngine!$J$13:$AJV$13,BM$6,DataFromEngine!$J246:$AJV246),11)*12) -> 0.02201295072 | BN8: =IF(ROUND(SUMIF(DataFromEngine!$J$13:$AJV$13,BN$6,DataFromEngine!$J246:$AJV246),11)=0,"-",ROUND(SUMIF(DataFromEngine!$J$13:$AJV$13,BN$6,DataFromEngine!$J232:$AJV232),11)/ROUND(SUMIF(DataFromEngine!$J$13:$AJV$13,BN$6,DataFromEngine!$J246:$AJV246),11)*12) -> 0.09328143636 | BO8: =IF(ROUND(SUMIF(DataFromEngine!$J$13:$AJV$13,BO$6,DataFromEngine!$J246:$AJV246),11)=0,"-",ROUND(SUMIF(DataFromEngine!$J$13:$AJV$13,BO$6,DataFromEngine!$J232:$AJV232),11)/ROUND(SUMIF(DataFromEngine!$J$13:$AJV$13,BO$6,DataFromEngine!$J246:$AJV246),11)*12) -> -7.545100128e+10 | BP8: =IF(ROUND(SUMIF(DataFromEngine!$J$13:$AJV$13,BP$6,DataFromEngine!$J246:$AJV246),11)=0,"-",ROUND(SUMIF(DataFromEngine!$J$13:$AJV$13,BP$6,DataFromEngine!$J232:$AJV232),11)/ROUND(SUMIF(DataFromEngine!$J$13:$AJV$13,BP$6,DataFromEngine!$J246:$AJV246),11)*12) -> 0.01569842847 | BQ8: =IF(ROUND(SUMIF(DataFromEngine!$J$13:$AJV$13,BQ$6,DataFromEngine!$J246:$AJV246),11)=0,"-",ROUND(SUMIF(DataFromEngine!$J$13:$AJV$13,BQ$6,DataFromEngine!$J232:$AJV232),11)/ROUND(SUMIF(DataFromEngine!$J$13:$AJV$13,BQ$6,DataFromEngine!$J246:$AJV246),11)*12) -> 0.01569182072 | BR8: =IF(ROUND(SUMIF(DataFromEngine!$J$13:$AJV$13,BR$6,DataFromEngine!$J246:$AJV246),11)=0,"-",ROUND(SUMIF(DataFromEngine!$J$13:$AJV$13,BR$6,DataFromEngine!$J232:$AJV232),11)/ROUND(SUMIF(DataFromEngine!$J$13:$AJV$13,BR$6,DataFromEngine!$J246:$AJV246),11)*12) -> 0.01568521853 | BS8: =IF(ROUND(SUMIF(DataFromEngine!$J$13:$AJV$13,BS$6,DataFromEngine!$J246:$AJV246),11)=0,"-",ROUND(SUMIF(DataFromEngine!$J$13:$AJV$13,BS$6,DataFromEngine!$J232:$AJV232),11)/ROUND(SUMIF(DataFromEngine!$J$13:$AJV$13,BS$6,DataFromEngine!$J246:$AJV246),11)*12) -> 0.01567853398 | BT8: =IF(ROUND(SUMIF(DataFromEngine!$J$13:$AJV$13,BT$6,DataFromEngine!$J246:$AJV246),11)=0,"-",ROUND(SUMIF(DataFromEngine!$J$13:$AJV$13,BT$6,DataFromEngine!$J232:$AJV232),11)/ROUND(SUMIF(DataFromEngine!$J$13:$AJV$13,BT$6,DataFromEngine!$J246:$AJV246),11)*12) -> 0.01567194296 | BU8: =IF(ROUND(SUMIF(DataFromEngine!$J$13:$AJV$13,BU$6,DataFromEngine!$J246:$AJV246),11)=0,"-",ROUND(SUMIF(DataFromEngine!$J$13:$AJV$13,BU$6,DataFromEngine!$J232:$AJV232),11)/ROUND(SUMIF(DataFromEngine!$J$13:$AJV$13,BU$6,DataFromEngine!$J246:$AJV246),11)*12) -> 0.01566535749 | BV8: =IF(ROUND(SUMIF(DataFromEngine!$J$13:$AJV$13,BV$6,DataFromEngine!$J246:$AJV246),11)=0,"-",ROUND(SUMIF(DataFromEngine!$J$13:$AJV$13,BV$6,DataFromEngine!$J232:$AJV232),11)/ROUND(SUMIF(DataFromEngine!$J$13:$AJV$13,BV$6,DataFromEngine!$J246:$AJV246),11)*12) -> 0.01565877754 | BW8: =IF(ROUND(SUMIF(DataFromEngine!$J$13:$AJV$13,BW$6,DataFromEngine!$J246:$AJV246),11)=0,"-",ROUND(SUMIF(DataFromEngine!$J$13:$AJV$13,BW$6,DataFromEngine!$J232:$AJV232),11)/ROUND(SUMIF(DataFromEngine!$J$13:$AJV$13,BW$6,DataFromEngine!$J246:$AJV246),11)*12) -> 0.0156521155 | BX8: =IF(ROUND(SUMIF(DataFromEngine!$J$13:$AJV$13,BX$6,DataFromEngine!$J246:$AJV246),11)=0,"-",ROUND(SUMIF(DataFromEngine!$J$13:$AJV$13,BX$6,DataFromEngine!$J232:$AJV232),11)/ROUND(SUMIF(DataFromEngine!$J$13:$AJV$13,BX$6,DataFromEngine!$J246:$AJV246),11)*12) -> 0.01571269494 | BY8: =IF(ROUND(SUMIF(DataFromEngine!$J$13:$AJV$13,BY$6,DataFromEngine!$J246:$AJV246),11)=0,"-",ROUND(SUMIF(DataFromEngine!$J$13:$AJV$13,BY$6,DataFromEngine!$J232:$AJV232),11)/ROUND(SUMIF(DataFromEngine!$J$13:$AJV$13,BY$6,DataFromEngine!$J246:$AJV246),11)*12) -> 0.01570610345 | BZ8: =IF(ROUND(SUMIF(DataFromEngine!$J$13:$AJV$13,BZ$6,DataFromEngine!$J246:$AJV246),11)=0,"-",ROUND(SUMIF(DataFromEngine!$J$13:$AJV$13,BZ$6,DataFromEngine!$J232:$AJV232),11)/ROUND(SUMIF(DataFromEngine!$J$13:$AJV$13,BZ$6,DataFromEngine!$J246:$AJV246),11)*12) -> 0.01569942972 | CA8: =IF(ROUND(SUMIF(DataFromEngine!$J$13:$AJV$13,CA$6,DataFromEngine!$J246:$AJV246),11)=0,"-",ROUND(SUMIF(DataFromEngine!$J$13:$AJV$13,CA$6,DataFromEngine!$J232:$AJV232),11)/ROUND(SUMIF(DataFromEngine!$J$13:$AJV$13,CA$6,DataFromEngine!$J246:$AJV246),11)*12) -> 0.01569284936 | CB8: =IF(ROUND(SUMIF(DataFromEngine!$J$13:$AJV$13,CB$6,DataFromEngine!$J246:$AJV246),11)=0,"-",ROUND(SUMIF(DataFromEngine!$J$13:$AJV$13,CB$6,DataFromEngine!$J232:$AJV232),11)/ROUND(SUMIF(DataFromEngine!$J$13:$AJV$13,CB$6,DataFromEngine!$J246:$AJV246),11)*12) -> 0.01568627451 | CC8: =IF(ROUND(SUMIF(DataFromEngine!$J$13:$AJV$13,CC$6,DataFromEngine!$J246:$AJV246),11)=0,"-",ROUND(SUMIF(DataFromEngine!$J$13:$AJV$13,CC$6,DataFromEngine!$J232:$AJV232),11)/ROUND(SUMIF(DataFromEngine!$J$13:$AJV$13,CC$6,DataFromEngine!$J246:$AJV246),11)*12) -> 0.01567961761 | CD8: =IF(ROUND(SUMIF(DataFromEngine!$J$13:$AJV$13,CD$6,DataFromEngine!$J246:$AJV246),11)=0,"-",ROUND(SUMIF(DataFromEngine!$J$13:$AJV$13,CD$6,DataFromEngine!$J232:$AJV232),11)/ROUND(SUMIF(DataFromEngine!$J$13:$AJV$13,CD$6,DataFromEngine!$J246:$AJV246),11)*12) -> 0.01567305385 | CE8: =IF(ROUND(SUMIF(DataFromEngine!$J$13:$AJV$13,CE$6,DataFromEngine!$J246:$AJV246),11)=0,"-",ROUND(SUMIF(DataFromEngine!$J$13:$AJV$13,CE$6,DataFromEngine!$J232:$AJV232),11)/ROUND(SUMIF(DataFromEngine!$J$13:$AJV$13,CE$6,DataFromEngine!$J246:$AJV246),11)*12) -> 0.01566649557
B9: Property Tax | C9: =SUM(D9:CE9) -> 6431691.417 | D9: =IF(ISERROR(D7*D8),0,D7*D8) -> 0 | E9: 0 | F9: 0 | G9: 0 | H9: 11645.81764 | I9: 234696.7791 | J9: 556994.7882 | K9: 650114.1251 | L9: 614948.831 | M9: 580518.4295 | N9: 546767.8035 | O9: 513645.97 | P9: 481098.9531 | Q9: 448948.8653 | R9: 416972.7827 | S9: 387851.3808 | T9: 363043.3166 | U9: 340226.424 | V9: 317892.2999 | W9: 295558.1759 | X9: 273224.0518 | Y9: 250889.9277 | Z9: 228555.8037 | AA9: 206221.6796 | AB9: 183942.0862 | AC9: 162784.328 | AD9: 144296.1529 | AE9: 127999.7607 | AF9: 112292.8729 | AG9: 96585.98508 | AH9: 80879.09726 | AI9: 65172.20944 | AJ9: =IF(ISERROR(AJ7*AJ8),0,AJ7*AJ8) -> 49465.32162 | AK9: 33758.4338 | AL9: 18051.54598 | AM9: 2344.658155 | AN9: -13362.22966 | AO9: -29069.11748 | AP9: -44776.00531 | AQ9: -60482.89313 | AR9: -76189.78095 | AS9: -91896.66877 | AT9: -107603.5566 | AU9: -123310.4444 | AV9: -139017.3322 | AW9: -154724.22 | AX9: -170431.1079 | AY9: -186137.9957 | AZ9: -201844.8835 | BA9: -211864.8874 | BB9: -154055.0717 | BC9: =IF(ISERROR(BC7*BC8),0,BC7*BC8) -> -62118.02448 | BD9: -32007.65314 | BE9: -35708.25359 | BF9: -39408.85404 | BG9: -43109.45449 | BH9: -46810.05493 | BI9: -50510.65538 | BJ9: -54211.25583 | BK9: -57911.85628 | BL9: =IF(ISERROR(BL7*BL8),0,BL7*BL8) -> -61612.45672 | BM9: -63433.07336 | BN9: -42895.54256 | BO9: =IF(ISERROR(BO7*BO8),0,BO7*BO8) -> -11193.91055 | BP9: 2.329960754e-09 | BQ9: 2.329921541e-09 | BR9: 2.330039213e-09 | BS9: 2.329986935e-09 | BT9: 2.32994776e-09 | BU9: 2.330065272e-09 | BV9: 2.330026098e-09 | BW9: 2.329973913e-09 | BX9: 2.33993453e-09 | BY9: 2.340052354e-09 | BZ9: 2.34e-09 | CA9: 2.339960768e-09 | CB9: 2.340078431e-09 | CC9: 2.340026133e-09 | CD9: 2.339986939e-09 | CE9: 2.339947778e-09

Sheet ReportAssumptions
B2: Company | C2: San Diego Gas & Electric | F2: January | G2: 1
B3: Project Heading | C3: Power Your Drive Extension Program | F3: February | G3: 2
C4: =CONCATENATE("Revenue Requirement ",PlanBaseYear,"-",PlanBaseYear+77) -> Revenue Requirement 2020-2097 | F4: March | G4: 3
C5: =CONCATENATE("(Dollars in ",C9,")") -> (Dollars in Dollars) | F5: April | G5: 4
F6: May | G6: 5
B7: Start Year | C7: ='Rev Req'!D6+2 -> 2020 | F7: June | G7: 6
F8: July | G8: 7
B9: Scale | C9: Dollars | F9: August | G9: 8
B10: Scale | C10: =IF(C9="Thousands of Dollars",1000,IF(C9="Millions of Dollars",1000000,IF(C9="Billions of Dollars",1000000000,1))) -> 1 | F10: September | G10: 9
F11: October | G11: 10
F12: November | G12: 11
F13: December | G13: 12

Sheet DataFromEngine
H11: Monthly | I11: Period Number: | J11: 0 | K11: 1 | L11: 2 | M11: 3 | N11: 4 | O11: 5 | P11: 6 | Q11: 7 | R11: 8 | S11: 9 | T11: 10 | U11: 11 | V11: 12 | W11: 13 | X11: 14 | Y11: 15 | Z11: 16 | AA11: 17 | AB11: 18 | AC11: 19 | AD11: 20 | AE11: 21 | AF11: 22 | AG11: 23 | AH11: 24 | AI11: 25 | AJ11: 26 | AK11: 27 | AL11: 28 | AM11: 29 | AN11: 30 | AO11: 31 | AP11: 32 | AQ11: 33 | AR11: 34 | AS11: 35 | AT11: 36 | AU11: 37 | AV11: 38 | AW11: 39 | AX11: 40 | AY11: 41 | AZ11: 42 | BA11: 43 | BB11: 44 | BC11: 45 | BD11: 46 | BE11: 47 | BF11: 48 | BG11: 49 | BH11: 50 | BI11: 51 | BJ11: 52 | BK11: 53 | BL11: 54 | BM11: 55 | BN11: 56 | BO11: 57 | BP11: 58 | BQ11: 59 | BR11: 60 | BS11: 61 | BT11: 62 | BU11: 63 | BV11: 64 | BW11: 65 | BX11: 66 | BY11: 67 | BZ11: 68 | CA11: 69 | CB11: 70 | CC11: 71 | CD11: 72 | CE11: 73 | CF11: 74 | CG11: 75 | CH11: 76 | CI11: 77 | CJ11: 78 | CK11: 79 | CL11: 80 | CM11: 81 | CN11: 82 | CO11: 83 | CP11: 84 | CQ11: 85 | CR11: 86 | CS11: 87 | CT11: 88 | CU11: 89 | CV11: 90 | CW11: 91 | CX11: 92 | CY11: 93 | CZ11: 94 | DA11: 95 | DB11: 96 | DC11: 97 | DD11: 98 | DE11: 99 | DF11: 100 | DG11: 101 | DH11: 102 | DI11: 103 | DJ11: 104 | DK11: 105 | DL11: 106 | DM11: 107 | DN11: 108 | DO11: 109 | DP11: 110 | DQ11: 111 | DR11: 112 | DS11: 113 | DT11: 114 | DU11: 115 | DV11: 116 | DW11: 117 | DX11: 118 | DY11: 119 | DZ11: 120 | EA11: 121 | EB11: 122 | EC11: 123 | ED11: 124 | EE11: 125 | EF11: 126 | EG11: 127 | EH11: 128 | EI11: 129 | EJ11: 130 | EK11: 131 | EL11: 132 | EM11: 133 | EN11: 134 | EO11: 135 | EP11: 136 | EQ11: 137 | ER11: 138 | ES11: 139 | ET11: 140 | EU11: 141 | EV11: 142 | EW11: 143 | EX11: 144 | EY11: 145 | EZ11: 146 | FA11: 147 | FB11: 148 | FC11: 149 | FD11: 150 | FE11: 151 | FF11: 152 | FG11: 153 | FH11: 154 | FI11: 155 | FJ11: 156 | FK11: 157 | FL11: 158 | FM11: 159 | FN11: 160 | FO11: 161 | FP11: 162 | FQ11: 163 | FR11: 164 | FS11: 165 | FT11: 166 | FU11: 167 | FV11: 168 | FW11: 169 | FX11: 170 | FY11: 171 | FZ11: 172 | GA11: 173 | GB11: 174 | GC11: 175 | GD11: 176 | GE11: 177 | GF11: 178 | GG11: 179 | GH11: 180 | GI11: 181 | GJ11: 182 | GK11: 183 | GL11: 184 | GM11: 185 | GN11: 186 | GO11: 187 | GP11: 188 | GQ11: 189 | GR11: 190 | GS11: 191 | GT11: 192 | GU11: 193 | GV11: 194 | GW11: 195 | GX11: 196 | GY11: 197 | GZ11: 198 | HA11: 199 | HB11: 200 | HC11: 201 | HD11: 202 | HE11: 203 | HF11: 204 | HG11: 205 | HH11: 206 | HI11: 207 | HJ11: 208 | HK11: 209 | HL11: 210 | HM11: 211 | HN11: 212 | HO11: 213 | HP11: 214 | HQ11: 215 | HR11: 216 | HS11: 217 | HT11: 218 | HU11: 219 | HV11: 220 | HW11: 221 | HX11: 222 | HY11: 223 | HZ11: 224 | IA11: 225 | IB11: 226 | IC11: 227 | ID11: 228 | IE11: 229 | IF11: 230 | IG11: 231 | IH11: 232 | II11: 233 | IJ11: 234 | IK11: 235 | IL11: 236 | IM11: 237 | IN11: 238 | IO11: 239 | IP11: 240 | IQ11: 241 | IR11: 242 | IS11: 243 | IT11: 244 | IU11: 245 | IV11: 246 | IW11: 247 | IX11: 248 | IY11: 249 | IZ11: 250 | JA11: 251 | JB11: 252 | JC11: 253 | JD11: 254 | JE11: 255 | JF11: 256 | JG11: 257 | JH11: 258 | JI11: 259 | JJ11: 260 | JK11: 261 | JL11: 262 | JM11: 263 | JN11: 264 | JO11: 265 | JP11: 266 | JQ11: 267 | JR11: 268 | JS11: 269 | JT11: 270 | JU11: 271 | JV11: 272 | JW11: 273 | JX11: 274 | JY11: 275 | JZ11: 276 | KA11: 277 | KB11: 278 | KC11: 279 | KD11: 280 | KE11: 281 | KF11: 282 | KG11: 283 | KH11: 284 | KI11: 285 | KJ11: 286 | KK11: 287 | KL11: 288 | KM11: 289 | KN11: 290 | KO11: 291 | KP11: 292 | KQ11: 293 | KR11: 294 | KS11: 295 | KT11: 296 | KU11: 297 | KV11: 298 | KW11: 299 | KX11: 300 | KY11: 301 | KZ11: 302 | LA11: 303 | LB11: 304 | LC11: 305 | LD11: 306 | LE11: 307 | LF11: 308 | LG11: 309 | LH11: 310 | LI11: 311 | LJ11: 312 | LK11: 313 | LL11: 314 | LM11: 315 | LN11: 316 | LO11: 317 | LP11: 318 | LQ11: 319 | LR11: 320 | LS11: 321 | LT11: 322 | LU11: 323 | LV11: 324 | LW11: 325 | LX11: 326 | LY11: 327 | LZ11: 328 | MA11: 329 | MB11: 330 | MC11: 331 | MD11: 332 | ME11: 333 | MF11: 334 | MG11: 335 | MH11: 336 | MI11: 337 | MJ11: 338 | MK11: 339 | ML11: 340 | MM11: 341 | MN11: 342 | MO11: 343 | MP11: 344 | MQ11: 345 | MR11: 346 | MS11: 347 | MT11: 348 | MU11: 349 | MV11: 350 | MW11: 351 | MX11: 352 | MY11: 353 | MZ11: 354 | NA11: 355 | NB11: 356 | NC11: 357 | ND11: 358 | NE11: 359 | NF11: 360 | NG11: 361 | NH11: 362 | NI11: 363 | NJ11: 364 | NK11: 365 | NL11: 366 | NM11: 367 | NN11: 368 | NO11: 369 | NP11: 370 | NQ11: 371 | NR11: 372 | NS11: 373 | NT11: 374 | NU11: 375 | NV11: 376 | NW11: 377 | NX11: 378 | NY11: 379 | NZ11: 380 | OA11: 381 | OB11: 382 | OC11: 383 | OD11: 384 | OE11: 385 | OF11: 386 | OG11: 387 | OH11: 388 | OI11: 389 | OJ11: 390 | OK11: 391 | OL11: 392 | OM11: 393 | ON11: 394 | OO11: 395 | OP11: 396 | OQ11: 397 | OR11: 398 | OS11: 399 | OT11: 400 | OU11: 401 | OV11: 402 | OW11: 403 | OX11: 404 | OY11: 405 | OZ11: 406 | PA11: 407 | PB11: 408 | PC11: 409 | PD11: 410 | PE11: 411 | PF11: 412 | PG11: 413 | PH11: 414 | PI11: 415 | PJ11: 416 | PK11: 417 | PL11: 418 | PM11: 419 | PN11: 420 | PO11: 421 | PP11: 422 | PQ11: 423 | PR11: 424 | PS11: 425 | PT11: 426 | PU11: 427 | PV11: 428 | PW11: 429 | PX11: 430 | PY11: 431 | PZ11: 432 | QA11: 433 | QB11: 434 | QC11: 435 | QD11: 436 | QE11: 437 | QF11: 438 | QG11: 439 | QH11: 440 | QI11: 441 | QJ11: 442 | QK11: 443 | QL11: 444 | QM11: 445 | QN11: 446 | QO11: 447 | QP11: 448 | QQ11: 449 | QR11: 450 | QS11: 451 | QT11: 452 | QU11: 453 | QV11: 454 | QW11: 455 | QX11: 456 | QY11: 457 | QZ11: 458 | RA11: 459 | RB11: 460 | RC11: 461 | RD11: 462 | RE11: 463 | RF11: 464 | RG11: 465 | RH11: 466 | RI11: 467 | RJ11: 468 | RK11: 469 | RL11: 470 | RM11: 471 | RN11: 472 | RO11: 473 | RP11: 474 | RQ11: 475 | RR11: 476 | RS11: 477 | RT11: 478 | RU11: 479 | RV11: 480 | RW11: 481 | RX11: 482 | RY11: 483 | RZ11: 484 | SA11: 485 | SB11: 486 | SC11: 487 | SD11: 488 | SE11: 489 | SF11: 490 | SG11: 491 | SH11: 492 | SI11: 493 | SJ11: 494 | SK11: 495 | SL11: 496 | SM11: 497 | SN11: 498 | SO11: 499 | SP11: 500 | SQ11: 501 | SR11: 502 | SS11: 503 | ST11: 504 | SU11: 505 | SV11: 506 | SW11: 507 | SX11: 508 | SY11: 509 | SZ11: 510 | TA11: 511 | TB11: 512 | TC11: 513 | TD11: 514 | TE11: 515 | TF11: 516 | TG11: 517 | TH11: 518 | TI11: 519 | TJ11: 520 | TK11: 521 | TL11: 522 | TM11: 523 | TN11: 524 | TO11: 525 | TP11: 526 | TQ11: 527 | TR11: 528 | TS11: 529 | TT11: 530 | TU11: 531 | TV11: 532 | TW11: 533 | TX11: 534 | TY11: 535 | TZ11: 536 | UA11: 537 | UB11: 538 | UC11: 539 | UD11: 540 | UE11: 541 | UF11: 542 | UG11: 543 | UH11: 544 | UI11: 545 | UJ11: 546 | UK11: 547 | UL11: 548 | UM11: 549 | UN11: 550 | UO11: 551 | UP11: 552 | UQ11: 553 | UR11: 554 | US11: 555 | UT11: 556 | UU11: 557 | UV11: 558 | UW11: 559 | UX11: 560 | UY11: 561 | UZ11: 562 | VA11: 563 | VB11: 564 | VC11: 565 | VD11: 566 | VE11: 567 | VF11: 568 | VG11: 569 | VH11: 570 | VI11: 571 | VJ11: 572 | VK11: 573 | VL11: 574 | VM11: 575 | VN11: 576 | VO11: 577 | VP11: 578 | VQ11: 579 | VR11: 580 | VS11: 581 | VT11: 582 | VU11: 583 | VV11: 584 | VW11: 585 | VX11: 586 | VY11: 587 | VZ11: 588 | WA11: 589 | WB11: 590 | WC11: 591 | WD11: 592 | WE11: 593 | WF11: 594 | WG11: 595 | WH11: 596 | WI11: 597 | WJ11: 598 | WK11: 599 | WL11: 600 | WM11: 601 | WN11: 602 | WO11: 603 | WP11: 604 | WQ11: 605 | WR11: 606 | WS11: 607 | WT11: 608 | WU11: 609 | WV11: 610 | WW11: 611 | WX11: 612 | WY11: 613 | WZ11: 614 | XA11: 615 | XB11: 616 | XC11: 617 | XD11: 618 | XE11: 619 | XF11: 620 | XG11: 621 | XH11: 622 | XI11: 623 | XJ11: 624 | XK11: 625 | XL11: 626 | XM11: 627 | XN11: 628 | XO11: 629 | XP11: 630 | XQ11: 631 | XR11: 632 | XS11: 633 | XT11: 634 | XU11: 635 | XV11: 636 | XW11: 637 | XX11: 638 | XY11: 639 | XZ11: 640 | YA11: 641 | YB11: 642 | YC11: 643 | YD11: 644 | YE11: 645 | YF11: 646 | YG11: 647 | YH11: 648 | YI11: 649 | YJ11: 650 | YK11: 651 | YL11: 652 | YM11: 653 | YN11: 654 | YO11: 655 | YP11: 656 | YQ11: 657 | YR11: 658 | YS11: 659 | YT11: 660 | YU11: 661 | YV11: 662 | YW11: 663 | YX11: 664 | YY11: 665 | YZ11: 666 | ZA11: 667 | ZB11: 668 | ZC11: 669 | ZD11: 670 | ZE11: 671 | ZF11: 672 | ZG11: 673 | ZH11: 674 | ZI11: 675 | ZJ11: 676 | ZK11: 677 | ZL11: 678 | ZM11: 679 | ZN11: 680 | ZO11: 681 | ZP11: 682 | ZQ11: 683 | ZR11: 684 | ZS11: 685 | ZT11: 686 | ZU11: 687 | ZV11: 688 | ZW11: 689 | ZX11: 690 | ZY11: 691 | ZZ11: 692 | AAA11: 693 | AAB11: 694 | AAC11: 695 | AAD11: 696 | AAE11: 697 | AAF11: 698 | AAG11: 699 | AAH11: 700 | AAI11: 701 | AAJ11: 702 | AAK11: 703 | AAL11: 704 | AAM11: 705 | AAN11: 706 | AAO11: 707 | AAP11: 708 | AAQ11: 709 | AAR11: 710 | AAS11: 711 | AAT11: 712 | AAU11: 713 | AAV11: 714 | AAW11: 715 | AAX11: 716 | AAY11: 717 | AAZ11: 718 | ABA11: 719 | ABB11: 720 | ABC11: 721 | ABD11: 722 | ABE11: 723 | ABF11: 724 | ABG11: 725 | ABH11: 726 | ABI11: 727 | ABJ11: 728 | ABK11: 729 | ABL11: 730 | ABM11: 731 | ABN11: 732 | ABO11: 733 | ABP11: 734 | ABQ11: 735 | ABR11: 736 | ABS11: 737 | ABT11: 738 | ABU11: 739 | ABV11: 740 | ABW11: 741 | ABX11: 742 | ABY11: 743 | ABZ11: 744 | ACA11: 745 | ACB11: 746 | ACC11: 747 | ACD11: 748 | ACE11: 749 | ACF11: 750 | ACG11: 751 | ACH11: 752 | ACI11: 753 | ACJ11: 754 | ACK11: 755 | ACL11: 756 | ACM11: 757 | ACN11: 758 | ACO11: 759 | ACP11: 760 | ACQ11: 761 | ACR11: 762 | ACS11: 763 | ACT11: 764 | ACU11: 765 | ACV11: 766 | ACW11: 767 | ACX11: 768 | ACY11: 769 | ACZ11: 770 | ADA11: 771 | ADB11: 772 | ADC11: 773 | ADD11: 774 | ADE11: 775 | ADF11: 776 | ADG11: 777 | ADH11: 778 | ADI11: 779 | ADJ11: 780 | ADK11: 781 | ADL11: 782 | ADM11: 783 | ADN11: 784 | ADO11: 785 | ADP11: 786 | ADQ11: 787 | ADR11: 788 | ADS11: 789 | ADT11: 790 | ADU11: 791 | ADV11: 792 | ADW11: 793 | ADX11: 794 | ADY11: 795 | ADZ11: 796 | AEA11: 797 | AEB11: 798 | AEC11: 799 | AED11: 800 | AEE11: 801 | AEF11: 802 | AEG11: 803 | AEH11: 804 | AEI11: 805 | AEJ11: 806 | AEK11: 807 | AEL11: 808 | AEM11: 809 | AEN11: 810 | AEO11: 811 | AEP11: 812 | AEQ11: 813 | AER11: 814 | AES11: 815 | AET11: 816 | AEU11: 817 | AEV11: 818 | AEW11: 819 | AEX11: 820 | AEY11: 821 | AEZ11: 822 | AFA11: 823 | AFB11: 824 | AFC11: 825 | AFD11: 826 | AFE11: 827 | AFF11: 828 | AFG11: 829 | AFH11: 830 | AFI11: 831 | AFJ11: 832 | AFK11: 833 | AFL11: 834 | AFM11: 835 | AFN11: 836 | AFO11: 837 | AFP11: 838 | AFQ11: 839 | AFR11: 840 | AFS11: 841 | AFT11: 842 | AFU11: 843 | AFV11: 844 | AFW11: 845 | AFX11: 846 | AFY11: 847 | AFZ11: 848 | AGA11: 849 | AGB11: 850 | AGC11: 851 | AGD11: 852 | AGE11: 853 | AGF11: 854 | AGG11: 855 | AGH11: 856 | AGI11: 857 | AGJ11: 858 | AGK11: 859 | AGL11: 860 | AGM11: 861 | AGN11: 862 | AGO11: 863 | AGP11: 864 | AGQ11: 865 | AGR11: 866 | AGS11: 867 | AGT11: 868 | AGU11: 869 | AGV11: 870 | AGW11: 871 | AGX11: 872 | AGY11: 873 | AGZ11: 874 | AHA11: 875 | AHB11: 876 | AHC11: 877 | AHD11: 878 | AHE11: 879 | AHF11: 880 | AHG11: 881 | AHH11: 882 | AHI11: 883 | AHJ11: 884 | AHK11: 885 | AHL11: 886 | AHM11: 887 | AHN11: 888 | AHO11: 889 | AHP11: 890 | AHQ11: 891 | AHR11: 892 | AHS11: 893 | AHT11: 894 | AHU11: 895 | AHV11: 896 | AHW11: 897 | AHX11: 898 | AHY11: 899 | AHZ11: 900 | AIA11: 901 | AIB11: 902 | AIC11: 903 | AID11: 904 | AIE11: 905 | AIF11: 906 | AIG11: 907 | AIH11: 908 | AII11: 909 | AIJ11: 910 | AIK11: 911 | AIL11: 912 | AIM11: 913 | AIN11: 914 | AIO11: 915 | AIP11: 916 | AIQ11: 917 | AIR11: 918 | AIS11: 919 | AIT11: 920 | AIU11: 921 | AIV11: 922 | AIW11: 923 | AIX11: 924 | AIY11: 925 | AIZ11: 926 | AJA11: 927 | AJB11: 928 | AJC11: 929 | AJD11: 930 | AJE11: 931 | AJF11: 932 | AJG11: 933 | AJH11: 934 | AJI11: 935 | AJJ11: 936 | AJK11: 937 | AJL11: 938 | AJM11: 939 | AJN11: 940 | AJO11: 941 | AJP11: 942 | AJQ11: 943 | AJR11: 944 | AJS11: 945 | AJT11: 946 | AJU11: 947 | AJV11: 948
I12: Year: | J12: 2018 | K12: 2019 | L12: 2020 | M12: 2021 | N12: 2022 | O12: 2023 | P12: 2024 | Q12: 2025 | R12: 2026 | S12: 2027 | T12: 2028 | U12: 2029 | V12: 2030 | W12: 2031 | X12: 2032 | Y12: 2033 | Z12: 2034 | AA12: 2035 | AB12: 2036 | AC12: 2037 | AD12: 2038 | AE12: 2039 | AF12: 2040 | AG12: 2041 | AH12: 2042 | AI12: 2043 | AJ12: 2044 | AK12: 2045 | AL12: 2046 | AM12: 2047 | AN12: 2048 | AO12: 2049 | AP12: 2050 | AQ12: 2051 | AR12: 2052 | AS12: 2053 | AT12: 2054 | AU12: 2055 | AV12: 2056 | AW12: 2057 | AX12: 2058 | AY12: 2059 | AZ12: 2060 | BA12: 2061 | BB12: 2062 | BC12: 2063 | BD12: 2064 | BE12: 2065 | BF12: 2066 | BG12: 2067 | BH12: 2068 | BI12: 2069 | BJ12: 2070 | BK12: 2071 | BL12: 2072 | BM12: 2073 | BN12: 2074 | BO12: 2075 | BP12: 2076 | BQ12: 2077 | BR12: 2078 | BS12: 2079 | BT12: 2080 | BU12: 2081 | BV12: 2082 | BW12: 2083 | BX12: 2084 | BY12: 2085 | BZ12: 2086 | CA12: 2087 | CB12: 2088 | CC12: 2089 | CD12: 2090 | CE12: 2091 | CF12: 2092 | CG12: 2093 | CH12: 2094 | CI12: 2095 | CJ12: 2096 | CK12: 2097
I13: Month relates to year: | J13: 2018 | K13: 2019 | L13: 2019 | M13: 2019 | N13: 2019 | O13: 2019 | P13: 2019 | Q13: 2019 | R13: 2019 | S13: 2019 | T13: 2019 | U13: 2019 | V13: 2019 | W13: 2020 | X13: 2020 | Y13: 2020 | Z13: 2020 | AA13: 2020 | AB13: 2020 | AC13: 2020 | AD13: 2020 | AE13: 2020 | AF13: 2020 | AG13: 2020 | AH13: 2020 | AI13: 2021 | AJ13: 2021 | AK13: 2021 | AL13: 2021 | AM13: 2021 | AN13: 2021 | AO13: 2021 | AP13: 2021 | AQ13: 2021 | AR13: 2021 | AS13: 2021 | AT13: 2021 | AU13: 2022 | AV13: 2022 | AW13: 2022 | AX13: 2022 | AY13: 2022 | AZ13: 2022 | BA13: 2022 | BB13: 2022 | BC13: 2022 | BD13: 2022 | BE13: 2022 | BF13: 2022 | BG13: 2023 | BH13: 2023 | BI13: 2023 | BJ13: 2023 | BK13: 2023 | BL13: 2023 | BM13: 2023 | BN13: 2023 | BO13: 2023 | BP13: 2023 | BQ13: 2023 | BR13: 2023 | BS13: 2024 | BT13: 2024 | BU13: 2024 | BV13: 2024 | BW13: 2024 | BX13: 2024 | BY13: 2024 | BZ13: 2024 | CA13: 2024 | CB13: 2024 | CC13: 2024 | CD13: 2024 | CE13: 2025 | CF13: 2025 | CG13: 2025 | CH13: 2025 | CI13: 2025 | CJ13: 2025 | CK13: 2025 | CL13: 2025 | CM13: 2025 | CN13: 2025 | CO13: 2025 | CP13: 2025 | CQ13: 2026 | CR13: 2026 | CS13: 2026 | CT13: 2026 | CU13: 2026 | CV13: 2026 | CW13: 2026 | CX13: 2026 | CY13: 2026 | CZ13: 2026 | DA13: 2026 | DB13: 2026 | DC13: 2027 | DD13: 2027 | DE13: 2027 | DF13: 2027 | DG13: 2027 | DH13: 2027 | DI13: 2027 | DJ13: 2027 | DK13: 2027 | DL13: 2027 | DM13: 2027 | DN13: 2027 | DO13: 2028 | DP13: 2028 | DQ13: 2028 | DR13: 2028 | DS13: 2028 | DT13: 2028 | DU13: 2028 | DV13: 2028 | DW13: 2028 | DX13: 2028 | DY13: 2028 | DZ13: 2028 | EA13: 2029 | EB13: 2029 | EC13: 2029 | ED13: 2029 | EE13: 2029 | EF13: 2029 | EG13: 2029 | EH13: 2029 | EI13: 2029 | EJ13: 2029 | EK13: 2029 | EL13: 2029 | EM13: 2030 | EN13: 2030 | EO13: 2030 | EP13: 2030 | EQ13: 2030 | ER13: 2030 | ES13: 2030 | ET13: 2030 | EU13: 2030 | EV13: 2030 | EW13: 2030 | EX13: 2030 | EY13: 2031 | EZ13: 2031 | FA13: 2031 | FB13: 2031 | FC13: 2031 | FD13: 2031 | FE13: 2031 | FF13: 2031 | FG13: 2031 | FH13: 2031 | FI13: 2031 | FJ13: 2031 | FK13: 2032 | FL13: 2032 | FM13: 2032 | FN13: 2032 | FO13: 2032 | FP13: 2032 | FQ13: 2032 | FR13: 2032 | FS13: 2032 | FT13: 2032 | FU13: 2032 | FV13: 2032 | FW13: 2033 | FX13: 2033 | FY13: 2033 | FZ13: 2033 | GA13: 2033 | GB13: 2033 | GC13: 2033 | GD13: 2033 | GE13: 2033 | GF13: 2033 | GG13: 2033 | GH13: 2033 | GI13: 2034 | GJ13: 2034 | GK13: 2034 | GL13: 2034 | GM13: 2034 | GN13: 2034 | GO13: 2034 | GP13: 2034 | GQ13: 2034 | GR13: 2034 | GS13: 2034 | GT13: 2034 | GU13: 2035 | GV13: 2035 | GW13: 2035 | GX13: 2035 | GY13: 2035 | GZ13: 2035 | HA13: 2035 | HB13: 2035 | HC13: 2035 | HD13: 2035 | HE13: 2035 | HF13: 2035 | HG13: 2036 | HH13: 2036 | HI13: 2036 | HJ13: 2036 | HK13: 2036 | HL13: 2036 | HM13: 2036 | HN13: 2036 | HO13: 2036 | HP13: 2036 | HQ13: 2036 | HR13: 2036 | HS13: 2037 | HT13: 2037 | HU13: 2037 | HV13: 2037 | HW13: 2037 | HX13: 2037 | HY13: 2037 | HZ13: 2037 | IA13: 2037 | IB13: 2037 | IC13: 2037 | ID13: 2037 | IE13: 2038 | IF13: 2038 | IG13: 2038 | IH13: 2038 | II13: 2038 | IJ13: 2038 | IK13: 2038 | IL13: 2038 | IM13: 2038 | IN13: 2038 | IO13: 2038 | IP13: 2038 | IQ13: 2039 | IR13: 2039 | IS13: 2039 | IT13: 2039 | IU13: 2039 | IV13: 2039 | IW13: 2039 | IX13: 2039 | IY13: 2039 | IZ13: 2039 | JA13: 2039 | JB13: 2039 | JC13: 2040 | JD13: 2040 | JE13: 2040 | JF13: 2040 | JG13: 2040 | JH13: 2040 | JI13: 2040 | JJ13: 2040 | JK13: 2040 | JL13: 2040 | JM13: 2040 | JN13: 2040 | JO13: 2041 | JP13: 2041 | JQ13: 2041 | JR13: 2041 | JS13: 2041 | JT13: 2041 | JU13: 2041 | JV13: 2041 | JW13: 2041 | JX13: 2041 | JY13: 2041 | JZ13: 2041 | KA13: 2042 | KB13: 2042 | KC13: 2042 | KD13: 2042 | KE13: 2042 | KF13: 2042 | KG13: 2042 | KH13: 2042 | KI13: 2042 | KJ13: 2042 | KK13: 2042 | KL13: 2042 | KM13: 2043 | KN13: 2043 | KO13: 2043 | KP13: 2043 | KQ13: 2043 | KR13: 2043 | KS13: 2043 | KT13: 2043 | KU13: 2043 | KV13: 2043 | KW13: 2043 | KX13: 2043 | KY13: 2044 | KZ13: 2044 | LA13: 2044 | LB13: 2044 | LC13: 2044 | LD13: 2044 | LE13: 2044 | LF13: 2044 | LG13: 2044 | LH13: 2044 | LI13: 2044 | LJ13: 2044 | LK13: 2045 | LL13: 2045 | LM13: 2045 | LN13: 2045 | LO13: 2045 | LP13: 2045 | LQ13: 2045 | LR13: 2045 | LS13: 2045 | LT13: 2045 | LU13: 2045 | LV13: 2045 | LW13: 2046 | LX13: 2046 | LY13: 2046 | LZ13: 2046 | MA13: 2046 | MB13: 2046 | MC13: 2046 | MD13: 2046 | ME13: 2046 | MF13: 2046 | MG13: 2046 | MH13: 2046 | MI13: 2047 | MJ13: 2047 | MK13: 2047 | ML13: 2047 | MM13: 2047 | MN13: 2047 | MO13: 2047 | MP13: 2047 | MQ13: 2047 | MR13: 2047 | MS13: 2047 | MT13: 2047 | MU13: 2048 | MV13: 2048 | MW13: 2048 | MX13: 2048 | MY13: 2048 | MZ13: 2048 | NA13: 2048 | NB13: 2048 | NC13: 2048 | ND13: 2048 | NE13: 2048 | NF13: 2048 | NG13: 2049 | NH13: 2049 | NI13: 2049 | NJ13: 2049 | NK13: 2049 | NL13: 2049 | NM13: 2049 | NN13: 2049 | NO13: 2049 | NP13: 2049 | NQ13: 2049 | NR13: 2049 | NS13: 2050 | NT13: 2050 | NU13: 2050 | NV13: 2050 | NW13: 2050 | NX13: 2050 | NY13: 2050 | NZ13: 2050 | OA13: 2050 | OB13: 2050 | OC13: 2050 | OD13: 2050 | OE13: 2051 | OF13: 2051 | OG13: 2051 | OH13: 2051 | OI13: 2051 | OJ13: 2051 | OK13: 2051 | OL13: 2051 | OM13: 2051 | ON13: 2051 | OO13: 2051 | OP13: 2051 | OQ13: 2052 | OR13: 2052 | OS13: 2052 | OT13: 2052 | OU13: 2052 | OV13: 2052 | OW13: 2052 | OX13: 2052 | OY13: 2052 | OZ13: 2052 | PA13: 2052 | PB13: 2052 | PC13: 2053 | PD13: 2053 | PE13: 2053 | PF13: 2053 | PG13: 2053 | PH13: 2053 | PI13: 2053 | PJ13: 2053 | PK13: 2053 | PL13: 2053 | PM13: 2053 | PN13: 2053 | PO13: 2054 | PP13: 2054 | PQ13: 2054 | PR13: 2054 | PS13: 2054 | PT13: 2054 | PU13: 2054 | PV13: 2054 | PW13: 2054 | PX13: 2054 | PY13: 2054 | PZ13: 2054 | QA13: 2055 | QB13: 2055 | QC13: 2055 | QD13: 2055 | QE13: 2055 | QF13: 2055 | QG13: 2055 | QH13: 2055 | QI13: 2055 | QJ13: 2055 | QK13: 2055 | QL13: 2055 | QM13: 2056 | QN13: 2056 | QO13: 2056 | QP13: 2056 | QQ13: 2056 | QR13: 2056 | QS13: 2056 | QT13: 2056 | QU13: 2056 | QV13: 2056 | QW13: 2056 | QX13: 2056 | QY13: 2057 | QZ13: 2057 | RA13: 2057 | RB13: 2057 | RC13: 2057 | RD13: 2057 | RE13: 2057 | RF13: 2057 | RG13: 2057 | RH13: 2057 | RI13: 2057 | RJ13: 2057 | RK13: 2058 | RL13: 2058 | RM13: 2058 | RN13: 2058 | RO13: 2058 | RP13: 2058 | RQ13: 2058 | RR13: 2058 | RS13: 2058 | RT13: 2058 | RU13: 2058 | RV13: 2058 | RW13: 2059 | RX13: 2059 | RY13: 2059 | RZ13: 2059 | SA13: 2059 | SB13: 2059 | SC13: 2059 | SD13: 2059 | SE13: 2059 | SF13: 2059 | SG13: 2059 | SH13: 2059 | SI13: 2060 | SJ13: 2060 | SK13: 2060 | SL13: 2060 | SM13: 2060 | SN13: 2060 | SO13: 2060 | SP13: 2060 | SQ13: 2060 | SR13: 2060 | SS13: 2060 | ST13: 2060 | SU13: 2061 | SV13: 2061 | SW13: 2061 | SX13: 2061 | SY13: 2061 | SZ13: 2061 | TA13: 2061 | TB13: 2061 | TC13: 2061 | TD13: 2061 | TE13: 2061 | TF13: 2061 | TG13: 2062 | TH13: 2062 | TI13: 2062 | TJ13: 2062 | TK13: 2062 | TL13: 2062 | TM13: 2062 | TN13: 2062 | TO13: 2062 | TP13: 2062 | TQ13: 2062 | TR13: 2062 | TS13: 2063 | TT13: 2063 | TU13: 2063 | TV13: 2063 | TW13: 2063 | TX13: 2063 | TY13: 2063 | TZ13: 2063 | UA13: 2063 | UB13: 2063 | UC13: 2063 | UD13: 2063 | UE13: 2064 | UF13: 2064 | UG13: 2064 | UH13: 2064 | UI13: 2064 | UJ13: 2064 | UK13: 2064 | UL13: 2064 | UM13: 2064 | UN13: 2064 | UO13: 2064 | UP13: 2064 | UQ13: 2065 | UR13: 2065 | US13: 2065 | UT13: 2065 | UU13: 2065 | UV13: 2065 | UW13: 2065 | UX13: 2065 | UY13: 2065 | UZ13: 2065 | VA13: 2065 | VB13: 2065 | VC13: 2066 | VD13: 2066 | VE13: 2066 | VF13: 2066 | VG13: 2066 | VH13: 2066 | VI13: 2066 | VJ13: 2066 | VK13: 2066 | VL13: 2066 | VM13: 2066 | VN13: 2066 | VO13: 2067 | VP13: 2067 | VQ13: 2067 | VR13: 2067 | VS13: 2067 | VT13: 2067 | VU13: 2067 | VV13: 2067 | VW13: 2067 | VX13: 2067 | VY13: 2067 | VZ13: 2067 | WA13: 2068 | WB13: 2068 | WC13: 2068 | WD13: 2068 | WE13: 2068 | WF13: 2068 | WG13: 2068 | WH13: 2068 | WI13: 2068 | WJ13: 2068 | WK13: 2068 | WL13: 2068 | WM13: 2069 | WN13: 2069 | WO13: 2069 | WP13: 2069 | WQ13: 2069 | WR13: 2069 | WS13: 2069 | WT13: 2069 | WU13: 2069 | WV13: 2069 | WW13: 2069 | WX13: 2069 | WY13: 2070 | WZ13: 2070 | XA13: 2070 | XB13: 2070 | XC13: 2070 | XD13: 2070 | XE13: 2070 | XF13: 2070 | XG13: 2070 | XH13: 2070 | XI13: 2070 | XJ13: 2070 | XK13: 2071 | XL13: 2071 | XM13: 2071 | XN13: 2071 | XO13: 2071 | XP13: 2071 | XQ13: 2071 | XR13: 2071 | XS13: 2071 | XT13: 2071 | XU13: 2071 | XV13: 2071 | XW13: 2072 | XX13: 2072 | XY13: 2072 | XZ13: 2072 | YA13: 2072 | YB13: 2072 | YC13: 2072 | YD13: 2072 | YE13: 2072 | YF13: 2072 | YG13: 2072 | YH13: 2072 | YI13: 2073 | YJ13: 2073 | YK13: 2073 | YL13: 2073 | YM13: 2073 | YN13: 2073 | YO13: 2073 | YP13: 2073 | YQ13: 2073 | YR13: 2073 | YS13: 2073 | YT13: 2073 | YU13: 2074 | YV13: 2074 | YW13: 2074 | YX13: 2074 | YY13: 2074 | YZ13: 2074 | ZA13: 2074 | ZB13: 2074 | ZC13: 2074 | ZD13: 2074 | ZE13: 2074 | ZF13: 2074 | ZG13: 2075 | ZH13: 2075 | ZI13: 2075 | ZJ13: 2075 | ZK13: 2075 | ZL13: 2075 | ZM13: 2075 | ZN13: 2075 | ZO13: 2075 | ZP13: 2075 | ZQ13: 2075 | ZR13: 2075 | ZS13: 2076 | ZT13: 2076 | ZU13: 2076 | ZV13: 2076 | ZW13: 2076 | ZX13: 2076 | ZY13: 2076 | ZZ13: 2076 | AAA13: 2076 | AAB13: 2076 | AAC13: 2076 | AAD13: 2076 | AAE13: 2077 | AAF13: 2077 | AAG13: 2077 | AAH13: 2077 | AAI13: 2077 | AAJ13: 2077 | AAK13: 2077 | AAL13: 2077 | AAM13: 2077 | AAN13: 2077 | AAO13: 2077 | AAP13: 2077 | AAQ13: 2078 | AAR13: 2078 | AAS13: 2078 | AAT13: 2078 | AAU13: 2078 | AAV13: 2078 | AAW13: 2078 | AAX13: 2078 | AAY13: 2078 | AAZ13: 2078 | ABA13: 2078 | ABB13: 2078 | ABC13: 2079 | ABD13: 2079 | ABE13: 2079 | ABF13: 2079 | ABG13: 2079 | ABH13: 2079 | ABI13: 2079 | ABJ13: 2079 | ABK13: 2079 | ABL13: 2079 | ABM13: 2079 | ABN13: 2079 | ABO13: 2080 | ABP13: 2080 | ABQ13: 2080 | ABR13: 2080 | ABS13: 2080 | ABT13: 2080 | ABU13: 2080 | ABV13: 2080 | ABW13: 2080 | ABX13: 2080 | ABY13: 2080 | ABZ13: 2080 | ACA13: 2081 | ACB13: 2081 | ACC13: 2081 | ACD13: 2081 | ACE13: 2081 | ACF13: 2081 | ACG13: 2081 | ACH13: 2081 | ACI13: 2081 | ACJ13: 2081 | ACK13: 2081 | ACL13: 2081 | ACM13: 2082 | ACN13: 2082 | ACO13: 2082 | ACP13: 2082 | ACQ13: 2082 | ACR13: 2082 | ACS13: 2082 | ACT13: 2082 | ACU13: 2082 | ACV13: 2082 | ACW13: 2082 | ACX13: 2082 | ACY13: 2083 | ACZ13: 2083 | ADA13: 2083 | ADB13: 2083 | ADC13: 2083 | ADD13: 2083 | ADE13: 2083 | ADF13: 2083 | ADG13: 2083 | ADH13: 2083 | ADI13: 2083 | ADJ13: 2083 | ADK13: 2084 | ADL13: 2084 | ADM13: 2084 | ADN13: 2084 | ADO13: 2084 | ADP13: 2084 | ADQ13: 2084 | ADR13: 2084 | ADS13: 2084 | ADT13: 2084 | ADU13: 2084 | ADV13: 2084 | ADW13: 2085 | ADX13: 2085 | ADY13: 2085 | ADZ13: 2085 | AEA13: 2085 | AEB13: 2085 | AEC13: 2085 | AED13: 2085 | AEE13: 2085 | AEF13: 2085 | AEG13: 2085 | AEH13: 2085 | AEI13: 2086 | AEJ13: 2086 | AEK13: 2086 | AEL13: 2086 | AEM13: 2086 | AEN13: 2086 | AEO13: 2086 | AEP13: 2086 | AEQ13: 2086 | AER13: 2086 | AES13: 2086 | AET13: 2086 | AEU13: 2087 | AEV13: 2087 | AEW13: 2087 | AEX13: 2087 | AEY13: 2087 | AEZ13: 2087 | AFA13: 2087 | AFB13: 2087 | AFC13: 2087 | AFD13: 2087 | AFE13: 2087 | AFF13: 2087 | AFG13: 2088 | AFH13: 2088 | AFI13: 2088 | AFJ13: 2088 | AFK13: 2088 | AFL13: 2088 | AFM13: 2088 | AFN13: 2088 | AFO13: 2088 | AFP13: 2088 | AFQ13: 2088 | AFR13: 2088 | AFS13: 2089 | AFT13: 2089 | AFU13: 2089 | AFV13: 2089 | AFW13: 2089 | AFX13: 2089 | AFY13: 2089 | AFZ13: 2089 | AGA13: 2089 | AGB13: 2089 | AGC13: 2089 | AGD13: 2089 | AGE13: 2090 | AGF13: 2090 | AGG13: 2090 | AGH13: 2090 | AGI13: 2090 | AGJ13: 2090 | AGK13: 2090 | AGL13: 2090 | AGM13: 2090 | AGN13: 2090 | AGO13: 2090 | AGP13: 2090 | AGQ13: 2091 | AGR13: 2091 | AGS13: 2091 | AGT13: 2091 | AGU13: 2091 | AGV13: 2091 | AGW13: 2091 | AGX13: 2091 | AGY13: 2091 | AGZ13: 2091 | AHA13: 2091 | AHB13: 2091 | AHC13: 2092 | AHD13: 2092 | AHE13: 2092 | AHF13: 2092 | AHG13: 2092 | AHH13: 2092 | AHI13: 2092 | AHJ13: 2092 | AHK13: 2092 | AHL13: 2092 | AHM13: 2092 | AHN13: 2092 | AHO13: 2093 | AHP13: 2093 | AHQ13: 2093 | AHR13: 2093 | AHS13: 2093 | AHT13: 2093 | AHU13: 2093 | AHV13: 2093 | AHW13: 2093 | AHX13: 2093 | AHY13: 2093 | AHZ13: 2093 | AIA13: 2094 | AIB13: 2094 | AIC13: 2094 | AID13: 2094 | AIE13: 2094 | AIF13: 2094 | AIG13: 2094 | AIH13: 2094 | AII13: 2094 | AIJ13: 2094 | AIK13: 2094 | AIL13: 2094 | AIM13: 2095 | AIN13: 2095 | AIO13: 2095 | AIP13: 2095 | AIQ13: 2095 | AIR13: 2095 | AIS13: 2095 | AIT13: 2095 | AIU13: 2095 | AIV13: 2095 | AIW13: 2095 | AIX13: 2095 | AIY13: 2096 | AIZ13: 2096 | AJA13: 2096 | AJB13: 2096 | AJC13: 2096 | AJD13: 2096 | AJE13: 2096 | AJF13: 2096 | AJG13: 2096 | AJH13: 2096 | AJI13: 2096 | AJJ13: 2096 | AJK13: 2097 | AJL13: 2097 | AJM13: 2097 | AJN13: 2097 | AJO13: 2097 | AJP13: 2097 | AJQ13: 2097 | AJR13: 2097 | AJS13: 2097 | AJT13: 2097 | AJU13: 2097 | AJV13: 2097
